Workbook

Sheet STARTSEITE
A2: =Translation!A14 -> Toolbox-Rotation - MODULARE MONTAGEAUTOMATION
A3: =Translation!A13 -> Version 02/18
D9: =Translation!A6 -> Modul-Berechnungsprogramm
D12: =Translation!A7 -> Mit diesem Software-Tool werden für Rotationsmodule und Ringschalttische die zulässigen Belastungen und Taktzeiten berechnet
A14: =Translation!A15 -> Zoom (%)
D20: =Translation!A17 -> Achtung:
D22: =Translation!A16 -> Bitte überprüfen Sie regelmäßig die Aktualität dieses Berechnungsprogramms im "Download-Bereich" unserer Homepage !
A41: http://www.schunk.com
D42: =Translation!A8 -> Software: MS Excel 2007
D43: =Translation!A11 -> ActiveX Steuerelemente müssen aktiviert sein !
D44: =Translation!A12 -> MAKROS müssen aktiviert sein !
A45: mailto: automation@ de.schunk.com
A50: 1 | B50: 100
B51: 100
B52: 95
B53: 90
B54: 85
B55: 80
B56: 75
B57: 70
B59: 100
B60: =IF(B59>100,100,B59) -> 100
B61: =B60*0.88 -> 88
B62: =B60*0.96 -> 96

Sheet INFO
A2: =Translation!A14 -> Toolbox-Rotation - MODULARE MONTAGEAUTOMATION
A3: ='Info-Translation'!A15 -> Informationen
D12: ='Info-Translation'!A6 -> Infos zur Toolbox-Rotation
D16: ='Info-Translation'!A22 -> SCHUNK bietet Ihnen Produkte und Dienstleistungen mit zukunftsgerichtetem technischen Niveau. Um Ihnen die geforderte Planungssicherheit zu garantieren wurde diese Software entwickelt mit der Rotationsmodule und Ringschalttische berechnet werden können. Nachfolgend ist die Funktion und Bedienung kurz beschrieben.
D21: ='Info-Translation'!A7 -> Klicken Sie hier...
I25: ='Info-Translation'!A13 -> Berechnung der Taktzeiten und Massenträgheitsmomente
I28: ='Info-Translation'!A13 -> Berechnung der Taktzeiten und Massenträgheitsmomente
D45: ='Info-Translation'!A9 -> Rotationsmodule
D49: ='Info-Translation'!A23 -> Zur Berechnung von Rotationsmodulen ist - VORHER - das Massenträgheitsmoment J der zu schwenkenden Masse zu berechnen !
D52: ='Info-Translation'!A24 -> Aus nachfolgend aufgezeigten Einzelkörpern, deren Massenträgheitsmomente und Schwerpunktskoordinaten mit dieser Software berechnet werden können, ist es möglich durch Zusammensetzen, Aufsummieren oder Subtrahieren das Gesamtmassenträgheitsmoment mit Schwerpunktskoordinaten eines spezifischen Schwenkaufbaus zu ermitteln.
D66: ='Info-Translation'!A25 -> Direkte Eingabe von J | H66: ='Info-Translation'!A26 -> Quader | K66: ='Info-Translation'!A27 -> Scheibe | N66: ='Info-Translation'!A28 -> Welle längs | Q66: ='Info-Translation'!A29 -> Welle quer | T66: ='Info-Translation'!A30 -> Grundfläche/Masse
H71: ='Info-Translation'!A33 -> Einzelkörper-Massenträgheitsmomente
H73: ='Info-Translation'!A34 -> Nach Auswahl des gewünschten Körpers und Eingabe der Körperdaten sind die Startpunkt-Koordinaten des Massenschwerpunktes dieses Körpers zur Drehachse zu bestimmen.
H77: ='Info-Translation'!A35 -> Bei der Bestimmung der Startpunktkoordinaten ist auf die Vorzeichen zu achten. Ob die Schwenkachse horizontal oder vertikal angeordnet ist spielt hier noch keine Rolle.
D80: ='Info-Translation'!A31 -> Greifmodule | H80: ='Info-Translation'!A36 -> Nach vollständiger Eingabe aller Daten müssen die Werte zur Berechnung des Gesamtmassenträgheitsmoments in die Liste addiert oder subtrahiert werden.
D84: ='Info-Translation'!A37 -> Gesamt-Massenträgheitsmoment
D86: ='Info-Translation'!A38 -> Durch die Möglichkeit der Aufsummierung einzelner Körper ist es möglich das Gesamtmassenträgheitsmoment sowie die Koordinaten des Gesamtmassenschwerpunkts unterschiedlichster Schwenkaufbauten zu berechnen. Diese sind dann die Grundlage zur Berechnung eines geeigneten Rotationsmoduls.
E90: ='Info-Translation'!A39 -> Alle in die Liste übernommenen Einzelkörperwerte können zeilenweise gelöscht werden.
E92: ='Info-Translation'!A40 -> Sind in die letzte Zeile der Liste bereits Einzelkörperwerte übernommen worden und Sie wollen weitere Einzelkörper berechnen und in die Liste übernehmen, erhalten Sie eine Meldung die Sie mit - JA - bestätigen. Das bisher berechnete Gesamtmassenträgheitsmoment mit Schwerpunktskoorinaten wird dann in die erste Zeile der Liste übernommen. Sie können nun weitere Einzelkörper berechnen und in die Liste übernehmen.
E97: ='Info-Translation'!A41 -> Über den Button - NEUBERECHNUNG - können Sie die komplette Berechnung löschen.
D101: ='Info-Translation'!A42 -> Nach vollständiger Berechnung des Gesamtmassenträgheitsmoments mit Schwerpunktkoordinaten Ihres zu schwenkenden Aufbaus, gelangen sie über den Button - Zur RM/RST-Berechnung - in die Modul-Auswahlmaske.
D106: ='Info-Translation'!A43 -> Hier wählen Sie den gewünschten Typ aus, dessen zulässiges Massenträgheitsmoment im Bereich Ihres berechnenten Wertes liegt. Durch anklicken gelangen Sie in die Modul-Berechnungsmaske in der Sie bitte Ihre Daten eingeben.
D110: ='Info-Translation'!A44 -> Berechnungsgrundlagen für Rotationsmodule
D112: ='Info-Translation'!A45 -> Anwendungsdaten: | G112: ='Info-Translation'!A47 -> Gesamt-Massenträgheitsmoment | L112: ='Info-Translation'!A52 -> Moduldaten: | N112: ='Info-Translation'!A53 -> Betriebsdruck 6 bar
D114: ='Info-Translation'!A46 -> Kundenanforderungen | G114: ='Info-Translation'!A48 -> Koordinaten des Massenschwerpunkts | N114: ='Info-Translation'!A54 -> Stoßdämpferauslastung pro Hub und Stunde max. 100%
G116: ='Info-Translation'!A49 -> Schwenkwinkel | N116: ='Info-Translation'!A55 -> Lagerbelastung durch Beschleunigung und Verzögerung unter Berücksichtigung aller auftretenden Kräfte und Momente
G118: ='Info-Translation'!A50 -> Drehachse horizontal oder vertikal
N119: ='Info-Translation'!A56 -> Wirkt eine externe Kraft F bzw. ein externes Moment M auf das Rotationsmodul, ist die Auslastung der Lagerung neu zu berechnen.
G120: ='Info-Translation'!A51 -> Drehrichtung UZ oder GUZ
N121: ='Info-Translation'!A57 -> Setzen Sie sich bitte mit uns in Verbindung !!
N123: ='Info-Translation'!A58 -> Eine extern einwirkende Kraft kann auch eine Belastung durch Beschleunigung oder Verzögerung darstellen. Dies ist der Fall wenn das mit dieser Software zu berechnende Modul auf einer weiteren Bewegungsachse aufgebaut ist und somit einer dynamischen Belastung ausgesetzt wird.
D131: ='Info-Translation'!A59 -> Sind alle Daten eingegeben, können von den ursprünglich aufgezeigten Modulen aus folgenden Gründen einige Typen entfallen sein:
D134: ='Info-Translation'!A60 -> Drehwinkel < 10 Grad (nur bei RM 50)
D137: ='Info-Translation'!A61 -> Auslastung der Stoßdämpfer pro Zyklus > 100%
D140: ='Info-Translation'!A62 -> Massenträgheitsmoment > 100% des jeweils zulässigen Wertes
D143: ='Info-Translation'!A63 -> Auslastung der Lagerung > 100%
D146: ='Info-Translation'!A64 -> Massenbedingte Reduzierung des Antriebsmoments > 50% bei horizontaler Drehachse
D150: ='Info-Translation'!A65 -> Mit allen verbliebenen Typen ist Ihr Anwendungsfall realisierbar. Durch Veränderung der Schwenkgeschwindigkeit können Sie die von Ihnen gewünschte Schwenkzeit erreichen. Dabei werden alle Werte laufend neu berechnet, bei Überlastung werden die entsprechenden Werte rot markiert.
D154: ='Info-Translation'!A66 -> Berechnungsergebnisse
D157: ='Info-Translation'!A67 -> Auslastung Stoßdämpfer pro Zyklus
D159: ='Info-Translation'!A68 -> Auslastung Massenträgheitsmoment
D161: ='Info-Translation'!A69 -> Auslastung Lagerung
D163: ='Info-Translation'!A70 -> Auslastung Antriebsmoment bei horizontaler Drehachse
T164: ='Info-Translation'!A73 -> Beispiel
D165: ='Info-Translation'!A71 -> Minimale Schwenkzeit UZ und GUZ
D167: ='Info-Translation'!A72 -> Maximale Zyklenzahl pro Minute
D172: ='Info-Translation'!A74 -> ACHTUNG: | F172: ='Info-Translation'!A75 -> Die berechneten Werte dürfen nicht über- bzw. unterschritten werden !
F174: ='Info-Translation'!A76 -> Wegen der vielfältigen Gestaltungsmöglichkeiten sind in den Schwenkzeiten und Zykluszahlen keine Ansteuerungs- und Ventilschaltzeiten berücksichtigt. Je nach Aufbau und Art der verwendeten Steuerungen und Ventile sind Ansteuerungs- und Schaltzeiten von 0,05 sek. pro Bewegung realisierbar. Diese sind zu den berechneten Zeiten zu addieren.
F178: ='Info-Translation'!A77 -> Keine harten Schläge durch die bewegten Massen !
F180: ='Info-Translation'!A78 -> Die bewegten Massen dürfen beim Aufprall auf den Stoßdämpfer und in den Endlagen keine Schläge verursachen. Dies ist durch entsprechende Hubeinstellung der Stoßdämpfer in den Anschlaghülsen sicherzustellen.
D187: ='Info-Translation'!A16 -> Ringschalttische
D191: ='Info-Translation'!A115 -> Zur Berechnung von Ringschalttischen ist - VORHER - das Massenträgheitsmoment J der zu schwenkenden Masse zu berechnen ! (Berechnung siehe Rotationsmodule)
D198: ='Info-Translation'!A42 -> Nach vollständiger Berechnung des Gesamtmassenträgheitsmoments mit Schwerpunktkoordinaten Ihres zu schwenkenden Aufbaus, gelangen sie über den Button - Zur RM/RST-Berechnung - in die Modul-Auswahlmaske.
D203: ='Info-Translation'!A43 -> Hier wählen Sie den gewünschten Typ aus, dessen zulässiges Massenträgheitsmoment im Bereich Ihres berechnenten Wertes liegt. Durch anklicken gelangen Sie in die Modul-Berechnungsmaske in der Sie bitte Ihre Daten eingeben.
D208: ='Info-Translation'!A118 -> Berechnungsgrundlagen für Ringschalttische
D210: ='Info-Translation'!A45 -> Anwendungsdaten: | G210: ='Info-Translation'!A47 -> Gesamt-Massenträgheitsmoment | L210: ='Info-Translation'!A52 -> Moduldaten: | N210: ='Info-Translation'!A53 -> Betriebsdruck 6 bar
D212: ='Info-Translation'!A46 -> Kundenanforderungen | G212: ='Info-Translation'!A48 -> Koordinaten des Massenschwerpunkts | N212: ='Info-Translation'!A54 -> Stoßdämpferauslastung pro Hub und Stunde max. 100%
G214: ='Info-Translation'!A119 -> Teilung | N214: ='Info-Translation'!A55 -> Lagerbelastung durch Beschleunigung und Verzögerung unter Berücksichtigung aller auftretenden Kräfte und Momente
G216: ='Info-Translation'!A50 -> Drehachse horizontal oder vertikal
N217: ='Info-Translation'!A124 -> Wirkt eine externe Kraft F bzw. ein externes Moment M auf den Ringschalttisch, ist die Auslastung der Lagerung neu zu berechnen.
N219: ='Info-Translation'!A57 -> Setzen Sie sich bitte mit uns in Verbindung !!
N221: ='Info-Translation'!A58 -> Eine extern einwirkende Kraft kann auch eine Belastung durch Beschleunigung oder Verzögerung darstellen. Dies ist der Fall wenn das mit dieser Software zu berechnende Modul auf einer weiteren Bewegungsachse aufgebaut ist und somit einer dynamischen Belastung ausgesetzt wird.
D229: ='Info-Translation'!A59 -> Sind alle Daten eingegeben, können von den ursprünglich aufgezeigten Modulen aus folgenden Gründen einige Typen entfallen sein:
D232: ='Info-Translation'!A61 -> Auslastung der Stoßdämpfer pro Zyklus > 100%
D235: ='Info-Translation'!A62 -> Massenträgheitsmoment > 100% des jeweils zulässigen Wertes
D238: ='Info-Translation'!A63 -> Auslastung der Lagerung > 100%
D241: ='Info-Translation'!A126 -> Teilung nicht möglich
D246: ='Info-Translation'!A125 -> Mit allen verbliebenen Typen ist Ihr Anwendungsfall realisierbar.
D250: ='Info-Translation'!A66 -> Berechnungsergebnisse
D255: ='Info-Translation'!A68 -> Auslastung Massenträgheitsmoment
D257: ='Info-Translation'!A69 -> Auslastung Lagerung
D259: ='Info-Translation'!A121 -> Minimale Zykluszeit
T260: ='Info-Translation'!A73 -> Beispiel
D261: ='Info-Translation'!A122 -> Minimale Schwenkzeit
D263: ='Info-Translation'!A72 -> Maximale Zyklenzahl pro Minute
D268: ='Info-Translation'!A74 -> ACHTUNG: | F268: ='Info-Translation'!A75 -> Die berechneten Werte dürfen nicht über- bzw. unterschritten werden !
F274: ='Info-Translation'!A77 -> Keine harten Schläge durch die bewegten Massen !
F276: ='Info-Translation'!A123 -> Die bewegten Massen dürfen beim Aufprall auf den Stoßdämpfer und in den Endlagen keine Schläge verursachen. Dies ist durch entsprechende Hubeinstellung der Stoßdämpfer sicherzustellen.
D287: ='Info-Translation'!A11 -> Allgemeine Infos
D290: ='Info-Translation'!A107 -> Haftung
D292: ='Info-Translation'!A108 -> Alle Angaben und technische Werte wurden nach bestem Wissen und Gewissen zusammengestellt. Eine Rechtsverbindlichkeit besteht nur dann, wenn Ihnen diese Daten, bezogen auf Ihren Anwendungsfall, schriftlich durch uns direkt zugesichert wurden. Änderungen und Abweichungen in der Ausführung eines in Auftrag gegebenen Produkts sind zulässig, insbesondere wenn sie qualitätsfördernd sind oder dem technischen Fortschritt dienen, also eine Produktverbesserung beinhalten. Sie sind aber immer so ausgelegt, daß sie den berechtigten Interessen des Verwenders zumutbar sind.
F11983: 10

Sheet Info-Massenträgheitsmoment
A2: =Translation!A14 -> Toolbox-Rotation - MODULARE MONTAGEAUTOMATION
A3: =Translation!A26 -> Berechnung von Rotationsmodulen und Ringschalttischen
D10: =Translation!A27 -> Beispiel 1 | I10: =Translation!A28 -> Beispiel 2 | N10: =Translation!A29 -> Beispiel 3
D23: =Translation!A30 -> Greif-Dreh-Einheit | I23: =Translation!A31 -> Rotationsmodul mit Doppelgreifer | N23: =Translation!A32 -> Rotationsmodul mit Schwenkarm
D28: =Translation!A33 -> Vor der Berechnung von Rotationsmodulen und Ringschalttischen müssen die Massenträgheitsmomente der zu schwenkenden Massen ermittelt werden.

Sheet Massenträgheitsmoment
A2: =Translation!A14 -> Toolbox-Rotation - MODULARE MONTAGEAUTOMATION
A3: =Translation!A48 -> Berechnung Massenträgheitsmoment
D10: =Translation!A53 -> Gesamtmassenträgheitsmoment aus Einzelkörperberechnung | AC10: =Translation!A63 -> Körper-
AC12: =Translation!A64 -> auswahl
D13: =Translation!A54 -> Bezeichnung | H13: J (kgm2) | I13: m (kg) | J13: X (mm) | K13: Y (mm) | L13: Z (mm) | M13: m x Z | N13: m x X | O13: m x Y | P13: =Translation!A55 -> Bezeichnung 1 | R13: =Translation!A56 -> Bezeichnung 2 | T13: =Translation!A57 -> Bezeichnung 3 | V13: =Translation!A58 -> Bezeichnung 4 | Y13: =Translation!A59 -> löschen
D14: =IF(D35="","",D35) ->  | H14: =IF(H35="","",H35) ->  | M14: =M35 -> 0 | N14: 0 | O14: 0 | P14: =IF(P35="","",P35) -> 
M15: 0 | N15: 0 | O15: 0
M16: 0 | N16: 0 | O16: 0
M17: 0 | N17: 0 | O17: 0
M18: 0 | N18: 0 | O18: 0
M19: 0 | N19: 0 | O19: 0
M20: 0 | N20: 0 | O20: 0
M21: 0 | N21: 0 | O21: 0
M22: 0 | N22: 0 | O22: 0
M23: 0 | N23: 0 | O23: 0
M24: 0 | N24: 0 | O24: 0
M25: 0 | N25: 0 | O25: 0
M26: 0 | N26: 0 | O26: 0
M27: 0 | N27: 0 | O27: 0
M28: 0 | N28: 0 | O28: 0
D30: =Translation!A60 -> Massenträgheitsmom. | H30: J ges = | I30: =SUM(H14:H28) -> 0 | K30: kgm2 | M30: =SUM(M14:M28) -> 0 | N30: =SUM(N14:N28) -> 0 | O30: =SUM(O14:O28) -> 0 | Q30: =Translation!A62 -> Koordinaten des Gesamtmassenschwerpunkts | U30: Xs = | V30: =IF(OR(I31=0,I31<0),0,N30/I31) -> 0 | W30: mm
D31: =Translation!A61 -> Gesamtmasse | H31: m ges = | I31: =SUM(I14:I28) -> 0 | K31: kg | U31: Ys = | V31: =IF(OR(I31=0,I31<0),0,O30/I31) -> 0 | W31: mm
U32: Zs = | V32: =IF(OR(I31=0,I31<0),0,M30/I31) -> 0 | W32: mm
D54: =Translation!A73 -> Direkte Eingabe von J0 | AA54: =Translation!A78 -> Z=Höhenkoordinate ab OK-Drehteller
H56: =Translation!A74 -> Eigenmassenträgheitsmom. | Q56: J 0 = | R56: 0 | S56: kgm2 | U56: J = | V56: =R56+POWER(V64/1000,2)*R58 -> 0 | W56: kgm2 | AN56: =V56*(-1) -> 0
H58: =Translation!A75 -> Masse des Körpers | Q58: m = | R58: 0 | S58: kg | U58: m = | V58: =R58 -> 0 | W58: kg | AN58: =V58*(-1) -> 0
R62: 0
H64: =Translation!A76 -> Massenschwerpunkts-Koordinaten zum Beginn der Drehbewegung | Q64: X = | R64: 0 | S64: mm | U64: R = | V64: =SQRT(POWER(R64,2)+POWER(R66,2)) -> 0 | W64: mm | AN64: =V58*R64 -> 0 | AO64: =V58*R66 -> 0 | AP64: =V58*V66 -> 0
Q66: Y = | R66: 0 | S66: mm | U66: Z = | V66: 0 | W66: mm | AN66: =AN58*R64 -> 0 | AO66: =AN58*R66 -> 0 | AP66: =AN58*V66 -> 0
I70: = | J70: =Translation!A77 -> Eingabefelder
D76: =Translation!A83 -> Quader | R76: =Translation!A84 -> Dichte | AA76: =Translation!A78 -> Z=Höhenkoordinate ab OK-Drehteller
H78: =Translation!A85 -> Länge | I78: L = | J78: 0 | K78: mm | R78: 7.85 | S78: kg/dm3 | U78: J = | V78: =((((POWER(J78/1000,2))+POWER(J80/1000,2))/12)*V80)+(POWER(V86/1000,2)*V80) -> 0 | W78: kgm2 | AN78: =V78*(-1) -> 0 | AO78: FALSE | AP78: =IF(AO78=TRUE,7.85,IF(AO80=TRUE,2.7,IF(AO82=TRUE,R82,0))) -> 0
H80: =Translation!A86 -> Breite | I80: B = | J80: 0 | K80: mm | R80: 2.7 | S80: kg/dm3 | U80: m = | V80: =((J78*J80*J82)/1000000)*AP78 -> 0 | W80: kg | AN80: =V80*(-1) -> 0 | AO80: FALSE
H82: =Translation!A87 -> Höhe | I82: H = | J82: 0 | K82: mm | R82: 0 | S82: kg/dm3 | AO82: FALSE
H86: =Translation!A76 -> Massenschwerpunkts-Koordinaten zum Beginn der Drehbewegung | Q86: X = | R86: 0 | S86: mm | U86: R = | V86: =SQRT(POWER(R86,2)+POWER(R88,2)) -> 0 | W86: mm | AN86: =V80*R86 -> 0 | AO86: =V80*R88 -> 0 | AP86: =V80*V88 -> 0
Q88: Y = | R88: 0 | S88: mm | U88: Z = | V88: 0 | W88: mm | AN88: =AN80*R86 -> 0 | AO88: =AN80*R88 -> 0 | AP88: =AN80*V88 -> 0
I92: = | J92: =Translation!A77 -> Eingabefelder
D98: =Translation!A92 -> Scheibe | R98: =Translation!A93 -> Dichte | AA98: =Translation!A78 -> Z=Höhenkoordinate ab OK-Drehteller
H100: =Translation!A94 -> Durch- | I100: D = | J100: 0 | K100: mm | R100: 7.85 | S100: kg/dm3 | U100: J = | V100: =(POWER(J100/1000,2)/8)*V102+(POWER(V108/1000,2)*V102) -> 0 | W100: kgm2 | AN100: =V100*(-1) -> 0 | AO100: FALSE | AP100: =IF(AO100=TRUE,7.85,IF(AO102=TRUE,2.7,IF(AO104=TRUE,R104,0))) -> 0
H102: =Translation!A95 -> messer | R102: 2.7 | S102: kg/dm3 | U102: m = | V102: =(POWER(J100/100,2)/4)*3.1416*(J104/100)*AP100 -> 0 | W102: kg | AN102: =V102*(-1) -> 0 | AO102: FALSE
H104: =Translation!A96 -> Dicke | I104: H = | J104: 0 | K104: mm | R104: 0 | S104: kg/dm3 | AO104: FALSE
H108: =Translation!A76 -> Massenschwerpunkts-Koordinaten zum Beginn der Drehbewegung | Q108: X = | R108: 0 | S108: mm | U108: R = | V108: =SQRT(POWER(R108,2)+POWER(R110,2)) -> 0 | W108: mm | AN108: =V102*R108 -> 0 | AO108: =V102*R110 -> 0 | AP108: =V102*V110 -> 0
Q110: Y = | R110: 0 | S110: mm | U110: Z = | V110: 0 | W110: mm | AN110: =AN102*R108 -> 0 | AO110: =AN102*R110 -> 0 | AP110: =AN102*V110 -> 0
I114: = | J114: =Translation!A77 -> Eingabefelder
D120: =Translation!A98 -> Welle längs zur Drehachse | R120: =Translation!A99 -> Dichte | AA120: =Translation!A78 -> Z=Höhenkoordinate ab OK-Drehteller
H122: =Translation!A100 -> Durch- | I122: Da = | J122: 0 | K122: mm | R122: 7.85 | S122: kg/dm3 | U122: J = | V122: =(((POWER(AJ122/1000,2)+POWER(AJ124/1000,2))/8)*V124+(POWER(V130/1000,2)*V124)) -> 0 | W122: kgm2 | AJ122: =IF(OR(J122="",J124=""),0,J122) -> 0 | AN122: =V122*(-1) -> 0 | AO122: FALSE | AP122: =IF(AO122=TRUE,7.85,IF(AO124=TRUE,2.7,IF(AO126=TRUE,R126,0))) -> 0
H124: =Translation!A101 -> messer | I124: Di = | J124: 0 | K124: mm | R124: 2.7 | S124: kg/dm3 | U124: m = | V124: =(POWER(AJ122/100,2)-POWER(AJ124/100,2))*(3.1416*(J126/100)/4)*AP122 -> 0 | W124: kg | AJ124: =IF(OR(J124="",J122=""),0,J124) -> 0 | AN124: =V124*(-1) -> 0 | AO124: FALSE
H126: =Translation!A102 -> Länge | I126: L = | J126: 0 | K126: mm | R126: 0 | S126: kg/dm3 | AO126: FALSE
H130: =Translation!A76 -> Massenschwerpunkts-Koordinaten zum Beginn der Drehbewegung | Q130: X = | R130: 0 | S130: mm | U130: R = | V130: =SQRT(POWER(R130,2)+POWER(R132,2)) -> 0 | W130: mm | AN130: =V124*R130 -> 0 | AO130: =V124*R132 -> 0 | AP130: =V124*V132 -> 0
Q132: Y = | R132: 0 | S132: mm | U132: Z = | V132: 0 | W132: mm | AN132: =AN124*R130 -> 0 | AO132: =AN124*R132 -> 0 | AP132: =AN124*V132 -> 0
I136: = | J136: =Translation!A77 -> Eingabefelder
D142: =Translation!A104 -> Welle quer zur Drehachse | R142: =Translation!A105 -> Dichte | AA142: =Translation!A78 -> Z=Höhenkoordinate ab OK-Drehteller
H144: =Translation!A106 -> Durch- | I144: Da = | J144: 0 | K144: mm | R144: 7.85 | S144: kg/dm3 | U144: J = | V144: =((POWER(AJ144/1000,2)/16)+(POWER(AJ146/1000,2)/16)+(POWER(J148/1000,2)/12))*V146+(POWER(V152/1000,2)*V146) -> 0 | W144: kgm2 | AJ144: =IF(OR(J144="",J146=""),0,J144) -> 0 | AN144: =V144*(-1) -> 0 | AO144: FALSE | AP144: =IF(AO144=TRUE,7.85,IF(AO146=TRUE,2.7,IF(AO148=TRUE,R148,0))) -> 0
H146: =Translation!A107 -> messer | I146: Di = | J146: 0 | K146: mm | R146: 2.7 | S146: kg/dm3 | U146: m = | V146: =(POWER(AJ144/100,2)-POWER(AJ146/100,2))*(3.1416*(J148/100)/4)*AP144 -> 0 | W146: kg | AJ146: =IF(OR(J146="",J144=""),0,J146) -> 0 | AN146: =V146*(-1) -> 0 | AO146: FALSE
H148: =Translation!A108 -> Länge | I148: L = | J148: 0 | K148: mm | R148: 0 | S148: kg/dm3 | AO148: FALSE
H152: =Translation!A76 -> Massenschwerpunkts-Koordinaten zum Beginn der Drehbewegung | Q152: X = | R152: 0 | S152: mm | U152: R = | V152: =SQRT(POWER(R152,2)+POWER(R154,2)) -> 0 | W152: mm | AN152: =V146*R152 -> 0 | AO152: =V146*R154 -> 0 | AP152: =V146*V154 -> 0
Q154: Y = | R154: 0 | S154: mm | U154: Z = | V154: 0 | W154: mm | AN154: =AN146*R152 -> 0 | AO154: =AN146*R154 -> 0 | AP154: =AN146*V154 -> 0
I158: = | J158: =Translation!A77 -> Eingabefelder
D164: =Translation!A110 -> Grundfläche / Masse | AA164: =Translation!A78 -> Z=Höhenkoordinate ab OK-Drehteller
H166: =Translation!A111 -> Länge | I166: L = | J166: 0 | K166: mm | U166: J = | V166: =((((POWER(J166/1000,2))+POWER(J168/1000,2))/12)*V168)+(POWER(V174/1000,2)*V168) -> 0 | W166: kgm2 | AN166: =V166*(-1) -> 0
H168: =Translation!A112 -> Breite | I168: B = | J168: 0 | K168: mm | U168: m = | V168: =J170 -> 0 | W168: kg | AN168: =V168*(-1) -> 0
H170: =Translation!A113 -> Masse | I170: m = | J170: 0 | K170: kg
H174: =Translation!A76 -> Massenschwerpunkts-Koordinaten zum Beginn der Drehbewegung | Q174: X = | R174: 0 | S174: mm | U174: R = | V174: =SQRT(POWER(R174,2)+POWER(R176,2)) -> 0 | W174: mm | AN174: =V168*R174 -> 0 | AO174: =V168*R176 -> 0 | AP174: =V168*V176 -> 0
Q176: Y = | R176: 0 | S176: mm | U176: Z = | V176: 0 | W176: mm | AN176: =AN168*R174 -> 0 | AO176: =AN168*R176 -> 0 | AP176: =AN168*V176 -> 0
I180: = | J180: =Translation!A77 -> Eingabefelder
D186: =Translation!A115 -> Greifmodule
D188: =Translation!A116 -> Parallel-Greifer | H188: =A341&Translation!A116 -> Parallel-Greifer | L188: =A341&Translation!A116 -> Parallel-Greifer | R188: =A342&Translation!A117 -> 3-Backen-Greifer | V188: =A341&A341&A341&Translation!A118 -> Winkel-Greifer | AC188: =Translation!A119 -> Winkel-Parallel-Greifer
D189: GM 80 - GM 201 | H189: GM 85 - GM 205 | L189: GMP 12 - GMP 28 | R189: GMC 12 - GMC 28 | V189: GMW 12 - GMW 28 | AC189: GM 280 - GM 400
D206: =Translation!A116&A341&AK210 -> Parallel-Greifer | AA206: =Translation!A78 -> Z=Höhenkoordinate ab OK-Drehteller
U208: J = | V208: =(V212+(POWER(V216/1000,2)*V210)) -> 0 | W208: kgm2 | AJ208: FALSE
U210: m = | V210: =IF(AJ208=TRUE,0.32,IF(AJ210=TRUE,0.62,IF(AJ212=TRUE,1.75,0))) -> 0 | W210: kg | AJ210: FALSE | AK210: =IF(AJ208=TRUE,"GM 80 / 81",IF(AJ210=TRUE,"GM 100 / 101",IF(AJ212=TRUE,"GM 200 / 201",""))) -> 
U212: J0 = | V212: =IF(AJ208=TRUE,0.0000853,IF(AJ210=TRUE,0.000279,IF(AJ212=TRUE,0.001641,0))) -> 0 | W212: kgm2 | AJ212: FALSE
H216: =Translation!A76 -> Massenschwerpunkts-Koordinaten zum Beginn der Drehbewegung | Q216: X = | R216: 0 | S216: mm | U216: R = | V216: =SQRT(POWER(R216,2)+POWER(R218,2)) -> 0 | W216: mm | AN216: =V210*R216 -> 0 | AO216: =V210*R218 -> 0 | AP216: =V210*V218 -> 0
Q218: Y = | R218: 0 | S218: mm | U218: Z = | V218: 0 | W218: mm
I222: = | J222: =Translation!A77 -> Eingabefelder
D228: =Translation!A116&A341&AK232 -> Parallel-Greifer | AA228: =Translation!A78 -> Z=Höhenkoordinate ab OK-Drehteller
U230: J = | V230: =(V234+(POWER(V238/1000,2)*V232)) -> 0 | W230: kgm2 | AJ230: FALSE
U232: m = | V232: =IF(AJ230=TRUE,0.48,IF(AJ232=TRUE,1.08,IF(AJ234=TRUE,2.7,0))) -> 0 | W232: kg | AJ232: FALSE | AK232: =IF(AJ230=TRUE,"GM 85",IF(AJ232=TRUE,"GM 105",IF(AJ234=TRUE,"GM 205",""))) -> 
U234: J0 = | V234: =IF(AJ230=TRUE,0.00036,IF(AJ232=TRUE,0.001434,IF(AJ234=TRUE,0.006649,0))) -> 0 | W234: kgm2 | AJ234: FALSE
H238: =Translation!A76 -> Massenschwerpunkts-Koordinaten zum Beginn der Drehbewegung | Q238: X = | R238: 0 | S238: mm | U238: R = | V238: =SQRT(POWER(R238,2)+POWER(R240,2)) -> 0 | W238: mm | AN238: =V232*R238 -> 0 | AO238: =V232*R240 -> 0 | AP238: =V232*V240 -> 0
Q240: Y = | R240: 0 | S240: mm | U240: Z = | V240: 0 | W240: mm
I244: = | J244: =Translation!A77 -> Eingabefelder
D250: =Translation!A116&A341&AK264 -> Parallel-Greifer | AA250: =Translation!A78 -> Z=Höhenkoordinate ab OK-Drehteller
U252: J = | V252: =(V256+(POWER(V262/1000,2)*V254)) -> 0 | W252: kgm2 | AJ252: FALSE | AK252: FALSE | AL252: FALSE | AM252: FALSE
U254: m = | V254: =MAX(AJ262,AL262) -> 0 | W254: kg | AJ254: FALSE | AK254: FALSE | AL254: FALSE | AM254: FALSE
U256: J0 = | V256: =MAX(AK262,AM262) -> 0 | W256: kgm2 | AJ256: FALSE | AK256: FALSE | AL256: FALSE | AM256: FALSE
AJ258: FALSE | AK258: FALSE | AL258: FALSE | AM258: FALSE
H262: =Translation!A76 -> Massenschwerpunkts-Koordinaten zum Beginn der Drehbewegung | Q262: X = | R262: 0 | S262: mm | U262: R = | V262: =SQRT(POWER(R262,2)+POWER(R264,2)) -> 0 | W262: mm | AJ262: =IF(AJ252=TRUE,0.14,IF(AJ254=TRUE,0.16,IF(AJ256=TRUE,0.16,IF(AJ258=TRUE,0.18,IF(AK252=TRUE,0.2,IF(AK254=TRUE,0.24,IF(AK256=TRUE,0.26,IF(AK258=TRUE,0.28,0)))))))) -> 0 | AK262: =IF(AJ252=TRUE,0.0000242,IF(AJ254=TRUE,0.0000273,IF(AJ256=TRUE,0.00002997,IF(AJ258=TRUE,0.00003307,IF(AK252=TRUE,0.0000506,IF(AK254=TRUE,0.0000572,IF(AK256=TRUE,0.0000627,IF(AK258=TRUE,0.0000693,0)))))))) -> 0 | AL262: =IF(AL252=TRUE,0.34,IF(AL254=TRUE,0.4,IF(AL256=TRUE,0.42,IF(AL258=TRUE,0.48,IF(AM252=TRUE,0.62,IF(AM254=TRUE,0.68,IF(AM256=TRUE,0.78,IF(AM258=TRUE,0.86,0)))))))) -> 0 | AM262: =IF(AL252=TRUE,0.0001259,IF(AL254=TRUE,0.0001391,IF(AL256=TRUE,0.0001469,IF(AL258=TRUE,0.0001601,IF(AM252=TRUE,0.00034247,IF(AM254=TRUE,0.00036737,IF(AM256=TRUE,0.00040417,IF(AM258=TRUE,0.00042907,0)))))))) -> 0 | AN262: =V254*R262 -> 0 | AO262: =V254*R264 -> 0 | AP262: =V254*V264 -> 0
Q264: Y = | R264: 0 | S264: mm | U264: Z = | V264: 0 | W264: mm | AJ264: =IF(AJ252=TRUE,"GMP 12",IF(AJ254=TRUE,"GMP 12-D",IF(AJ256=TRUE,"GMP 12-S/K",IF(AJ258=TRUE,"GMP 12-X/Z",IF(AK252=TRUE,"GMP 16",IF(AK254=TRUE,"GMP 16-D",IF(AK256=TRUE,"GMP 16-S/K",IF(AK258=TRUE,"GMP 16-X/Z","")))))))) ->  | AK264: =IF(AJ264="",AL264,AJ264) ->  | AL264: =IF(AL252=TRUE,"GMP 20",IF(AL254=TRUE,"GMP 20-D",IF(AL256=TRUE,"GMP 20-S/K",IF(AL258=TRUE,"GMP 20-X/Z",IF(AM252=TRUE,"GMP 28",IF(AM254=TRUE,"GMP 28-D",IF(AM256=TRUE,"GMP 28-S/K",IF(AM258=TRUE,"GMP 28-X/Z","")))))))) -> 
I268: = | J268: =Translation!A77 -> Eingabefelder
D274: =Translation!A117&A341&AK288 -> 3-Backen-Greifer | AA274: =Translation!A78 -> Z=Höhenkoordinate ab OK-Drehteller
U276: J = | V276: =(V280+(POWER(V286/1000,2)*V278)) -> 0 | W276: kgm2 | AJ276: FALSE | AK276: FALSE | AL276: FALSE | AM276: FALSE
U278: m = | V278: =MAX(AJ286,AL286) -> 0 | W278: kg | AJ278: FALSE | AK278: FALSE | AL278: FALSE | AM278: FALSE
U280: J0 = | V280: =MAX(AK286,AM286) -> 0 | W280: kgm2 | AJ280: FALSE | AK280: FALSE | AL280: FALSE | AM280: FALSE
AJ282: FALSE | AK282: FALSE | AL282: FALSE | AM282: FALSE
H286: =Translation!A76 -> Massenschwerpunkts-Koordinaten zum Beginn der Drehbewegung | Q286: X = | R286: 0 | S286: mm | U286: R = | V286: =SQRT(POWER(R286,2)+POWER(R288,2)) -> 0 | W286: mm | AJ286: =IF(AJ276=TRUE,0.18,IF(AJ278=TRUE,0.2,IF(AJ280=TRUE,0.2,IF(AJ282=TRUE,0.22,IF(AK276=TRUE,0.28,IF(AK278=TRUE,0.32,IF(AK280=TRUE,0.34,IF(AK282=TRUE,0.36,0)))))))) -> 0 | AK286: =IF(AJ276=TRUE,0.0000448,IF(AJ278=TRUE,0.0000479,IF(AJ280=TRUE,0.00005057,IF(AJ282=TRUE,0.00005367,IF(AK276=TRUE,0.0000987,IF(AK278=TRUE,0.0001053,IF(AK280=TRUE,0.0001108,IF(AK282=TRUE,0.0001174,0)))))))) -> 0 | AL286: =IF(AL276=TRUE,0.49,IF(AL278=TRUE,0.55,IF(AL280=TRUE,0.57,IF(AL282=TRUE,0.63,IF(AM276=TRUE,0.93,IF(AM278=TRUE,0.99,IF(AM280=TRUE,1.09,IF(AM282=TRUE,1.17,0)))))))) -> 0 | AM286: =IF(AL276=TRUE,0.0002747,IF(AL278=TRUE,0.0002879,IF(AL280=TRUE,0.0002957,IF(AL282=TRUE,0.0003089,IF(AM276=TRUE,0.00080347,IF(AM278=TRUE,0.00082837,IF(AM280=TRUE,0.00086517,IF(AM282=TRUE,0.00089007,0)))))))) -> 0 | AN286: =V278*R286 -> 0 | AO286: =V278*R288 -> 0 | AP286: =V278*V288 -> 0
Q288: Y = | R288: 0 | S288: mm | U288: Z = | V288: 0 | W288: mm | AJ288: =IF(AJ276=TRUE,"GMC 12",IF(AJ278=TRUE,"GMC 12-D",IF(AJ280=TRUE,"GMC 12-S/K",IF(AJ282=TRUE,"GMC 12-X/Z",IF(AK276=TRUE,"GMC 16",IF(AK278=TRUE,"GMC 16-D",IF(AK280=TRUE,"GMC 16-S/K",IF(AK282=TRUE,"GMC 16-X/Z","")))))))) ->  | AK288: =IF(AJ288="",AL288,AJ288) ->  | AL288: =IF(AL276=TRUE,"GMC 20",IF(AL278=TRUE,"GMC 20-D",IF(AL280=TRUE,"GMC 20-S/K",IF(AL282=TRUE,"GMC 20-X/Z",IF(AM276=TRUE,"GMC 28",IF(AM278=TRUE,"GMC 28-D",IF(AM280=TRUE,"GMC 28-S/K",IF(AM282=TRUE,"GMC 28-X/Z","")))))))) -> 
I292: = | J292: =Translation!A77 -> Eingabefelder
D298: =Translation!A118&A341&AK312 -> Winkel-Greifer GMW 28-X/Z | AA298: =Translation!A78 -> Z=Höhenkoordinate ab OK-Drehteller
U300: J = | V300: =(V304+(POWER(V310/1000,2)*V302)) -> 0.00027807 | W300: kgm2 | AJ300: FALSE | AK300: FALSE | AL300: FALSE | AM300: FALSE
U302: m = | V302: =MAX(AJ310,AL310) -> 0.76 | W302: kg | AJ302: FALSE | AK302: FALSE | AL302: FALSE | AM302: FALSE
U304: J0 = | V304: =MAX(AK310,AM310) -> 0.00027807 | W304: kgm2 | AJ304: FALSE | AK304: FALSE | AL304: FALSE | AM304: FALSE
AJ306: FALSE | AK306: FALSE | AL306: FALSE | AM306: TRUE
H310: =Translation!A76 -> Massenschwerpunkts-Koordinaten zum Beginn der Drehbewegung | Q310: X = | R310: 0 | S310: mm | U310: R = | V310: =SQRT(POWER(R310,2)+POWER(R312,2)) -> 0 | W310: mm | AJ310: =IF(AJ300=TRUE,0.14,IF(AJ302=TRUE,0.16,IF(AJ304=TRUE,0.16,IF(AJ306=TRUE,0.18,IF(AK300=TRUE,0.2,IF(AK302=TRUE,0.24,IF(AK304=TRUE,0.26,IF(AK306=TRUE,0.28,0)))))))) -> 0 | AK310: =IF(AJ300=TRUE,0.0000208,IF(AJ302=TRUE,0.0000239,IF(AJ304=TRUE,0.00002657,IF(AJ306=TRUE,0.00002967,IF(AK300=TRUE,0.0000434,IF(AK302=TRUE,0.00005,IF(AK304=TRUE,0.0000555,IF(AK306=TRUE,0.0000621,0)))))))) -> 0 | AL310: =IF(AL300=TRUE,0.3,IF(AL302=TRUE,0.36,IF(AL304=TRUE,0.38,IF(AL306=TRUE,0.44,IF(AM300=TRUE,0.52,IF(AM302=TRUE,0.58,IF(AM304=TRUE,0.68,IF(AM306=TRUE,0.76,0)))))))) -> 0.76 | AM310: =IF(AL300=TRUE,0.0000808,IF(AL302=TRUE,0.000094,IF(AL304=TRUE,0.0001018,IF(AL306=TRUE,0.000115,IF(AM300=TRUE,0.00019147,IF(AM302=TRUE,0.00021637,IF(AM304=TRUE,0.00025317,IF(AM306=TRUE,0.00027807,0)))))))) -> 0.00027807 | AN310: =V302*R310 -> 0 | AO310: =V302*R312 -> 0 | AP310: =V302*V312 -> 0
Q312: Y = | R312: 0 | S312: mm | U312: Z = | V312: 0 | W312: mm | AJ312: =IF(AJ300=TRUE,"GMW 12",IF(AJ302=TRUE,"GMW 12-D",IF(AJ304=TRUE,"GMW 12-S/K",IF(AJ306=TRUE,"GMW 12-X/Z",IF(AK300=TRUE,"GMW 16",IF(AK302=TRUE,"GMW 16-D",IF(AK304=TRUE,"GMW 16-S/K",IF(AK306=TRUE,"GMW 16-X/Z","")))))))) ->  | AK312: =IF(AJ312="",AL312,AJ312) -> GMW 28-X/Z | AL312: =IF(AL300=TRUE,"GMW 20",IF(AL302=TRUE,"GMW 20-D",IF(AL304=TRUE,"GMW 20-S/K",IF(AL306=TRUE,"GMW 20-X/Z",IF(AM300=TRUE,"GMW 28",IF(AM302=TRUE,"GMW 28-D",IF(AM304=TRUE,"GMW 28-S/K",IF(AM306=TRUE,"GMW 28-X/Z","")))))))) -> GMW 28-X/Z
I316: = | J316: =Translation!A77 -> Eingabefelder
D322: =Translation!A119&A341&AK326 -> Winkel-Parallel-Greifer | AA322: =Translation!A78 -> Z=Höhenkoordinate ab OK-Drehteller
U324: J = | V324: =(V328+(POWER(V332/1000,2)*V326)) -> 0 | W324: kgm2 | AJ324: FALSE
U326: m = | V326: =IF(AJ324=TRUE,0.32,IF(AJ326=TRUE,0.62,IF(AJ328=TRUE,1.16,0))) -> 0 | W326: kg | AJ326: FALSE | AK326: =IF(AJ324=TRUE,"GM 280",IF(AJ326=TRUE,"GM 300",IF(AJ328=TRUE,"GM 400",""))) -> 
U328: J0 = | V328: =IF(AJ324=TRUE,0.0000753,IF(AJ326=TRUE,0.00021,IF(AJ328=TRUE,0.000594,0))) -> 0 | W328: kgm2 | AJ328: FALSE
H332: =Translation!A76 -> Massenschwerpunkts-Koordinaten zum Beginn der Drehbewegung | Q332: X = | R332: 0 | S332: mm | U332: R = | V332: =SQRT(POWER(R332,2)+POWER(R334,2)) -> 0 | W332: mm | AN332: =V326*R332 -> 0 | AO332: =V326*R334 -> 0 | AP332: =V326*V334 -> 0
Q334: Y = | R334: 0 | S334: mm | U334: Z = | V334: 0 | W334: mm
I338: = | J338: =Translation!A77 -> Eingabefelder
A341: =" " -> 
A342: =" " -> 

Sheet RM-Berechnung
A2: =Translation!A14 -> Toolbox-Rotation - MODULARE MONTAGEAUTOMATION
A3: =Translation!A137 -> Berechnung von Rotationsmodulen und Ringschalttischen
D6: =Translation!A138&" "&Massenträgheitsmoment!I30&" "&"kgm2" -> Massenträgheitsmoment = 0 kgm2
D8: =Translation!A139 -> Zur RM/RST-Berechnung bitte gewünschten Typ auswählen !
D23: =Translation!A140 -> Kompaktbauweise | I23: =Translation!A141 -> Flachbauweise | N23: =Translation!A142 -> Flachbauweise mit Zwischenanschlag
D26: =Translation!A143 -> Max.zul. Massenträgheitsmoment | F26: 2,8 kgm2 | I26: =Translation!A143 -> Max.zul. Massenträgheitsmoment | L26: 0,045 kgm2 | N26: =Translation!A143 -> Max.zul. Massenträgheitsmoment | T26: 0,02 kgm2
D27: =Translation!A144 -> Antriebsmoment | F27: 0,7 - 22,0 Nm | I27: =Translation!A144 -> Antriebsmoment | L27: 0,05 - 1,9 Nm | N27: =Translation!A144 -> Antriebsmoment | T27: 0,38 - 1,9 Nm
I42: =Translation!A148 -> Ringschalttische
I45: =Translation!A143 -> Max.zul. Massenträgheitsmoment | L45: 0,6 kgm2
I46: =Translation!A144 -> Antriebsmoment | L46: 3,1 - 29,3 Nm

Sheet Eingabe1
V1: 100
A2: =Translation!A14 -> Toolbox-Rotation - MODULARE MONTAGEAUTOMATION | V2: 0.01
A3: =Translation!A162 -> Berechnung von Rotationsmodulen
C6: =Translation!A167 -> Rotationsmodule Kompaktbauweise RM 50 bis RM 310 | M6: =Translation!A171 -> Ergebnisse aus der Berechnung des Massenträgheitsmoments
M8: J ges ( kgm2 ) = | N8: =Massenträgheitsmoment!I30 -> 0 | P8: =Translation!A172 -> Gesamtmassenträgheitsmoment
M9: m ges ( kg ) = | N9: =Massenträgheitsmoment!I31 -> 0 | P9: =Translation!A173 -> Gesamtmasse
M10: Xs ( mm ) = | N10: =Massenträgheitsmoment!V30 -> 0 | P10: =Translation!A174 -> Gesamtmassenschwerpunkts-Koordinaten zum Beginn der Drehbewegung
M11: Ys ( mm ) = | N11: =Massenträgheitsmoment!V31 -> 0
M12: Zs ( mm ) = | N12: =Massenträgheitsmoment!V32 -> 0
M16: =Translation!A175 -> Geben Sie Ihre Werte mit -Enter- ein !
M19: 180 | O19: =Translation!A176 -> Schwenkwinkel ( 1 bis 180° )
K21: p (bar) | M21: 6 | O21: p = Betriebsdruck ( 3 bis 8 )
O23: =IF(C41=TRUE,C62,C63) -> Vertikal
O25: =IF(C42=TRUE,C64,C65) -> Start-Drehrichtung im Uhrzeigersinn ( UZ )
C27: =Translation!A170 -> Taktzeiten sind reine Rotationszeiten des Ritzels/Flansches um den Nenndrehwinkel. Ventilschaltzeiten, Schlauchbefüllungszeiten oder SPS-Reaktionszeiten sind nicht enthalten und bei der Ermittlung von Zykluszeiten zu berücksichtigen !
M30: - + | O30: =V2*V1 -> 1 | P30: =Translation!A181 -> Schwenkgeschwindigkeit
K32: =Translation!A182 -> Maximale zulässige Auslastung des Antriebsmoments = 50% !
C36: =Translation!A185 -> Module
C37: =Translation!A186 -> Berechneter Modul-Typ | I37: ="RM 50-W"&$M19&$F40 -> RM 50-W180-1 | M37: =IF($N8<M40,"RM 110-W"&$M19&$F40,"RM 110-W"&$M19&$F43) -> RM 110-W180-1 | O37: =IF($N8<O40,"RM 200-W"&$M19&$F40,"RM 200-W"&$M19&$F43) -> RM 200-W180-1 | Q37: =IF($N8<Q40,"RM 310-W"&$M19&$F40,"RM 310-W"&$M19&$F43) -> RM 310-W180-1
C38: =Translation!A187 -> Katalog Seite | I38: 176 | M38: 178 | O38: 180 | Q38: 182
C39: =Translation!A188 -> Antriebsmoment bei 6 bar ( Nm ) | I39: =IF(M19<10,C44,0.7) -> 0.7 | M39: 1.95 | O39: 4 | Q39: 22
C40: Max. zul. J-1 | F40: -1 | I40: =IF(AND(45<=M19,M19<=180),K41,0.01) -> 0.0050000104 | M40: =IF(AND(135<=M19,M19<=180),0.009,IF(AND(45<=M19,M19<135),M41,0.028)) -> 0.009 | O40: =IF(AND(45<=M19,M19<=180),O41,0.13) -> 0.06000031111 | Q40: =IF(AND(45<=M19,M19<=180),Q41,0.5) -> 0.95
C41: FALSE | K41: =-2.05761*POWER(10,-7)*POWER(M19,2)+9.25926*POWER(10,-6)*M19+0.01 -> 0.0050000104 | M41: =-((M19-45)/4736.84)+0.028 -> -0.0005000126667 | O41: =-((M19-45)/1928.58)+0.13 -> 0.06000031111 | Q41: =((M19-45)/300)+0.5 -> 0.95
C42: FALSE
C43: Max. zul. J-2 | F43: -2 | M43: =IF(AND(90<=M19,M19<=180),M44,IF(AND(45<=M19,M19<90),M45,0.04)) -> 0.0099999348 | O43: =IF(AND(45<=M19,M19<=180),O44,0.21) -> 0.1399979155 | Q43: =IF(AND(60<=M19,M19<=180),Q44,1.5) -> 2.800000004
C44: =Translation!A189 -> UNZULÄSSIG | D44: =Translation!A192 -> Stoßdämpfer | M44: =4.93827*POWER(10,-7)*POWER(M19,2)-0.000266667*M19+0.042 -> 0.0099999348 | O44: =-((M19-45)/1928.514)+0.21 -> 0.1399979155 | Q44: =((M19-60)/92.307692)+1.5 -> 2.800000004
C45: =Translation!A190 -> Masse zu hoch | D45: =IF(OR(I54>0.5,M54>0.5,O54>0.5,Q54>0.5,S54>0.5),1,0) -> 0 | M45: =8.88889*POWER(10,-6)*POWER(M19,2)-0.0016*M19+0.094 -> 0.094000036
C46: =Translation!A191 -> Drehwinkel zu klein | D46: =Translation!A193 -> Lagerung überlastet
C47: =Translation!A194 -> Schwenkwinkelbereich ( ° ) | I47: =IF(M19<10,"10 bis 180",IF(OR(I51>1,I52>1,I54>0.5,I53>=1),$C44,"10 - 180")) -> 10 - 180 | M47: =IF(OR(M51>1,M52>1,M54>0.5,M53>=1),$C44,"0 - 180") -> 0 - 180 | O47: =IF(OR(O51>1,O52>1,O54>0.5,O53>=1),$C44,"0 - 180") -> 0 - 180 | Q47: =IF(OR(Q51>1,Q52>1,Q54>0.5,Q53>=1),$C44,"0 - 180") -> 0 - 180
I49: =IF(M19<10,C46,IF(I54>0.5,$C45,IF(I52>1,$C45,IF(I51>1,$D44,IF(I53>=1,$D46," "))))) ->  | M49: =IF(M54>0.5,$C45,IF(M52>1,$C45,IF(M51>1,$D44,IF(M53>=1,$D46," ")))) ->  | O49: =IF(O54>0.5,$C45,IF(O52>1,$C45,IF(O51>1,$D44,IF(O53>=1,$D46," ")))) ->  | Q49: =IF(Q54>0.5,$C45,IF(Q52>1,$C45,IF(Q51>1,$D44,IF(Q53>=1,$D46," ")))) -> 
C51: =Translation!A195 -> Auslastung Stoßdämpfer / Zyklus | I51: =BerRM50!S26 -> 0.4006654844 | M51: =BerRM110!S26 -> 0.7544372735 | O51: =BerRM200!S26 -> 0.8254727812 | Q51: =BerRM310!S26 -> 0.8708792648
C52: =Translation!A196 -> Auslastung Massenträgheitsmoment | I52: =N8/I40 -> 0 | M52: =IF(($N8/M40)<1,$N8/M40,$N8/M43) -> 0 | O52: =IF(($N8/O40)<1,$N8/O40,$N8/O43) -> 0 | Q52: =IF(($N8/Q40)<1,$N8/Q40,$N8/Q43) -> 0
C53: =Translation!A197 -> Auslastung Lagerung | I53: =BerRM50!G128 -> 0.06323396567 | M53: =BerRM110!G128 -> 0.08554507567 | O53: =BerRM200!G128 -> 0.1120448179 | Q53: =BerRM310!G128 -> 0.03671255736
C54: =Translation!A198 -> Auslastung Antriebsmoment | I54: =BerRM50!S21 -> 0 | M54: =BerRM110!S21 -> 0 | O54: =BerRM200!S21 -> 0 | Q54: =BerRM310!S21 -> 0
C55: Min. Schwenkzeit / Zyklus (s) | I55: =BerRM50!Q18 -> 0.34 | M55: =BerRM110!Q18 -> 0.4 | O55: =BerRM200!Q18 -> 0.42 | Q55: =BerRM310!Q18 -> 0.52
C56: =IF(C42=TRUE,C66,C67) -> Min. Schwenkzeit UZ / GUZ ( s ) | I56: =BerRM50!V33&" / "&BerRM50!V34 -> 0,17 / 0,17 | M56: =BerRM110!V33 &" / "&BerRM110!V34 -> 0,2 / 0,2 | O56: =BerRM200!V33 &" / "&BerRM200!V34 -> 0,21 / 0,21 | Q56: =BerRM310!V33 &" / "&BerRM310!V34 -> 0,26 / 0,26
C57: =Translation!A200 -> Max. Zyklenzahl / Min. | I57: =BerRM50!S33 -> 37 | M57: =BerRM110!S33 -> 37 | O57: =BerRM200!S33 -> 37 | Q57: =BerRM310!S33 -> 17
C62: =Translation!A177 -> Horizontal
C63: =Translation!A178 -> Vertikal
C64: =Translation!A179 -> Start-Drehrichtung gegen Uhrzeigersinn ( GUZ )
C65: =Translation!A180 -> Start-Drehrichtung im Uhrzeigersinn ( UZ )
C66: =Translation!A201 -> Min. Schwenkzeit GUZ / UZ ( s )
C67: =Translation!A199 -> Min. Schwenkzeit UZ / GUZ ( s )

Sheet Eingabe2
V1: 100
A2: =Translation!A14 -> Toolbox-Rotation - MODULARE MONTAGEAUTOMATION | V2: 0.01
A3: =Translation!A215 -> Berechnung von Rotationsmodulen
C6: =Translation!A219 -> Rotationsmodule Flachbauweise RM 12 bis RM 21 | M6: =Translation!A224 -> Ergebnisse aus der Berechnung des Massenträgheitsmoments
C7: =Translation!A220 -> und zugehörige Zwischenanschläge RZ 12 bis RZ 21
M8: J ges ( kgm2 ) = | N8: =Massenträgheitsmoment!I30 -> 0 | P8: =Translation!A225 -> Gesamtmassenträgheitsmoment
M9: m ges ( kg ) = | N9: =Massenträgheitsmoment!I31 -> 0 | P9: =Translation!A226 -> Gesamtmasse
M10: Xs ( mm ) = | N10: =Massenträgheitsmoment!V30 -> 0 | P10: =Translation!A227 -> Gesamtmassenschwerpunkts-Koordinaten zum Beginn der Drehbewegung
M11: Ys ( mm ) = | N11: =Massenträgheitsmoment!V31 -> 0
M12: Zs ( mm ) = | N12: =Massenträgheitsmoment!V32 -> 0
M16: =Translation!A228 -> Geben Sie Ihre Werte mit -Enter- ein !
M19: 180 | O19: =Translation!A229 -> Schwenkwinkel ( 1 bis 190° )
K21: p (bar) | M21: 6 | O21: p = Betriebsdruck ( 3 bis 8 )
O23: =IF(C41=TRUE,C63,C64) -> Vertikal
O25: =IF(C42=TRUE,C65,C66) -> Start-Drehrichtung im Uhrzeigersinn ( UZ )
C27: =Translation!A223 -> Taktzeiten sind reine Rotationszeiten des Ritzels/Flansches um den Nenndrehwinkel. Ventilschaltzeiten, Schlauchbefüllungszeiten oder SPS-Reaktionszeiten sind nicht enthalten und bei der Ermittlung von Zykluszeiten zu berücksichtigen !
M30: - + | O30: =V1*V2 -> 1 | P30: =Translation!A234 -> Schwenkgeschwindigkeit
K32: =Translation!A235 -> Maximale zulässige Auslastung des Antriebsmoments = 50% !
C36: =Translation!A238 -> Module
C37: =Translation!A239 -> Berechneter Modul-Typ | G37: ="RM 12"&G45 -> RM 12-W | I37: RZ 12 | M37: ="RM 15"&M45 -> RM 15-W | O37: RZ 15 | Q37: RM 21-W | S37: RZ 21
C38: =Translation!A240 -> Katalog Seite | G38: 160 | I38: 161 | M38: 164 | O38: 165 | Q38: 168 | S38: 169
C39: =Translation!A241 -> Antriebsmoment bei 6 bar ( Nm ) | G39: 0.38 | I39: 0,38 | M39: 0.76 | O39: 0.76 | Q39: 1.9 | S39: 1.9
C40: Max. zul. J | G40: =IF(AND(45<=M19,M19<=190),G41,0.0045) -> 0.0019999836 | I40: 0.00045 | M40: =IF(AND(45<=M19,M19<=190),M41,0.0125) -> 0.0065 | O40: 0.002 | Q40: =IF(AND(45<=M19,M19<=190),Q41,0.045) -> 0.02300013037 | S40: 0.02
C41: FALSE | G41: =1.09739*POWER(10,-7)*POWER(M19,2)-4.32099*POWER(10,-5)*M19+0.006222222 -> 0.0019999836 | M41: =-((M19-45)/22500)+0.0125 -> 0.0065 | Q41: =-((M19-45)/6136.4)+0.045 -> 0.02300013037
C42: FALSE
C43: =Translation!A242 -> UNZULÄSSIG | D43: =IF(OR(G53>0.5,M53>0.5,Q53>0.5),1,0) -> 0 | G43: J-Grenze für Dämpfer : von -W zu -H
C44: =Translation!A243 -> Masse zu hoch | D44: =Translation!A245 -> Lagerung überlastet | G44: ='Allgemeine Werte'!R7 -> 0.0005 | M44: ='Allgemeine Werte'!R10 -> 0.002
C45: =Translation!A244 -> Stoßdämpfer | G45: =IF(N8>G44,"-H","-W") -> -W | M45: =IF(N8>M44,"-H","-W") -> -W
C46: =Translation!A246 -> Schwenkwinkelbereich ( ° ) | G46: =IF(OR(G50>1,G51>1,G53>0.5,G52>=1),$C43,"0 - 190") -> 0 - 190 | I46: =IF(OR(I50>1,I51>1,I53>0.5,G52>=1),$C43,"0 - 190") -> 0 - 190 | M46: =IF(OR(M50>1,M51>1,M53>0.5,M52>=1),$C43,"0 - 190") -> 0 - 190 | O46: =IF(OR(O50>1,O51>1,O53>0.5,M52>=1),$C43,"0 - 190") -> 0 - 190 | Q46: =IF(OR(Q50>1,Q51>1,Q53>0.5,Q52>=1),$C43,"0 - 190") -> 0 - 190 | S46: =IF(OR(S50>1,S51>1,S53>0.5,Q52>=1),$C43,"0 - 190") -> 0 - 190
G48: =IF(G53>0.5,$C44,IF(G51>1,$C44,IF(G50>1,$C45,IF(G52>=1,$D44," ")))) ->  | I48: =IF(I53>0.5,$C44,IF(I51>1,$C44,IF(I50>1,$C45," "))) ->  | M48: =IF(M53>0.5,$C44,IF(M51>1,$C44,IF(M50>1,$C45,IF(M52>=1,$D44," ")))) ->  | O48: =IF(O53>0.5,$C44,IF(O51>1,$C44,IF(O50>1,$C45," "))) ->  | Q48: =IF(Q53>0.5,$C44,IF(Q51>1,$C44,IF(Q50>1,$C45,IF(Q52>=1,$D44," ")))) ->  | S48: =IF(S53>0.5,$C44,IF(S51>1,$C44,IF(S50>1,$C45," "))) -> 
C50: =Translation!A247 -> Auslastung Stoßdämpfer / Zyklus | G50: =BerRM12!S26 -> 0.286328594 | I50: =BerRZ12!S26 -> 0.4772143233 | M50: =BerRM15!S26 -> 0.8414893635 | O50: =BerRZ15!S26 -> 0.4721033633 | Q50: =BerRM21!S26 -> 0.4966745673 | S50: =BerRZ21!S26 -> 0.8100131677
C51: =Translation!A248 -> Auslastung Massenträgheitsmoment | G51: =$N8/G40 -> 0 | I51: =$N8/I40 -> 0 | M51: =$N8/M40 -> 0 | O51: =$N8/O40 -> 0 | Q51: =$N8/Q40 -> 0 | S51: =$N8/S40 -> 0
C52: =Translation!A249 -> Auslastung Lagerung | G52: =BerRM12!G128 -> 0.02778996636 | M52: =BerRM15!G128 -> 0.0348583878 | Q52: =BerRM21!G128 -> 0.02277904328
C53: =Translation!A250 -> Auslastung Antriebsmoment | G53: =BerRM12!S21 -> 0 | I53: =BerRZ12!S21 -> 0 | M53: =BerRM15!S21 -> 0 | O53: =BerRZ15!S21 -> 0 | Q53: =BerRM21!S21 -> 0 | S53: =BerRZ21!S21 -> 0
C54: Min. Schwenkzeit / Zyklus (s) | G54: =BerRM12!Q18 -> 0.34 | I54: =BerRZ12!Q18 -> 0.34 | M54: =BerRM15!Q18 -> 0.4 | O54: =BerRZ15!Q18 -> 0.4 | Q54: =BerRM21!Q18 -> 0.34 | S54: =BerRZ21!Q18 -> 0.34
C55: =IF(C42=TRUE,C67,C68) -> Min. Schwenkzeit UZ / GUZ ( s ) | G55: =BerRM12!V33 &" / "&BerRM12!V34 -> 0,12 / 0,12 | I55: =BerRZ12!V33 &" / "&BerRZ12!V34 -> 0,17 / 0,17 | M55: =BerRM15!V33 &" / "&BerRM15!V34 -> 0,2 / 0,2 | O55: =BerRZ15!V33 &" / "&BerRZ15!V34 -> 0,2 / 0,2 | Q55: =BerRM21!V33 &" / "&BerRM21!V34 -> 0,17 / 0,17 | S55: =BerRZ21!V33 &" / "&BerRZ21!V34 -> 0,17 / 0,17
C56: =Translation!A252 -> Max. Zyklenzahl / Min. | G56: =BerRM12!S33 -> 60 | I56: =BerRZ12!S33 -> 42 | M56: =BerRM15!S33 -> 60 | O56: =BerRZ15!S33 -> 37 | Q56: =BerRM21!S33 -> 70 | S56: =BerRZ21!S33 -> 37
C63: =Translation!A230 -> Horizontal
C64: =Translation!A231 -> Vertikal
C65: =Translation!A232 -> Start-Drehrichtung gegen Uhrzeigersinn ( GUZ )
C66: =Translation!A233 -> Start-Drehrichtung im Uhrzeigersinn ( UZ )
C67: =Translation!A253 -> Min. Schwenkzeit GUZ / UZ ( s )
C68: =Translation!A251 -> Min. Schwenkzeit UZ / GUZ ( s )

Sheet Eingabe3
V1: 100
A2: =Translation!A14 -> Toolbox-Rotation - MODULARE MONTAGEAUTOMATION | V2: 0.01
A3: =Translation!A215 -> Berechnung von Rotationsmodulen
C6: =Translation!A261 -> Rotationsmodule Flachbauweise RM 06 bis RM 21 | M6: =Translation!A224 -> Ergebnisse aus der Berechnung des Massenträgheitsmoments
M8: J ges ( kgm2 ) = | N8: =Massenträgheitsmoment!I30 -> 0 | P8: =Translation!A225 -> Gesamtmassenträgheitsmoment
M9: m ges ( kg ) = | N9: =Massenträgheitsmoment!I31 -> 0 | P9: =Translation!A226 -> Gesamtmasse
M10: Xs ( mm ) = | N10: =Massenträgheitsmoment!V30 -> 0 | P10: =Translation!A227 -> Gesamtmassenschwerpunkts-Koordinaten zum Beginn der Drehbewegung
M11: Ys ( mm ) = | N11: =Massenträgheitsmoment!V31 -> 0
M12: Zs ( mm ) = | N12: =Massenträgheitsmoment!V32 -> 0
M16: =Translation!A228 -> Geben Sie Ihre Werte mit -Enter- ein !
M19: 180 | O19: =Translation!A262 -> Schwenkwinkel ( 1 bis 190° )
K21: p (bar) | M21: 6 | O21: p = Betriebsdruck ( 3 bis 8 )
O23: =IF(C41=TRUE,C63,C64) -> Vertikal
O25: =IF(C42=TRUE,C65,C66) -> Start-Drehrichtung im Uhrzeigersinn ( UZ )
C27: =Translation!A223 -> Taktzeiten sind reine Rotationszeiten des Ritzels/Flansches um den Nenndrehwinkel. Ventilschaltzeiten, Schlauchbefüllungszeiten oder SPS-Reaktionszeiten sind nicht enthalten und bei der Ermittlung von Zykluszeiten zu berücksichtigen !
M30: - + | O30: =V1*V2 -> 1 | P30: =Translation!A234 -> Schwenkgeschwindigkeit
K32: =Translation!A235 -> Maximale zulässige Auslastung des Antriebsmoments = 50% !
C36: =Translation!A238 -> Module
C37: =Translation!A239 -> Berechneter Modul-Typ | G37: RM 06 | I37: RM 08 | M37: RM 10 | O37: ="RM 12"&O45 -> RM 12-W | Q37: ="RM 15"&Q45 -> RM 15-W | S37: RM 21-W
C38: =Translation!A240 -> Katalog Seite | I38: 156 | M38: 158 | O38: 160 | Q38: 164 | S38: 168
C39: =Translation!A241 -> Antriebsmoment bei 6 bar ( Nm ) | G39: 0.05 | I39: 0.107 | M39: 0.224 | O39: 0.38 | Q39: 0.76 | S39: 1.9
C40: Max. zul. J | G40: 5.3e-05 | I40: =IF(AND(90<=M19,M19<=185),I41,0.00025) -> 9.500004e-05 | M40: =IF(AND(90<=M19,M19<=185),M41,0.00095) -> 0.00045000536 | O40: =IF(AND(45<=M19,M19<=190),O41,0.0045) -> 0.0019999836 | Q40: =IF(AND(45<=M19,M19<=190),Q41,0.0125) -> 0.0065 | S40: =IF(AND(45<=M19,M19<=190),S41,0.045) -> 0.02300013037
C41: FALSE | I41: =1.11111*POWER(10,-8)*POWER(M19,2)-4.72222*POWER(10,-6)*M19+0.000585 -> 9.500004e-05 | M41: =2.46914*POWER(10,-8)*POWER(M19,2)-1.22222*POWER(10,-5)*M19+0.00185 -> 0.00045000536 | O41: =1.09739*POWER(10,-7)*POWER(M19,2)-4.32099*POWER(10,-5)*M19+0.006222222 -> 0.0019999836 | Q41: =-((M19-45)/22500)+0.0125 -> 0.0065 | S41: =-((M19-45)/6136.4)+0.045 -> 0.02300013037
C42: FALSE
C43: =Translation!A242 -> UNZULÄSSIG | D43: =IF(OR(G53>0.5,I53>0.5,M53>0.5,O53>0.5,Q53>0.5,S53>0.5),1,0) -> 0 | O43: J-Grenze für Dämpfer : von -W zu -H
C44: =Translation!A243 -> Masse zu hoch | D44: =Translation!A245 -> Lagerung überlastet | O44: ='Allgemeine Werte'!R7 -> 0.0005 | Q44: ='Allgemeine Werte'!R10 -> 0.002
C45: =Translation!A244 -> Stoßdämpfer | D45: =Translation!A263 -> Drehwinkel zu groß | O45: =IF(N8>O44,"-H","-W") -> -W | Q45: =IF(N8>Q44,"-H","-W") -> -W
C46: =Translation!A246 -> Schwenkwinkelbereich ( ° ) | G46: =IF(OR(G50>1,G51>1,G53>0.5,G52>=1,M19>185),$C43,"0 - 185") -> 0 - 185 | I46: =IF(OR(I50>1,I51>1,I53>0.5,I52>=1,M19>185),$C43,"0 - 185") -> 0 - 185 | M46: =IF(OR(M50>1,M51>1,M53>0.5,M52>=1,M19>185),$C43,"0 - 185") -> 0 - 185 | O46: =IF(OR(O50>1,O51>1,O53>0.5,O52>=1),$C43,"0 - 190") -> 0 - 190 | Q46: =IF(OR(Q50>1,Q51>1,Q53>0.5,Q52>=1),$C43,"0 - 190") -> 0 - 190 | S46: =IF(OR(S50>1,S51>1,S53>0.5,S52>=1),$C43,"0 - 190") -> 0 - 190
G48: =IF(G53>0.5,$C44,IF(G51>1,$C44,IF(G50>1,$C45,IF(G52>1,$D44,IF(M19>185,$D45," "))))) ->  | I48: =IF(I53>0.5,$C44,IF(I51>1,$C44,IF(I50>1,$C45,IF(I52>=1,$D44,IF(M19>185,$D45," "))))) ->  | M48: =IF(M53>0.5,$C44,IF(M51>1,$C44,IF(M50>1,$C45,IF(M52>=1,$D44,IF(M19>185,$D45," "))))) ->  | O48: =IF(O53>0.5,$C44,IF(O51>1,$C44,IF(O50>1,$C45,IF(O52>=1,$D44," ")))) ->  | Q48: =IF(Q53>0.5,$C44,IF(Q51>1,$C44,IF(Q50>1,$C45,IF(Q52>=1,$D44," ")))) ->  | S48: =IF(S53>0.5,$C44,IF(S51>1,$C44,IF(S50>1,$C45,IF(S52>=1,$D44," ")))) -> 
C50: =Translation!A247 -> Auslastung Stoßdämpfer / Zyklus | I50: =BerRM08!S26 -> 0.7078648807 | M50: =BerRM10!S26 -> 0.8714658602 | O50: ='BerRM12 (2)'!S26 -> 0.286328594 | Q50: ='BerRM15 (2)'!S26 -> 0.8414893635 | S50: ='BerRM21 (2)'!S26 -> 0.4966745673
C51: =Translation!A248 -> Auslastung Massenträgheitsmoment | G51: =$N8/G40 -> 0 | I51: =$N8/I40 -> 0 | M51: =$N8/M40 -> 0 | O51: =$N8/O40 -> 0 | Q51: =$N8/Q40 -> 0 | S51: =$N8/S40 -> 0
C52: =Translation!A249 -> Auslastung Lagerung | G52: =BerRM06!G128 -> 0.01587301587 | I52: =BerRM08!G128 -> 0.01574513483 | M52: =BerRM10!G128 -> 0.01943769524 | O52: ='BerRM12 (2)'!G128 -> 0.02778996636 | Q52: ='BerRM15 (2)'!G128 -> 0.0348583878 | S52: ='BerRM21 (2)'!G128 -> 0.02277904328
C53: =Translation!A250 -> Auslastung Antriebsmoment | G53: =BerRM06!S21 -> 0 | I53: =BerRM08!S21 -> 0 | M53: =BerRM10!S21 -> 0 | O53: ='BerRM12 (2)'!S21 -> 0 | Q53: ='BerRM15 (2)'!S21 -> 0 | S53: ='BerRM21 (2)'!S21 -> 0
C54: Min. Schwenkzeit / Zyklus (s) | G54: =BerRM06!Q18 -> 0.1575104034 | I54: =BerRM08!Q18 -> 0.2 | M54: =BerRZ21!Q18 -> 0.34 | O54: ='BerRM12 (2)'!Q18 -> 0.34 | Q54: ='BerRM15 (2)'!Q18 -> 0.4 | S54: ='BerRM21 (2)'!Q18 -> 0.34
C55: =IF(C42=TRUE,C67,C68) -> Min. Schwenkzeit UZ / GUZ ( s ) | G55: =BerRM06!U20 &" / "&BerRM06!U21 -> 0,1 / 0,1 | I55: =BerRM08!U31 &" / "&BerRM08!U32 -> 0,1 / 0,1 | M55: =BerRM10!U31 &" / "&BerRM10!U32 -> 0,13 / 0,13 | O55: ='BerRM12 (2)'!V33 &" / "&'BerRM12 (2)'!V34 -> 0,12 / 0,12 | Q55: ='BerRM15 (2)'!V33 &" / "&'BerRM15 (2)'!V34 -> 0,2 / 0,2 | S55: ='BerRM21 (2)'!V33 &" / "&'BerRM21 (2)'!V34 -> 0,17 / 0,17
C56: =Translation!A252 -> Max. Zyklenzahl / Min. | G56: =BerRM06!S33 -> 60 | I56: =BerRM08!S33 -> 54 | M56: =BerRM10!S33 -> 54 | O56: ='BerRM12 (2)'!S33 -> 60 | Q56: ='BerRM15 (2)'!S33 -> 60 | S56: ='BerRM21 (2)'!S33 -> 70
C63: =Translation!A230 -> Horizontal
C64: =Translation!A231 -> Vertikal
C65: =Translation!A232 -> Start-Drehrichtung gegen Uhrzeigersinn ( GUZ )
C66: =Translation!A233 -> Start-Drehrichtung im Uhrzeigersinn ( UZ )
C67: =Translation!A253 -> Min. Schwenkzeit GUZ / UZ ( s )
C68: =Translation!A251 -> Min. Schwenkzeit UZ / GUZ ( s )

Sheet Eingabe4
A2: =Translation!A14 -> Toolbox-Rotation - MODULARE MONTAGEAUTOMATION
A3: =Translation!A279 -> Berechnung von Ringschalttischen
C6: =Translation!A280 -> Ringschalttische RST-D60 bis RST-D134 | M6: =Translation!A171 -> Ergebnisse aus der Berechnung des Massenträgheitsmoments
M8: J ges ( kgm2 ) = | N8: =Massenträgheitsmoment!I30 -> 0 | P8: =Translation!A172 -> Gesamtmassenträgheitsmoment
M9: m ges ( kg ) = | N9: =Massenträgheitsmoment!I31 -> 0 | P9: =Translation!A173 -> Gesamtmasse
M10: Xs ( mm ) = | N10: =Massenträgheitsmoment!V30 -> 0 | P10: =Translation!A174 -> Gesamtmassenschwerpunkts-Koordinaten zum Beginn der Drehbewegung
M11: Ys ( mm ) = | N11: =Massenträgheitsmoment!V31 -> 0
M12: Zs ( mm ) = | N12: =Massenträgheitsmoment!V32 -> 0
M16: =Translation!A175 -> Geben Sie Ihre Werte mit -Enter- ein !
M19: 4 | O19: =Translation!A286 -> Teilung
K21: p (bar) | M21: 6 | O21: p = Betriebsdruck ( 3 bis 8 )
O23: =IF(C41=TRUE,C62,C63) -> Vertikal
M25: =Translation!A287 -> Berechnung ist nur bei zentrischer Last möglich !
C27: =Translation!A288 -> Zykluszeiten pro Teilung und Schwenkzeiten sind Zeiten unter optimalen Bedingungen bei Taktung in einer Richtung. Wird in beiden Richtungen getaktet, erhöht sich die Zykluszeit je nach Stoßdämpfereinstellung. Ventilschalt-, Schlauchbefüllungs- und SPS-Reaktionszeiten sind berücksichtigt.
C36: =Translation!A185 -> Module
C37: =Translation!A186 -> Berechneter Modul-Typ | M37: ="RST-D60-"&M19 -> RST-D60-4 | O37: ="RST-D87-"&M19 -> RST-D87-4 | Q37: ="RST-D134-"&M19 -> RST-D134-4
C38: =Translation!A187 -> Katalog Seite
C39: =Translation!A188 -> Antriebsmoment bei 6 bar ( Nm ) | M39: 3.1 | O39: 7.9 | Q39: 29.3
C40: Max. zul. J | M40: 0.03 | O40: =IF(M19=4,0.05,IF(M19=6,0.06,IF(M19=8,0.07,0.08))) -> 0.05 | Q40: 0.6
C41: FALSE
C42: FALSE
C44: =Translation!A189 -> UNZULÄSSIG | D44: =Translation!A192 -> Stoßdämpfer
C45: =Translation!A190 -> Masse zu hoch | D45: =IF(OR(M54>0,O54>0,Q54>0),1,0) -> 0
C46: =Translation!A285 -> Teilung nicht möglich | D46: =Translation!A193 -> Lagerung überlastet
C47: =Translation!A286 -> Teilung | M47: =IF(OR(M19=16,M51>1,M52>1,M53>=1),$C44,"4,6,8,12") -> 4,6,8,12 | O47: =IF(OR(M19=16,O51>1,O52>1,O53>=1),$C44,"4,6,8,12") -> 4,6,8,12 | Q47: =IF(OR(Q51>1,Q52>1,Q53>=1),$C44,"4,6,8,12,16") -> 4,6,8,12,16
M49: =IF(M19=16,$C46,IF(M52>1,$C45,IF(M51>1,$D44,IF(M53>=1,$D46," ")))) ->  | O49: =IF(M19=16,$C46,IF(O52>1,$C45,IF(O51>1,$D44,IF(O53>=1,$D46," ")))) ->  | Q49: =IF(Q52>1,$C45,IF(Q51>1,$D44,IF(Q53>=1,$D46," "))) -> 
C51: =Translation!A195 -> Auslastung Stoßdämpfer / Zyklus | M51: =BerRSTP60!S26 -> 0.417287168 | O51: =BerRSTP87!S26 -> 0.573768813 | Q51: =BerRSTD134!S26 -> 0.3666535489
C52: =Translation!A196 -> Auslastung Massenträgheitsmoment | M52: =N8/M40 -> 0 | O52: =N8/O40 -> 0 | Q52: =N8/Q40 -> 0
C53: =Translation!A197 -> Auslastung Lagerung | M53: =BerRSTP60!G128 -> 0 | O53: =BerRSTP87!G128 -> 0 | Q53: =BerRSTD134!G128 -> 0
C54: =Translation!A198 -> Auslastung Antriebsmoment | M54: =BerRSTP60!S21 -> 0 | O54: =BerRSTP87!S21 -> 0 | Q54: =BerRSTD134!S21 -> 0
C55: =Translation!A281 -> Min. Zykluszeit / Teilung (s) | M55: =BerRSTP60!Q18 -> 0.77 | O55: =BerRSTP87!Q18 -> 0.79 | Q55: =BerRSTD134!Q18 -> 0.79
C56: =Translation!A282 -> Min. Schwenkzeit (s) | M56: =BerRSTP60!O18 -> 0.32 | O56: =BerRSTP87!O18 -> 0.34 | Q56: =BerRSTD134!O18 -> 0.24
C57: =Translation!A200 -> Max. Zyklenzahl / Min. | M57: =BerRSTP60!S33 -> 53 | O57: =BerRSTP87!S33 -> 48 | Q57: =BerRSTD134!S33 -> 33
C62: =Translation!A177 -> Horizontal
C63: =Translation!A178 -> Vertikal | I63: 4 | K63: 100 | M63: =K64*K63 -> 1
C64: =Translation!A179 -> Start-Drehrichtung gegen Uhrzeigersinn ( GUZ ) | I64: 6 | K64: 0.01
C65: =Translation!A180 -> Start-Drehrichtung im Uhrzeigersinn ( UZ ) | I65: 8
C66: =Translation!A201 -> Min. Schwenkzeit GUZ / UZ ( s ) | I66: 12
C67: =Translation!A199 -> Min. Schwenkzeit UZ / GUZ ( s ) | I67: 16
C69: Max. Zyklen/min. bei J=max | M69: =IF(M19=4,2200/60,IF(M19=6,2600/60,IF(M19=8,2900/60,3200/60))) -> 36.66666667 | O69: =IF(M19=4,2500/60,IF(M19=6,2570/60,IF(M19=8,2635/60,2700/60))) -> 41.66666667 | Q69: =IF(M19=4,1400/60,IF(M19=6,1480/60,IF(M19=8,1560/60,IF(M19=12,1640/60,1720/60)))) -> 23.33333333
C70: Max. Zyklen/min. bei J=0 | M70: =IF(M19=4,3200/60,IF(M19=6,3500/60,IF(M19=8,3750/60,4000/60))) -> 53.33333333 | O70: =IF(M19=4,2900/60,IF(M19=6,3300/60,IF(M19=8,3600/60,3900/60))) -> 48.33333333 | Q70: =IF(M19=4,2000/60,IF(M19=6,2098/60,IF(M19=8,2196/60,IF(M19=12,2300/60,2398/60)))) -> 33.33333333

Sheet BerRSTP60
A1: Drehen vor
A2: x | B2: y | C2: m | D2: x2*y2 | E2: R= | F2: sin | G2: grad
A3: =Eingabe4!N10 -> 0 | B3: =Eingabe4!N11 -> 0 | C3: =Eingabe4!N9 -> 0 | D3: =POWER(A3,2)+POWER(B3,2) -> 0 | E3: =SQRT(D3) -> 0 | F3: =IF(E3=0,0,A3/E3) -> 0 | G3: =ASIN(F3)*180/PI() -> 0
G4: =180-G3 -> 180 | J4: M= | K4: =IF($F14=TRUE,3.1,3.1+(9.81*$C3*($E3/1000)*K9)) -> 3.1 | L4: =IF($F14=TRUE,3.1,3.1+(9.81*$C3*($E3/1000)*L9)) -> 3.1 | M4: 3.1 | N4: 3.1 | O4: 3.1 | P4: 3.1 | Q4: 3.1 | R4: 3.1 | S4: 3.1 | T4: 3.1 | U4: 3.1 | V4: 3.1 | W4: 3.1 | X4: 3.1 | Y4: 3.1 | Z4: 3.1 | AA4: 3.1 | AB4: 3.1 | AC4: 3.1 | AD4: 3.1 | AE4: 3.1 | AF4: 3.1 | AG4: 3.1 | AH4: 3.1 | AI4: 3.1 | AJ4: 3.1 | AK4: 3.1 | AL4: 3.1 | AM4: 3.1 | AN4: 3.1 | AO4: 3.1 | AP4: 3.1 | AQ4: 3.1 | AR4: 3.1 | AS4: 3.1 | AT4: 3.1 | AU4: 3.1 | AV4: 3.1 | AW4: 3.1 | AX4: 3.1 | AY4: 3.1 | AZ4: 3.1 | BA4: 3.1 | BB4: 3.1 | BC4: 3.1 | BD4: 3.1 | BE4: 3.1 | BF4: 3.1 | BG4: 3.1 | BH4: 3.1 | BI4: 3.1 | BJ4: 3.1 | BK4: 3.1 | BL4: 3.1 | BM4: 3.1 | BN4: 3.1 | BO4: 3.1 | BP4: 3.1 | BQ4: 3.1 | BR4: 3.1 | BS4: 3.1 | BT4: 3.1 | BU4: 3.1 | BV4: 3.1
G5: =360+G3 -> 360
C6: Startwinkel | D6: =IF(AND(A3>=0,B3>=0),G3,IF(AND(A3>=0,B3<0),G4,IF(AND(A3<0,B3<0),G4,IF(AND(A3<0,B3>=0),G5,0)))) -> 0 | J6: beta= | K6: 3 | L6: =K6 -> 3 | M6: 3 | N6: 3 | O6: 3 | P6: 3 | Q6: 3 | R6: 3 | S6: 3 | T6: 3 | U6: 3 | V6: 3 | W6: 3 | X6: 3 | Y6: 3 | Z6: 3 | AA6: 3 | AB6: 3 | AC6: 3 | AD6: 3 | AE6: 3 | AF6: 3 | AG6: 3 | AH6: 3 | AI6: 3 | AJ6: 3 | AK6: 3 | AL6: 3 | AM6: 3 | AN6: 3 | AO6: 3 | AP6: 3 | AQ6: 3 | AR6: =AQ6 -> 3 | AS6: 3 | AT6: 3 | AU6: 3 | AV6: 3 | AW6: 3 | AX6: 3 | AY6: 3 | AZ6: 3 | BA6: 3 | BB6: 3 | BC6: 3 | BD6: 3 | BE6: 3 | BF6: 3 | BG6: 3 | BH6: 3 | BI6: 3 | BJ6: 3 | BK6: 3 | BL6: 3 | BM6: 3 | BN6: 3 | BO6: 3 | BP6: 3 | BQ6: 3 | BR6: 3 | BS6: 3 | BT6: 3 | BU6: 3 | BV6: 3
B7: Teilung | C7: sin Startpos | D7: =SIN((D6)*PI()/180) -> 0
B8: =Eingabe4!M19 -> 4 | C8: Schwenkw. | D8: =IF(B8=4,90,IF(B8=6,60,IF(B8=8,45,IF(B8=12,30,22.5)))) -> 90 | J8: Startwinkel | K8: =D6 -> 0 | L8: =IF($F16=TRUE,K8-K6,K8+K6) -> 3 | M8: 6 | N8: 9 | O8: 12 | P8: 15 | Q8: 18 | R8: 21 | S8: 24 | T8: 27 | U8: 30 | V8: 33 | W8: 36 | X8: 39 | Y8: 42 | Z8: 45 | AA8: 48 | AB8: 51 | AC8: 54 | AD8: 57 | AE8: 60 | AF8: 63 | AG8: 66 | AH8: 69 | AI8: 72 | AJ8: 75 | AK8: 78 | AL8: 81 | AM8: 84 | AN8: 87 | AO8: 90 | AP8: 93 | AQ8: 96 | AR8: =IF($F16=TRUE,AQ8-AQ6,AQ8+AQ6) -> 99 | AS8: 102 | AT8: 105 | AU8: 108 | AV8: 111 | AW8: 114 | AX8: 117 | AY8: 120 | AZ8: 123 | BA8: 126 | BB8: 129 | BC8: 132 | BD8: 135 | BE8: 138 | BF8: 141 | BG8: 144 | BH8: 147 | BI8: 150 | BJ8: 153 | BK8: 156 | BL8: 159 | BM8: 162 | BN8: 165 | BO8: 168 | BP8: 171 | BQ8: 174 | BR8: 177 | BS8: 180 | BT8: 183 | BU8: 186 | BV8: 189
C9: Endwinkel | D9: =IF(F16=TRUE,D6-D8,D6+D8) -> 90 | F9: Modulabhängige Zellen | J9: sin | K9: =IF($F16=TRUE,-SIN((K8)*PI()/180),SIN((K8)*PI()/180)) -> 0 | L9: 0.05233595624 | M9: 0.1045284633 | N9: 0.156434465 | O9: 0.2079116908 | P9: 0.2588190451 | Q9: 0.3090169944 | R9: 0.3583679495 | S9: 0.4067366431 | T9: 0.4539904997 | U9: 0.5 | V9: 0.544639035 | W9: 0.5877852523 | X9: 0.629320391 | Y9: 0.6691306064 | Z9: 0.7071067812 | AA9: 0.7431448255 | AB9: 0.7771459615 | AC9: 0.8090169944 | AD9: 0.8386705679 | AE9: 0.8660254038 | AF9: 0.8910065242 | AG9: 0.9135454576 | AH9: 0.9335804265 | AI9: 0.9510565163 | AJ9: 0.9659258263 | AK9: 0.9781476007 | AL9: 0.9876883406 | AM9: 0.9945218954 | AN9: 0.9986295348 | AO9: 1 | AP9: 0.9986295348 | AQ9: =IF($F16=TRUE,-SIN((AQ8)*PI()/180),SIN((AQ8)*PI()/180)) -> 0.9945218954 | AR9: 0.9876883406 | AS9: 0.9781476007 | AT9: 0.9659258263 | AU9: 0.9510565163 | AV9: 0.9335804265 | AW9: 0.9135454576 | AX9: 0.8910065242 | AY9: 0.8660254038 | AZ9: 0.8386705679 | BA9: 0.8090169944 | BB9: 0.7771459615 | BC9: 0.7431448255 | BD9: 0.7071067812 | BE9: 0.6691306064 | BF9: 0.629320391 | BG9: 0.5877852523 | BH9: 0.544639035 | BI9: 0.5 | BJ9: 0.4539904997 | BK9: 0.4067366431 | BL9: 0.3583679495 | BM9: 0.3090169944 | BN9: 0.2588190451 | BO9: 0.2079116908 | BP9: 0.156434465 | BQ9: 0.1045284633 | BR9: 0.05233595624 | BS9: 1.225148455e-16 | BT9: -0.05233595624 | BU9: -0.1045284633 | BV9: -0.156434465
C10: sin Endpos | D10: =SIN((D9)*PI()/180) -> 1
F11: Werte aus Eingabeseite | K11: 1 | L11: 2 | M11: 3 | N11: 4 | O11: 5 | P11: 6 | Q11: 7 | R11: 8 | S11: 9 | T11: 10 | U11: 11 | V11: 12 | W11: 13 | X11: 14 | Y11: 15 | Z11: 16 | AA11: 17 | AB11: 18 | AC11: 19 | AD11: 20 | AE11: 21 | AF11: 22 | AG11: 23 | AH11: 24 | AI11: 25 | AJ11: 26 | AK11: 27 | AL11: 28 | AM11: 29 | AN11: 30 | AO11: 31 | AP11: 32 | AQ11: 33 | AR11: 34 | AS11: 35 | AT11: 36 | AU11: 37 | AV11: 38 | AW11: 39 | AX11: 40 | AY11: 41 | AZ11: 42 | BA11: 43 | BB11: 44 | BC11: 45 | BD11: 46 | BE11: 47 | BF11: 48 | BG11: 49 | BH11: 50 | BI11: 51 | BJ11: 52 | BK11: 53 | BL11: 54 | BM11: 55 | BN11: 56 | BO11: 57 | BP11: 58 | BQ11: 59 | BR11: 60 | BS11: 61 | BT11: 62 | BU11: 63 | BV11: 64
D12: =D8/K6 -> 30
D13: =ROUNDUP(D12,0) -> 30
F14: =IF(Eingabe4!C41=TRUE,FALSE,TRUE) -> TRUE | G14: Horizontaler Aufbau | J14: Summe M | K14: =K4 -> 3.1 | L14: =K14+L4 -> 6.2 | M14: 9.3 | N14: 12.4 | O14: 15.5 | P14: 18.6 | Q14: 21.7 | R14: 24.8 | S14: 27.9 | T14: 31 | U14: 34.1 | V14: 37.2 | W14: 40.3 | X14: 43.4 | Y14: 46.5 | Z14: 49.6 | AA14: 52.7 | AB14: 55.8 | AC14: 58.9 | AD14: 62 | AE14: 65.1 | AF14: 68.2 | AG14: 71.3 | AH14: 74.4 | AI14: 77.5 | AJ14: 80.6 | AK14: 83.7 | AL14: 86.8 | AM14: 89.9 | AN14: 93 | AO14: 96.1 | AP14: 99.2 | AQ14: 102.3 | AR14: =AQ14+AR4 -> 105.4 | AS14: 108.5 | AT14: 111.6 | AU14: 114.7 | AV14: 117.8 | AW14: 120.9 | AX14: 124 | AY14: 127.1 | AZ14: 130.2 | BA14: 133.3 | BB14: 136.4 | BC14: 139.5 | BD14: 142.6 | BE14: 145.7 | BF14: 148.8 | BG14: 151.9 | BH14: 155 | BI14: 158.1 | BJ14: 161.2 | BK14: 164.3 | BL14: 167.4 | BM14: 170.5 | BN14: 173.6 | BO14: 176.7 | BP14: 179.8 | BQ14: 182.9 | BR14: 186 | BS14: 189.1 | BT14: 192.2 | BU14: 195.3 | BV14: 198.4
J15: Mittelwert Mm | K15: =K14/K11 -> 3.1 | L15: 3.1 | M15: 3.1 | N15: 3.1 | O15: 3.1 | P15: 3.1 | Q15: 3.1 | R15: 3.1 | S15: 3.1 | T15: 3.1 | U15: 3.1 | V15: 3.1 | W15: 3.1 | X15: 3.1 | Y15: 3.1 | Z15: 3.1 | AA15: 3.1 | AB15: 3.1 | AC15: 3.1 | AD15: 3.1 | AE15: 3.1 | AF15: 3.1 | AG15: 3.1 | AH15: 3.1 | AI15: 3.1 | AJ15: 3.1 | AK15: 3.1 | AL15: 3.1 | AM15: 3.1 | AN15: 3.1 | AO15: 3.1 | AP15: 3.1 | AQ15: =AQ14/AQ11 -> 3.1 | AR15: 3.1 | AS15: 3.1 | AT15: 3.1 | AU15: 3.1 | AV15: 3.1 | AW15: 3.1 | AX15: 3.1 | AY15: 3.1 | AZ15: 3.1 | BA15: 3.1 | BB15: 3.1 | BC15: 3.1 | BD15: 3.1 | BE15: 3.1 | BF15: 3.1 | BG15: 3.1 | BH15: 3.1 | BI15: 3.1 | BJ15: 3.1 | BK15: 3.1 | BL15: 3.1 | BM15: 3.1 | BN15: 3.1 | BO15: 3.1 | BP15: 3.1 | BQ15: 3.1 | BR15: 3.1 | BS15: 3.1 | BT15: 3.1 | BU15: 3.1 | BV15: 3.1
A16: Mittelwert des Antriebsmoments über Schwenkbereich | F16: =IF(Eingabe4!C42=TRUE,TRUE,FALSE) -> FALSE | G16: Drehen im/gegen Uhrzeigersinn
C17: Mn= | D17: =MAX(D18:D26) -> 3.1 | O17: Gerundete Werte+Korrekturfaktoren | U17: Schwenkzeitkorrektur von J=0 bis J= | X17: 0.005
C18: Mn1-7 | D18: =IF(D13=0,0,IF(D13=1,K15,IF(D13=2,L15,IF(D13=3,M15,IF(D13=4,N15,IF(D13=5,O15,IF(D13=6,P15,IF(D13=7,Q15,0)))))))) -> 0 | K18: Schwenkzeit vor | N18: =E114 -> 0.0121605019 | O18: =ROUND(N18+U22+U26,2) -> 0.32 | P18: Zykluszeit | Q18: =O18+U34+2*U36+U38 -> 0.77 | R18: Zyklen/min | S18: =60/Q18 -> 77.92207792 | U18: Korrekturfaktor bei J=0 : | X18: 0.05
C19: Mn8-15 | D19: =IF(D13=8,R15,IF(D13=9,S15,IF(D13=10,T15,IF(D13=11,U15,IF(D13=12,V15,IF(D13=13,W15,IF(D13=14,X15,IF(D13=15,Y15,0)))))))) -> 0 | K19: Schwenkzeit zurück | N19: =N114 -> 0.0121605019 | O19: =ROUND(N19+U22+U26,2) -> 0.32 | U19: bis J= siehe oben ! (Gerade) : | X19: 0
C20: Mn16-23 | D20: =IF(D13=16,Z15,IF(D13=17,AA15,IF(D13=18,AB15,IF(D13=19,AC15,IF(D13=20,AD15,IF(D13=21,AE15,IF(D13=22,AF15,IF(D13=23,AG15,0)))))))) -> 0 | F20: M= | G20: =D17 -> 3.1 | U20: ( Faktor wird in diesem J-Bereich zur berechneten Zeit addiert ! )
C21: Mn24-31 | D21: =IF(D13=24,AH15,IF(D13=25,AI15,IF(D13=26,AJ15,IF(D13=27,AK15,IF(D13=28,AL15,IF(D13=29,AM15,IF(D13=30,AN15,IF(D13=31,AO15,0)))))))) -> 3.1 | F21: J= | G21: =Eingabe4!N8 -> 0 | K21: Mmin im Schwenkbereich vor | N21: =D30 -> 3.1 | O21: Mmin | P21: =MIN(N21:N22) -> 3.1 | R21: M-Mmin/M | S21: =(3.1-P21)/3.1 -> 0 | U21: =-(X18/X17)*(G21-X17) -> 0.05 | V21: ( Korrektur im untersten Bereich )
C22: Mn32-39 | D22: =IF(D13=32,AP15,IF(D13=33,AQ15,IF(D13=34,AR15,IF(D13=35,AS15,IF(D13=36,AT15,IF(D13=37,AU15,IF(D13=38,AV15,IF(D13=39,AW15,0)))))))) -> 0 | F22: JE= | G22: 5.7e-05 | K22: Mmin im Schwenkbereich zurück | N22: =D72 -> 3.1 | U22: =IF(G21>=X17,0,U21) -> 0.05
C23: Mn40-47 | D23: =IF(D13=40,AX15,IF(D13=41,AY15,IF(D13=42,AZ15,IF(D13=43,BA15,IF(D13=44,BB15,IF(D13=45,BC15,IF(D13=46,BD15,IF(D13=47,BE15,0)))))))) -> 0 | F23: k= | G23: 1.6 | H23: K-Wert in Ts eingearbeitet !
C24: Mn48-55 | D24: =IF(D13=48,BF15,IF(D13=49,BG15,IF(D13=50,BH15,IF(D13=51,BI15,IF(D13=52,BJ15,IF(D13=53,BK15,IF(D13=54,BL15,IF(D13=55,BM15,0)))))))) -> 0 | F24: alpha= | G24: =G20/((G21+G22)*POWER(G23,2)) -> 21244.51754 | H24: K= | I24: ='Allgemeine Werte'!Q34 -> 1 | K24: E ges vor | N24: =P41 -> 3.755584512 | O24: E ges max | P24: =MAX(N24:N25) -> 3.755584512 | R24: E zul/Hub | S24: ='Allgemeine Werte'!G34 -> 9 | U24: Schwenkzeitkorrektur gem. Schunkmessungen
C25: Mn56-63 | D25: =IF(D13=56,BN15,IF(D13=57,BO15,IF(D13=58,BP15,IF(D13=59,BQ15,IF(D13=60,BR15,IF(D13=61,BS15,IF(D13=62,BT15,IF(D13=63,BU15,0)))))))) -> 0 | F25: PI= | G25: =PI() -> 3.141592654 | K25: E ges zurück | N25: =P86 -> 3.755584512 | U25: (Zeit wird zu Schwenkzeiten (O18,O19) addiert)
C26: Mn64 | D26: =IF(D13=64,BV15,0) -> 0 | F26: beta= | G26: =D8 -> 90 | R26: E ges/E zul | S26: =P24/S24 -> 0.417287168 | U26: =IF(B8=4,0.26,IF(B8=6,0.2,IF(B8=8,0.2,0.15))) -> 0.26 | V26: ( Verschiebung der urspr. Kurve )
F27: phi= | G27: =G25*G26/180 -> 1.570796327
F28: Omega= | G28: =SQRT(2*G24*G27) -> 258.343996 | L28: Antriebsmoment in Endposition | R28: Ezul/h | S28: ='Allgemeine Werte'!H34 -> 21000
A29: Minimale Antriebsmoment im Schwenkbereich | I29: Tsmax für Schwenkzeit vor: | L29: für Energieberechnung | O29: Energieberechnung | Q29: Für Ber.
C30: M min.= | D30: =MAX(D31:D40) -> 3.1 | F30: Ts= | G30: =G28/G24*I24 -> 0.0121605019 | I30: =MAX(G30,G44) -> 0.0121605019 | L30: M= | M30: =MAX(M31:M39) -> 3.1 | O30: M= | P30: =M30 -> 3.1 | Q30: v kolben | R30: Zyklen/min | S30: =(S28/60)/P24 -> 93.19454771
C31: M1-6 | D31: =IF(D13=0,0,IF(D13=1,K4,IF(D13=2,MIN(K4:L4),IF(D13=3,MIN(K4:M4),IF(D13=4,MIN(K4:N4),IF(D13=5,MIN(K4:O4),IF(D13=6,MIN(K4:P4)," "))))))) ->  | L31: M1-7 | M31: =IF(D13=0,0,IF(D13=1,K4,IF(D13=2,L4,IF(D13=3,M4,IF(D13=4,N4,IF(D13=5,O4,IF(D13=6,P4,IF(D13=7,Q4,0)))))))) -> 0 | O31: r= | P31: 0.01825 | Q31: 0.0125
C32: M7-13 | D32: =IF(D13=7,MIN(K4:Q4),IF(D13=8,MIN(K4:R4),IF(D13=9,MIN(K4:S4),IF(D13=10,MIN(K4:T4),IF(D13=11,MIN(K4:U4),IF(D13=12,MIN(K4:V4),IF(D13=13,MIN(K4:W4)," "))))))) ->  | I32: Omega min. für Ber. E kin.: | L32: M8-15 | M32: =IF(D13=8,R4,IF(D13=9,S4,IF(D13=10,T4,IF(D13=11,U4,IF(D13=12,V4,IF(D13=13,W4,IF(D13=14,X4,IF(D13=15,Y4,0)))))))) -> 0 | O32: s= | P32: ='Allgemeine Werte'!L34 -> 0.006 | Q32: (do/2) | S32: =MIN(S18,S30,S37,S41) -> 53.33333333
C33: M14-20 | D33: =IF(D13=14,MIN(K4:X4),IF(D13=15,MIN(K4:Y4),IF(D13=16,MIN(K4:Z4),IF(D13=17,MIN(K4:AA4),IF(D13=18,MIN(K4:AB4),IF(D13=19,MIN(K4:AC4),IF(D13=20,MIN(K4:AD4)," "))))))) ->  | F33: Werte für Drehachse vertikal | I33: =MIN(G28,G42) -> 258.343996 | L33: M16-23 | M33: =IF(D13=16,Z4,IF(D13=17,AA4,IF(D13=18,AB4,IF(D13=19,AC4,IF(D13=20,AD4,IF(D13=21,AE4,IF(D13=22,AF4,IF(D13=23,AG4,0)))))))) -> 0 | O33: E antrieb | P33: =P30*P32/P31 -> 1.019178082 | R33: Zykl.min./min | S33: =ROUNDDOWN(S32,0) -> 53 | U33: Kolbenrückfahrzeit
C34: M21-27 | D34: =IF(D13=21,MIN(K4:AE4),IF(D13=22,MIN(K4:AF4),IF(D13=23,MIN(K4:AG4),IF(D13=24,MIN(K4:AH4),IF(D13=25,MIN(K4:AI4),IF(D13=26,MIN(K4:AJ4),IF(D13=27,MIN(K4:AK4)," "))))))) ->  | F34: M= | G34: 3.1 | L34: M24-31 | M34: =IF(D13=24,AH4,IF(D13=25,AI4,IF(D13=26,AJ4,IF(D13=27,AK4,IF(D13=28,AL4,IF(D13=29,AM4,IF(D13=30,AN4,IF(D13=31,AO4,0)))))))) -> 3.1 | O34: m kolben | P34: 0.08 | U34: 0.1
C35: M28-34 | D35: =IF(D13=28,MIN(K4:AL4),IF(D13=29,MIN(K4:AM4),IF(D13=30,MIN(K4:AN4),IF(D13=31,MIN(K4:AO4),IF(D13=32,MIN(K4:AP4),IF(D13=33,MIN(K4:AQ4),IF(D13=34,MIN(K4:AR4)," "))))))) -> 3.1 | F35: J= | G35: =G21 -> 0 | L35: M32-39 | M35: =IF(D13=32,AP4,IF(D13=33,AQ4,IF(D13=34,AR4,IF(D13=35,AS4,IF(D13=36,AT4,IF(D13=37,AU4,IF(D13=38,AV4,IF(D13=39,AW4,0)))))))) -> 0 | O35: v kolben | P35: =I33*Q31 -> 3.229299949 | R35: Stoßd.-kolbenrückstellzeit | U35: Ver-, Entriegelungszeit
C36: M35-41 | D36: =IF(D13=35,MIN(K4:AS4),IF(D13=36,MIN(K4:AT4),IF(D13=37,MIN(K4:AU4),IF(D13=38,MIN(K4:AV4),IF(D13=39,MIN(K4:AW4),IF(D13=40,MIN(K4:AX4),IF(D13=41,MIN(K4:AY4)," "))))))) ->  | F36: JE= | G36: =G22 -> 5.7e-05 | L36: M40-47 | M36: =IF(D13=40,AX4,IF(D13=41,AY4,IF(D13=42,AZ4,IF(D13=43,BA4,IF(D13=44,BB4,IF(D13=45,BC4,IF(D13=46,BD4,IF(D13=47,BE4,0)))))))) -> 0 | O36: E kin kolben | P36: =P34*2*POWER(P35,2)*0.5 -> 0.8342702531 | S36: ='Allgemeine Werte'!E34 -> 0.5 | U36: 0.1
C37: M42-48 | D37: =IF(D13=42,MIN(K4:AZ4),IF(D13=43,MIN(K4:BA4),IF(D13=44,MIN(K4:BB4),IF(D13=45,MIN(K4:BC4),IF(D13=46,MIN(K4:BD4),IF(D13=47,MIN(K4:BE4),IF(D13=48,MIN(K4:BF4)," "))))))) ->  | F37: k= | G37: =G23 -> 1.6 | L37: M48-55 | M37: =IF(D13=48,BF4,IF(D13=49,BG4,IF(D13=50,BH4,IF(D13=51,BI4,IF(D13=52,BJ4,IF(D13=53,BK4,IF(D13=54,BL4,IF(D13=55,BM4,0)))))))) -> 0 | O37: E antrieb kpl. | P37: =P33+P36 -> 1.853448335 | R37: Max.Zyk/min | S37: =60/S36 -> 120 | U37: Ausgleichszeit (Kolbenbelüftung,Losfahren) | Y37: min. | Z37: max.
C38: M49-55 | D38: =IF(D13=49,MIN(K4:BG4),IF(D13=50,MIN(K4:BH4),IF(D13=51,MIN(K4:BI4),IF(D13=52,MIN(K4:BJ4),IF(D13=53,MIN(K4:BK4),IF(D13=54,MIN(K4:BL4),IF(D13=55,MIN(K4:BM4)," "))))))) ->  | F38: alpha= | G38: =G34/((G35+G36)*POWER(G37,2)) -> 21244.51754 | L38: M56-63 | M38: =IF(D13=56,BN4,IF(D13=57,BO4,IF(D13=58,BP4,IF(D13=59,BQ4,IF(D13=60,BR4,IF(D13=61,BS4,IF(D13=62,BT4,IF(D13=63,BU4,0)))))))) -> 0 | U38: =(Z38-Y38)/V41*G21+Y38 -> 0.15 | Y38: 0.15 | Z38: 0.3
C39: M56-62 | D39: =IF(D13=56,MIN(K4:BN4),IF(D13=57,MIN(K4:BO4),IF(D13=58,MIN(K4:BP4),IF(D13=59,MIN(K4:BQ4),IF(D13=60,MIN(K4:BR4),IF(D13=61,MIN(K4:BS4),IF(D13=62,MIN(K4:BT4)," "))))))) ->  | F39: PI= | G39: =PI() -> 3.141592654 | L39: M64 | M39: =IF(D13=64,BV4,0) -> 0 | O39: E kin. | P39: =((G21+G22)*POWER(E98,2))/2 -> 1.902136177
C40: M63-64 | D40: =IF(D13=63,MIN(K4:BU4),IF(D13=64,MIN(K4:BV4)," ")) ->  | F40: beta= | G40: =G26 -> 90 | R40: Angaben Stoßdämpferhersteller
F41: phi= | G41: =G39*G40/180 -> 1.570796327 | O41: E ges | P41: =P39+P37 -> 3.755584512 | R41: Max.Zyk/min | S41: =-((Eingabe4!M70-Eingabe4!M69)/V41)*(G21-V41)+Eingabe4!M69 -> 53.33333333 | U41: Jmax= | V41: =Eingabe4!M40 -> 0.03
F42: Omega= | G42: =SQRT(2*G38*G41) -> 258.343996
F44: Ts= | G44: =G42/G38*I24 -> 0.0121605019
A45: Zurückdrehen
C49: Startwinkel | D49: =D9 -> 90 | J49: M= | K49: =IF($F14=TRUE,3.1,3.1+(9.81*$C3*($E3/1000)*K54)) -> 3.1 | L49: =IF($F14=TRUE,3.1,3.1+(9.81*$C3*($E3/1000)*L54)) -> 3.1 | M49: 3.1 | N49: 3.1 | O49: 3.1 | P49: 3.1 | Q49: 3.1 | R49: 3.1 | S49: 3.1 | T49: 3.1 | U49: 3.1 | V49: 3.1 | W49: 3.1 | X49: 3.1 | Y49: 3.1 | Z49: 3.1 | AA49: 3.1 | AB49: 3.1 | AC49: 3.1 | AD49: 3.1 | AE49: 3.1 | AF49: 3.1 | AG49: 3.1 | AH49: 3.1 | AI49: 3.1 | AJ49: 3.1 | AK49: 3.1 | AL49: 3.1 | AM49: 3.1 | AN49: 3.1 | AO49: 3.1 | AP49: 3.1 | AQ49: 3.1 | AR49: 3.1 | AS49: 3.1 | AT49: 3.1 | AU49: 3.1 | AV49: 3.1 | AW49: 3.1 | AX49: 3.1 | AY49: 3.1 | AZ49: 3.1 | BA49: 3.1 | BB49: 3.1 | BC49: 3.1 | BD49: 3.1 | BE49: 3.1 | BF49: 3.1 | BG49: 3.1 | BH49: 3.1 | BI49: 3.1 | BJ49: 3.1 | BK49: 3.1 | BL49: 3.1 | BM49: 3.1 | BN49: 3.1 | BO49: 3.1 | BP49: 3.1 | BQ49: 3.1 | BR49: 3.1 | BS49: 3.1 | BT49: 3.1 | BU49: 3.1 | BV49: 3.1
C50: sin Startpos | D50: =SIN((D49)*PI()/180) -> 1
C51: Schwenkw. | D51: =D8 -> 90 | J51: beta= | K51: =K6 -> 3 | L51: =K51 -> 3 | M51: 3 | N51: 3 | O51: 3 | P51: 3 | Q51: 3 | R51: 3 | S51: 3 | T51: 3 | U51: 3 | V51: 3 | W51: 3 | X51: 3 | Y51: 3 | Z51: 3 | AA51: 3 | AB51: 3 | AC51: 3 | AD51: 3 | AE51: 3 | AF51: 3 | AG51: 3 | AH51: 3 | AI51: 3 | AJ51: 3 | AK51: 3 | AL51: 3 | AM51: 3 | AN51: 3 | AO51: 3 | AP51: 3 | AQ51: 3 | AR51: =AQ51 -> 3 | AS51: 3 | AT51: 3 | AU51: 3 | AV51: 3 | AW51: 3 | AX51: 3 | AY51: 3 | AZ51: 3 | BA51: 3 | BB51: 3 | BC51: 3 | BD51: 3 | BE51: 3 | BF51: 3 | BG51: 3 | BH51: 3 | BI51: 3 | BJ51: 3 | BK51: 3 | BL51: 3 | BM51: 3 | BN51: 3 | BO51: 3 | BP51: 3 | BQ51: 3 | BR51: 3 | BS51: 3 | BT51: 3 | BU51: 3 | BV51: 3
C52: Endwinkel | D52: =IF(F16=TRUE,D49+D51,D49-D51) -> 0
C53: sin Endpos | D53: =SIN((D52)*PI()/180) -> 0 | J53: Startwinkel | K53: =D49 -> 90 | L53: =IF($F16=TRUE,K53+K51,K53-K51) -> 87 | M53: 84 | N53: 81 | O53: 78 | P53: 75 | Q53: 72 | R53: 69 | S53: 66 | T53: 63 | U53: 60 | V53: 57 | W53: 54 | X53: 51 | Y53: 48 | Z53: 45 | AA53: 42 | AB53: 39 | AC53: 36 | AD53: 33 | AE53: 30 | AF53: 27 | AG53: 24 | AH53: 21 | AI53: 18 | AJ53: 15 | AK53: 12 | AL53: 9 | AM53: 6 | AN53: 3 | AO53: 0 | AP53: -3 | AQ53: -6 | AR53: =IF($F16=TRUE,AQ53+AQ51,AQ53-AQ51) -> -9 | AS53: -12 | AT53: -15 | AU53: -18 | AV53: -21 | AW53: -24 | AX53: -27 | AY53: -30 | AZ53: -33 | BA53: -36 | BB53: -39 | BC53: -42 | BD53: -45 | BE53: -48 | BF53: -51 | BG53: -54 | BH53: -57 | BI53: -60 | BJ53: -63 | BK53: -66 | BL53: -69 | BM53: -72 | BN53: -75 | BO53: -78 | BP53: -81 | BQ53: -84 | BR53: -87 | BS53: -90 | BT53: -93 | BU53: -96 | BV53: -99
J54: sin | K54: =IF($F16=TRUE,SIN((K53)*PI()/180),-SIN((K53)*PI()/180)) -> -1 | L54: -0.9986295348 | M54: -0.9945218954 | N54: -0.9876883406 | O54: -0.9781476007 | P54: -0.9659258263 | Q54: -0.9510565163 | R54: -0.9335804265 | S54: -0.9135454576 | T54: -0.8910065242 | U54: -0.8660254038 | V54: -0.8386705679 | W54: -0.8090169944 | X54: -0.7771459615 | Y54: -0.7431448255 | Z54: -0.7071067812 | AA54: -0.6691306064 | AB54: -0.629320391 | AC54: -0.5877852523 | AD54: -0.544639035 | AE54: -0.5 | AF54: -0.4539904997 | AG54: -0.4067366431 | AH54: -0.3583679495 | AI54: -0.3090169944 | AJ54: -0.2588190451 | AK54: -0.2079116908 | AL54: -0.156434465 | AM54: -0.1045284633 | AN54: -0.05233595624 | AO54: 0 | AP54: 0.05233595624 | AQ54: =IF($F16=TRUE,SIN((AQ53)*PI()/180),-SIN((AQ53)*PI()/180)) -> 0.1045284633 | AR54: 0.156434465 | AS54: 0.2079116908 | AT54: 0.2588190451 | AU54: 0.3090169944 | AV54: 0.3583679495 | AW54: 0.4067366431 | AX54: 0.4539904997 | AY54: 0.5 | AZ54: 0.544639035 | BA54: 0.5877852523 | BB54: 0.629320391 | BC54: 0.6691306064 | BD54: 0.7071067812 | BE54: 0.7431448255 | BF54: 0.7771459615 | BG54: 0.8090169944 | BH54: 0.8386705679 | BI54: 0.8660254038 | BJ54: 0.8910065242 | BK54: 0.9135454576 | BL54: 0.9335804265 | BM54: 0.9510565163 | BN54: 0.9659258263 | BO54: 0.9781476007 | BP54: 0.9876883406 | BQ54: 0.9945218954 | BR54: 0.9986295348 | BS54: 1 | BT54: 0.9986295348 | BU54: 0.9945218954 | BV54: 0.9876883406
K56: 1 | L56: 2 | M56: 3 | N56: 4 | O56: 5 | P56: 6 | Q56: 7 | R56: 8 | S56: 9 | T56: 10 | U56: 11 | V56: 12 | W56: 13 | X56: 14 | Y56: 15 | Z56: 16 | AA56: 17 | AB56: 18 | AC56: 19 | AD56: 20 | AE56: 21 | AF56: 22 | AG56: 23 | AH56: 24 | AI56: 25 | AJ56: 26 | AK56: 27 | AL56: 28 | AM56: 29 | AN56: 30 | AO56: 31 | AP56: 32 | AQ56: 33 | AR56: 34 | AS56: 35 | AT56: 36 | AU56: 37 | AV56: 38 | AW56: 39 | AX56: 40 | AY56: 41 | AZ56: 42 | BA56: 43 | BB56: 44 | BC56: 45 | BD56: 46 | BE56: 47 | BF56: 48 | BG56: 49 | BH56: 50 | BI56: 51 | BJ56: 52 | BK56: 53 | BL56: 54 | BM56: 55 | BN56: 56 | BO56: 57 | BP56: 58 | BQ56: 59 | BR56: 60 | BS56: 61 | BT56: 62 | BU56: 63 | BV56: 64
A57: Mittelwert des Antriebsmoments über Schwenkbereich
C58: Mn= | D58: =MAX(D59:D67) -> 3.1 | F58: M= | G58: =D58 -> 3.1
C59: Mn1-7 | D59: =IF(D13=0,0,IF(D13=1,K63,IF(D13=2,L63,IF(D13=3,M63,IF(D13=4,N63,IF(D13=5,O63,IF(D13=6,P63,IF(D13=7,Q63,0)))))))) -> 0 | F59: J= | G59: =G21 -> 0
C60: Mn8-15 | D60: =IF(D13=8,R63,IF(D13=9,S63,IF(D13=10,T63,IF(D13=11,U63,IF(D13=12,V63,IF(D13=13,W63,IF(D13=14,X63,IF(D13=15,Y63,0)))))))) -> 0 | F60: JE= | G60: =G22 -> 5.7e-05
C61: Mn16-23 | D61: =IF(D13=16,Z63,IF(D13=17,AA63,IF(D13=18,AB63,IF(D13=19,AC63,IF(D13=20,AD63,IF(D13=21,AE63,IF(D13=22,AF63,IF(D13=23,AG63,0)))))))) -> 0 | F61: k= | G61: =G23 -> 1.6
C62: Mn24-31 | D62: =IF(D13=24,AH63,IF(D13=25,AI63,IF(D13=26,AJ63,IF(D13=27,AK63,IF(D13=28,AL63,IF(D13=29,AM63,IF(D13=30,AN63,IF(D13=31,AO63,0)))))))) -> 3.1 | F62: alpha= | G62: =G58/((G59+G60)*POWER(G61,2)) -> 21244.51754 | J62: Summe M | K62: =K49 -> 3.1 | L62: =K62+L49 -> 6.2 | M62: 9.3 | N62: 12.4 | O62: 15.5 | P62: 18.6 | Q62: 21.7 | R62: 24.8 | S62: 27.9 | T62: 31 | U62: 34.1 | V62: 37.2 | W62: 40.3 | X62: 43.4 | Y62: 46.5 | Z62: 49.6 | AA62: 52.7 | AB62: 55.8 | AC62: 58.9 | AD62: 62 | AE62: 65.1 | AF62: 68.2 | AG62: 71.3 | AH62: 74.4 | AI62: 77.5 | AJ62: 80.6 | AK62: 83.7 | AL62: 86.8 | AM62: 89.9 | AN62: 93 | AO62: 96.1 | AP62: 99.2 | AQ62: 102.3 | AR62: =AQ62+AR49 -> 105.4 | AS62: 108.5 | AT62: 111.6 | AU62: 114.7 | AV62: 117.8 | AW62: 120.9 | AX62: 124 | AY62: 127.1 | AZ62: 130.2 | BA62: 133.3 | BB62: 136.4 | BC62: 139.5 | BD62: 142.6 | BE62: 145.7 | BF62: 148.8 | BG62: 151.9 | BH62: 155 | BI62: 158.1 | BJ62: 161.2 | BK62: 164.3 | BL62: 167.4 | BM62: 170.5 | BN62: 173.6 | BO62: 176.7 | BP62: 179.8 | BQ62: 182.9 | BR62: 186 | BS62: 189.1 | BT62: 192.2 | BU62: 195.3 | BV62: 198.4
C63: Mn32-39 | D63: =IF(D13=32,AP63,IF(D13=33,AQ63,IF(D13=34,AR63,IF(D13=35,AS63,IF(D13=36,AT63,IF(D13=37,AU63,IF(D13=38,AV63,IF(D13=39,AW63,0)))))))) -> 0 | F63: PI= | G63: =PI() -> 3.141592654 | J63: Mittelwert Mm | K63: =K62/K56 -> 3.1 | L63: 3.1 | M63: 3.1 | N63: 3.1 | O63: 3.1 | P63: 3.1 | Q63: 3.1 | R63: 3.1 | S63: 3.1 | T63: 3.1 | U63: 3.1 | V63: 3.1 | W63: 3.1 | X63: 3.1 | Y63: 3.1 | Z63: 3.1 | AA63: 3.1 | AB63: 3.1 | AC63: 3.1 | AD63: 3.1 | AE63: 3.1 | AF63: 3.1 | AG63: 3.1 | AH63: 3.1 | AI63: 3.1 | AJ63: 3.1 | AK63: 3.1 | AL63: 3.1 | AM63: 3.1 | AN63: 3.1 | AO63: 3.1 | AP63: 3.1 | AQ63: =AQ62/AQ56 -> 3.1 | AR63: 3.1 | AS63: 3.1 | AT63: 3.1 | AU63: 3.1 | AV63: 3.1 | AW63: 3.1 | AX63: 3.1 | AY63: 3.1 | AZ63: 3.1 | BA63: 3.1 | BB63: 3.1 | BC63: 3.1 | BD63: 3.1 | BE63: 3.1 | BF63: 3.1 | BG63: 3.1 | BH63: 3.1 | BI63: 3.1 | BJ63: 3.1 | BK63: 3.1 | BL63: 3.1 | BM63: 3.1 | BN63: 3.1 | BO63: 3.1 | BP63: 3.1 | BQ63: 3.1 | BR63: 3.1 | BS63: 3.1 | BT63: 3.1 | BU63: 3.1 | BV63: 3.1
C64: Mn40-47 | D64: =IF(D13=40,AX63,IF(D13=41,AY63,IF(D13=42,AZ63,IF(D13=43,BA63,IF(D13=44,BB63,IF(D13=45,BC63,IF(D13=46,BD63,IF(D13=47,BE63,0)))))))) -> 0 | F64: beta= | G64: =D51 -> 90
C65: Mn48-55 | D65: =IF(D13=48,BF63,IF(D13=49,BG63,IF(D13=50,BH63,IF(D13=51,BI63,IF(D13=52,BJ63,IF(D13=53,BK63,IF(D13=54,BL63,IF(D13=55,BM63,0)))))))) -> 0 | F65: phi= | G65: =G63*G64/180 -> 1.570796327
C66: Mn56-63 | D66: =IF(D13=56,BN63,IF(D13=57,BO63,IF(D13=58,BP63,IF(D13=59,BQ63,IF(D13=60,BR63,IF(D13=61,BS63,IF(D13=62,BT63,IF(D13=63,BU63,0)))))))) -> 0 | F66: Omega= | G66: =SQRT(2*G62*G65) -> 258.343996
C67: M64 | D67: =IF(D13=64,BV63,0) -> 0 | I67: Tsmax für Schwenkzeit vor:
F68: Ts= | G68: =G66/G62*I24 -> 0.0121605019 | I68: =MAX(G68,G82) -> 0.0121605019
I70: Omega min. für Ber. E kin.:
A71: Minimale Antriebsmoment im Schwenkbereich | F71: Werte für Drehachse vertikal | I71: =MIN(G66,G80) -> 258.343996
C72: M min.= | D72: =MAX(D73:D82) -> 3.1 | F72: M= | G72: 3.1
C73: M1-6 | D73: =IF(D13=0,0,IF(D13=1,K49,IF(D13=2,MIN(K49:L49),IF(D13=3,MIN(K49:M49),IF(D13=4,MIN(K49:N49),IF(D13=5,MIN(K49:O49),IF(D13=6,MIN(K49:P49)," "))))))) ->  | F73: J= | G73: =G59 -> 0 | L73: Antriebsmoment in Endposition
C74: M7-13 | D74: =IF(D13=7,MIN(K49:Q49),IF(D13=8,MIN(K49:R49),IF(D13=9,MIN(K49:S49),IF(D13=10,MIN(K49:T49),IF(D13=11,MIN(K49:U49),IF(D13=12,MIN(K49:V49),IF(D13=13,MIN(K49:W49)," "))))))) ->  | F74: JE= | G74: =G60 -> 5.7e-05 | L74: für Energieberechnung | O74: Energieberechnung | Q74: Für Ber.
C75: M14-20 | D75: =IF(D13=14,MIN(K49:X49),IF(D13=15,MIN(K49:Y49),IF(D13=16,MIN(K49:Z49),IF(D13=17,MIN(K49:AA49),IF(D13=18,MIN(K49:AB49),IF(D13=19,MIN(K49:AC49),IF(D13=20,MIN(K49:AD49)," "))))))) ->  | F75: k= | G75: =G61 -> 1.6 | L75: M= | M75: =MAX(M76:M84) -> 3.1 | O75: M= | P75: =M75 -> 3.1 | Q75: v kolben
C76: M21-27 | D76: =IF(D13=21,MIN(K49:AE49),IF(D13=22,MIN(K49:AF49),IF(D13=23,MIN(K49:AG49),IF(D13=24,MIN(K49:AH49),IF(D13=25,MIN(K49:AI49),IF(D13=26,MIN(K49:AJ49),IF(D13=27,MIN(K49:AK49)," "))))))) ->  | F76: alpha= | G76: =G72/((G73+G74)*POWER(G75,2)) -> 21244.51754 | L76: M1-7 | M76: =IF(D13=0,0,IF(D13=1,K49,IF(D13=2,L49,IF(D13=3,M49,IF(D13=4,N49,IF(D13=5,O49,IF(D13=6,P49,IF(D13=7,Q49,0)))))))) -> 0 | O76: r= | P76: 0.01825 | Q76: 0.0125
C77: M28-34 | D77: =IF(D13=28,MIN(K49:AL49),IF(D13=29,MIN(K49:AM49),IF(D13=30,MIN(K49:AN49),IF(D13=31,MIN(K49:AO49),IF(D13=32,MIN(K49:AP49),IF(D13=33,MIN(K49:AQ49),IF(D13=34,MIN(K49:AR49)," "))))))) -> 3.1 | F77: PI= | G77: =PI() -> 3.141592654 | L77: M8-15 | M77: =IF(D13=8,R49,IF(D13=9,S49,IF(D13=10,T49,IF(D13=11,U49,IF(D13=12,V49,IF(D13=13,W49,IF(D13=14,X49,IF(D13=15,Y49,0)))))))) -> 0 | O77: s= | P77: ='Allgemeine Werte'!L34 -> 0.006
C78: M35-41 | D78: =IF(D13=35,MIN(K49:AS49),IF(D13=36,MIN(K49:AT49),IF(D13=37,MIN(K49:AU49),IF(D13=38,MIN(K49:AV49),IF(D13=39,MIN(K49:AW49),IF(D13=40,MIN(K49:AX49),IF(D13=41,MIN(K49:AY49)," "))))))) ->  | F78: beta= | G78: =G64 -> 90 | L78: M16-23 | M78: =IF(D13=16,Z49,IF(D13=17,AA49,IF(D13=18,AB49,IF(D13=19,AC49,IF(D13=20,AD49,IF(D13=21,AE49,IF(D13=22,AF49,IF(D13=23,AG49,0)))))))) -> 0 | O78: E antrieb | P78: =P75*P77/P76 -> 1.019178082
C79: M42-48 | D79: =IF(D13=42,MIN(K49:AZ49),IF(D13=43,MIN(K49:BA49),IF(D13=44,MIN(K49:BB49),IF(D13=45,MIN(K49:BC49),IF(D13=46,MIN(K49:BD49),IF(D13=47,MIN(K49:BE49),IF(D13=48,MIN(K49:BF49)," "))))))) ->  | F79: phi= | G79: =G77*G78/180 -> 1.570796327 | L79: M24-31 | M79: =IF(D13=24,AH49,IF(D13=25,AI49,IF(D13=26,AJ49,IF(D13=27,AK49,IF(D13=28,AL49,IF(D13=29,AM49,IF(D13=30,AN49,IF(D13=31,AO49,0)))))))) -> 3.1 | O79: m kolben | P79: 0.08
C80: M49-55 | D80: =IF(D13=49,MIN(K49:BG49),IF(D13=50,MIN(K49:BH49),IF(D13=51,MIN(K49:BI49),IF(D13=52,MIN(K49:BJ49),IF(D13=53,MIN(K49:BK49),IF(D13=54,MIN(K49:BL49),IF(D13=55,MIN(K49:BM49)," "))))))) ->  | F80: Omega= | G80: =SQRT(2*G76*G79) -> 258.343996 | L80: M32-39 | M80: =IF(D13=32,AP49,IF(D13=33,AQ49,IF(D13=34,AR49,IF(D13=35,AS49,IF(D13=36,AT49,IF(D13=37,AU49,IF(D13=38,AV49,IF(D13=39,AW49,0)))))))) -> 0 | O80: v kolben | P80: =I71*Q76 -> 3.229299949
C81: M56-62 | D81: =IF(D13=56,MIN(K49:BN49),IF(D13=57,MIN(K49:BO49),IF(D13=58,MIN(K49:BP49),IF(D13=59,MIN(K49:BQ49),IF(D13=60,MIN(K49:BR49),IF(D13=61,MIN(K49:BS49),IF(D13=62,MIN(K49:BT49)," "))))))) ->  | L81: M40-47 | M81: =IF(D13=40,AX49,IF(D13=41,AY49,IF(D13=42,AZ49,IF(D13=43,BA49,IF(D13=44,BB49,IF(D13=45,BC49,IF(D13=46,BD49,IF(D13=47,BE49,0)))))))) -> 0 | O81: E kin kolben | P81: =P79*2*POWER(P80,2)*0.5 -> 0.8342702531
C82: M63-64 | D82: =IF(D13=63,MIN(K49:BU49),IF(D13=64,MIN(K49:BV49)," ")) ->  | F82: Ts= | G82: =G80/G76*I24 -> 0.0121605019 | L82: M48-55 | M82: =IF(D13=48,BF49,IF(D13=49,BG49,IF(D13=50,BH49,IF(D13=51,BI49,IF(D13=52,BJ49,IF(D13=53,BK49,IF(D13=54,BL49,IF(D13=55,BM49,0)))))))) -> 0 | O82: E antrieb kpl. | P82: =P78+P81 -> 1.853448335
L83: M56-63 | M83: =IF(D13=56,BN49,IF(D13=57,BO49,IF(D13=58,BP49,IF(D13=59,BQ49,IF(D13=60,BR49,IF(D13=61,BS49,IF(D13=62,BT49,IF(D13=63,BU49,0)))))))) -> 0
L84: M64 | M84: =IF(D13=64,BV49,0) -> 0 | O84: E kin. | P84: =((G59+G60)*POWER(N98,2))/2 -> 1.902136177
O86: E ges | P86: =P84+P82 -> 3.755584512
A90: Überprüfung der mechanischen Belastung
A92: Drehachse Vertikal | J92: Drehachse Horizontal
D93: Berechnung der dyn. Kraft | M93: Berechnung der dyn. Kraft
A94: Statische Belastung | D94: verursacht durch Masse m | G94: Dynamische Belastung | J94: Statische Belastung | M94: verursacht durch Masse m | P94: Dynamische Belastung
D95: ( Auch Drehen vor ) | M95: ( Zurückdrehen )
A96: Xs | B96: =A3/1000 -> 0 | D96: Omega | E96: =I33 -> 258.343996 | G96: Z bis OK-Dr. | H96: 0.01535 | M96: Omega | N96: =I71 -> 258.343996 | P96: Z bis OK-Dr. | Q96: =H96 -> 0.01535
A97: Ys | B97: =B3/1000 -> 0 | D97: Prozent | E97: =Eingabe4!M63 -> 1 | G97: Z | H97: =ABS(I97) -> 0.01535 | I97: =H96+B98 -> 0.01535 | M97: Prozent | N97: =E97 -> 1 | P97: Z | Q97: =H97 -> 0.01535
A98: Zs | B98: =Eingabe4!N12/1000 -> 0 | D98: Omega red. | E98: =E96*E97 -> 258.343996 | G98: M2=Fdyn*Z | H98: =E109*H97 -> 0 | M98: Omega red. | N98: =N96*N97 -> 258.343996 | P98: M2=Fdyn*Z | Q98: =Q109*Q97 -> 0
A99: R | B99: =SQRT(POWER(B96,2)+POWER(B97,2)) -> 0
A100: m | B100: =C3 -> 0 | D100: R | E100: =B99 -> 0 | G100: r | H100: 0.01825 | M100: R | N100: =B99 -> 0 | P100: r | Q100: =H100 -> 0.01825
A101: F | B101: =B100*9.81 -> 0 | D101: Omega | E101: =E98 -> 258.343996 | J101: F | K101: =B101 -> 0 | M101: Omega | N101: =N98 -> 258.343996
A102: M1=F*R | B102: =B101*B99 -> 0 | D102: v | E102: =E100*E101 -> 0 | G102: M3=Fdyn*(R-r) | H102: =E109*(B99-H100) -> 0 | J102: M1=F*Z | K102: =K101*H97 -> 0 | M102: v | N102: =N100*N101 -> 0 | P102: M3=Fdyn*(R-r) | Q102: =Q109*(B99-Q100) -> 0
D103: PI | E103: =PI() -> 3.141592654 | M103: PI | N103: =PI() -> 3.141592654
A104: M max | B104: 18 | D104: Aufprallwink. | E104: =DEGREES(ATAN('Allgemeine Werte'!P34/H100)) -> 12.42239046 | M104: Aufprallwink. | N104: =E104 -> 12.42239046
A105: F ax max | B105: 1950 | D105: s (Dämpfweg) | E105: =TAN(E104*E103/180)*E100 -> 0 | M105: s (Dämpfweg) | N105: =TAN(N104*N103/180)*N100 -> 0
A106: F rad max | B106: 1000 | D106: a | E106: =IF(E100=0,0,POWER(E102,2)/(2*E105)) -> 0 | M106: a | N106: =IF(N100=0,0,POWER(N102,2)/(2*N105)) -> 0
A107: M rad max | B107: =H100*B106 -> 18.25
D108: m | E108: =B100 -> 0 | M108: m | N108: =B100 -> 0
D109: Fdyn | E109: =E108*E106 -> 0 | M109: Fdyn | N109: =N108*N106 -> 0 | P109: F dyn max | Q109: =MAX(E109,N109) -> 0
A110: Belastung durch M antr. | J110: Belastung durch M antr.
A111: M antr. | B111: 0
B112: Antrieb verursacht kein Moment ! | D112: phi | E112: =G27 -> 1.570796327 | J112: M antr. Ende vor | K112: =M30 -> 3.1 | M112: phi | N112: =G65 -> 1.570796327
B113: daher =0 | D113: a | E113: =POWER(E98,2)/(2*E112) -> 21244.51754 | J113: M antr. Ende rück | K113: =M75 -> 3.1 | M113: a | N113: =POWER(N98,2)/(2*N112) -> 21244.51754
D114: t | E114: =E101/E113*I24 -> 0.0121605019 | J114: M antr. Ende max | K114: 0 | M114: t | N114: =N101/N113*I24 -> 0.0121605019
K115: siehe links = 0
A116: Belastungsgleichung: F/Faxmax + M1/Mmax + M2/Mmax = | J116: Belastungsgleichung: M1/Mmax + M2/Mmax =
A117: ( Axiallager stat + dyn. ) | D117: =B101/B105+B102/B104+H98/B104 -> 0 | J117: ( Axiallager stat + dyn. ) | M117: =K102/B104+Q98/B104 -> 0
A119: Belastungsgleichung: F/Faxmax + M1/Mmax = | J119: Belastungsgleichung: M1/Mmax + M2/Mmax =
A120: ( Axiallager stat ) | D120: =B101/B105+B102/B104 -> 0 | J120: ( Axiallager stat ) | M120: =K102/B104 -> 0
A122: Belastungsgleichung: M3/Mradmax + M antr./Mradmax = | J122: Belastungsgleichung: F/Fradmax + M3/Mradmax + M antr/Mradmax =
A123: ( Radiallager stat + dyn. ) | D123: =H102/B107+B111/B107 -> 0 | J123: ( Radiallager stat + dyn ) | M123: =K101/B106+Q102/B107+K114/B107 -> 0
A125: Belastungsgleichung: M antr./Mradmax = | J125: Belastungsgleichung: F/Fradmax + M antr./Mradmax =
A126: ( Radiallager stat ) | D126: =B111/B107 -> 0 | J126: ( Radiallager stat ) | M126: =K101/B106+K114/B107 -> 0
A128: Lagerbelastung Drehachse vertikal : | D128: =MAX(D117,D120,D123,D126) -> 0 | E128: Lagerbelastung: | G128: =IF(F14=TRUE,D128,M128) -> 0 | J128: Lagerbelastung Drehachse horizontal : | M128: =MAX(M117,M120,M123,M126) -> 0

Sheet BerRSTP87
A1: Drehen vor
A2: x | B2: y | C2: m | D2: x2*y2 | E2: R= | F2: sin | G2: grad
A3: =Eingabe4!N10 -> 0 | B3: =Eingabe4!N11 -> 0 | C3: =Eingabe4!N9 -> 0 | D3: =POWER(A3,2)+POWER(B3,2) -> 0 | E3: =SQRT(D3) -> 0 | F3: =IF(E3=0,0,A3/E3) -> 0 | G3: =ASIN(F3)*180/PI() -> 0
G4: =180-G3 -> 180 | J4: M= | K4: =IF($F14=TRUE,7.9,7.9+(9.81*$C3*($E3/1000)*K9)) -> 7.9 | L4: =IF($F14=TRUE,7.9,7.9+(9.81*$C3*($E3/1000)*L9)) -> 7.9 | M4: =IF($F14=TRUE,7.9,7.9+(9.81*$C3*($E3/1000)*M9)) -> 7.9 | N4: 7.9 | O4: 7.9 | P4: 7.9 | Q4: 7.9 | R4: 7.9 | S4: 7.9 | T4: 7.9 | U4: 7.9 | V4: 7.9 | W4: 7.9 | X4: 7.9 | Y4: 7.9 | Z4: 7.9 | AA4: 7.9 | AB4: 7.9 | AC4: 7.9 | AD4: 7.9 | AE4: 7.9 | AF4: 7.9 | AG4: 7.9 | AH4: 7.9 | AI4: 7.9 | AJ4: 7.9 | AK4: 7.9 | AL4: 7.9 | AM4: 7.9 | AN4: 7.9 | AO4: 7.9 | AP4: 7.9 | AQ4: 7.9 | AR4: 7.9 | AS4: 7.9 | AT4: 7.9 | AU4: 7.9 | AV4: 7.9 | AW4: 7.9 | AX4: 7.9 | AY4: 7.9 | AZ4: 7.9 | BA4: 7.9 | BB4: 7.9 | BC4: 7.9 | BD4: 7.9 | BE4: 7.9 | BF4: 7.9 | BG4: 7.9 | BH4: 7.9 | BI4: 7.9 | BJ4: 7.9 | BK4: 7.9 | BL4: 7.9 | BM4: 7.9 | BN4: 7.9 | BO4: 7.9 | BP4: 7.9 | BQ4: 7.9 | BR4: 7.9 | BS4: 7.9 | BT4: 7.9 | BU4: 7.9 | BV4: 7.9
G5: =360+G3 -> 360
C6: Startwinkel | D6: =IF(AND(A3>=0,B3>=0),G3,IF(AND(A3>=0,B3<0),G4,IF(AND(A3<0,B3<0),G4,IF(AND(A3<0,B3>=0),G5,0)))) -> 0 | J6: beta= | K6: 3 | L6: =K6 -> 3 | M6: 3 | N6: 3 | O6: 3 | P6: 3 | Q6: 3 | R6: 3 | S6: 3 | T6: 3 | U6: 3 | V6: 3 | W6: 3 | X6: 3 | Y6: 3 | Z6: 3 | AA6: 3 | AB6: 3 | AC6: 3 | AD6: 3 | AE6: 3 | AF6: 3 | AG6: 3 | AH6: 3 | AI6: 3 | AJ6: 3 | AK6: 3 | AL6: 3 | AM6: 3 | AN6: 3 | AO6: 3 | AP6: 3 | AQ6: 3 | AR6: =AQ6 -> 3 | AS6: 3 | AT6: 3 | AU6: 3 | AV6: 3 | AW6: 3 | AX6: 3 | AY6: 3 | AZ6: 3 | BA6: 3 | BB6: 3 | BC6: 3 | BD6: 3 | BE6: 3 | BF6: 3 | BG6: 3 | BH6: 3 | BI6: 3 | BJ6: 3 | BK6: 3 | BL6: 3 | BM6: 3 | BN6: 3 | BO6: 3 | BP6: 3 | BQ6: 3 | BR6: 3 | BS6: 3 | BT6: 3 | BU6: 3 | BV6: 3
B7: Teilung | C7: sin Startpos | D7: =SIN((D6)*PI()/180) -> 0
B8: =Eingabe4!M19 -> 4 | C8: Schwenkw. | D8: =IF(B8=4,90,IF(B8=6,60,IF(B8=8,45,IF(B8=12,30,22.5)))) -> 90 | J8: Startwinkel | K8: =D6 -> 0 | L8: =IF($F16=TRUE,K8-K6,K8+K6) -> 3 | M8: 6 | N8: 9 | O8: 12 | P8: 15 | Q8: 18 | R8: 21 | S8: 24 | T8: 27 | U8: 30 | V8: 33 | W8: 36 | X8: 39 | Y8: 42 | Z8: 45 | AA8: 48 | AB8: 51 | AC8: 54 | AD8: 57 | AE8: 60 | AF8: 63 | AG8: 66 | AH8: 69 | AI8: 72 | AJ8: 75 | AK8: 78 | AL8: 81 | AM8: 84 | AN8: 87 | AO8: 90 | AP8: 93 | AQ8: 96 | AR8: =IF($F16=TRUE,AQ8-AQ6,AQ8+AQ6) -> 99 | AS8: 102 | AT8: 105 | AU8: 108 | AV8: 111 | AW8: 114 | AX8: 117 | AY8: 120 | AZ8: 123 | BA8: 126 | BB8: 129 | BC8: 132 | BD8: 135 | BE8: 138 | BF8: 141 | BG8: 144 | BH8: 147 | BI8: 150 | BJ8: 153 | BK8: 156 | BL8: 159 | BM8: 162 | BN8: 165 | BO8: 168 | BP8: 171 | BQ8: 174 | BR8: 177 | BS8: 180 | BT8: 183 | BU8: 186 | BV8: 189
C9: Endwinkel | D9: =IF(F16=TRUE,D6-D8,D6+D8) -> 90 | F9: Modulabhängige Zellen | J9: sin | K9: =IF($F16=TRUE,-SIN((K8)*PI()/180),SIN((K8)*PI()/180)) -> 0 | L9: 0.05233595624 | M9: 0.1045284633 | N9: 0.156434465 | O9: 0.2079116908 | P9: 0.2588190451 | Q9: 0.3090169944 | R9: 0.3583679495 | S9: 0.4067366431 | T9: 0.4539904997 | U9: 0.5 | V9: 0.544639035 | W9: 0.5877852523 | X9: 0.629320391 | Y9: 0.6691306064 | Z9: 0.7071067812 | AA9: 0.7431448255 | AB9: 0.7771459615 | AC9: 0.8090169944 | AD9: 0.8386705679 | AE9: 0.8660254038 | AF9: 0.8910065242 | AG9: 0.9135454576 | AH9: 0.9335804265 | AI9: 0.9510565163 | AJ9: 0.9659258263 | AK9: 0.9781476007 | AL9: 0.9876883406 | AM9: 0.9945218954 | AN9: 0.9986295348 | AO9: 1 | AP9: 0.9986295348 | AQ9: =IF($F16=TRUE,-SIN((AQ8)*PI()/180),SIN((AQ8)*PI()/180)) -> 0.9945218954 | AR9: 0.9876883406 | AS9: 0.9781476007 | AT9: 0.9659258263 | AU9: 0.9510565163 | AV9: 0.9335804265 | AW9: 0.9135454576 | AX9: 0.8910065242 | AY9: 0.8660254038 | AZ9: 0.8386705679 | BA9: 0.8090169944 | BB9: 0.7771459615 | BC9: 0.7431448255 | BD9: 0.7071067812 | BE9: 0.6691306064 | BF9: 0.629320391 | BG9: 0.5877852523 | BH9: 0.544639035 | BI9: 0.5 | BJ9: 0.4539904997 | BK9: 0.4067366431 | BL9: 0.3583679495 | BM9: 0.3090169944 | BN9: 0.2588190451 | BO9: 0.2079116908 | BP9: 0.156434465 | BQ9: 0.1045284633 | BR9: 0.05233595624 | BS9: 1.225148455e-16 | BT9: -0.05233595624 | BU9: -0.1045284633 | BV9: -0.156434465
C10: sin Endpos | D10: =SIN((D9)*PI()/180) -> 1
F11: Werte aus Eingabeseite | K11: 1 | L11: 2 | M11: 3 | N11: 4 | O11: 5 | P11: 6 | Q11: 7 | R11: 8 | S11: 9 | T11: 10 | U11: 11 | V11: 12 | W11: 13 | X11: 14 | Y11: 15 | Z11: 16 | AA11: 17 | AB11: 18 | AC11: 19 | AD11: 20 | AE11: 21 | AF11: 22 | AG11: 23 | AH11: 24 | AI11: 25 | AJ11: 26 | AK11: 27 | AL11: 28 | AM11: 29 | AN11: 30 | AO11: 31 | AP11: 32 | AQ11: 33 | AR11: 34 | AS11: 35 | AT11: 36 | AU11: 37 | AV11: 38 | AW11: 39 | AX11: 40 | AY11: 41 | AZ11: 42 | BA11: 43 | BB11: 44 | BC11: 45 | BD11: 46 | BE11: 47 | BF11: 48 | BG11: 49 | BH11: 50 | BI11: 51 | BJ11: 52 | BK11: 53 | BL11: 54 | BM11: 55 | BN11: 56 | BO11: 57 | BP11: 58 | BQ11: 59 | BR11: 60 | BS11: 61 | BT11: 62 | BU11: 63 | BV11: 64
D12: =D8/K6 -> 30
D13: =ROUNDUP(D12,0) -> 30
F14: =IF(Eingabe4!C41=TRUE,FALSE,TRUE) -> TRUE | G14: Horizontaler Aufbau | J14: Summe M | K14: =K4 -> 7.9 | L14: =K14+L4 -> 15.8 | M14: 23.7 | N14: 31.6 | O14: 39.5 | P14: 47.4 | Q14: 55.3 | R14: 63.2 | S14: 71.1 | T14: 79 | U14: 86.9 | V14: 94.8 | W14: 102.7 | X14: 110.6 | Y14: 118.5 | Z14: 126.4 | AA14: 134.3 | AB14: 142.2 | AC14: 150.1 | AD14: 158 | AE14: 165.9 | AF14: 173.8 | AG14: 181.7 | AH14: 189.6 | AI14: 197.5 | AJ14: 205.4 | AK14: 213.3 | AL14: 221.2 | AM14: 229.1 | AN14: 237 | AO14: 244.9 | AP14: 252.8 | AQ14: 260.7 | AR14: =AQ14+AR4 -> 268.6 | AS14: 276.5 | AT14: 284.4 | AU14: 292.3 | AV14: 300.2 | AW14: 308.1 | AX14: 316 | AY14: 323.9 | AZ14: 331.8 | BA14: 339.7 | BB14: 347.6 | BC14: 355.5 | BD14: 363.4 | BE14: 371.3 | BF14: 379.2 | BG14: 387.1 | BH14: 395 | BI14: 402.9 | BJ14: 410.8 | BK14: 418.7 | BL14: 426.6 | BM14: 434.5 | BN14: 442.4 | BO14: 450.3 | BP14: 458.2 | BQ14: 466.1 | BR14: 474 | BS14: 481.9 | BT14: 489.8 | BU14: 497.7 | BV14: 505.6
J15: Mittelwert Mm | K15: =K14/K11 -> 7.9 | L15: 7.9 | M15: 7.9 | N15: 7.9 | O15: 7.9 | P15: 7.9 | Q15: 7.9 | R15: 7.9 | S15: 7.9 | T15: 7.9 | U15: 7.9 | V15: 7.9 | W15: 7.9 | X15: 7.9 | Y15: 7.9 | Z15: 7.9 | AA15: 7.9 | AB15: 7.9 | AC15: 7.9 | AD15: 7.9 | AE15: 7.9 | AF15: 7.9 | AG15: 7.9 | AH15: 7.9 | AI15: 7.9 | AJ15: 7.9 | AK15: 7.9 | AL15: 7.9 | AM15: 7.9 | AN15: 7.9 | AO15: 7.9 | AP15: 7.9 | AQ15: =AQ14/AQ11 -> 7.9 | AR15: 7.9 | AS15: 7.9 | AT15: 7.9 | AU15: 7.9 | AV15: 7.9 | AW15: 7.9 | AX15: 7.9 | AY15: 7.9 | AZ15: 7.9 | BA15: 7.9 | BB15: 7.9 | BC15: 7.9 | BD15: 7.9 | BE15: 7.9 | BF15: 7.9 | BG15: 7.9 | BH15: 7.9 | BI15: 7.9 | BJ15: 7.9 | BK15: 7.9 | BL15: 7.9 | BM15: 7.9 | BN15: 7.9 | BO15: 7.9 | BP15: 7.9 | BQ15: 7.9 | BR15: 7.9 | BS15: 7.9 | BT15: 7.9 | BU15: 7.9 | BV15: 7.9
A16: Mittelwert des Antriebsmoments über Schwenkbereich | F16: =IF(Eingabe4!C42=TRUE,TRUE,FALSE) -> FALSE | G16: Drehen im/gegen Uhrzeigersinn
C17: Mn= | D17: =MAX(D18:D26) -> 7.9 | O17: Gerundete Werte+Korrekturfaktoren | U17: Schwenkzeitkorrektur von J=0 bis J= | X17: 0.005
C18: Mn1-7 | D18: =IF(D13=0,0,IF(D13=1,K15,IF(D13=2,L15,IF(D13=3,M15,IF(D13=4,N15,IF(D13=5,O15,IF(D13=6,P15,IF(D13=7,Q15,0)))))))) -> 0 | K18: Schwenkzeit vor | N18: =E114 -> 0.03080009442 | O18: =ROUND(N18+U22+U26,2) -> 0.34 | P18: Zykluszeit | Q18: =O18+U34+2*U36+U38 -> 0.79 | R18: Zyklen/min | S18: =60/Q18 -> 75.94936709 | U18: Korrekturfaktor bei J=0 : | X18: 0.05
C19: Mn8-15 | D19: =IF(D13=8,R15,IF(D13=9,S15,IF(D13=10,T15,IF(D13=11,U15,IF(D13=12,V15,IF(D13=13,W15,IF(D13=14,X15,IF(D13=15,Y15,0)))))))) -> 0 | K19: Schwenkzeit zurück | N19: =N114 -> 0.03080009442 | O19: =ROUND(N19+U22+U26,2) -> 0.34 | U19: bis J= siehe oben ! (Gerade) : | X19: 0
C20: Mn16-23 | D20: =IF(D13=16,Z15,IF(D13=17,AA15,IF(D13=18,AB15,IF(D13=19,AC15,IF(D13=20,AD15,IF(D13=21,AE15,IF(D13=22,AF15,IF(D13=23,AG15,0)))))))) -> 0 | F20: M= | G20: =D17 -> 7.9 | U20: ( Faktor wird in diesem J-Bereich zur berechneten Zeit addiert ! )
C21: Mn24-31 | D21: =IF(D13=24,AH15,IF(D13=25,AI15,IF(D13=26,AJ15,IF(D13=27,AK15,IF(D13=28,AL15,IF(D13=29,AM15,IF(D13=30,AN15,IF(D13=31,AO15,0)))))))) -> 7.9 | F21: J= | G21: =Eingabe4!N8 -> 0 | K21: Mmin im Schwenkbereich vor | N21: =D30 -> 7.9 | O21: Mmin | P21: =MIN(N21:N22) -> 7.9 | R21: M-Mmin/M | S21: =(7.9-P21)/7.9 -> 0 | U21: =-(X18/X17)*(G21-X17) -> 0.05 | V21: ( Korrektur im untersten Bereich )
C22: Mn32-39 | D22: =IF(D13=32,AP15,IF(D13=33,AQ15,IF(D13=34,AR15,IF(D13=35,AS15,IF(D13=36,AT15,IF(D13=37,AU15,IF(D13=38,AV15,IF(D13=39,AW15,0)))))))) -> 0 | F22: JE= | G22: 0.000364 | K22: Mmin im Schwenkbereich zurück | N22: =D72 -> 7.9 | U22: =IF(G21>=X17,0,U21) -> 0.05
C23: Mn40-47 | D23: =IF(D13=40,AX15,IF(D13=41,AY15,IF(D13=42,AZ15,IF(D13=43,BA15,IF(D13=44,BB15,IF(D13=45,BC15,IF(D13=46,BD15,IF(D13=47,BE15,0)))))))) -> 0 | F23: k= | G23: 1.6 | H23: K-Wert in Ts eingearbeitet !
C24: Mn48-55 | D24: =IF(D13=48,BF15,IF(D13=49,BG15,IF(D13=50,BH15,IF(D13=51,BI15,IF(D13=52,BJ15,IF(D13=53,BK15,IF(D13=54,BL15,IF(D13=55,BM15,0)))))))) -> 0 | F24: alpha= | G24: =G20/((G21+G22)*POWER(G23,2)) -> 8477.850275 | H24: K= | I24: ='Allgemeine Werte'!Q36 -> 1.6 | K24: E ges vor | N24: =P41 -> 9.180301008 | O24: E ges max | P24: =MAX(N24:N25) -> 9.180301008 | R24: E zul/Hub | S24: ='Allgemeine Werte'!G36 -> 16 | U24: Schwenkzeitkorrektur gem. Schunkmessungen
C25: Mn56-63 | D25: =IF(D13=56,BN15,IF(D13=57,BO15,IF(D13=58,BP15,IF(D13=59,BQ15,IF(D13=60,BR15,IF(D13=61,BS15,IF(D13=62,BT15,IF(D13=63,BU15,0)))))))) -> 0 | F25: PI= | G25: =PI() -> 3.141592654 | K25: E ges zurück | N25: =P86 -> 9.180301008 | U25: (Zeit wird zu Schwenkzeiten (O18,O19) addiert)
C26: Mn64 | D26: =IF(D13=64,BV15,0) -> 0 | F26: beta= | G26: =D8 -> 90 | R26: E ges/E zul | S26: =P24/S24 -> 0.573768813 | U26: =IF(B8=4,0.255,IF(B8=6,0.175,IF(B8=8,0.17,0.15))) -> 0.255 | V26: ( Verschiebung der urspr. Kurve )
F27: phi= | G27: =G25*G26/180 -> 1.570796327
F28: Omega= | G28: =SQRT(2*G24*G27) -> 163.1991181 | L28: Antriebsmoment in Endposition | R28: Ezul/h | S28: ='Allgemeine Werte'!H36 -> 30000
A29: Minimale Antriebsmoment im Schwenkbereich | I29: Tsmax für Schwenkzeit vor: | L29: für Energieberechnung | O29: Energieberechnung | Q29: Für Ber.
C30: M min.= | D30: =MAX(D31:D40) -> 7.9 | F30: Ts= | G30: =G28/G24*I24 -> 0.03080009442 | I30: =MAX(G30,G44) -> 0.03080009442 | L30: M= | M30: =MAX(M31:M39) -> 7.9 | O30: M= | P30: =M30 -> 7.9 | Q30: v kolben | R30: Zyklen/min | S30: =(S28/60)/P24 -> 54.46444507
C31: M1-6 | D31: =IF(D13=0,0,IF(D13=1,K4,IF(D13=2,MIN(K4:L4),IF(D13=3,MIN(K4:M4),IF(D13=4,MIN(K4:N4),IF(D13=5,MIN(K4:O4),IF(D13=6,MIN(K4:P4)," "))))))) ->  | L31: M1-7 | M31: =IF(D13=0,0,IF(D13=1,K4,IF(D13=2,L4,IF(D13=3,M4,IF(D13=4,N4,IF(D13=5,O4,IF(D13=6,P4,IF(D13=7,Q4,0)))))))) -> 0 | O31: r= | P31: 0.027 | Q31: 0.018
C32: M7-13 | D32: =IF(D13=7,MIN(K4:Q4),IF(D13=8,MIN(K4:R4),IF(D13=9,MIN(K4:S4),IF(D13=10,MIN(K4:T4),IF(D13=11,MIN(K4:U4),IF(D13=12,MIN(K4:V4),IF(D13=13,MIN(K4:W4)," "))))))) ->  | I32: Omega min. für Ber. E kin.: | L32: M8-15 | M32: =IF(D13=8,R4,IF(D13=9,S4,IF(D13=10,T4,IF(D13=11,U4,IF(D13=12,V4,IF(D13=13,W4,IF(D13=14,X4,IF(D13=15,Y4,0)))))))) -> 0 | O32: s= | P32: ='Allgemeine Werte'!L36 -> 0.0095 | Q32: (do/2) | S32: =MIN(S18,S30,S37,S41) -> 48.33333333
C33: M14-20 | D33: =IF(D13=14,MIN(K4:X4),IF(D13=15,MIN(K4:Y4),IF(D13=16,MIN(K4:Z4),IF(D13=17,MIN(K4:AA4),IF(D13=18,MIN(K4:AB4),IF(D13=19,MIN(K4:AC4),IF(D13=20,MIN(K4:AD4)," "))))))) ->  | F33: Werte für Drehachse vertikal | I33: =MIN(G28,G42) -> 163.1991181 | L33: M16-23 | M33: =IF(D13=16,Z4,IF(D13=17,AA4,IF(D13=18,AB4,IF(D13=19,AC4,IF(D13=20,AD4,IF(D13=21,AE4,IF(D13=22,AF4,IF(D13=23,AG4,0)))))))) -> 0 | O33: E antrieb | P33: =P30*P32/P31 -> 2.77962963 | R33: Zykl.min./min | S33: =ROUNDDOWN(S32,0) -> 48 | U33: Kolbenrückfahrzeit
C34: M21-27 | D34: =IF(D13=21,MIN(K4:AE4),IF(D13=22,MIN(K4:AF4),IF(D13=23,MIN(K4:AG4),IF(D13=24,MIN(K4:AH4),IF(D13=25,MIN(K4:AI4),IF(D13=26,MIN(K4:AJ4),IF(D13=27,MIN(K4:AK4)," "))))))) ->  | F34: M= | G34: 7.9 | L34: M24-31 | M34: =IF(D13=24,AH4,IF(D13=25,AI4,IF(D13=26,AJ4,IF(D13=27,AK4,IF(D13=28,AL4,IF(D13=29,AM4,IF(D13=30,AN4,IF(D13=31,AO4,0)))))))) -> 7.9 | O34: m kolben | P34: 0.18 | U34: 0.1
C35: M28-34 | D35: =IF(D13=28,MIN(K4:AL4),IF(D13=29,MIN(K4:AM4),IF(D13=30,MIN(K4:AN4),IF(D13=31,MIN(K4:AO4),IF(D13=32,MIN(K4:AP4),IF(D13=33,MIN(K4:AQ4),IF(D13=34,MIN(K4:AR4)," "))))))) -> 7.9 | F35: J= | G35: =G21 -> 0 | L35: M32-39 | M35: =IF(D13=32,AP4,IF(D13=33,AQ4,IF(D13=34,AR4,IF(D13=35,AS4,IF(D13=36,AT4,IF(D13=37,AU4,IF(D13=38,AV4,IF(D13=39,AW4,0)))))))) -> 0 | O35: v kolben | P35: =I33*Q31 -> 2.937584125 | R35: Stoßd.-kolbenrückstellzeit | U35: Ver-, Entriegelungszeit
C36: M35-41 | D36: =IF(D13=35,MIN(K4:AS4),IF(D13=36,MIN(K4:AT4),IF(D13=37,MIN(K4:AU4),IF(D13=38,MIN(K4:AV4),IF(D13=39,MIN(K4:AW4),IF(D13=40,MIN(K4:AX4),IF(D13=41,MIN(K4:AY4)," "))))))) ->  | F36: JE= | G36: =G22 -> 0.000364 | L36: M40-47 | M36: =IF(D13=40,AX4,IF(D13=41,AY4,IF(D13=42,AZ4,IF(D13=43,BA4,IF(D13=44,BB4,IF(D13=45,BC4,IF(D13=46,BD4,IF(D13=47,BE4,0)))))))) -> 0 | O36: E kin kolben | P36: =P34*2*POWER(P35,2)*0.5 -> 1.553292089 | S36: ='Allgemeine Werte'!E36 -> 0.5 | U36: 0.1
C37: M42-48 | D37: =IF(D13=42,MIN(K4:AZ4),IF(D13=43,MIN(K4:BA4),IF(D13=44,MIN(K4:BB4),IF(D13=45,MIN(K4:BC4),IF(D13=46,MIN(K4:BD4),IF(D13=47,MIN(K4:BE4),IF(D13=48,MIN(K4:BF4)," "))))))) ->  | F37: k= | G37: =G23 -> 1.6 | L37: M48-55 | M37: =IF(D13=48,BF4,IF(D13=49,BG4,IF(D13=50,BH4,IF(D13=51,BI4,IF(D13=52,BJ4,IF(D13=53,BK4,IF(D13=54,BL4,IF(D13=55,BM4,0)))))))) -> 0 | O37: E antrieb kpl. | P37: =P33+P36 -> 4.332921719 | R37: Max.Zyk/min | S37: =60/S36 -> 120 | U37: Ausgleichszeit (Kolbenbelüftung,Losfahren) | Y37: min. | Z37: max.
C38: M49-55 | D38: =IF(D13=49,MIN(K4:BG4),IF(D13=50,MIN(K4:BH4),IF(D13=51,MIN(K4:BI4),IF(D13=52,MIN(K4:BJ4),IF(D13=53,MIN(K4:BK4),IF(D13=54,MIN(K4:BL4),IF(D13=55,MIN(K4:BM4)," "))))))) ->  | F38: alpha= | G38: =G34/((G35+G36)*POWER(G37,2)) -> 8477.850275 | L38: M56-63 | M38: =IF(D13=56,BN4,IF(D13=57,BO4,IF(D13=58,BP4,IF(D13=59,BQ4,IF(D13=60,BR4,IF(D13=61,BS4,IF(D13=62,BT4,IF(D13=63,BU4,0)))))))) -> 0 | U38: =(Z38-Y38)/V41*G21+Y38 -> 0.15 | Y38: 0.15 | Z38: 0.3
C39: M56-62 | D39: =IF(D13=56,MIN(K4:BN4),IF(D13=57,MIN(K4:BO4),IF(D13=58,MIN(K4:BP4),IF(D13=59,MIN(K4:BQ4),IF(D13=60,MIN(K4:BR4),IF(D13=61,MIN(K4:BS4),IF(D13=62,MIN(K4:BT4)," "))))))) ->  | F39: PI= | G39: =PI() -> 3.141592654 | L39: M64 | M39: =IF(D13=64,BV4,0) -> 0 | O39: E kin. | P39: =((G21+G22)*POWER(E98,2))/2 -> 4.84737929
C40: M63-64 | D40: =IF(D13=63,MIN(K4:BU4),IF(D13=64,MIN(K4:BV4)," ")) ->  | F40: beta= | G40: =G26 -> 90 | R40: Angaben Stoßdämpferhersteller
F41: phi= | G41: =G39*G40/180 -> 1.570796327 | O41: E ges | P41: =P39+P37 -> 9.180301008 | R41: Max.Zyk/min | S41: =-((Eingabe4!O70-Eingabe4!O69)/V41)*(G21-V41)+Eingabe4!O69 -> 48.33333333 | U41: Jmax= | V41: =Eingabe4!O40 -> 0.05
F42: Omega= | G42: =SQRT(2*G38*G41) -> 163.1991181
F44: Ts= | G44: =G42/G38*I24 -> 0.03080009442
A45: Zurückdrehen
C49: Startwinkel | D49: =D9 -> 90 | J49: M= | K49: =IF($F14=TRUE,7.9,7.9+(9.81*$C3*($E3/1000)*K54)) -> 7.9 | L49: =IF($F14=TRUE,7.9,7.9+(9.81*$C3*($E3/1000)*L54)) -> 7.9 | M49: 7.9 | N49: 7.9 | O49: 7.9 | P49: 7.9 | Q49: 7.9 | R49: 7.9 | S49: 7.9 | T49: 7.9 | U49: 7.9 | V49: 7.9 | W49: 7.9 | X49: 7.9 | Y49: 7.9 | Z49: 7.9 | AA49: 7.9 | AB49: 7.9 | AC49: 7.9 | AD49: 7.9 | AE49: 7.9 | AF49: 7.9 | AG49: 7.9 | AH49: 7.9 | AI49: 7.9 | AJ49: 7.9 | AK49: 7.9 | AL49: 7.9 | AM49: 7.9 | AN49: 7.9 | AO49: 7.9 | AP49: 7.9 | AQ49: 7.9 | AR49: 7.9 | AS49: 7.9 | AT49: 7.9 | AU49: 7.9 | AV49: 7.9 | AW49: 7.9 | AX49: 7.9 | AY49: 7.9 | AZ49: 7.9 | BA49: 7.9 | BB49: 7.9 | BC49: 7.9 | BD49: 7.9 | BE49: 7.9 | BF49: 7.9 | BG49: 7.9 | BH49: 7.9 | BI49: 7.9 | BJ49: 7.9 | BK49: 7.9 | BL49: 7.9 | BM49: 7.9 | BN49: 7.9 | BO49: 7.9 | BP49: 7.9 | BQ49: 7.9 | BR49: 7.9 | BS49: 7.9 | BT49: 7.9 | BU49: 7.9 | BV49: 7.9
C50: sin Startpos | D50: =SIN((D49)*PI()/180) -> 1
C51: Schwenkw. | D51: =D8 -> 90 | J51: beta= | K51: =K6 -> 3 | L51: =K51 -> 3 | M51: 3 | N51: 3 | O51: 3 | P51: 3 | Q51: 3 | R51: 3 | S51: 3 | T51: 3 | U51: 3 | V51: 3 | W51: 3 | X51: 3 | Y51: 3 | Z51: 3 | AA51: 3 | AB51: 3 | AC51: 3 | AD51: 3 | AE51: 3 | AF51: 3 | AG51: 3 | AH51: 3 | AI51: 3 | AJ51: 3 | AK51: 3 | AL51: 3 | AM51: 3 | AN51: 3 | AO51: 3 | AP51: 3 | AQ51: 3 | AR51: =AQ51 -> 3 | AS51: 3 | AT51: 3 | AU51: 3 | AV51: 3 | AW51: 3 | AX51: 3 | AY51: 3 | AZ51: 3 | BA51: 3 | BB51: 3 | BC51: 3 | BD51: 3 | BE51: 3 | BF51: 3 | BG51: 3 | BH51: 3 | BI51: 3 | BJ51: 3 | BK51: 3 | BL51: 3 | BM51: 3 | BN51: 3 | BO51: 3 | BP51: 3 | BQ51: 3 | BR51: 3 | BS51: 3 | BT51: 3 | BU51: 3 | BV51: 3
C52: Endwinkel | D52: =IF(F16=TRUE,D49+D51,D49-D51) -> 0
C53: sin Endpos | D53: =SIN((D52)*PI()/180) -> 0 | J53: Startwinkel | K53: =D49 -> 90 | L53: =IF($F16=TRUE,K53+K51,K53-K51) -> 87 | M53: 84 | N53: 81 | O53: 78 | P53: 75 | Q53: 72 | R53: 69 | S53: 66 | T53: 63 | U53: 60 | V53: 57 | W53: 54 | X53: 51 | Y53: 48 | Z53: 45 | AA53: 42 | AB53: 39 | AC53: 36 | AD53: 33 | AE53: 30 | AF53: 27 | AG53: 24 | AH53: 21 | AI53: 18 | AJ53: 15 | AK53: 12 | AL53: 9 | AM53: 6 | AN53: 3 | AO53: 0 | AP53: -3 | AQ53: -6 | AR53: =IF($F16=TRUE,AQ53+AQ51,AQ53-AQ51) -> -9 | AS53: -12 | AT53: -15 | AU53: -18 | AV53: -21 | AW53: -24 | AX53: -27 | AY53: -30 | AZ53: -33 | BA53: -36 | BB53: -39 | BC53: -42 | BD53: -45 | BE53: -48 | BF53: -51 | BG53: -54 | BH53: -57 | BI53: -60 | BJ53: -63 | BK53: -66 | BL53: -69 | BM53: -72 | BN53: -75 | BO53: -78 | BP53: -81 | BQ53: -84 | BR53: -87 | BS53: -90 | BT53: -93 | BU53: -96 | BV53: -99
J54: sin | K54: =IF($F16=TRUE,SIN((K53)*PI()/180),-SIN((K53)*PI()/180)) -> -1 | L54: -0.9986295348 | M54: -0.9945218954 | N54: -0.9876883406 | O54: -0.9781476007 | P54: -0.9659258263 | Q54: -0.9510565163 | R54: -0.9335804265 | S54: -0.9135454576 | T54: -0.8910065242 | U54: -0.8660254038 | V54: -0.8386705679 | W54: -0.8090169944 | X54: -0.7771459615 | Y54: -0.7431448255 | Z54: -0.7071067812 | AA54: -0.6691306064 | AB54: -0.629320391 | AC54: -0.5877852523 | AD54: -0.544639035 | AE54: -0.5 | AF54: -0.4539904997 | AG54: -0.4067366431 | AH54: -0.3583679495 | AI54: -0.3090169944 | AJ54: -0.2588190451 | AK54: -0.2079116908 | AL54: -0.156434465 | AM54: -0.1045284633 | AN54: -0.05233595624 | AO54: 0 | AP54: 0.05233595624 | AQ54: =IF($F16=TRUE,SIN((AQ53)*PI()/180),-SIN((AQ53)*PI()/180)) -> 0.1045284633 | AR54: 0.156434465 | AS54: 0.2079116908 | AT54: 0.2588190451 | AU54: 0.3090169944 | AV54: 0.3583679495 | AW54: 0.4067366431 | AX54: 0.4539904997 | AY54: 0.5 | AZ54: 0.544639035 | BA54: 0.5877852523 | BB54: 0.629320391 | BC54: 0.6691306064 | BD54: 0.7071067812 | BE54: 0.7431448255 | BF54: 0.7771459615 | BG54: 0.8090169944 | BH54: 0.8386705679 | BI54: 0.8660254038 | BJ54: 0.8910065242 | BK54: 0.9135454576 | BL54: 0.9335804265 | BM54: 0.9510565163 | BN54: 0.9659258263 | BO54: 0.9781476007 | BP54: 0.9876883406 | BQ54: 0.9945218954 | BR54: 0.9986295348 | BS54: 1 | BT54: 0.9986295348 | BU54: 0.9945218954 | BV54: 0.9876883406
K56: 1 | L56: 2 | M56: 3 | N56: 4 | O56: 5 | P56: 6 | Q56: 7 | R56: 8 | S56: 9 | T56: 10 | U56: 11 | V56: 12 | W56: 13 | X56: 14 | Y56: 15 | Z56: 16 | AA56: 17 | AB56: 18 | AC56: 19 | AD56: 20 | AE56: 21 | AF56: 22 | AG56: 23 | AH56: 24 | AI56: 25 | AJ56: 26 | AK56: 27 | AL56: 28 | AM56: 29 | AN56: 30 | AO56: 31 | AP56: 32 | AQ56: 33 | AR56: 34 | AS56: 35 | AT56: 36 | AU56: 37 | AV56: 38 | AW56: 39 | AX56: 40 | AY56: 41 | AZ56: 42 | BA56: 43 | BB56: 44 | BC56: 45 | BD56: 46 | BE56: 47 | BF56: 48 | BG56: 49 | BH56: 50 | BI56: 51 | BJ56: 52 | BK56: 53 | BL56: 54 | BM56: 55 | BN56: 56 | BO56: 57 | BP56: 58 | BQ56: 59 | BR56: 60 | BS56: 61 | BT56: 62 | BU56: 63 | BV56: 64
A57: Mittelwert des Antriebsmoments über Schwenkbereich
C58: Mn= | D58: =MAX(D59:D67) -> 7.9 | F58: M= | G58: =D58 -> 7.9
C59: Mn1-7 | D59: =IF(D13=0,0,IF(D13=1,K63,IF(D13=2,L63,IF(D13=3,M63,IF(D13=4,N63,IF(D13=5,O63,IF(D13=6,P63,IF(D13=7,Q63,0)))))))) -> 0 | F59: J= | G59: =G21 -> 0
C60: Mn8-15 | D60: =IF(D13=8,R63,IF(D13=9,S63,IF(D13=10,T63,IF(D13=11,U63,IF(D13=12,V63,IF(D13=13,W63,IF(D13=14,X63,IF(D13=15,Y63,0)))))))) -> 0 | F60: JE= | G60: =G22 -> 0.000364
C61: Mn16-23 | D61: =IF(D13=16,Z63,IF(D13=17,AA63,IF(D13=18,AB63,IF(D13=19,AC63,IF(D13=20,AD63,IF(D13=21,AE63,IF(D13=22,AF63,IF(D13=23,AG63,0)))))))) -> 0 | F61: k= | G61: =G23 -> 1.6
C62: Mn24-31 | D62: =IF(D13=24,AH63,IF(D13=25,AI63,IF(D13=26,AJ63,IF(D13=27,AK63,IF(D13=28,AL63,IF(D13=29,AM63,IF(D13=30,AN63,IF(D13=31,AO63,0)))))))) -> 7.9 | F62: alpha= | G62: =G58/((G59+G60)*POWER(G61,2)) -> 8477.850275 | J62: Summe M | K62: =K49 -> 7.9 | L62: =K62+L49 -> 15.8 | M62: 23.7 | N62: 31.6 | O62: 39.5 | P62: 47.4 | Q62: 55.3 | R62: 63.2 | S62: 71.1 | T62: 79 | U62: 86.9 | V62: 94.8 | W62: 102.7 | X62: 110.6 | Y62: 118.5 | Z62: 126.4 | AA62: 134.3 | AB62: 142.2 | AC62: 150.1 | AD62: 158 | AE62: 165.9 | AF62: 173.8 | AG62: 181.7 | AH62: 189.6 | AI62: 197.5 | AJ62: 205.4 | AK62: 213.3 | AL62: 221.2 | AM62: 229.1 | AN62: 237 | AO62: 244.9 | AP62: 252.8 | AQ62: 260.7 | AR62: =AQ62+AR49 -> 268.6 | AS62: 276.5 | AT62: 284.4 | AU62: 292.3 | AV62: 300.2 | AW62: 308.1 | AX62: 316 | AY62: 323.9 | AZ62: 331.8 | BA62: 339.7 | BB62: 347.6 | BC62: 355.5 | BD62: 363.4 | BE62: 371.3 | BF62: 379.2 | BG62: 387.1 | BH62: 395 | BI62: 402.9 | BJ62: 410.8 | BK62: 418.7 | BL62: 426.6 | BM62: 434.5 | BN62: 442.4 | BO62: 450.3 | BP62: 458.2 | BQ62: 466.1 | BR62: 474 | BS62: 481.9 | BT62: 489.8 | BU62: 497.7 | BV62: 505.6
C63: Mn32-39 | D63: =IF(D13=32,AP63,IF(D13=33,AQ63,IF(D13=34,AR63,IF(D13=35,AS63,IF(D13=36,AT63,IF(D13=37,AU63,IF(D13=38,AV63,IF(D13=39,AW63,0)))))))) -> 0 | F63: PI= | G63: =PI() -> 3.141592654 | J63: Mittelwert Mm | K63: =K62/K56 -> 7.9 | L63: 7.9 | M63: 7.9 | N63: 7.9 | O63: 7.9 | P63: 7.9 | Q63: 7.9 | R63: 7.9 | S63: 7.9 | T63: 7.9 | U63: 7.9 | V63: 7.9 | W63: 7.9 | X63: 7.9 | Y63: 7.9 | Z63: 7.9 | AA63: 7.9 | AB63: 7.9 | AC63: 7.9 | AD63: 7.9 | AE63: 7.9 | AF63: 7.9 | AG63: 7.9 | AH63: 7.9 | AI63: 7.9 | AJ63: 7.9 | AK63: 7.9 | AL63: 7.9 | AM63: 7.9 | AN63: 7.9 | AO63: 7.9 | AP63: 7.9 | AQ63: =AQ62/AQ56 -> 7.9 | AR63: 7.9 | AS63: 7.9 | AT63: 7.9 | AU63: 7.9 | AV63: 7.9 | AW63: 7.9 | AX63: 7.9 | AY63: 7.9 | AZ63: 7.9 | BA63: 7.9 | BB63: 7.9 | BC63: 7.9 | BD63: 7.9 | BE63: 7.9 | BF63: 7.9 | BG63: 7.9 | BH63: 7.9 | BI63: 7.9 | BJ63: 7.9 | BK63: 7.9 | BL63: 7.9 | BM63: 7.9 | BN63: 7.9 | BO63: 7.9 | BP63: 7.9 | BQ63: 7.9 | BR63: 7.9 | BS63: 7.9 | BT63: 7.9 | BU63: 7.9 | BV63: 7.9
C64: Mn40-47 | D64: =IF(D13=40,AX63,IF(D13=41,AY63,IF(D13=42,AZ63,IF(D13=43,BA63,IF(D13=44,BB63,IF(D13=45,BC63,IF(D13=46,BD63,IF(D13=47,BE63,0)))))))) -> 0 | F64: beta= | G64: =D51 -> 90
C65: Mn48-55 | D65: =IF(D13=48,BF63,IF(D13=49,BG63,IF(D13=50,BH63,IF(D13=51,BI63,IF(D13=52,BJ63,IF(D13=53,BK63,IF(D13=54,BL63,IF(D13=55,BM63,0)))))))) -> 0 | F65: phi= | G65: =G63*G64/180 -> 1.570796327
C66: Mn56-63 | D66: =IF(D13=56,BN63,IF(D13=57,BO63,IF(D13=58,BP63,IF(D13=59,BQ63,IF(D13=60,BR63,IF(D13=61,BS63,IF(D13=62,BT63,IF(D13=63,BU63,0)))))))) -> 0 | F66: Omega= | G66: =SQRT(2*G62*G65) -> 163.1991181
C67: M64 | D67: =IF(D13=64,BV63,0) -> 0 | I67: Tsmax für Schwenkzeit vor:
F68: Ts= | G68: =G66/G62*I24 -> 0.03080009442 | I68: =MAX(G68,G82) -> 0.03080009442
I70: Omega min. für Ber. E kin.:
A71: Minimale Antriebsmoment im Schwenkbereich | F71: Werte für Drehachse vertikal | I71: =MIN(G66,G80) -> 163.1991181
C72: M min.= | D72: =MAX(D73:D82) -> 7.9 | F72: M= | G72: 7.9
C73: M1-6 | D73: =IF(D13=0,0,IF(D13=1,K49,IF(D13=2,MIN(K49:L49),IF(D13=3,MIN(K49:M49),IF(D13=4,MIN(K49:N49),IF(D13=5,MIN(K49:O49),IF(D13=6,MIN(K49:P49)," "))))))) ->  | F73: J= | G73: =G59 -> 0 | L73: Antriebsmoment in Endposition
C74: M7-13 | D74: =IF(D13=7,MIN(K49:Q49),IF(D13=8,MIN(K49:R49),IF(D13=9,MIN(K49:S49),IF(D13=10,MIN(K49:T49),IF(D13=11,MIN(K49:U49),IF(D13=12,MIN(K49:V49),IF(D13=13,MIN(K49:W49)," "))))))) ->  | F74: JE= | G74: =G60 -> 0.000364 | L74: für Energieberechnung | O74: Energieberechnung | Q74: Für Ber.
C75: M14-20 | D75: =IF(D13=14,MIN(K49:X49),IF(D13=15,MIN(K49:Y49),IF(D13=16,MIN(K49:Z49),IF(D13=17,MIN(K49:AA49),IF(D13=18,MIN(K49:AB49),IF(D13=19,MIN(K49:AC49),IF(D13=20,MIN(K49:AD49)," "))))))) ->  | F75: k= | G75: =G61 -> 1.6 | L75: M= | M75: =MAX(M76:M84) -> 7.9 | O75: M= | P75: =M75 -> 7.9 | Q75: v kolben
C76: M21-27 | D76: =IF(D13=21,MIN(K49:AE49),IF(D13=22,MIN(K49:AF49),IF(D13=23,MIN(K49:AG49),IF(D13=24,MIN(K49:AH49),IF(D13=25,MIN(K49:AI49),IF(D13=26,MIN(K49:AJ49),IF(D13=27,MIN(K49:AK49)," "))))))) ->  | F76: alpha= | G76: =G72/((G73+G74)*POWER(G75,2)) -> 8477.850275 | L76: M1-7 | M76: =IF(D13=0,0,IF(D13=1,K49,IF(D13=2,L49,IF(D13=3,M49,IF(D13=4,N49,IF(D13=5,O49,IF(D13=6,P49,IF(D13=7,Q49,0)))))))) -> 0 | O76: r= | P76: 0.027 | Q76: 0.018
C77: M28-34 | D77: =IF(D13=28,MIN(K49:AL49),IF(D13=29,MIN(K49:AM49),IF(D13=30,MIN(K49:AN49),IF(D13=31,MIN(K49:AO49),IF(D13=32,MIN(K49:AP49),IF(D13=33,MIN(K49:AQ49),IF(D13=34,MIN(K49:AR49)," "))))))) -> 7.9 | F77: PI= | G77: =PI() -> 3.141592654 | L77: M8-15 | M77: =IF(D13=8,R49,IF(D13=9,S49,IF(D13=10,T49,IF(D13=11,U49,IF(D13=12,V49,IF(D13=13,W49,IF(D13=14,X49,IF(D13=15,Y49,0)))))))) -> 0 | O77: s= | P77: ='Allgemeine Werte'!L36 -> 0.0095
C78: M35-41 | D78: =IF(D13=35,MIN(K49:AS49),IF(D13=36,MIN(K49:AT49),IF(D13=37,MIN(K49:AU49),IF(D13=38,MIN(K49:AV49),IF(D13=39,MIN(K49:AW49),IF(D13=40,MIN(K49:AX49),IF(D13=41,MIN(K49:AY49)," "))))))) ->  | F78: beta= | G78: =G64 -> 90 | L78: M16-23 | M78: =IF(D13=16,Z49,IF(D13=17,AA49,IF(D13=18,AB49,IF(D13=19,AC49,IF(D13=20,AD49,IF(D13=21,AE49,IF(D13=22,AF49,IF(D13=23,AG49,0)))))))) -> 0 | O78: E antrieb | P78: =P75*P77/P76 -> 2.77962963
C79: M42-48 | D79: =IF(D13=42,MIN(K49:AZ49),IF(D13=43,MIN(K49:BA49),IF(D13=44,MIN(K49:BB49),IF(D13=45,MIN(K49:BC49),IF(D13=46,MIN(K49:BD49),IF(D13=47,MIN(K49:BE49),IF(D13=48,MIN(K49:BF49)," "))))))) ->  | F79: phi= | G79: =G77*G78/180 -> 1.570796327 | L79: M24-31 | M79: =IF(D13=24,AH49,IF(D13=25,AI49,IF(D13=26,AJ49,IF(D13=27,AK49,IF(D13=28,AL49,IF(D13=29,AM49,IF(D13=30,AN49,IF(D13=31,AO49,0)))))))) -> 7.9 | O79: m kolben | P79: 0.18
C80: M49-55 | D80: =IF(D13=49,MIN(K49:BG49),IF(D13=50,MIN(K49:BH49),IF(D13=51,MIN(K49:BI49),IF(D13=52,MIN(K49:BJ49),IF(D13=53,MIN(K49:BK49),IF(D13=54,MIN(K49:BL49),IF(D13=55,MIN(K49:BM49)," "))))))) ->  | F80: Omega= | G80: =SQRT(2*G76*G79) -> 163.1991181 | L80: M32-39 | M80: =IF(D13=32,AP49,IF(D13=33,AQ49,IF(D13=34,AR49,IF(D13=35,AS49,IF(D13=36,AT49,IF(D13=37,AU49,IF(D13=38,AV49,IF(D13=39,AW49,0)))))))) -> 0 | O80: v kolben | P80: =I71*Q76 -> 2.937584125
C81: M56-62 | D81: =IF(D13=56,MIN(K49:BN49),IF(D13=57,MIN(K49:BO49),IF(D13=58,MIN(K49:BP49),IF(D13=59,MIN(K49:BQ49),IF(D13=60,MIN(K49:BR49),IF(D13=61,MIN(K49:BS49),IF(D13=62,MIN(K49:BT49)," "))))))) ->  | L81: M40-47 | M81: =IF(D13=40,AX49,IF(D13=41,AY49,IF(D13=42,AZ49,IF(D13=43,BA49,IF(D13=44,BB49,IF(D13=45,BC49,IF(D13=46,BD49,IF(D13=47,BE49,0)))))))) -> 0 | O81: E kin kolben | P81: =P79*2*POWER(P80,2)*0.5 -> 1.553292089
C82: M63-64 | D82: =IF(D13=63,MIN(K49:BU49),IF(D13=64,MIN(K49:BV49)," ")) ->  | F82: Ts= | G82: =G80/G76*I24 -> 0.03080009442 | L82: M48-55 | M82: =IF(D13=48,BF49,IF(D13=49,BG49,IF(D13=50,BH49,IF(D13=51,BI49,IF(D13=52,BJ49,IF(D13=53,BK49,IF(D13=54,BL49,IF(D13=55,BM49,0)))))))) -> 0 | O82: E antrieb kpl. | P82: =P78+P81 -> 4.332921719
L83: M56-63 | M83: =IF(D13=56,BN49,IF(D13=57,BO49,IF(D13=58,BP49,IF(D13=59,BQ49,IF(D13=60,BR49,IF(D13=61,BS49,IF(D13=62,BT49,IF(D13=63,BU49,0)))))))) -> 0
L84: M64 | M84: =IF(D13=64,BV49,0) -> 0 | O84: E kin. | P84: =((G59+G60)*POWER(N98,2))/2 -> 4.84737929
O86: E ges | P86: =P84+P82 -> 9.180301008
A90: Überprüfung der mechanischen Belastung
A92: Drehachse Vertikal | J92: Drehachse Horizontal
D93: Berechnung der dyn. Kraft | M93: Berechnung der dyn. Kraft
A94: Statische Belastung | D94: verursacht durch Masse m | G94: Dynamische Belastung | J94: Statische Belastung | M94: verursacht durch Masse m | P94: Dynamische Belastung
D95: ( Auch Drehen vor ) | M95: ( Zurückdrehen )
A96: Xs | B96: =A3/1000 -> 0 | D96: Omega | E96: =I33 -> 163.1991181 | G96: Z bis OK-Dr. | H96: 0.0195 | M96: Omega | N96: =I71 -> 163.1991181 | P96: Z bis OK-Dr. | Q96: =H96 -> 0.0195
A97: Ys | B97: =B3/1000 -> 0 | D97: Prozent | E97: =Eingabe4!M63 -> 1 | G97: Z | H97: =ABS(I97) -> 0.0195 | I97: =H96+B98 -> 0.0195 | M97: Prozent | N97: =E97 -> 1 | P97: Z | Q97: =H97 -> 0.0195
A98: Zs | B98: =Eingabe4!N12/1000 -> 0 | D98: Omega red. | E98: =E96*E97 -> 163.1991181 | G98: M2=Fdyn*Z | H98: =E109*H97 -> 0 | M98: Omega red. | N98: =N96*N97 -> 163.1991181 | P98: M2=Fdyn*Z | Q98: =Q109*Q97 -> 0
A99: R | B99: =SQRT(POWER(B96,2)+POWER(B97,2)) -> 0
A100: m | B100: =C3 -> 0 | D100: R | E100: =B99 -> 0 | G100: r | H100: 0.027 | M100: R | N100: =B99 -> 0 | P100: r | Q100: =H100 -> 0.027
A101: F | B101: =B100*9.81 -> 0 | D101: Omega | E101: =E98 -> 163.1991181 | J101: F | K101: =B101 -> 0 | M101: Omega | N101: =N98 -> 163.1991181
A102: M1=F*R | B102: =B101*B99 -> 0 | D102: v | E102: =E100*E101 -> 0 | G102: M3=Fdyn*(R-r) | H102: =E109*(B99-H100) -> 0 | J102: M1=F*Z | K102: =K101*H97 -> 0 | M102: v | N102: =N100*N101 -> 0 | P102: M3=Fdyn*(R-r) | Q102: =Q109*(B99-Q100) -> 0
D103: PI | E103: =PI() -> 3.141592654 | M103: PI | N103: =PI() -> 3.141592654
A104: M max | B104: 40 | D104: Aufprallwink. | E104: =DEGREES(ATAN('Allgemeine Werte'!P36/H100)) -> 13.26476471 | M104: Aufprallwink. | N104: =E104 -> 13.26476471
A105: F ax max | B105: 3400 | D105: s (Dämpfweg) | E105: =TAN(E104*E103/180)*E100 -> 0 | M105: s (Dämpfweg) | N105: =TAN(N104*N103/180)*N100 -> 0
A106: F rad max | B106: 1700 | D106: a | E106: =IF(E100=0,0,POWER(E102,2)/(2*E105)) -> 0 | M106: a | N106: =IF(N100=0,0,POWER(N102,2)/(2*N105)) -> 0
A107: M rad max | B107: =H100*B106 -> 45.9
D108: m | E108: =B100 -> 0 | M108: m | N108: =B100 -> 0
D109: Fdyn | E109: =E108*E106 -> 0 | M109: Fdyn | N109: =N108*N106 -> 0 | P109: F dyn max | Q109: =MAX(E109,N109) -> 0
A110: Belastung durch M antr. | J110: Belastung durch M antr.
A111: M antr. | B111: 0
B112: Antrieb verursacht kein Moment ! | D112: phi | E112: =G27 -> 1.570796327 | J112: M antr. Ende vor | K112: =M30 -> 7.9 | M112: phi | N112: =G65 -> 1.570796327
B113: daher =0 | D113: a | E113: =POWER(E98,2)/(2*E112) -> 8477.850275 | J113: M antr. Ende rück | K113: =M75 -> 7.9 | M113: a | N113: =POWER(N98,2)/(2*N112) -> 8477.850275
D114: t | E114: =E101/E113*I24 -> 0.03080009442 | J114: M antr. Ende max | K114: 0 | M114: t | N114: =N101/N113*I24 -> 0.03080009442
K115: siehe links = 0
A116: Belastungsgleichung: F/Faxmax + M1/Mmax + M2/Mmax = | J116: Belastungsgleichung: M1/Mmax + M2/Mmax =
A117: ( Axiallager stat + dyn. ) | D117: =B101/B105+B102/B104+H98/B104 -> 0 | J117: ( Axiallager stat + dyn. ) | M117: =K102/B104+Q98/B104 -> 0
A119: Belastungsgleichung: F/Faxmax + M1/Mmax = | J119: Belastungsgleichung: M1/Mmax + M2/Mmax =
A120: ( Axiallager stat ) | D120: =B101/B105+B102/B104 -> 0 | J120: ( Axiallager stat ) | M120: =K102/B104 -> 0
A122: Belastungsgleichung: M3/Mradmax + M antr./Mradmax = | J122: Belastungsgleichung: F/Fradmax + M3/Mradmax + M antr/Mradmax =
A123: ( Radiallager stat + dyn. ) | D123: =H102/B107+B111/B107 -> 0 | J123: ( Radiallager stat + dyn ) | M123: =K101/B106+Q102/B107+K114/B107 -> 0
A125: Belastungsgleichung: M antr./Mradmax = | J125: Belastungsgleichung: F/Fradmax + M antr./Mradmax =
A126: ( Radiallager stat ) | D126: =B111/B107 -> 0 | J126: ( Radiallager stat ) | M126: =K101/B106+K114/B107 -> 0
A128: Lagerbelastung Drehachse vertikal : | D128: =MAX(D117,D120,D123,D126) -> 0 | E128: Lagerbelastung: | G128: =IF(F14=TRUE,D128,M128) -> 0 | J128: Lagerbelastung Drehachse horizontal : | M128: =MAX(M117,M120,M123,M126) -> 0

Sheet BerRSTD134
A1: Drehen vor
A2: x | B2: y | C2: m | D2: x2*y2 | E2: R= | F2: sin | G2: grad
A3: =Eingabe4!N10 -> 0 | B3: =Eingabe4!N11 -> 0 | C3: =Eingabe4!N9 -> 0 | D3: =POWER(A3,2)+POWER(B3,2) -> 0 | E3: =SQRT(D3) -> 0 | F3: =IF(E3=0,0,A3/E3) -> 0 | G3: =ASIN(F3)*180/PI() -> 0
G4: =180-G3 -> 180 | J4: M= | K4: =IF($F14=TRUE,29.3,29.3+(9.81*$C3*($E3/1000)*K9)) -> 29.3 | L4: =IF($F14=TRUE,29.3,29.3+(9.81*$C3*($E3/1000)*L9)) -> 29.3 | M4: =IF($F14=TRUE,29.3,29.3+(9.81*$C3*($E3/1000)*M9)) -> 29.3 | N4: 29.3 | O4: 29.3 | P4: 29.3 | Q4: 29.3 | R4: 29.3 | S4: 29.3 | T4: 29.3 | U4: 29.3 | V4: 29.3 | W4: 29.3 | X4: 29.3 | Y4: 29.3 | Z4: 29.3 | AA4: 29.3 | AB4: 29.3 | AC4: 29.3 | AD4: 29.3 | AE4: 29.3 | AF4: 29.3 | AG4: 29.3 | AH4: 29.3 | AI4: 29.3 | AJ4: 29.3 | AK4: 29.3 | AL4: 29.3 | AM4: 29.3 | AN4: 29.3 | AO4: 29.3 | AP4: 29.3 | AQ4: 29.3 | AR4: 29.3 | AS4: 29.3 | AT4: 29.3 | AU4: 29.3 | AV4: 29.3 | AW4: 29.3 | AX4: 29.3 | AY4: 29.3 | AZ4: 29.3 | BA4: 29.3 | BB4: 29.3 | BC4: 29.3 | BD4: 29.3 | BE4: 29.3 | BF4: 29.3 | BG4: 29.3 | BH4: 29.3 | BI4: 29.3 | BJ4: 29.3 | BK4: 29.3 | BL4: 29.3 | BM4: 29.3 | BN4: 29.3 | BO4: 29.3 | BP4: 29.3 | BQ4: 29.3 | BR4: 29.3 | BS4: 29.3 | BT4: 29.3 | BU4: 29.3 | BV4: 29.3
G5: =360+G3 -> 360
C6: Startwinkel | D6: =IF(AND(A3>=0,B3>=0),G3,IF(AND(A3>=0,B3<0),G4,IF(AND(A3<0,B3<0),G4,IF(AND(A3<0,B3>=0),G5,0)))) -> 0 | J6: beta= | K6: 3 | L6: =K6 -> 3 | M6: 3 | N6: 3 | O6: 3 | P6: 3 | Q6: 3 | R6: 3 | S6: 3 | T6: 3 | U6: 3 | V6: 3 | W6: 3 | X6: 3 | Y6: 3 | Z6: 3 | AA6: 3 | AB6: 3 | AC6: 3 | AD6: 3 | AE6: 3 | AF6: 3 | AG6: 3 | AH6: 3 | AI6: 3 | AJ6: 3 | AK6: 3 | AL6: 3 | AM6: 3 | AN6: 3 | AO6: 3 | AP6: 3 | AQ6: 3 | AR6: =AQ6 -> 3 | AS6: 3 | AT6: 3 | AU6: 3 | AV6: 3 | AW6: 3 | AX6: 3 | AY6: 3 | AZ6: 3 | BA6: 3 | BB6: 3 | BC6: 3 | BD6: 3 | BE6: 3 | BF6: 3 | BG6: 3 | BH6: 3 | BI6: 3 | BJ6: 3 | BK6: 3 | BL6: 3 | BM6: 3 | BN6: 3 | BO6: 3 | BP6: 3 | BQ6: 3 | BR6: 3 | BS6: 3 | BT6: 3 | BU6: 3 | BV6: 3
B7: Teilung | C7: sin Startpos | D7: =SIN((D6)*PI()/180) -> 0
B8: =Eingabe4!M19 -> 4 | C8: Schwenkw. | D8: =IF(B8=4,90,IF(B8=6,60,IF(B8=8,45,IF(B8=12,30,22.5)))) -> 90 | J8: Startwinkel | K8: =D6 -> 0 | L8: =IF($F16=TRUE,K8-K6,K8+K6) -> 3 | M8: 6 | N8: 9 | O8: 12 | P8: 15 | Q8: 18 | R8: 21 | S8: 24 | T8: 27 | U8: 30 | V8: 33 | W8: 36 | X8: 39 | Y8: 42 | Z8: 45 | AA8: 48 | AB8: 51 | AC8: 54 | AD8: 57 | AE8: 60 | AF8: 63 | AG8: 66 | AH8: 69 | AI8: 72 | AJ8: 75 | AK8: 78 | AL8: 81 | AM8: 84 | AN8: 87 | AO8: 90 | AP8: 93 | AQ8: 96 | AR8: =IF($F16=TRUE,AQ8-AQ6,AQ8+AQ6) -> 99 | AS8: 102 | AT8: 105 | AU8: 108 | AV8: 111 | AW8: 114 | AX8: 117 | AY8: 120 | AZ8: 123 | BA8: 126 | BB8: 129 | BC8: 132 | BD8: 135 | BE8: 138 | BF8: 141 | BG8: 144 | BH8: 147 | BI8: 150 | BJ8: 153 | BK8: 156 | BL8: 159 | BM8: 162 | BN8: 165 | BO8: 168 | BP8: 171 | BQ8: 174 | BR8: 177 | BS8: 180 | BT8: 183 | BU8: 186 | BV8: 189
C9: Endwinkel | D9: =IF(F16=TRUE,D6-D8,D6+D8) -> 90 | F9: Modulabhängige Zellen | J9: sin | K9: =IF($F16=TRUE,-SIN((K8)*PI()/180),SIN((K8)*PI()/180)) -> 0 | L9: 0.05233595624 | M9: 0.1045284633 | N9: 0.156434465 | O9: 0.2079116908 | P9: 0.2588190451 | Q9: 0.3090169944 | R9: 0.3583679495 | S9: 0.4067366431 | T9: 0.4539904997 | U9: 0.5 | V9: 0.544639035 | W9: 0.5877852523 | X9: 0.629320391 | Y9: 0.6691306064 | Z9: 0.7071067812 | AA9: 0.7431448255 | AB9: 0.7771459615 | AC9: 0.8090169944 | AD9: 0.8386705679 | AE9: 0.8660254038 | AF9: 0.8910065242 | AG9: 0.9135454576 | AH9: 0.9335804265 | AI9: 0.9510565163 | AJ9: 0.9659258263 | AK9: 0.9781476007 | AL9: 0.9876883406 | AM9: 0.9945218954 | AN9: 0.9986295348 | AO9: 1 | AP9: 0.9986295348 | AQ9: =IF($F16=TRUE,-SIN((AQ8)*PI()/180),SIN((AQ8)*PI()/180)) -> 0.9945218954 | AR9: 0.9876883406 | AS9: 0.9781476007 | AT9: 0.9659258263 | AU9: 0.9510565163 | AV9: 0.9335804265 | AW9: 0.9135454576 | AX9: 0.8910065242 | AY9: 0.8660254038 | AZ9: 0.8386705679 | BA9: 0.8090169944 | BB9: 0.7771459615 | BC9: 0.7431448255 | BD9: 0.7071067812 | BE9: 0.6691306064 | BF9: 0.629320391 | BG9: 0.5877852523 | BH9: 0.544639035 | BI9: 0.5 | BJ9: 0.4539904997 | BK9: 0.4067366431 | BL9: 0.3583679495 | BM9: 0.3090169944 | BN9: 0.2588190451 | BO9: 0.2079116908 | BP9: 0.156434465 | BQ9: 0.1045284633 | BR9: 0.05233595624 | BS9: 1.225148455e-16 | BT9: -0.05233595624 | BU9: -0.1045284633 | BV9: -0.156434465
C10: sin Endpos | D10: =SIN((D9)*PI()/180) -> 1
F11: Werte aus Eingabeseite | K11: 1 | L11: 2 | M11: 3 | N11: 4 | O11: 5 | P11: 6 | Q11: 7 | R11: 8 | S11: 9 | T11: 10 | U11: 11 | V11: 12 | W11: 13 | X11: 14 | Y11: 15 | Z11: 16 | AA11: 17 | AB11: 18 | AC11: 19 | AD11: 20 | AE11: 21 | AF11: 22 | AG11: 23 | AH11: 24 | AI11: 25 | AJ11: 26 | AK11: 27 | AL11: 28 | AM11: 29 | AN11: 30 | AO11: 31 | AP11: 32 | AQ11: 33 | AR11: 34 | AS11: 35 | AT11: 36 | AU11: 37 | AV11: 38 | AW11: 39 | AX11: 40 | AY11: 41 | AZ11: 42 | BA11: 43 | BB11: 44 | BC11: 45 | BD11: 46 | BE11: 47 | BF11: 48 | BG11: 49 | BH11: 50 | BI11: 51 | BJ11: 52 | BK11: 53 | BL11: 54 | BM11: 55 | BN11: 56 | BO11: 57 | BP11: 58 | BQ11: 59 | BR11: 60 | BS11: 61 | BT11: 62 | BU11: 63 | BV11: 64
D12: =D8/K6 -> 30
D13: =ROUNDUP(D12,0) -> 30
F14: =IF(Eingabe4!C41=TRUE,FALSE,TRUE) -> TRUE | G14: Horizontaler Aufbau | J14: Summe M | K14: =K4 -> 29.3 | L14: =K14+L4 -> 58.6 | M14: 87.9 | N14: 117.2 | O14: 146.5 | P14: 175.8 | Q14: 205.1 | R14: 234.4 | S14: 263.7 | T14: 293 | U14: 322.3 | V14: 351.6 | W14: 380.9 | X14: 410.2 | Y14: 439.5 | Z14: 468.8 | AA14: 498.1 | AB14: 527.4 | AC14: 556.7 | AD14: 586 | AE14: 615.3 | AF14: 644.6 | AG14: 673.9 | AH14: 703.2 | AI14: 732.5 | AJ14: 761.8 | AK14: 791.1 | AL14: 820.4 | AM14: 849.7 | AN14: 879 | AO14: 908.3 | AP14: 937.6 | AQ14: 966.9 | AR14: =AQ14+AR4 -> 996.2 | AS14: 1025.5 | AT14: 1054.8 | AU14: 1084.1 | AV14: 1113.4 | AW14: 1142.7 | AX14: 1172 | AY14: 1201.3 | AZ14: 1230.6 | BA14: 1259.9 | BB14: 1289.2 | BC14: 1318.5 | BD14: 1347.8 | BE14: 1377.1 | BF14: 1406.4 | BG14: 1435.7 | BH14: 1465 | BI14: 1494.3 | BJ14: 1523.6 | BK14: 1552.9 | BL14: 1582.2 | BM14: 1611.5 | BN14: 1640.8 | BO14: 1670.1 | BP14: 1699.4 | BQ14: 1728.7 | BR14: 1758 | BS14: 1787.3 | BT14: 1816.6 | BU14: 1845.9 | BV14: 1875.2
J15: Mittelwert Mm | K15: =K14/K11 -> 29.3 | L15: 29.3 | M15: 29.3 | N15: 29.3 | O15: 29.3 | P15: 29.3 | Q15: 29.3 | R15: 29.3 | S15: 29.3 | T15: 29.3 | U15: 29.3 | V15: 29.3 | W15: 29.3 | X15: 29.3 | Y15: 29.3 | Z15: 29.3 | AA15: 29.3 | AB15: 29.3 | AC15: 29.3 | AD15: 29.3 | AE15: 29.3 | AF15: 29.3 | AG15: 29.3 | AH15: 29.3 | AI15: 29.3 | AJ15: 29.3 | AK15: 29.3 | AL15: 29.3 | AM15: 29.3 | AN15: 29.3 | AO15: 29.3 | AP15: 29.3 | AQ15: =AQ14/AQ11 -> 29.3 | AR15: 29.3 | AS15: 29.3 | AT15: 29.3 | AU15: 29.3 | AV15: 29.3 | AW15: 29.3 | AX15: 29.3 | AY15: 29.3 | AZ15: 29.3 | BA15: 29.3 | BB15: 29.3 | BC15: 29.3 | BD15: 29.3 | BE15: 29.3 | BF15: 29.3 | BG15: 29.3 | BH15: 29.3 | BI15: 29.3 | BJ15: 29.3 | BK15: 29.3 | BL15: 29.3 | BM15: 29.3 | BN15: 29.3 | BO15: 29.3 | BP15: 29.3 | BQ15: 29.3 | BR15: 29.3 | BS15: 29.3 | BT15: 29.3 | BU15: 29.3 | BV15: 29.3
A16: Mittelwert des Antriebsmoments über Schwenkbereich | F16: =IF(Eingabe4!C42=TRUE,TRUE,FALSE) -> FALSE | G16: Drehen im/gegen Uhrzeigersinn
C17: Mn= | D17: =MAX(D18:D26) -> 29.3 | O17: Gerundete Werte+Korrekturfaktoren | U17: Schwenkzeitkorrektur von J=0 bis J= | X17: =IF(AND(B8=8,B8=12),0.03,0.015) -> 0.015 | Z17: Schwenkzeitkorr. von J1= | AB17: 0.3
C18: Mn1-7 | D18: =IF(D13=0,0,IF(D13=1,K15,IF(D13=2,L15,IF(D13=3,M15,IF(D13=4,N15,IF(D13=5,O15,IF(D13=6,P15,IF(D13=7,Q15,0)))))))) -> 0 | K18: Schwenkzeit vor | N18: =E114 -> 0.02917037121 | O18: =ROUND(N18+U22+U26+Z23,2) -> 0.24 | P18: Zykluszeit | Q18: =O18+U34+2*U36+U38 -> 0.79 | R18: Zyklen/min | S18: =60/Q18 -> 75.94936709 | U18: Korrekturfaktor bei J=0 : | X18: =IF(AND(B8=12,B8=16),0.02,0.03) -> 0.03 | AA18: bis J2= | AB18: 0.6
C19: Mn8-15 | D19: =IF(D13=8,R15,IF(D13=9,S15,IF(D13=10,T15,IF(D13=11,U15,IF(D13=12,V15,IF(D13=13,W15,IF(D13=14,X15,IF(D13=15,Y15,0)))))))) -> 0 | K19: Schwenkzeit zurück | N19: =N114 -> 0.02917037121 | O19: =ROUND(N19+U22+U26+Z23,2) -> 0.24 | U19: bis J= siehe oben ! (Gerade) : | X19: 0 | Z19: Zeitkorr. Bei J1= | AB19: 0
C20: Mn16-23 | D20: =IF(D13=16,Z15,IF(D13=17,AA15,IF(D13=18,AB15,IF(D13=19,AC15,IF(D13=20,AD15,IF(D13=21,AE15,IF(D13=22,AF15,IF(D13=23,AG15,0)))))))) -> 0 | F20: M= | G20: =D17 -> 29.3 | U20: ( Faktor wird in diesem J-Bereich zur berechneten Zeit addiert ! ) | Z20: Zeitkorr. Bei J2= | AB20: =IF(B8=4,0.14,IF(B8=6,0.08,IF(B8=8,0.05,0))) -> 0.14
C21: Mn24-31 | D21: =IF(D13=24,AH15,IF(D13=25,AI15,IF(D13=26,AJ15,IF(D13=27,AK15,IF(D13=28,AL15,IF(D13=29,AM15,IF(D13=30,AN15,IF(D13=31,AO15,0)))))))) -> 29.3 | F21: J= | G21: =Eingabe4!N8 -> 0 | K21: Mmin im Schwenkbereich vor | N21: =D30 -> 29.3 | O21: Mmin | P21: =MIN(N21:N22) -> 29.3 | R21: M-Mmin/M | S21: =(29.3-P21)/29.3 -> 0 | U21: =-(X18/X17)*(G21-X17) -> 0.03 | V21: ( Korrektur im untersten Bereich ) | Z21: Folgender Wert wird zur berechneten Zeit addiert:
C22: Mn32-39 | D22: =IF(D13=32,AP15,IF(D13=33,AQ15,IF(D13=34,AR15,IF(D13=35,AS15,IF(D13=36,AT15,IF(D13=37,AU15,IF(D13=38,AV15,IF(D13=39,AW15,0)))))))) -> 0 | F22: JE= | G22: 0.0031 | K22: Mmin im Schwenkbereich zurück | N22: =D72 -> 29.3 | U22: =IF(G21>=X17,0,U21) -> 0.03 | Z22: =((AB20-AB19)/(AB18-AB17))*(G21-AB17) -> -0.14 | AA22: (Gerade) | AB22: (Korrektur im oberen Bereich )
C23: Mn40-47 | D23: =IF(D13=40,AX15,IF(D13=41,AY15,IF(D13=42,AZ15,IF(D13=43,BA15,IF(D13=44,BB15,IF(D13=45,BC15,IF(D13=46,BD15,IF(D13=47,BE15,0)))))))) -> 0 | F23: k= | G23: 1.6 | H23: K-Wert in Ts eingearbeitet ! | Z23: =IF(G21>AB17,Z22,0) -> 0
C24: Mn48-55 | D24: =IF(D13=48,BF15,IF(D13=49,BG15,IF(D13=50,BH15,IF(D13=51,BI15,IF(D13=52,BJ15,IF(D13=53,BK15,IF(D13=54,BL15,IF(D13=55,BM15,0)))))))) -> 0 | F24: alpha= | G24: =G20/((G21+G22)*POWER(G23,2)) -> 3692.03629 | H24: K= | I24: ='Allgemeine Werte'!Q38 -> 1 | K24: E ges vor | N24: =P41 -> 36.66535489 | O24: E ges max | P24: =MAX(N24:N25) -> 36.66535489 | R24: E zul/Hub | S24: ='Allgemeine Werte'!G38 -> 100 | U24: Schwenkzeitkorrektur gem. Schunkmessungen
C25: Mn56-63 | D25: =IF(D13=56,BN15,IF(D13=57,BO15,IF(D13=58,BP15,IF(D13=59,BQ15,IF(D13=60,BR15,IF(D13=61,BS15,IF(D13=62,BT15,IF(D13=63,BU15,0)))))))) -> 0 | F25: PI= | G25: =PI() -> 3.141592654 | K25: E ges zurück | N25: =P86 -> 36.66535489 | U25: (Zeit wird zu Schwenkzeiten (O18,O19) addiert)
C26: Mn64 | D26: =IF(D13=64,BV15,0) -> 0 | F26: beta= | G26: =D8 -> 90 | R26: E ges/E zul | S26: =P24/S24 -> 0.3666535489 | U26: =IF(B8=4,0.18,IF(B8=6,0.14,IF(B8=8,0.11,IF(B8=12,0.09,0.06)))) -> 0.18 | V26: ( Verschiebung der urspr. Kurve )
F27: phi= | G27: =G25*G26/180 -> 1.570796327
F28: Omega= | G28: =SQRT(2*G24*G27) -> 107.6980691 | L28: Antriebsmoment in Endposition | R28: Ezul/h | S28: ='Allgemeine Werte'!H38 -> 76500
A29: Minimale Antriebsmoment im Schwenkbereich | I29: Tsmax für Schwenkzeit vor: | L29: für Energieberechnung | O29: Energieberechnung | Q29: Für Ber.
C30: M min.= | D30: =MAX(D31:D40) -> 29.3 | F30: Ts= | G30: =G28/G24*I24 -> 0.02917037121 | I30: =MAX(G30,G44) -> 0.02917037121 | L30: M= | M30: =MAX(M31:M39) -> 29.3 | O30: M= | P30: =M30 -> 29.3 | Q30: v kolben | R30: Zyklen/min | S30: =(S28/60)/P24 -> 34.77397134
C31: M1-6 | D31: =IF(D13=0,0,IF(D13=1,K4,IF(D13=2,MIN(K4:L4),IF(D13=3,MIN(K4:M4),IF(D13=4,MIN(K4:N4),IF(D13=5,MIN(K4:O4),IF(D13=6,MIN(K4:P4)," "))))))) ->  | L31: M1-7 | M31: =IF(D13=0,0,IF(D13=1,K4,IF(D13=2,L4,IF(D13=3,M4,IF(D13=4,N4,IF(D13=5,O4,IF(D13=6,P4,IF(D13=7,Q4,0)))))))) -> 0 | O31: r= | P31: 0.044 | Q31: 0.03
C32: M7-13 | D32: =IF(D13=7,MIN(K4:Q4),IF(D13=8,MIN(K4:R4),IF(D13=9,MIN(K4:S4),IF(D13=10,MIN(K4:T4),IF(D13=11,MIN(K4:U4),IF(D13=12,MIN(K4:V4),IF(D13=13,MIN(K4:W4)," "))))))) ->  | I32: Omega min. für Ber. E kin.: | L32: M8-15 | M32: =IF(D13=8,R4,IF(D13=9,S4,IF(D13=10,T4,IF(D13=11,U4,IF(D13=12,V4,IF(D13=13,W4,IF(D13=14,X4,IF(D13=15,Y4,0)))))))) -> 0 | O32: s= | P32: ='Allgemeine Werte'!L38 -> 0.0185 | Q32: (do/2) | S32: =MIN(S18,S30,S37,S41) -> 33.33333333
C33: M14-20 | D33: =IF(D13=14,MIN(K4:X4),IF(D13=15,MIN(K4:Y4),IF(D13=16,MIN(K4:Z4),IF(D13=17,MIN(K4:AA4),IF(D13=18,MIN(K4:AB4),IF(D13=19,MIN(K4:AC4),IF(D13=20,MIN(K4:AD4)," "))))))) ->  | F33: Werte für Drehachse vertikal | I33: =MIN(G28,G42) -> 107.6980691 | L33: M16-23 | M33: =IF(D13=16,Z4,IF(D13=17,AA4,IF(D13=18,AB4,IF(D13=19,AC4,IF(D13=20,AD4,IF(D13=21,AE4,IF(D13=22,AF4,IF(D13=23,AG4,0)))))))) -> 0 | O33: E antrieb | P33: =P30*P32/P31 -> 12.31931818 | R33: Zykl.min./min | S33: =ROUNDDOWN(S32,0) -> 33 | U33: Kolbenrückfahrzeit
C34: M21-27 | D34: =IF(D13=21,MIN(K4:AE4),IF(D13=22,MIN(K4:AF4),IF(D13=23,MIN(K4:AG4),IF(D13=24,MIN(K4:AH4),IF(D13=25,MIN(K4:AI4),IF(D13=26,MIN(K4:AJ4),IF(D13=27,MIN(K4:AK4)," "))))))) ->  | F34: M= | G34: 29.3 | L34: M24-31 | M34: =IF(D13=24,AH4,IF(D13=25,AI4,IF(D13=26,AJ4,IF(D13=27,AK4,IF(D13=28,AL4,IF(D13=29,AM4,IF(D13=30,AN4,IF(D13=31,AO4,0)))))))) -> 29.3 | O34: m kolben | P34: 0.61 | U34: 0.2
C35: M28-34 | D35: =IF(D13=28,MIN(K4:AL4),IF(D13=29,MIN(K4:AM4),IF(D13=30,MIN(K4:AN4),IF(D13=31,MIN(K4:AO4),IF(D13=32,MIN(K4:AP4),IF(D13=33,MIN(K4:AQ4),IF(D13=34,MIN(K4:AR4)," "))))))) -> 29.3 | F35: J= | G35: =G21 -> 0 | L35: M32-39 | M35: =IF(D13=32,AP4,IF(D13=33,AQ4,IF(D13=34,AR4,IF(D13=35,AS4,IF(D13=36,AT4,IF(D13=37,AU4,IF(D13=38,AV4,IF(D13=39,AW4,0)))))))) -> 0 | O35: v kolben | P35: =I33*Q31 -> 3.230942073 | R35: Stoßd.-kolbenrückstellzeit | U35: Ver-, Entriegelungszeit
C36: M35-41 | D36: =IF(D13=35,MIN(K4:AS4),IF(D13=36,MIN(K4:AT4),IF(D13=37,MIN(K4:AU4),IF(D13=38,MIN(K4:AV4),IF(D13=39,MIN(K4:AW4),IF(D13=40,MIN(K4:AX4),IF(D13=41,MIN(K4:AY4)," "))))))) ->  | F36: JE= | G36: =G22 -> 0.0031 | L36: M40-47 | M36: =IF(D13=40,AX4,IF(D13=41,AY4,IF(D13=42,AZ4,IF(D13=43,BA4,IF(D13=44,BB4,IF(D13=45,BC4,IF(D13=46,BD4,IF(D13=47,BE4,0)))))))) -> 0 | O36: E kin kolben | P36: =P34*2*POWER(P35,2)*0.5 -> 6.367781873 | S36: ='Allgemeine Werte'!E38 -> 0.5 | U36: 0.1
C37: M42-48 | D37: =IF(D13=42,MIN(K4:AZ4),IF(D13=43,MIN(K4:BA4),IF(D13=44,MIN(K4:BB4),IF(D13=45,MIN(K4:BC4),IF(D13=46,MIN(K4:BD4),IF(D13=47,MIN(K4:BE4),IF(D13=48,MIN(K4:BF4)," "))))))) ->  | F37: k= | G37: =G23 -> 1.6 | L37: M48-55 | M37: =IF(D13=48,BF4,IF(D13=49,BG4,IF(D13=50,BH4,IF(D13=51,BI4,IF(D13=52,BJ4,IF(D13=53,BK4,IF(D13=54,BL4,IF(D13=55,BM4,0)))))))) -> 0 | O37: E antrieb kpl. | P37: =P33+P36 -> 18.68710006 | R37: Max.Zyk/min | S37: =60/S36 -> 120 | U37: Ausgleichszeit (Kolbenbelüftung,Losfahren) | Y37: min. | Z37: max.
C38: M49-55 | D38: =IF(D13=49,MIN(K4:BG4),IF(D13=50,MIN(K4:BH4),IF(D13=51,MIN(K4:BI4),IF(D13=52,MIN(K4:BJ4),IF(D13=53,MIN(K4:BK4),IF(D13=54,MIN(K4:BL4),IF(D13=55,MIN(K4:BM4)," "))))))) ->  | F38: alpha= | G38: =G34/((G35+G36)*POWER(G37,2)) -> 3692.03629 | L38: M56-63 | M38: =IF(D13=56,BN4,IF(D13=57,BO4,IF(D13=58,BP4,IF(D13=59,BQ4,IF(D13=60,BR4,IF(D13=61,BS4,IF(D13=62,BT4,IF(D13=63,BU4,0)))))))) -> 0 | U38: =(Z38-Y38)/V41*G21+Y38 -> 0.15 | Y38: 0.15 | Z38: 0.3
C39: M56-62 | D39: =IF(D13=56,MIN(K4:BN4),IF(D13=57,MIN(K4:BO4),IF(D13=58,MIN(K4:BP4),IF(D13=59,MIN(K4:BQ4),IF(D13=60,MIN(K4:BR4),IF(D13=61,MIN(K4:BS4),IF(D13=62,MIN(K4:BT4)," "))))))) ->  | F39: PI= | G39: =PI() -> 3.141592654 | L39: M64 | M39: =IF(D13=64,BV4,0) -> 0 | O39: E kin. | P39: =((G21+G22)*POWER(E98,2))/2 -> 17.97825483
C40: M63-64 | D40: =IF(D13=63,MIN(K4:BU4),IF(D13=64,MIN(K4:BV4)," ")) ->  | F40: beta= | G40: =G26 -> 90 | R40: Angaben Stoßdämpferhersteller
F41: phi= | G41: =G39*G40/180 -> 1.570796327 | O41: E ges | P41: =P39+P37 -> 36.66535489 | R41: Max.Zyk/min | S41: =-((Eingabe4!Q70-Eingabe4!Q69)/V41)*(G21-V41)+Eingabe4!Q69 -> 33.33333333 | U41: Jmax= | V41: =Eingabe4!Q40 -> 0.6
F42: Omega= | G42: =SQRT(2*G38*G41) -> 107.6980691
F44: Ts= | G44: =G42/G38*I24 -> 0.02917037121
A45: Zurückdrehen
C49: Startwinkel | D49: =D9 -> 90 | J49: M= | K49: =IF($F14=TRUE,29.3,29.3+(9.81*$C3*($E3/1000)*K54)) -> 29.3 | L49: =IF($F14=TRUE,29.3,29.3+(9.81*$C3*($E3/1000)*L54)) -> 29.3 | M49: 29.3 | N49: 29.3 | O49: 29.3 | P49: 29.3 | Q49: 29.3 | R49: 29.3 | S49: 29.3 | T49: 29.3 | U49: 29.3 | V49: 29.3 | W49: 29.3 | X49: 29.3 | Y49: 29.3 | Z49: 29.3 | AA49: 29.3 | AB49: 29.3 | AC49: 29.3 | AD49: 29.3 | AE49: 29.3 | AF49: 29.3 | AG49: 29.3 | AH49: 29.3 | AI49: 29.3 | AJ49: 29.3 | AK49: 29.3 | AL49: 29.3 | AM49: 29.3 | AN49: 29.3 | AO49: 29.3 | AP49: 29.3 | AQ49: 29.3 | AR49: 29.3 | AS49: 29.3 | AT49: 29.3 | AU49: 29.3 | AV49: 29.3 | AW49: 29.3 | AX49: 29.3 | AY49: 29.3 | AZ49: 29.3 | BA49: 29.3 | BB49: 29.3 | BC49: 29.3 | BD49: 29.3 | BE49: 29.3 | BF49: 29.3 | BG49: 29.3 | BH49: 29.3 | BI49: 29.3 | BJ49: 29.3 | BK49: 29.3 | BL49: 29.3 | BM49: 29.3 | BN49: 29.3 | BO49: 29.3 | BP49: 29.3 | BQ49: 29.3 | BR49: 29.3 | BS49: 29.3 | BT49: 29.3 | BU49: 29.3 | BV49: 29.3
C50: sin Startpos | D50: =SIN((D49)*PI()/180) -> 1
C51: Schwenkw. | D51: =D8 -> 90 | J51: beta= | K51: =K6 -> 3 | L51: =K51 -> 3 | M51: 3 | N51: 3 | O51: 3 | P51: 3 | Q51: 3 | R51: 3 | S51: 3 | T51: 3 | U51: 3 | V51: 3 | W51: 3 | X51: 3 | Y51: 3 | Z51: 3 | AA51: 3 | AB51: 3 | AC51: 3 | AD51: 3 | AE51: 3 | AF51: 3 | AG51: 3 | AH51: 3 | AI51: 3 | AJ51: 3 | AK51: 3 | AL51: 3 | AM51: 3 | AN51: 3 | AO51: 3 | AP51: 3 | AQ51: 3 | AR51: =AQ51 -> 3 | AS51: 3 | AT51: 3 | AU51: 3 | AV51: 3 | AW51: 3 | AX51: 3 | AY51: 3 | AZ51: 3 | BA51: 3 | BB51: 3 | BC51: 3 | BD51: 3 | BE51: 3 | BF51: 3 | BG51: 3 | BH51: 3 | BI51: 3 | BJ51: 3 | BK51: 3 | BL51: 3 | BM51: 3 | BN51: 3 | BO51: 3 | BP51: 3 | BQ51: 3 | BR51: 3 | BS51: 3 | BT51: 3 | BU51: 3 | BV51: 3
C52: Endwinkel | D52: =IF(F16=TRUE,D49+D51,D49-D51) -> 0
C53: sin Endpos | D53: =SIN((D52)*PI()/180) -> 0 | J53: Startwinkel | K53: =D49 -> 90 | L53: =IF($F16=TRUE,K53+K51,K53-K51) -> 87 | M53: 84 | N53: 81 | O53: 78 | P53: 75 | Q53: 72 | R53: 69 | S53: 66 | T53: 63 | U53: 60 | V53: 57 | W53: 54 | X53: 51 | Y53: 48 | Z53: 45 | AA53: 42 | AB53: 39 | AC53: 36 | AD53: 33 | AE53: 30 | AF53: 27 | AG53: 24 | AH53: 21 | AI53: 18 | AJ53: 15 | AK53: 12 | AL53: 9 | AM53: 6 | AN53: 3 | AO53: 0 | AP53: -3 | AQ53: -6 | AR53: =IF($F16=TRUE,AQ53+AQ51,AQ53-AQ51) -> -9 | AS53: -12 | AT53: -15 | AU53: -18 | AV53: -21 | AW53: -24 | AX53: -27 | AY53: -30 | AZ53: -33 | BA53: -36 | BB53: -39 | BC53: -42 | BD53: -45 | BE53: -48 | BF53: -51 | BG53: -54 | BH53: -57 | BI53: -60 | BJ53: -63 | BK53: -66 | BL53: -69 | BM53: -72 | BN53: -75 | BO53: -78 | BP53: -81 | BQ53: -84 | BR53: -87 | BS53: -90 | BT53: -93 | BU53: -96 | BV53: -99
J54: sin | K54: =IF($F16=TRUE,SIN((K53)*PI()/180),-SIN((K53)*PI()/180)) -> -1 | L54: -0.9986295348 | M54: -0.9945218954 | N54: -0.9876883406 | O54: -0.9781476007 | P54: -0.9659258263 | Q54: -0.9510565163 | R54: -0.9335804265 | S54: -0.9135454576 | T54: -0.8910065242 | U54: -0.8660254038 | V54: -0.8386705679 | W54: -0.8090169944 | X54: -0.7771459615 | Y54: -0.7431448255 | Z54: -0.7071067812 | AA54: -0.6691306064 | AB54: -0.629320391 | AC54: -0.5877852523 | AD54: -0.544639035 | AE54: -0.5 | AF54: -0.4539904997 | AG54: -0.4067366431 | AH54: -0.3583679495 | AI54: -0.3090169944 | AJ54: -0.2588190451 | AK54: -0.2079116908 | AL54: -0.156434465 | AM54: -0.1045284633 | AN54: -0.05233595624 | AO54: 0 | AP54: 0.05233595624 | AQ54: =IF($F16=TRUE,SIN((AQ53)*PI()/180),-SIN((AQ53)*PI()/180)) -> 0.1045284633 | AR54: 0.156434465 | AS54: 0.2079116908 | AT54: 0.2588190451 | AU54: 0.3090169944 | AV54: 0.3583679495 | AW54: 0.4067366431 | AX54: 0.4539904997 | AY54: 0.5 | AZ54: 0.544639035 | BA54: 0.5877852523 | BB54: 0.629320391 | BC54: 0.6691306064 | BD54: 0.7071067812 | BE54: 0.7431448255 | BF54: 0.7771459615 | BG54: 0.8090169944 | BH54: 0.8386705679 | BI54: 0.8660254038 | BJ54: 0.8910065242 | BK54: 0.9135454576 | BL54: 0.9335804265 | BM54: 0.9510565163 | BN54: 0.9659258263 | BO54: 0.9781476007 | BP54: 0.9876883406 | BQ54: 0.9945218954 | BR54: 0.9986295348 | BS54: 1 | BT54: 0.9986295348 | BU54: 0.9945218954 | BV54: 0.9876883406
K56: 1 | L56: 2 | M56: 3 | N56: 4 | O56: 5 | P56: 6 | Q56: 7 | R56: 8 | S56: 9 | T56: 10 | U56: 11 | V56: 12 | W56: 13 | X56: 14 | Y56: 15 | Z56: 16 | AA56: 17 | AB56: 18 | AC56: 19 | AD56: 20 | AE56: 21 | AF56: 22 | AG56: 23 | AH56: 24 | AI56: 25 | AJ56: 26 | AK56: 27 | AL56: 28 | AM56: 29 | AN56: 30 | AO56: 31 | AP56: 32 | AQ56: 33 | AR56: 34 | AS56: 35 | AT56: 36 | AU56: 37 | AV56: 38 | AW56: 39 | AX56: 40 | AY56: 41 | AZ56: 42 | BA56: 43 | BB56: 44 | BC56: 45 | BD56: 46 | BE56: 47 | BF56: 48 | BG56: 49 | BH56: 50 | BI56: 51 | BJ56: 52 | BK56: 53 | BL56: 54 | BM56: 55 | BN56: 56 | BO56: 57 | BP56: 58 | BQ56: 59 | BR56: 60 | BS56: 61 | BT56: 62 | BU56: 63 | BV56: 64
A57: Mittelwert des Antriebsmoments über Schwenkbereich
C58: Mn= | D58: =MAX(D59:D67) -> 29.3 | F58: M= | G58: =D58 -> 29.3
C59: Mn1-7 | D59: =IF(D13=0,0,IF(D13=1,K63,IF(D13=2,L63,IF(D13=3,M63,IF(D13=4,N63,IF(D13=5,O63,IF(D13=6,P63,IF(D13=7,Q63,0)))))))) -> 0 | F59: J= | G59: =G21 -> 0
C60: Mn8-15 | D60: =IF(D13=8,R63,IF(D13=9,S63,IF(D13=10,T63,IF(D13=11,U63,IF(D13=12,V63,IF(D13=13,W63,IF(D13=14,X63,IF(D13=15,Y63,0)))))))) -> 0 | F60: JE= | G60: =G22 -> 0.0031
C61: Mn16-23 | D61: =IF(D13=16,Z63,IF(D13=17,AA63,IF(D13=18,AB63,IF(D13=19,AC63,IF(D13=20,AD63,IF(D13=21,AE63,IF(D13=22,AF63,IF(D13=23,AG63,0)))))))) -> 0 | F61: k= | G61: =G23 -> 1.6
C62: Mn24-31 | D62: =IF(D13=24,AH63,IF(D13=25,AI63,IF(D13=26,AJ63,IF(D13=27,AK63,IF(D13=28,AL63,IF(D13=29,AM63,IF(D13=30,AN63,IF(D13=31,AO63,0)))))))) -> 29.3 | F62: alpha= | G62: =G58/((G59+G60)*POWER(G61,2)) -> 3692.03629 | J62: Summe M | K62: =K49 -> 29.3 | L62: =K62+L49 -> 58.6 | M62: 87.9 | N62: 117.2 | O62: 146.5 | P62: 175.8 | Q62: 205.1 | R62: 234.4 | S62: 263.7 | T62: 293 | U62: 322.3 | V62: 351.6 | W62: 380.9 | X62: 410.2 | Y62: 439.5 | Z62: 468.8 | AA62: 498.1 | AB62: 527.4 | AC62: 556.7 | AD62: 586 | AE62: 615.3 | AF62: 644.6 | AG62: 673.9 | AH62: 703.2 | AI62: 732.5 | AJ62: 761.8 | AK62: 791.1 | AL62: 820.4 | AM62: 849.7 | AN62: 879 | AO62: 908.3 | AP62: 937.6 | AQ62: 966.9 | AR62: =AQ62+AR49 -> 996.2 | AS62: 1025.5 | AT62: 1054.8 | AU62: 1084.1 | AV62: 1113.4 | AW62: 1142.7 | AX62: 1172 | AY62: 1201.3 | AZ62: 1230.6 | BA62: 1259.9 | BB62: 1289.2 | BC62: 1318.5 | BD62: 1347.8 | BE62: 1377.1 | BF62: 1406.4 | BG62: 1435.7 | BH62: 1465 | BI62: 1494.3 | BJ62: 1523.6 | BK62: 1552.9 | BL62: 1582.2 | BM62: 1611.5 | BN62: 1640.8 | BO62: 1670.1 | BP62: 1699.4 | BQ62: 1728.7 | BR62: 1758 | BS62: 1787.3 | BT62: 1816.6 | BU62: 1845.9 | BV62: 1875.2
C63: Mn32-39 | D63: =IF(D13=32,AP63,IF(D13=33,AQ63,IF(D13=34,AR63,IF(D13=35,AS63,IF(D13=36,AT63,IF(D13=37,AU63,IF(D13=38,AV63,IF(D13=39,AW63,0)))))))) -> 0 | F63: PI= | G63: =PI() -> 3.141592654 | J63: Mittelwert Mm | K63: =K62/K56 -> 29.3 | L63: 29.3 | M63: 29.3 | N63: 29.3 | O63: 29.3 | P63: 29.3 | Q63: 29.3 | R63: 29.3 | S63: 29.3 | T63: 29.3 | U63: 29.3 | V63: 29.3 | W63: 29.3 | X63: 29.3 | Y63: 29.3 | Z63: 29.3 | AA63: 29.3 | AB63: 29.3 | AC63: 29.3 | AD63: 29.3 | AE63: 29.3 | AF63: 29.3 | AG63: 29.3 | AH63: 29.3 | AI63: 29.3 | AJ63: 29.3 | AK63: 29.3 | AL63: 29.3 | AM63: 29.3 | AN63: 29.3 | AO63: 29.3 | AP63: 29.3 | AQ63: =AQ62/AQ56 -> 29.3 | AR63: 29.3 | AS63: 29.3 | AT63: 29.3 | AU63: 29.3 | AV63: 29.3 | AW63: 29.3 | AX63: 29.3 | AY63: 29.3 | AZ63: 29.3 | BA63: 29.3 | BB63: 29.3 | BC63: 29.3 | BD63: 29.3 | BE63: 29.3 | BF63: 29.3 | BG63: 29.3 | BH63: 29.3 | BI63: 29.3 | BJ63: 29.3 | BK63: 29.3 | BL63: 29.3 | BM63: 29.3 | BN63: 29.3 | BO63: 29.3 | BP63: 29.3 | BQ63: 29.3 | BR63: 29.3 | BS63: 29.3 | BT63: 29.3 | BU63: 29.3 | BV63: 29.3
C64: Mn40-47 | D64: =IF(D13=40,AX63,IF(D13=41,AY63,IF(D13=42,AZ63,IF(D13=43,BA63,IF(D13=44,BB63,IF(D13=45,BC63,IF(D13=46,BD63,IF(D13=47,BE63,0)))))))) -> 0 | F64: beta= | G64: =D51 -> 90
C65: Mn48-55 | D65: =IF(D13=48,BF63,IF(D13=49,BG63,IF(D13=50,BH63,IF(D13=51,BI63,IF(D13=52,BJ63,IF(D13=53,BK63,IF(D13=54,BL63,IF(D13=55,BM63,0)))))))) -> 0 | F65: phi= | G65: =G63*G64/180 -> 1.570796327
C66: Mn56-63 | D66: =IF(D13=56,BN63,IF(D13=57,BO63,IF(D13=58,BP63,IF(D13=59,BQ63,IF(D13=60,BR63,IF(D13=61,BS63,IF(D13=62,BT63,IF(D13=63,BU63,0)))))))) -> 0 | F66: Omega= | G66: =SQRT(2*G62*G65) -> 107.6980691
C67: M64 | D67: =IF(D13=64,BV63,0) -> 0 | I67: Tsmax für Schwenkzeit vor:
F68: Ts= | G68: =G66/G62*I24 -> 0.02917037121 | I68: =MAX(G68,G82) -> 0.02917037121
I70: Omega min. für Ber. E kin.:
A71: Minimale Antriebsmoment im Schwenkbereich | F71: Werte für Drehachse vertikal | I71: =MIN(G66,G80) -> 107.6980691
C72: M min.= | D72: =MAX(D73:D82) -> 29.3 | F72: M= | G72: 29.3
C73: M1-6 | D73: =IF(D13=0,0,IF(D13=1,K49,IF(D13=2,MIN(K49:L49),IF(D13=3,MIN(K49:M49),IF(D13=4,MIN(K49:N49),IF(D13=5,MIN(K49:O49),IF(D13=6,MIN(K49:P49)," "))))))) ->  | F73: J= | G73: =G59 -> 0 | L73: Antriebsmoment in Endposition
C74: M7-13 | D74: =IF(D13=7,MIN(K49:Q49),IF(D13=8,MIN(K49:R49),IF(D13=9,MIN(K49:S49),IF(D13=10,MIN(K49:T49),IF(D13=11,MIN(K49:U49),IF(D13=12,MIN(K49:V49),IF(D13=13,MIN(K49:W49)," "))))))) ->  | F74: JE= | G74: =G60 -> 0.0031 | L74: für Energieberechnung | O74: Energieberechnung | Q74: Für Ber.
C75: M14-20 | D75: =IF(D13=14,MIN(K49:X49),IF(D13=15,MIN(K49:Y49),IF(D13=16,MIN(K49:Z49),IF(D13=17,MIN(K49:AA49),IF(D13=18,MIN(K49:AB49),IF(D13=19,MIN(K49:AC49),IF(D13=20,MIN(K49:AD49)," "))))))) ->  | F75: k= | G75: =G61 -> 1.6 | L75: M= | M75: =MAX(M76:M84) -> 29.3 | O75: M= | P75: =M75 -> 29.3 | Q75: v kolben
C76: M21-27 | D76: =IF(D13=21,MIN(K49:AE49),IF(D13=22,MIN(K49:AF49),IF(D13=23,MIN(K49:AG49),IF(D13=24,MIN(K49:AH49),IF(D13=25,MIN(K49:AI49),IF(D13=26,MIN(K49:AJ49),IF(D13=27,MIN(K49:AK49)," "))))))) ->  | F76: alpha= | G76: =G72/((G73+G74)*POWER(G75,2)) -> 3692.03629 | L76: M1-7 | M76: =IF(D13=0,0,IF(D13=1,K49,IF(D13=2,L49,IF(D13=3,M49,IF(D13=4,N49,IF(D13=5,O49,IF(D13=6,P49,IF(D13=7,Q49,0)))))))) -> 0 | O76: r= | P76: 0.044 | Q76: 0.03
C77: M28-34 | D77: =IF(D13=28,MIN(K49:AL49),IF(D13=29,MIN(K49:AM49),IF(D13=30,MIN(K49:AN49),IF(D13=31,MIN(K49:AO49),IF(D13=32,MIN(K49:AP49),IF(D13=33,MIN(K49:AQ49),IF(D13=34,MIN(K49:AR49)," "))))))) -> 29.3 | F77: PI= | G77: =PI() -> 3.141592654 | L77: M8-15 | M77: =IF(D13=8,R49,IF(D13=9,S49,IF(D13=10,T49,IF(D13=11,U49,IF(D13=12,V49,IF(D13=13,W49,IF(D13=14,X49,IF(D13=15,Y49,0)))))))) -> 0 | O77: s= | P77: ='Allgemeine Werte'!L38 -> 0.0185
C78: M35-41 | D78: =IF(D13=35,MIN(K49:AS49),IF(D13=36,MIN(K49:AT49),IF(D13=37,MIN(K49:AU49),IF(D13=38,MIN(K49:AV49),IF(D13=39,MIN(K49:AW49),IF(D13=40,MIN(K49:AX49),IF(D13=41,MIN(K49:AY49)," "))))))) ->  | F78: beta= | G78: =G64 -> 90 | L78: M16-23 | M78: =IF(D13=16,Z49,IF(D13=17,AA49,IF(D13=18,AB49,IF(D13=19,AC49,IF(D13=20,AD49,IF(D13=21,AE49,IF(D13=22,AF49,IF(D13=23,AG49,0)))))))) -> 0 | O78: E antrieb | P78: =P75*P77/P76 -> 12.31931818
C79: M42-48 | D79: =IF(D13=42,MIN(K49:AZ49),IF(D13=43,MIN(K49:BA49),IF(D13=44,MIN(K49:BB49),IF(D13=45,MIN(K49:BC49),IF(D13=46,MIN(K49:BD49),IF(D13=47,MIN(K49:BE49),IF(D13=48,MIN(K49:BF49)," "))))))) ->  | F79: phi= | G79: =G77*G78/180 -> 1.570796327 | L79: M24-31 | M79: =IF(D13=24,AH49,IF(D13=25,AI49,IF(D13=26,AJ49,IF(D13=27,AK49,IF(D13=28,AL49,IF(D13=29,AM49,IF(D13=30,AN49,IF(D13=31,AO49,0)))))))) -> 29.3 | O79: m kolben | P79: 0.61
C80: M49-55 | D80: =IF(D13=49,MIN(K49:BG49),IF(D13=50,MIN(K49:BH49),IF(D13=51,MIN(K49:BI49),IF(D13=52,MIN(K49:BJ49),IF(D13=53,MIN(K49:BK49),IF(D13=54,MIN(K49:BL49),IF(D13=55,MIN(K49:BM49)," "))))))) ->  | F80: Omega= | G80: =SQRT(2*G76*G79) -> 107.6980691 | L80: M32-39 | M80: =IF(D13=32,AP49,IF(D13=33,AQ49,IF(D13=34,AR49,IF(D13=35,AS49,IF(D13=36,AT49,IF(D13=37,AU49,IF(D13=38,AV49,IF(D13=39,AW49,0)))))))) -> 0 | O80: v kolben | P80: =I71*Q76 -> 3.230942073
C81: M56-62 | D81: =IF(D13=56,MIN(K49:BN49),IF(D13=57,MIN(K49:BO49),IF(D13=58,MIN(K49:BP49),IF(D13=59,MIN(K49:BQ49),IF(D13=60,MIN(K49:BR49),IF(D13=61,MIN(K49:BS49),IF(D13=62,MIN(K49:BT49)," "))))))) ->  | L81: M40-47 | M81: =IF(D13=40,AX49,IF(D13=41,AY49,IF(D13=42,AZ49,IF(D13=43,BA49,IF(D13=44,BB49,IF(D13=45,BC49,IF(D13=46,BD49,IF(D13=47,BE49,0)))))))) -> 0 | O81: E kin kolben | P81: =P79*2*POWER(P80,2)*0.5 -> 6.367781873
C82: M63-64 | D82: =IF(D13=63,MIN(K49:BU49),IF(D13=64,MIN(K49:BV49)," ")) ->  | F82: Ts= | G82: =G80/G76*I24 -> 0.02917037121 | L82: M48-55 | M82: =IF(D13=48,BF49,IF(D13=49,BG49,IF(D13=50,BH49,IF(D13=51,BI49,IF(D13=52,BJ49,IF(D13=53,BK49,IF(D13=54,BL49,IF(D13=55,BM49,0)))))))) -> 0 | O82: E antrieb kpl. | P82: =P78+P81 -> 18.68710006
L83: M56-63 | M83: =IF(D13=56,BN49,IF(D13=57,BO49,IF(D13=58,BP49,IF(D13=59,BQ49,IF(D13=60,BR49,IF(D13=61,BS49,IF(D13=62,BT49,IF(D13=63,BU49,0)))))))) -> 0
L84: M64 | M84: =IF(D13=64,BV49,0) -> 0 | O84: E kin. | P84: =((G59+G60)*POWER(N98,2))/2 -> 17.97825483
O86: E ges | P86: =P84+P82 -> 36.66535489
A90: Überprüfung der mechanischen Belastung
A92: Drehachse Vertikal | J92: Drehachse Horizontal
D93: Berechnung der dyn. Kraft | M93: Berechnung der dyn. Kraft
A94: Statische Belastung | D94: verursacht durch Masse m | G94: Dynamische Belastung | J94: Statische Belastung | M94: verursacht durch Masse m | P94: Dynamische Belastung
D95: ( Auch Drehen vor ) | M95: ( Zurückdrehen )
A96: Xs | B96: =A3/1000 -> 0 | D96: Omega | E96: =I33 -> 107.6980691 | G96: Z bis OK-Dr. | H96: 0.0245 | M96: Omega | N96: =I71 -> 107.6980691 | P96: Z bis OK-Dr. | Q96: =H96 -> 0.0245
A97: Ys | B97: =B3/1000 -> 0 | D97: Prozent | E97: =Eingabe4!M63 -> 1 | G97: Z | H97: =ABS(I97) -> 0.0245 | I97: =H96+B98 -> 0.0245 | M97: Prozent | N97: =E97 -> 1 | P97: Z | Q97: =H97 -> 0.0245
A98: Zs | B98: =Eingabe4!N12/1000 -> 0 | D98: Omega red. | E98: =E96*E97 -> 107.6980691 | G98: M2=Fdyn*Z | H98: =E109*H97 -> 0 | M98: Omega red. | N98: =N96*N97 -> 107.6980691 | P98: M2=Fdyn*Z | Q98: =Q109*Q97 -> 0
A99: R | B99: =SQRT(POWER(B96,2)+POWER(B97,2)) -> 0
A100: m | B100: =C3 -> 0 | D100: R | E100: =B99 -> 0 | G100: r | H100: 0.044 | M100: R | N100: =B99 -> 0 | P100: r | Q100: =H100 -> 0.044
A101: F | B101: =B100*9.81 -> 0 | D101: Omega | E101: =E98 -> 107.6980691 | J101: F | K101: =B101 -> 0 | M101: Omega | N101: =N98 -> 107.6980691
A102: M1=F*R | B102: =B101*B99 -> 0 | D102: v | E102: =E100*E101 -> 0 | G102: M3=Fdyn*(R-r) | H102: =E109*(B99-H100) -> 0 | J102: M1=F*Z | K102: =K101*H97 -> 0 | M102: v | N102: =N100*N101 -> 0 | P102: M3=Fdyn*(R-r) | Q102: =Q109*(B99-Q100) -> 0
D103: PI | E103: =PI() -> 3.141592654 | M103: PI | N103: =PI() -> 3.141592654
A104: M max | B104: 525 | D104: Aufprallwink. | E104: =DEGREES(ATAN('Allgemeine Werte'!P38/H100)) -> 15.73276943 | M104: Aufprallwink. | N104: =E104 -> 15.73276943
A105: F ax max | B105: 9550 | D105: s (Dämpfweg) | E105: =TAN(E104*E103/180)*E100 -> 0 | M105: s (Dämpfweg) | N105: =TAN(N104*N103/180)*N100 -> 0
A106: F rad max | B106: 8250 | D106: a | E106: =IF(E100=0,0,POWER(E102,2)/(2*E105)) -> 0 | M106: a | N106: =IF(N100=0,0,POWER(N102,2)/(2*N105)) -> 0
A107: M rad max | B107: =H100*B106 -> 363
D108: m | E108: =B100 -> 0 | M108: m | N108: =B100 -> 0
D109: Fdyn | E109: =E108*E106 -> 0 | M109: Fdyn | N109: =N108*N106 -> 0 | P109: F dyn max | Q109: =MAX(E109,N109) -> 0
A110: Belastung durch M antr. | J110: Belastung durch M antr.
A111: M antr. | B111: 0
B112: Antrieb verursacht kein Moment ! | D112: phi | E112: =G27 -> 1.570796327 | J112: M antr. Ende vor | K112: =M30 -> 29.3 | M112: phi | N112: =G65 -> 1.570796327
B113: daher =0 | D113: a | E113: =POWER(E98,2)/(2*E112) -> 3692.03629 | J113: M antr. Ende rück | K113: =M75 -> 29.3 | M113: a | N113: =POWER(N98,2)/(2*N112) -> 3692.03629
D114: t | E114: =E101/E113*I24 -> 0.02917037121 | J114: M antr. Ende max | K114: 0 | M114: t | N114: =N101/N113*I24 -> 0.02917037121
K115: siehe links = 0
A116: Belastungsgleichung: F/Faxmax + M1/Mmax + M2/Mmax = | J116: Belastungsgleichung: M1/Mmax + M2/Mmax =
A117: ( Axiallager stat + dyn. ) | D117: =B101/B105+B102/B104+H98/B104 -> 0 | J117: ( Axiallager stat + dyn. ) | M117: =K102/B104+Q98/B104 -> 0
A119: Belastungsgleichung: F/Faxmax + M1/Mmax = | J119: Belastungsgleichung: M1/Mmax + M2/Mmax =
A120: ( Axiallager stat ) | D120: =B101/B105+B102/B104 -> 0 | J120: ( Axiallager stat ) | M120: =K102/B104 -> 0
A122: Belastungsgleichung: M3/Mradmax + M antr./Mradmax = | J122: Belastungsgleichung: F/Fradmax + M3/Mradmax + M antr/Mradmax =
A123: ( Radiallager stat + dyn. ) | D123: =H102/B107+B111/B107 -> 0 | J123: ( Radiallager stat + dyn ) | M123: =K101/B106+Q102/B107+K114/B107 -> 0
A125: Belastungsgleichung: M antr./Mradmax = | J125: Belastungsgleichung: F/Fradmax + M antr./Mradmax =
A126: ( Radiallager stat ) | D126: =B111/B107 -> 0 | J126: ( Radiallager stat ) | M126: =K101/B106+K114/B107 -> 0
A128: Lagerbelastung Drehachse vertikal : | D128: =MAX(D117,D120,D123,D126) -> 0 | E128: Lagerbelastung: | G128: =IF(F14=TRUE,D128,M128) -> 0 | J128: Lagerbelastung Drehachse horizontal : | M128: =MAX(M117,M120,M123,M126) -> 0

Sheet BerRM50
A1: Drehen vor
A2: x | B2: y | C2: m | D2: x2*y2 | E2: R= | F2: sin | G2: grad
A3: =Eingabe1!N10 -> 0 | B3: =Eingabe1!N11 -> 0 | C3: =Eingabe1!N9 -> 0 | D3: =POWER(A3,2)+POWER(B3,2) -> 0 | E3: =SQRT(D3) -> 0 | F3: =IF(E3=0,0,A3/E3) -> 0 | G3: =ASIN(F3)*180/PI() -> 0
G4: =180-G3 -> 180 | J4: M= | K4: =IF($F14=TRUE,0.7,0.7+(9.81*$C3*($E3/1000)*K9)) -> 0.7 | L4: 0.7 | M4: 0.7 | N4: 0.7 | O4: 0.7 | P4: 0.7 | Q4: 0.7 | R4: 0.7 | S4: 0.7 | T4: 0.7 | U4: 0.7 | V4: 0.7 | W4: 0.7 | X4: 0.7 | Y4: 0.7 | Z4: 0.7 | AA4: 0.7 | AB4: 0.7 | AC4: 0.7 | AD4: 0.7 | AE4: 0.7 | AF4: 0.7 | AG4: 0.7 | AH4: 0.7 | AI4: 0.7 | AJ4: 0.7 | AK4: 0.7 | AL4: 0.7 | AM4: 0.7 | AN4: 0.7 | AO4: 0.7 | AP4: 0.7 | AQ4: =IF($F14=TRUE,0.7,0.7+(9.81*$C3*($E3/1000)*AQ9)) -> 0.7 | AR4: 0.7 | AS4: 0.7 | AT4: 0.7 | AU4: 0.7 | AV4: 0.7 | AW4: 0.7 | AX4: 0.7 | AY4: 0.7 | AZ4: 0.7 | BA4: 0.7 | BB4: 0.7 | BC4: 0.7 | BD4: 0.7 | BE4: 0.7 | BF4: 0.7 | BG4: 0.7 | BH4: 0.7 | BI4: 0.7 | BJ4: 0.7 | BK4: 0.7 | BL4: 0.7 | BM4: 0.7 | BN4: 0.7 | BO4: 0.7 | BP4: 0.7 | BQ4: 0.7 | BR4: 0.7 | BS4: 0.7 | BT4: 0.7 | BU4: 0.7 | BV4: 0.7
G5: =360+G3 -> 360
C6: Startwinkel | D6: =IF(AND(A3>=0,B3>=0),G3,IF(AND(A3>=0,B3<0),G4,IF(AND(A3<0,B3<0),G4,IF(AND(A3<0,B3>=0),G5,0)))) -> 0 | J6: beta= | K6: 3 | L6: =K6 -> 3 | M6: 3 | N6: 3 | O6: 3 | P6: 3 | Q6: 3 | R6: 3 | S6: 3 | T6: 3 | U6: 3 | V6: 3 | W6: 3 | X6: 3 | Y6: 3 | Z6: 3 | AA6: 3 | AB6: 3 | AC6: 3 | AD6: 3 | AE6: 3 | AF6: 3 | AG6: 3 | AH6: 3 | AI6: 3 | AJ6: 3 | AK6: 3 | AL6: 3 | AM6: 3 | AN6: 3 | AO6: 3 | AP6: 3 | AQ6: 3 | AR6: =AQ6 -> 3 | AS6: 3 | AT6: 3 | AU6: 3 | AV6: 3 | AW6: 3 | AX6: 3 | AY6: 3 | AZ6: 3 | BA6: 3 | BB6: 3 | BC6: 3 | BD6: 3 | BE6: 3 | BF6: 3 | BG6: 3 | BH6: 3 | BI6: 3 | BJ6: 3 | BK6: 3 | BL6: 3 | BM6: 3 | BN6: 3 | BO6: 3 | BP6: 3 | BQ6: 3 | BR6: 3 | BS6: 3 | BT6: 3 | BU6: 3 | BV6: 3
C7: sin Startpos | D7: =SIN((D6)*PI()/180) -> 0
C8: Schwenkw. | D8: =Eingabe1!M19 -> 180 | J8: Startwinkel | K8: =D6 -> 0 | L8: =IF($F16=TRUE,K8-K6,K8+K6) -> 3 | M8: 6 | N8: 9 | O8: 12 | P8: 15 | Q8: 18 | R8: 21 | S8: 24 | T8: 27 | U8: 30 | V8: 33 | W8: 36 | X8: 39 | Y8: 42 | Z8: 45 | AA8: 48 | AB8: 51 | AC8: 54 | AD8: 57 | AE8: 60 | AF8: 63 | AG8: 66 | AH8: 69 | AI8: 72 | AJ8: 75 | AK8: 78 | AL8: 81 | AM8: 84 | AN8: 87 | AO8: 90 | AP8: 93 | AQ8: 96 | AR8: =IF($F16=TRUE,AQ8-AQ6,AQ8+AQ6) -> 99 | AS8: 102 | AT8: 105 | AU8: 108 | AV8: 111 | AW8: 114 | AX8: 117 | AY8: 120 | AZ8: 123 | BA8: 126 | BB8: 129 | BC8: 132 | BD8: 135 | BE8: 138 | BF8: 141 | BG8: 144 | BH8: 147 | BI8: 150 | BJ8: 153 | BK8: 156 | BL8: 159 | BM8: 162 | BN8: 165 | BO8: 168 | BP8: 171 | BQ8: 174 | BR8: 177 | BS8: 180 | BT8: 183 | BU8: 186 | BV8: 189
C9: Endwinkel | D9: =IF(F16=TRUE,D6-D8,D6+D8) -> 180 | F9: Modulabhängige Zellen | J9: sin | K9: =IF($F16=TRUE,-SIN((K8)*PI()/180),SIN((K8)*PI()/180)) -> 0 | L9: 0.05233595624 | M9: 0.1045284633 | N9: 0.156434465 | O9: 0.2079116908 | P9: 0.2588190451 | Q9: 0.3090169944 | R9: 0.3583679495 | S9: 0.4067366431 | T9: 0.4539904997 | U9: 0.5 | V9: 0.544639035 | W9: 0.5877852523 | X9: 0.629320391 | Y9: 0.6691306064 | Z9: 0.7071067812 | AA9: 0.7431448255 | AB9: 0.7771459615 | AC9: 0.8090169944 | AD9: 0.8386705679 | AE9: 0.8660254038 | AF9: 0.8910065242 | AG9: 0.9135454576 | AH9: 0.9335804265 | AI9: 0.9510565163 | AJ9: 0.9659258263 | AK9: 0.9781476007 | AL9: 0.9876883406 | AM9: 0.9945218954 | AN9: 0.9986295348 | AO9: 1 | AP9: 0.9986295348 | AQ9: =IF($F16=TRUE,-SIN((AQ8)*PI()/180),SIN((AQ8)*PI()/180)) -> 0.9945218954 | AR9: 0.9876883406 | AS9: 0.9781476007 | AT9: 0.9659258263 | AU9: 0.9510565163 | AV9: 0.9335804265 | AW9: 0.9135454576 | AX9: 0.8910065242 | AY9: 0.8660254038 | AZ9: 0.8386705679 | BA9: 0.8090169944 | BB9: 0.7771459615 | BC9: 0.7431448255 | BD9: 0.7071067812 | BE9: 0.6691306064 | BF9: 0.629320391 | BG9: 0.5877852523 | BH9: 0.544639035 | BI9: 0.5 | BJ9: 0.4539904997 | BK9: 0.4067366431 | BL9: 0.3583679495 | BM9: 0.3090169944 | BN9: 0.2588190451 | BO9: 0.2079116908 | BP9: 0.156434465 | BQ9: 0.1045284633 | BR9: 0.05233595624 | BS9: 1.225148455e-16 | BT9: -0.05233595624 | BU9: -0.1045284633 | BV9: -0.156434465
C10: sin Endpos | D10: =SIN((D9)*PI()/180) -> 1.225148455e-16
F11: Werte aus Eingabeseite | K11: 1 | L11: 2 | M11: 3 | N11: 4 | O11: 5 | P11: 6 | Q11: 7 | R11: 8 | S11: 9 | T11: 10 | U11: 11 | V11: 12 | W11: 13 | X11: 14 | Y11: 15 | Z11: 16 | AA11: 17 | AB11: 18 | AC11: 19 | AD11: 20 | AE11: 21 | AF11: 22 | AG11: 23 | AH11: 24 | AI11: 25 | AJ11: 26 | AK11: 27 | AL11: 28 | AM11: 29 | AN11: 30 | AO11: 31 | AP11: 32 | AQ11: 33 | AR11: 34 | AS11: 35 | AT11: 36 | AU11: 37 | AV11: 38 | AW11: 39 | AX11: 40 | AY11: 41 | AZ11: 42 | BA11: 43 | BB11: 44 | BC11: 45 | BD11: 46 | BE11: 47 | BF11: 48 | BG11: 49 | BH11: 50 | BI11: 51 | BJ11: 52 | BK11: 53 | BL11: 54 | BM11: 55 | BN11: 56 | BO11: 57 | BP11: 58 | BQ11: 59 | BR11: 60 | BS11: 61 | BT11: 62 | BU11: 63 | BV11: 64
D12: =D8/K6 -> 60
D13: =ROUNDUP(D12,0) -> 60
F14: =IF(Eingabe1!C41=TRUE,FALSE,TRUE) -> TRUE | G14: Horizontaler Aufbau | J14: Summe M | K14: =K4 -> 0.7 | L14: =K14+L4 -> 1.4 | M14: 2.1 | N14: 2.8 | O14: 3.5 | P14: 4.2 | Q14: 4.9 | R14: 5.6 | S14: 6.3 | T14: 7 | U14: 7.7 | V14: 8.4 | W14: 9.1 | X14: 9.8 | Y14: 10.5 | Z14: 11.2 | AA14: 11.9 | AB14: 12.6 | AC14: 13.3 | AD14: 14 | AE14: 14.7 | AF14: 15.4 | AG14: 16.1 | AH14: 16.8 | AI14: 17.5 | AJ14: 18.2 | AK14: 18.9 | AL14: 19.6 | AM14: 20.3 | AN14: 21 | AO14: 21.7 | AP14: 22.4 | AQ14: 23.1 | AR14: =AQ14+AR4 -> 23.8 | AS14: 24.5 | AT14: 25.2 | AU14: 25.9 | AV14: 26.6 | AW14: 27.3 | AX14: 28 | AY14: 28.7 | AZ14: 29.4 | BA14: 30.1 | BB14: 30.8 | BC14: 31.5 | BD14: 32.2 | BE14: 32.9 | BF14: 33.6 | BG14: 34.3 | BH14: 35 | BI14: 35.7 | BJ14: 36.4 | BK14: 37.1 | BL14: 37.8 | BM14: 38.5 | BN14: 39.2 | BO14: 39.9 | BP14: 40.6 | BQ14: 41.3 | BR14: 42 | BS14: 42.7 | BT14: 43.4 | BU14: 44.1 | BV14: 44.8
J15: Mittelwert Mm | K15: =K14/K11 -> 0.7 | L15: 0.7 | M15: 0.7 | N15: 0.7 | O15: 0.7 | P15: 0.7 | Q15: 0.7 | R15: 0.7 | S15: 0.7 | T15: 0.7 | U15: 0.7 | V15: 0.7 | W15: 0.7 | X15: 0.7 | Y15: 0.7 | Z15: 0.7 | AA15: 0.7 | AB15: 0.7 | AC15: 0.7 | AD15: 0.7 | AE15: 0.7 | AF15: 0.7 | AG15: 0.7 | AH15: 0.7 | AI15: 0.7 | AJ15: 0.7 | AK15: 0.7 | AL15: 0.7 | AM15: 0.7 | AN15: 0.7 | AO15: 0.7 | AP15: 0.7 | AQ15: =AQ14/AQ11 -> 0.7 | AR15: 0.7 | AS15: 0.7 | AT15: 0.7 | AU15: 0.7 | AV15: 0.7 | AW15: 0.7 | AX15: 0.7 | AY15: 0.7 | AZ15: 0.7 | BA15: 0.7 | BB15: 0.7 | BC15: 0.7 | BD15: 0.7 | BE15: 0.7 | BF15: 0.7 | BG15: 0.7 | BH15: 0.7 | BI15: 0.7 | BJ15: 0.7 | BK15: 0.7 | BL15: 0.7 | BM15: 0.7 | BN15: 0.7 | BO15: 0.7 | BP15: 0.7 | BQ15: 0.7 | BR15: 0.7 | BS15: 0.7 | BT15: 0.7 | BU15: 0.7 | BV15: 0.7
A16: Mittelwert des Antriebsmoments über Schwenkbereich | F16: =IF(Eingabe1!C42=TRUE,TRUE,FALSE) -> FALSE | G16: Drehen im/gegen Uhrzeigersinn
C17: Mn= | D17: =MAX(D18:D26) -> 0.7 | O17: Gerundete Werte+Korrekturfaktoren | U17: Schwenkzeitkorrektur von J=0 bis J= | X17: 0.0005
C18: Mn1-7 | D18: =IF(D13=0,0,IF(D13=1,K15,IF(D13=2,L15,IF(D13=3,M15,IF(D13=4,N15,IF(D13=5,O15,IF(D13=6,P15,IF(D13=7,Q15,0)))))))) -> 0 | K18: Schwenkzeit vor | N18: =E114 -> 0.09587180246 | O18: =ROUND(N18+U22+U26,2) -> 0.17 | P18: Zykluszeit | Q18: =O18+O19 -> 0.34 | R18: Zyklen/min | S18: =60/Q18 -> 176.4705882 | U18: Korrekturfaktor bei J=0 : | X18: 0.02
C19: Mn8-15 | D19: =IF(D13=8,R15,IF(D13=9,S15,IF(D13=10,T15,IF(D13=11,U15,IF(D13=12,V15,IF(D13=13,W15,IF(D13=14,X15,IF(D13=15,Y15,0)))))))) -> 0 | K19: Schwenkzeit zurück | N19: =N114 -> 0.09587180246 | O19: =ROUND(N19+U22+U26,2) -> 0.17 | U19: bis J= siehe oben ! (Gerade) : | X19: 0
C20: Mn16-23 | D20: =IF(D13=16,Z15,IF(D13=17,AA15,IF(D13=18,AB15,IF(D13=19,AC15,IF(D13=20,AD15,IF(D13=21,AE15,IF(D13=22,AF15,IF(D13=23,AG15,0)))))))) -> 0 | F20: M= | G20: =D17 -> 0.7 | U20: ( Faktor wird in diesem J-Bereich zur berechneten Zeit addiert ! )
C21: Mn24-31 | D21: =IF(D13=24,AH15,IF(D13=25,AI15,IF(D13=26,AJ15,IF(D13=27,AK15,IF(D13=28,AL15,IF(D13=29,AM15,IF(D13=30,AN15,IF(D13=31,AO15,0)))))))) -> 0 | F21: J= | G21: =Eingabe1!N8 -> 0 | K21: Mmin im Schwenkbereich vor | N21: =D30 -> 0.7 | O21: Mmin | P21: =MIN(N21:N22) -> 0.7 | R21: M-Mmin/M | S21: =(0.7-P21)/0.7 -> 0 | U21: =-(X18/X17)*(G21-X17) -> 0.02
C22: Mn32-39 | D22: =IF(D13=32,AP15,IF(D13=33,AQ15,IF(D13=34,AR15,IF(D13=35,AS15,IF(D13=36,AT15,IF(D13=37,AU15,IF(D13=38,AV15,IF(D13=39,AW15,0)))))))) -> 0 | F22: JE= | G22: 0.0004 | K22: Mmin im Schwenkbereich zurück | N22: =D72 -> 0.7 | U22: =IF(G21>=X17,0,U21) -> 0.02
C23: Mn40-47 | D23: =IF(D13=40,AX15,IF(D13=41,AY15,IF(D13=42,AZ15,IF(D13=43,BA15,IF(D13=44,BB15,IF(D13=45,BC15,IF(D13=46,BD15,IF(D13=47,BE15,0)))))))) -> 0 | F23: k= | G23: 1 | H23: K-Wert (1.6) in Ts eingearbeitet !
C24: Mn48-55 | D24: =IF(D13=48,BF15,IF(D13=49,BG15,IF(D13=50,BH15,IF(D13=51,BI15,IF(D13=52,BJ15,IF(D13=53,BK15,IF(D13=54,BL15,IF(D13=55,BM15,0)))))))) -> 0 | F24: alpha= | G24: =G20/((G21+G22)*POWER(G23,2)) -> 1750 | K24: E ges vor | N24: =P37 -> 2.403992906 | O24: E ges max | P24: =MAX(N24:N25) -> 2.403992906 | R24: E zul/Hub | S24: ='Allgemeine Werte'!G16 -> 6 | U24: Schwenkzeitkorrektur gem. Schunkmessungen
C25: Mn56-63 | D25: =IF(D13=56,BN15,IF(D13=57,BO15,IF(D13=58,BP15,IF(D13=59,BQ15,IF(D13=60,BR15,IF(D13=61,BS15,IF(D13=62,BT15,IF(D13=63,BU15,0)))))))) -> 0.7 | F25: PI= | G25: =PI() -> 3.141592654 | K25: E ges zurück | N25: =P82 -> 2.403992906 | U25: (Zeit wird zu Schwenkzeiten (O18,O19) addiert)
C26: Mn64 | D26: =IF(D13=64,BV15,0) -> 0 | F26: beta= | G26: =D8 -> 180 | R26: E ges/E zul | S26: =P24/S24 -> 0.4006654844 | U26: =IF(G21<0.0025,0.05,U27) -> 0.05
F27: phi= | G27: =G25*G26/180 -> 3.141592654 | U27: =0.348/(V41-0.0025)*(G21-0.0025)*(1/180*D8)+0.05 -> -0.2979985523
F28: Omega= | G28: =SQRT(2*G24*G27) -> 104.8597839 | L28: Antriebsmoment in Endposition | R28: Ezul/h | S28: ='Allgemeine Werte'!H16 -> 25200
A29: Minimale Antriebsmoment im Schwenkbereich | I29: Tsmax für Schwenkzeit vor: | L29: für Energieberechnung | O29: Energieberechnung
C30: M min.= | D30: =MAX(D31:D40) -> 0.7 | F30: Ts= | G30: =G28/G24*1.6 -> 0.09587180246 | I30: =MAX(G30,G44) -> 0.09587180246 | L30: M= | M30: =MAX(M31:M39) -> 0.7 | O30: M= | P30: =M30 -> 0.7 | R30: Zyklen/min | S30: =(S28/60)/P24 -> 174.7093342 | U30: Schwenkzeit nicht < | X30: neu in Version 02_18
C31: M1-6 | D31: =IF(D13=0,0,IF(D13=1,K4,IF(D13=2,MIN(K4:L4),IF(D13=3,MIN(K4:M4),IF(D13=4,MIN(K4:N4),IF(D13=5,MIN(K4:O4),IF(D13=6,MIN(K4:P4)," "))))))) ->  | L31: M1-7 | M31: =IF(D13=0,0,IF(D13=1,K4,IF(D13=2,L4,IF(D13=3,M4,IF(D13=4,N4,IF(D13=5,O4,IF(D13=6,P4,IF(D13=7,Q4,0)))))))) -> 0 | O31: r= | P31: 0.0205 | V31: 0.1
C32: M7-13 | D32: =IF(D13=7,MIN(K4:Q4),IF(D13=8,MIN(K4:R4),IF(D13=9,MIN(K4:S4),IF(D13=10,MIN(K4:T4),IF(D13=11,MIN(K4:U4),IF(D13=12,MIN(K4:V4),IF(D13=13,MIN(K4:W4)," "))))))) ->  | I32: Omega min. für Ber. E kin.: | L32: M8-15 | M32: =IF(D13=8,R4,IF(D13=9,S4,IF(D13=10,T4,IF(D13=11,U4,IF(D13=12,V4,IF(D13=13,W4,IF(D13=14,X4,IF(D13=15,Y4,0)))))))) -> 0 | O32: s= | P32: ='Allgemeine Werte'!L16 -> 0.006 | S32: =MIN(S18,S30,S37,S41) -> 37
C33: M14-20 | D33: =IF(D13=14,MIN(K4:X4),IF(D13=15,MIN(K4:Y4),IF(D13=16,MIN(K4:Z4),IF(D13=17,MIN(K4:AA4),IF(D13=18,MIN(K4:AB4),IF(D13=19,MIN(K4:AC4),IF(D13=20,MIN(K4:AD4)," "))))))) ->  | F33: Werte für Drehachse vertikal | I33: =MIN(G28,G42) -> 104.8597839 | L33: M16-23 | M33: =IF(D13=16,Z4,IF(D13=17,AA4,IF(D13=18,AB4,IF(D13=19,AC4,IF(D13=20,AD4,IF(D13=21,AE4,IF(D13=22,AF4,IF(D13=23,AG4,0)))))))) -> 0 | O33: E antrieb | P33: =P30*P32/P31 -> 0.2048780488 | R33: Zykl.min./min | S33: =ROUNDDOWN(S32,0) -> 37 | U33: =O18 -> 0.17 | V33: =IF(U33<V31,ROUND(V31,2),ROUND(U33,2)) -> 0.17
C34: M21-27 | D34: =IF(D13=21,MIN(K4:AE4),IF(D13=22,MIN(K4:AF4),IF(D13=23,MIN(K4:AG4),IF(D13=24,MIN(K4:AH4),IF(D13=25,MIN(K4:AI4),IF(D13=26,MIN(K4:AJ4),IF(D13=27,MIN(K4:AK4)," "))))))) ->  | F34: M= | G34: 0.7 | L34: M24-31 | M34: =IF(D13=24,AH4,IF(D13=25,AI4,IF(D13=26,AJ4,IF(D13=27,AK4,IF(D13=28,AL4,IF(D13=29,AM4,IF(D13=30,AN4,IF(D13=31,AO4,0)))))))) -> 0 | U34: =O19 -> 0.17 | V34: =IF(U34<V31,ROUND(V31,2),ROUND(U34,2)) -> 0.17
C35: M28-34 | D35: =IF(D13=28,MIN(K4:AL4),IF(D13=29,MIN(K4:AM4),IF(D13=30,MIN(K4:AN4),IF(D13=31,MIN(K4:AO4),IF(D13=32,MIN(K4:AP4),IF(D13=33,MIN(K4:AQ4),IF(D13=34,MIN(K4:AR4)," "))))))) ->  | F35: J= | G35: =G21 -> 0 | L35: M32-39 | M35: =IF(D13=32,AP4,IF(D13=33,AQ4,IF(D13=34,AR4,IF(D13=35,AS4,IF(D13=36,AT4,IF(D13=37,AU4,IF(D13=38,AV4,IF(D13=39,AW4,0)))))))) -> 0 | O35: E kin. | P35: =((G21+G22)*POWER(E98,2))/2 -> 2.199114858 | R35: Stoßd.-kolbenrückstellzeit
C36: M35-41 | D36: =IF(D13=35,MIN(K4:AS4),IF(D13=36,MIN(K4:AT4),IF(D13=37,MIN(K4:AU4),IF(D13=38,MIN(K4:AV4),IF(D13=39,MIN(K4:AW4),IF(D13=40,MIN(K4:AX4),IF(D13=41,MIN(K4:AY4)," "))))))) ->  | F36: JE= | G36: =G22 -> 0.0004 | L36: M40-47 | M36: =IF(D13=40,AX4,IF(D13=41,AY4,IF(D13=42,AZ4,IF(D13=43,BA4,IF(D13=44,BB4,IF(D13=45,BC4,IF(D13=46,BD4,IF(D13=47,BE4,0)))))))) -> 0 | S36: ='Allgemeine Werte'!E16 -> 0.5
C37: M42-48 | D37: =IF(D13=42,MIN(K4:AZ4),IF(D13=43,MIN(K4:BA4),IF(D13=44,MIN(K4:BB4),IF(D13=45,MIN(K4:BC4),IF(D13=46,MIN(K4:BD4),IF(D13=47,MIN(K4:BE4),IF(D13=48,MIN(K4:BF4)," "))))))) ->  | F37: k= | G37: =G23 -> 1 | L37: M48-55 | M37: =IF(D13=48,BF4,IF(D13=49,BG4,IF(D13=50,BH4,IF(D13=51,BI4,IF(D13=52,BJ4,IF(D13=53,BK4,IF(D13=54,BL4,IF(D13=55,BM4,0)))))))) -> 0 | O37: E ges | P37: =P35+P33 -> 2.403992906 | R37: Max.Zyk/min | S37: =60/S36 -> 120
C38: M49-55 | D38: =IF(D13=49,MIN(K4:BG4),IF(D13=50,MIN(K4:BH4),IF(D13=51,MIN(K4:BI4),IF(D13=52,MIN(K4:BJ4),IF(D13=53,MIN(K4:BK4),IF(D13=54,MIN(K4:BL4),IF(D13=55,MIN(K4:BM4)," "))))))) ->  | F38: alpha= | G38: =G34/((G35+G36)*POWER(G37,2)) -> 1750 | L38: M56-63 | M38: =IF(D13=56,BN4,IF(D13=57,BO4,IF(D13=58,BP4,IF(D13=59,BQ4,IF(D13=60,BR4,IF(D13=61,BS4,IF(D13=62,BT4,IF(D13=63,BU4,0)))))))) -> 0.7
C39: M56-62 | D39: =IF(D13=56,MIN(K4:BN4),IF(D13=57,MIN(K4:BO4),IF(D13=58,MIN(K4:BP4),IF(D13=59,MIN(K4:BQ4),IF(D13=60,MIN(K4:BR4),IF(D13=61,MIN(K4:BS4),IF(D13=62,MIN(K4:BT4)," "))))))) -> 0.7 | F39: PI= | G39: =PI() -> 3.141592654 | L39: M64 | M39: =IF(D13=64,BV4,0) -> 0
C40: M63-64 | D40: =IF(D13=63,MIN(K4:BU4),IF(D13=64,MIN(K4:BV4)," ")) ->  | F40: beta= | G40: =G26 -> 180 | R40: Angaben Stoßdämpferhersteller
F41: phi= | G41: =G39*G40/180 -> 3.141592654 | R41: Max.Zyk/min | S41: =-(('Allgemeine Werte'!J16-'Allgemeine Werte'!I16)/V41)*(G21-V41)+'Allgemeine Werte'!I16 -> 37 | U41: Jmax= | V41: =Eingabe1!I40 -> 0.0050000104
F42: Omega= | G42: =SQRT(2*G38*G41) -> 104.8597839
F44: Ts= | G44: =G42/G38*1.6 -> 0.09587180246
A45: Zurückdrehen
C49: Startwinkel | D49: =D9 -> 180 | J49: M= | K49: =IF($F14=TRUE,0.7,0.7+(9.81*$C3*($E3/1000)*K54)) -> 0.7 | L49: 0.7 | M49: 0.7 | N49: 0.7 | O49: 0.7 | P49: 0.7 | Q49: 0.7 | R49: 0.7 | S49: 0.7 | T49: 0.7 | U49: 0.7 | V49: 0.7 | W49: 0.7 | X49: 0.7 | Y49: 0.7 | Z49: 0.7 | AA49: 0.7 | AB49: 0.7 | AC49: 0.7 | AD49: 0.7 | AE49: 0.7 | AF49: 0.7 | AG49: 0.7 | AH49: 0.7 | AI49: 0.7 | AJ49: 0.7 | AK49: 0.7 | AL49: 0.7 | AM49: 0.7 | AN49: 0.7 | AO49: 0.7 | AP49: 0.7 | AQ49: =IF($F14=TRUE,0.7,0.7+(9.81*$C3*($E3/1000)*AQ54)) -> 0.7 | AR49: 0.7 | AS49: 0.7 | AT49: 0.7 | AU49: 0.7 | AV49: 0.7 | AW49: 0.7 | AX49: 0.7 | AY49: 0.7 | AZ49: 0.7 | BA49: 0.7 | BB49: 0.7 | BC49: 0.7 | BD49: 0.7 | BE49: 0.7 | BF49: 0.7 | BG49: 0.7 | BH49: 0.7 | BI49: 0.7 | BJ49: 0.7 | BK49: 0.7 | BL49: 0.7 | BM49: 0.7 | BN49: 0.7 | BO49: 0.7 | BP49: 0.7 | BQ49: 0.7 | BR49: 0.7 | BS49: 0.7 | BT49: 0.7 | BU49: 0.7 | BV49: 0.7
C50: sin Startpos | D50: =SIN((D49)*PI()/180) -> 1.225148455e-16
C51: Schwenkw. | D51: =D8 -> 180 | J51: beta= | K51: =K6 -> 3 | L51: =K51 -> 3 | M51: 3 | N51: 3 | O51: 3 | P51: 3 | Q51: 3 | R51: 3 | S51: 3 | T51: 3 | U51: 3 | V51: 3 | W51: 3 | X51: 3 | Y51: 3 | Z51: 3 | AA51: 3 | AB51: 3 | AC51: 3 | AD51: 3 | AE51: 3 | AF51: 3 | AG51: 3 | AH51: 3 | AI51: 3 | AJ51: 3 | AK51: 3 | AL51: 3 | AM51: 3 | AN51: 3 | AO51: 3 | AP51: 3 | AQ51: 3 | AR51: =AQ51 -> 3 | AS51: 3 | AT51: 3 | AU51: 3 | AV51: 3 | AW51: 3 | AX51: 3 | AY51: 3 | AZ51: 3 | BA51: 3 | BB51: 3 | BC51: 3 | BD51: 3 | BE51: 3 | BF51: 3 | BG51: 3 | BH51: 3 | BI51: 3 | BJ51: 3 | BK51: 3 | BL51: 3 | BM51: 3 | BN51: 3 | BO51: 3 | BP51: 3 | BQ51: 3 | BR51: 3 | BS51: 3 | BT51: 3 | BU51: 3 | BV51: 3
C52: Endwinkel | D52: =IF(F16=TRUE,D49+D51,D49-D51) -> 0
C53: sin Endpos | D53: =SIN((D52)*PI()/180) -> 0 | J53: Startwinkel | K53: =D49 -> 180 | L53: =IF($F16=TRUE,K53+K51,K53-K51) -> 177 | M53: 174 | N53: 171 | O53: 168 | P53: 165 | Q53: 162 | R53: 159 | S53: 156 | T53: 153 | U53: 150 | V53: 147 | W53: 144 | X53: 141 | Y53: 138 | Z53: 135 | AA53: 132 | AB53: 129 | AC53: 126 | AD53: 123 | AE53: 120 | AF53: 117 | AG53: 114 | AH53: 111 | AI53: 108 | AJ53: 105 | AK53: 102 | AL53: 99 | AM53: 96 | AN53: 93 | AO53: 90 | AP53: 87 | AQ53: 84 | AR53: =IF($F16=TRUE,AQ53+AQ51,AQ53-AQ51) -> 81 | AS53: 78 | AT53: 75 | AU53: 72 | AV53: 69 | AW53: 66 | AX53: 63 | AY53: 60 | AZ53: 57 | BA53: 54 | BB53: 51 | BC53: 48 | BD53: 45 | BE53: 42 | BF53: 39 | BG53: 36 | BH53: 33 | BI53: 30 | BJ53: 27 | BK53: 24 | BL53: 21 | BM53: 18 | BN53: 15 | BO53: 12 | BP53: 9 | BQ53: 6 | BR53: 3 | BS53: 0 | BT53: -3 | BU53: -6 | BV53: -9
J54: sin | K54: =IF($F16=TRUE,SIN((K53)*PI()/180),-SIN((K53)*PI()/180)) -> -1.225148455e-16 | L54: -0.05233595624 | M54: -0.1045284633 | N54: -0.156434465 | O54: -0.2079116908 | P54: -0.2588190451 | Q54: -0.3090169944 | R54: -0.3583679495 | S54: -0.4067366431 | T54: -0.4539904997 | U54: -0.5 | V54: -0.544639035 | W54: -0.5877852523 | X54: -0.629320391 | Y54: -0.6691306064 | Z54: -0.7071067812 | AA54: -0.7431448255 | AB54: -0.7771459615 | AC54: -0.8090169944 | AD54: -0.8386705679 | AE54: -0.8660254038 | AF54: -0.8910065242 | AG54: -0.9135454576 | AH54: -0.9335804265 | AI54: -0.9510565163 | AJ54: -0.9659258263 | AK54: -0.9781476007 | AL54: -0.9876883406 | AM54: -0.9945218954 | AN54: -0.9986295348 | AO54: -1 | AP54: -0.9986295348 | AQ54: =IF($F16=TRUE,SIN((AQ53)*PI()/180),-SIN((AQ53)*PI()/180)) -> -0.9945218954 | AR54: -0.9876883406 | AS54: -0.9781476007 | AT54: -0.9659258263 | AU54: -0.9510565163 | AV54: -0.9335804265 | AW54: -0.9135454576 | AX54: -0.8910065242 | AY54: -0.8660254038 | AZ54: -0.8386705679 | BA54: -0.8090169944 | BB54: -0.7771459615 | BC54: -0.7431448255 | BD54: -0.7071067812 | BE54: -0.6691306064 | BF54: -0.629320391 | BG54: -0.5877852523 | BH54: -0.544639035 | BI54: -0.5 | BJ54: -0.4539904997 | BK54: -0.4067366431 | BL54: -0.3583679495 | BM54: -0.3090169944 | BN54: -0.2588190451 | BO54: -0.2079116908 | BP54: -0.156434465 | BQ54: -0.1045284633 | BR54: -0.05233595624 | BS54: 0 | BT54: 0.05233595624 | BU54: 0.1045284633 | BV54: 0.156434465
K56: 1 | L56: 2 | M56: 3 | N56: 4 | O56: 5 | P56: 6 | Q56: 7 | R56: 8 | S56: 9 | T56: 10 | U56: 11 | V56: 12 | W56: 13 | X56: 14 | Y56: 15 | Z56: 16 | AA56: 17 | AB56: 18 | AC56: 19 | AD56: 20 | AE56: 21 | AF56: 22 | AG56: 23 | AH56: 24 | AI56: 25 | AJ56: 26 | AK56: 27 | AL56: 28 | AM56: 29 | AN56: 30 | AO56: 31 | AP56: 32 | AQ56: 33 | AR56: 34 | AS56: 35 | AT56: 36 | AU56: 37 | AV56: 38 | AW56: 39 | AX56: 40 | AY56: 41 | AZ56: 42 | BA56: 43 | BB56: 44 | BC56: 45 | BD56: 46 | BE56: 47 | BF56: 48 | BG56: 49 | BH56: 50 | BI56: 51 | BJ56: 52 | BK56: 53 | BL56: 54 | BM56: 55 | BN56: 56 | BO56: 57 | BP56: 58 | BQ56: 59 | BR56: 60 | BS56: 61 | BT56: 62 | BU56: 63 | BV56: 64
A57: Mittelwert des Antriebsmoments über Schwenkbereich
C58: Mn= | D58: =MAX(D59:D67) -> 0.7 | F58: M= | G58: =D58 -> 0.7
C59: Mn1-7 | D59: =IF(D13=0,0,IF(D13=1,K63,IF(D13=2,L63,IF(D13=3,M63,IF(D13=4,N63,IF(D13=5,O63,IF(D13=6,P63,IF(D13=7,Q63,0)))))))) -> 0 | F59: J= | G59: =G21 -> 0
C60: Mn8-15 | D60: =IF(D13=8,R63,IF(D13=9,S63,IF(D13=10,T63,IF(D13=11,U63,IF(D13=12,V63,IF(D13=13,W63,IF(D13=14,X63,IF(D13=15,Y63,0)))))))) -> 0 | F60: JE= | G60: =G22 -> 0.0004
C61: Mn16-23 | D61: =IF(D13=16,Z63,IF(D13=17,AA63,IF(D13=18,AB63,IF(D13=19,AC63,IF(D13=20,AD63,IF(D13=21,AE63,IF(D13=22,AF63,IF(D13=23,AG63,0)))))))) -> 0 | F61: k= | G61: =G23 -> 1
C62: Mn24-31 | D62: =IF(D13=24,AH63,IF(D13=25,AI63,IF(D13=26,AJ63,IF(D13=27,AK63,IF(D13=28,AL63,IF(D13=29,AM63,IF(D13=30,AN63,IF(D13=31,AO63,0)))))))) -> 0 | F62: alpha= | G62: =G58/((G59+G60)*POWER(G61,2)) -> 1750 | J62: Summe M | K62: =K49 -> 0.7 | L62: =K62+L49 -> 1.4 | M62: 2.1 | N62: 2.8 | O62: 3.5 | P62: 4.2 | Q62: 4.9 | R62: 5.6 | S62: 6.3 | T62: 7 | U62: 7.7 | V62: 8.4 | W62: 9.1 | X62: 9.8 | Y62: 10.5 | Z62: 11.2 | AA62: 11.9 | AB62: 12.6 | AC62: 13.3 | AD62: 14 | AE62: 14.7 | AF62: 15.4 | AG62: 16.1 | AH62: 16.8 | AI62: 17.5 | AJ62: 18.2 | AK62: 18.9 | AL62: 19.6 | AM62: 20.3 | AN62: 21 | AO62: 21.7 | AP62: 22.4 | AQ62: 23.1 | AR62: =AQ62+AR49 -> 23.8 | AS62: 24.5 | AT62: 25.2 | AU62: 25.9 | AV62: 26.6 | AW62: 27.3 | AX62: 28 | AY62: 28.7 | AZ62: 29.4 | BA62: 30.1 | BB62: 30.8 | BC62: 31.5 | BD62: 32.2 | BE62: 32.9 | BF62: 33.6 | BG62: 34.3 | BH62: 35 | BI62: 35.7 | BJ62: 36.4 | BK62: 37.1 | BL62: 37.8 | BM62: 38.5 | BN62: 39.2 | BO62: 39.9 | BP62: 40.6 | BQ62: 41.3 | BR62: 42 | BS62: 42.7 | BT62: 43.4 | BU62: 44.1 | BV62: 44.8
C63: Mn32-39 | D63: =IF(D13=32,AP63,IF(D13=33,AQ63,IF(D13=34,AR63,IF(D13=35,AS63,IF(D13=36,AT63,IF(D13=37,AU63,IF(D13=38,AV63,IF(D13=39,AW63,0)))))))) -> 0 | F63: PI= | G63: =PI() -> 3.141592654 | J63: Mittelwert Mm | K63: =K62/K56 -> 0.7 | L63: 0.7 | M63: 0.7 | N63: 0.7 | O63: 0.7 | P63: 0.7 | Q63: 0.7 | R63: 0.7 | S63: 0.7 | T63: 0.7 | U63: 0.7 | V63: 0.7 | W63: 0.7 | X63: 0.7 | Y63: 0.7 | Z63: 0.7 | AA63: 0.7 | AB63: 0.7 | AC63: 0.7 | AD63: 0.7 | AE63: 0.7 | AF63: 0.7 | AG63: 0.7 | AH63: 0.7 | AI63: 0.7 | AJ63: 0.7 | AK63: 0.7 | AL63: 0.7 | AM63: 0.7 | AN63: 0.7 | AO63: 0.7 | AP63: 0.7 | AQ63: =AQ62/AQ56 -> 0.7 | AR63: 0.7 | AS63: 0.7 | AT63: 0.7 | AU63: 0.7 | AV63: 0.7 | AW63: 0.7 | AX63: 0.7 | AY63: 0.7 | AZ63: 0.7 | BA63: 0.7 | BB63: 0.7 | BC63: 0.7 | BD63: 0.7 | BE63: 0.7 | BF63: 0.7 | BG63: 0.7 | BH63: 0.7 | BI63: 0.7 | BJ63: 0.7 | BK63: 0.7 | BL63: 0.7 | BM63: 0.7 | BN63: 0.7 | BO63: 0.7 | BP63: 0.7 | BQ63: 0.7 | BR63: 0.7 | BS63: 0.7 | BT63: 0.7 | BU63: 0.7 | BV63: 0.7
C64: Mn40-47 | D64: =IF(D13=40,AX63,IF(D13=41,AY63,IF(D13=42,AZ63,IF(D13=43,BA63,IF(D13=44,BB63,IF(D13=45,BC63,IF(D13=46,BD63,IF(D13=47,BE63,0)))))))) -> 0 | F64: beta= | G64: =D51 -> 180
C65: Mn48-55 | D65: =IF(D13=48,BF63,IF(D13=49,BG63,IF(D13=50,BH63,IF(D13=51,BI63,IF(D13=52,BJ63,IF(D13=53,BK63,IF(D13=54,BL63,IF(D13=55,BM63,0)))))))) -> 0 | F65: phi= | G65: =G63*G64/180 -> 3.141592654
C66: Mn56-63 | D66: =IF(D13=56,BN63,IF(D13=57,BO63,IF(D13=58,BP63,IF(D13=59,BQ63,IF(D13=60,BR63,IF(D13=61,BS63,IF(D13=62,BT63,IF(D13=63,BU63,0)))))))) -> 0.7 | F66: Omega= | G66: =SQRT(2*G62*G65) -> 104.8597839
C67: M64 | D67: =IF(D13=64,BV63,0) -> 0 | I67: Tsmax für Schwenkzeit vor:
F68: Ts= | G68: =G66/G62*1.6 -> 0.09587180246 | I68: =MAX(G68,G82) -> 0.09587180246
I70: Omega min. für Ber. E kin.:
A71: Minimale Antriebsmoment im Schwenkbereich | F71: Werte für Drehachse vertikal | I71: =MIN(G66,G80) -> 104.8597839
C72: M min.= | D72: =MAX(D73:D82) -> 0.7 | F72: M= | G72: 0.7
C73: M1-6 | D73: =IF(D13=0,0,IF(D13=1,K49,IF(D13=2,MIN(K49:L49),IF(D13=3,MIN(K49:M49),IF(D13=4,MIN(K49:N49),IF(D13=5,MIN(K49:O49),IF(D13=6,MIN(K49:P49)," "))))))) ->  | F73: J= | G73: =G59 -> 0 | L73: Antriebsmoment in Endposition
C74: M7-13 | D74: =IF(D13=7,MIN(K49:Q49),IF(D13=8,MIN(K49:R49),IF(D13=9,MIN(K49:S49),IF(D13=10,MIN(K49:T49),IF(D13=11,MIN(K49:U49),IF(D13=12,MIN(K49:V49),IF(D13=13,MIN(K49:W49)," "))))))) ->  | F74: JE= | G74: =G60 -> 0.0004 | L74: für Energieberechnung | O74: Energieberechnung
C75: M14-20 | D75: =IF(D13=14,MIN(K49:X49),IF(D13=15,MIN(K49:Y49),IF(D13=16,MIN(K49:Z49),IF(D13=17,MIN(K49:AA49),IF(D13=18,MIN(K49:AB49),IF(D13=19,MIN(K49:AC49),IF(D13=20,MIN(K49:AD49)," "))))))) ->  | F75: k= | G75: =G61 -> 1 | L75: M= | M75: =MAX(M76:M84) -> 0.7 | O75: M= | P75: =M75 -> 0.7
C76: M21-27 | D76: =IF(D13=21,MIN(K49:AE49),IF(D13=22,MIN(K49:AF49),IF(D13=23,MIN(K49:AG49),IF(D13=24,MIN(K49:AH49),IF(D13=25,MIN(K49:AI49),IF(D13=26,MIN(K49:AJ49),IF(D13=27,MIN(K49:AK49)," "))))))) ->  | F76: alpha= | G76: =G72/((G73+G74)*POWER(G75,2)) -> 1750 | L76: M1-7 | M76: =IF(D13=0,0,IF(D13=1,K49,IF(D13=2,L49,IF(D13=3,M49,IF(D13=4,N49,IF(D13=5,O49,IF(D13=6,P49,IF(D13=7,Q49,0)))))))) -> 0 | O76: r= | P76: 0.0205
C77: M28-34 | D77: =IF(D13=28,MIN(K49:AL49),IF(D13=29,MIN(K49:AM49),IF(D13=30,MIN(K49:AN49),IF(D13=31,MIN(K49:AO49),IF(D13=32,MIN(K49:AP49),IF(D13=33,MIN(K49:AQ49),IF(D13=34,MIN(K49:AR49)," "))))))) ->  | F77: PI= | G77: =PI() -> 3.141592654 | L77: M8-15 | M77: =IF(D13=8,R49,IF(D13=9,S49,IF(D13=10,T49,IF(D13=11,U49,IF(D13=12,V49,IF(D13=13,W49,IF(D13=14,X49,IF(D13=15,Y49,0)))))))) -> 0 | O77: s= | P77: ='Allgemeine Werte'!L16 -> 0.006
C78: M35-41 | D78: =IF(D13=35,MIN(K49:AS49),IF(D13=36,MIN(K49:AT49),IF(D13=37,MIN(K49:AU49),IF(D13=38,MIN(K49:AV49),IF(D13=39,MIN(K49:AW49),IF(D13=40,MIN(K49:AX49),IF(D13=41,MIN(K49:AY49)," "))))))) ->  | F78: beta= | G78: =G64 -> 180 | L78: M16-23 | M78: =IF(D13=16,Z49,IF(D13=17,AA49,IF(D13=18,AB49,IF(D13=19,AC49,IF(D13=20,AD49,IF(D13=21,AE49,IF(D13=22,AF49,IF(D13=23,AG49,0)))))))) -> 0 | O78: E antrieb | P78: =P75*P77/P76 -> 0.2048780488
C79: M42-48 | D79: =IF(D13=42,MIN(K49:AZ49),IF(D13=43,MIN(K49:BA49),IF(D13=44,MIN(K49:BB49),IF(D13=45,MIN(K49:BC49),IF(D13=46,MIN(K49:BD49),IF(D13=47,MIN(K49:BE49),IF(D13=48,MIN(K49:BF49)," "))))))) ->  | F79: phi= | G79: =G77*G78/180 -> 3.141592654 | L79: M24-31 | M79: =IF(D13=24,AH49,IF(D13=25,AI49,IF(D13=26,AJ49,IF(D13=27,AK49,IF(D13=28,AL49,IF(D13=29,AM49,IF(D13=30,AN49,IF(D13=31,AO49,0)))))))) -> 0
C80: M49-55 | D80: =IF(D13=49,MIN(K49:BG49),IF(D13=50,MIN(K49:BH49),IF(D13=51,MIN(K49:BI49),IF(D13=52,MIN(K49:BJ49),IF(D13=53,MIN(K49:BK49),IF(D13=54,MIN(K49:BL49),IF(D13=55,MIN(K49:BM49)," "))))))) ->  | F80: Omega= | G80: =SQRT(2*G76*G79) -> 104.8597839 | L80: M32-39 | M80: =IF(D13=32,AP49,IF(D13=33,AQ49,IF(D13=34,AR49,IF(D13=35,AS49,IF(D13=36,AT49,IF(D13=37,AU49,IF(D13=38,AV49,IF(D13=39,AW49,0)))))))) -> 0 | O80: E kin. | P80: =((G59+G60)*POWER(N98,2))/2 -> 2.199114858
C81: M56-62 | D81: =IF(D13=56,MIN(K49:BN49),IF(D13=57,MIN(K49:BO49),IF(D13=58,MIN(K49:BP49),IF(D13=59,MIN(K49:BQ49),IF(D13=60,MIN(K49:BR49),IF(D13=61,MIN(K49:BS49),IF(D13=62,MIN(K49:BT49)," "))))))) -> 0.7 | L81: M40-47 | M81: =IF(D13=40,AX49,IF(D13=41,AY49,IF(D13=42,AZ49,IF(D13=43,BA49,IF(D13=44,BB49,IF(D13=45,BC49,IF(D13=46,BD49,IF(D13=47,BE49,0)))))))) -> 0
C82: M63-64 | D82: =IF(D13=63,MIN(K49:BU49),IF(D13=64,MIN(K49:BV49)," ")) ->  | F82: Ts= | G82: =G80/G76*1.6 -> 0.09587180246 | L82: M48-55 | M82: =IF(D13=48,BF49,IF(D13=49,BG49,IF(D13=50,BH49,IF(D13=51,BI49,IF(D13=52,BJ49,IF(D13=53,BK49,IF(D13=54,BL49,IF(D13=55,BM49,0)))))))) -> 0 | O82: E ges | P82: =P80+P78 -> 2.403992906
L83: M56-63 | M83: =IF(D13=56,BN49,IF(D13=57,BO49,IF(D13=58,BP49,IF(D13=59,BQ49,IF(D13=60,BR49,IF(D13=61,BS49,IF(D13=62,BT49,IF(D13=63,BU49,0)))))))) -> 0.7
L84: M64 | M84: =IF(D13=64,BV49,0) -> 0
A90: Überprüfung der mechanischen Belastung
A92: Drehachse Vertikal | J92: Drehachse Horizontal
D93: Berechnung der dyn. Kraft | M93: Berechnung der dyn. Kraft
A94: Statische Belastung | D94: verursacht durch Masse m | G94: Dynamische Belastung | J94: Statische Belastung | M94: verursacht durch Masse m | P94: Dynamische Belastung
D95: ( Auch Drehen vor ) | M95: ( Zurückdrehen )
A96: Xs | B96: =A3/1000 -> 0 | D96: Omega | E96: =I33 -> 104.8597839 | G96: Z bis OK-Dr. | H96: 0.011 | M96: Omega | N96: =I71 -> 104.8597839 | P96: Z bis OK-Dr. | Q96: =H96 -> 0.011
A97: Ys | B97: =B3/1000 -> 0 | D97: Prozent | E97: =Eingabe1!O30 -> 1 | G97: Z | H97: =ABS(I97) -> 0.011 | I97: =H96+B98 -> 0.011 | M97: Prozent | N97: =E97 -> 1 | P97: Z | Q97: =H97 -> 0.011
A98: Zs | B98: =Eingabe1!N12/1000 -> 0 | D98: Omega red. | E98: =E96*E97 -> 104.8597839 | G98: M2=Fdyn*Z | H98: =E109*H97 -> 0 | M98: Omega red. | N98: =N96*N97 -> 104.8597839 | P98: M2=Fdyn*Z | Q98: =Q109*Q97 -> 0
A99: R | B99: =SQRT(POWER(B96,2)+POWER(B97,2)) -> 0
A100: m | B100: =C3 -> 0 | D100: R | E100: =B99 -> 0 | G100: r | H100: 0.0205 | M100: R | N100: =B99 -> 0 | P100: r | Q100: =H100 -> 0.0205
A101: F | B101: =B100*9.81 -> 0 | D101: Omega | E101: =E98 -> 104.8597839 | J101: F | K101: =B101 -> 0 | M101: Omega | N101: =N98 -> 104.8597839
A102: M1=F*R | B102: =B101*B99 -> 0 | D102: v | E102: =E100*E101 -> 0 | G102: M3=Fdyn*(R-r) | H102: =E109*(B99-H100) -> 0 | J102: M1=F*Z | K102: =K101*H97 -> 0 | M102: v | N102: =N100*N101 -> 0 | P102: M3=Fdyn*(R-r) | Q102: =Q109*(B99-Q100) -> 0
D103: PI | E103: =PI() -> 3.141592654 | M103: PI | N103: =PI() -> 3.141592654
A104: M max | B104: 8 | D104: Aufprallwink. | E104: ='Allgemeine Werte'!P16 -> 11 | M104: Aufprallwink. | N104: =E104 -> 11
A105: F ax max | B105: 800 | D105: s (Dämpfweg) | E105: =TAN(E104*E103/180)*E100 -> 0 | M105: s (Dämpfweg) | N105: =TAN(N104*N103/180)*N100 -> 0
A106: F rad max | B106: 540 | D106: a | E106: =IF(E100=0,0,POWER(E102,2)/(2*E105)) -> 0 | M106: a | N106: =IF(N100=0,0,POWER(N102,2)/(2*N105)) -> 0
A107: M rad max | B107: =H100*B106 -> 11.07
D108: m | E108: =B100 -> 0 | M108: m | N108: =B100 -> 0
D109: Fdyn | E109: =E108*E106 -> 0 | M109: Fdyn | N109: =N108*N106 -> 0 | P109: F dyn max | Q109: =MAX(E109,N109) -> 0
A110: Belastung durch M antr. | J110: Belastung durch M antr.
A111: M antr. | B111: 0.7
D112: phi | E112: =G27 -> 3.141592654 | J112: M antr. Ende vor | K112: =M30 -> 0.7 | M112: phi | N112: =G65 -> 3.141592654
D113: a | E113: =POWER(E98,2)/(2*E112) -> 1750 | J113: M antr. Ende rück | K113: =M75 -> 0.7 | M113: a | N113: =POWER(N98,2)/(2*N112) -> 1750
D114: t | E114: =E101/E113*1.6 -> 0.09587180246 | J114: M antr. Ende max | K114: =MAX(K112,K113) -> 0.7 | M114: t | N114: =N101/N113*1.6 -> 0.09587180246
A116: Belastungsgleichung: F/Faxmax + M1/Mmax + M2/Mmax = | J116: Belastungsgleichung: M1/Mmax + M2/Mmax =
A117: ( Axiallager stat + dyn. ) | D117: =B101/B105+B102/B104+H98/B104 -> 0 | J117: ( Axiallager stat + dyn. ) | M117: =K102/B104+Q98/B104 -> 0
A119: Belastungsgleichung: F/Faxmax + M1/Mmax = | J119: Belastungsgleichung: M1/Mmax + M2/Mmax =
A120: ( Axiallager stat ) | D120: =B101/B105+B102/B104 -> 0 | J120: ( Axiallager stat ) | M120: =K102/B104 -> 0
A122: Belastungsgleichung: M3/Mradmax + M antr./Mradmax = | J122: Belastungsgleichung: F/Fradmax + M3/Mradmax + M antr/Mradmax =
A123: ( Radiallager stat + dyn. ) | D123: =H102/B107+B111/B107 -> 0.06323396567 | J123: ( Radiallager stat + dyn ) | M123: =K101/B106+Q102/B107+K114/B107 -> 0.06323396567
A125: Belastungsgleichung: M antr./Mradmax = | J125: Belastungsgleichung: F/Fradmax + M antr./Mradmax =
A126: ( Radiallager stat ) | D126: =B111/B107 -> 0.06323396567 | J126: ( Radiallager stat ) | M126: =K101/B106+K114/B107 -> 0.06323396567
A128: Lagerbelastung Drehachse vertikal : | D128: =MAX(D117,D120,D123,D126) -> 0.06323396567 | E128: Lagerbelastung: | G128: =IF(F14=TRUE,D128,M128) -> 0.06323396567 | J128: Lagerbelastung Drehachse horizontal : | M128: =MAX(M117,M120,M123,M126) -> 0.06323396567

Sheet BerRM110
A1: Drehen vor
A2: x | B2: y | C2: m | D2: x2*y2 | E2: R= | F2: sin | G2: grad
A3: =Eingabe1!N10 -> 0 | B3: =Eingabe1!N11 -> 0 | C3: =Eingabe1!N9 -> 0 | D3: =POWER(A3,2)+POWER(B3,2) -> 0 | E3: =SQRT(D3) -> 0 | F3: =IF(E3=0,0,A3/E3) -> 0 | G3: =ASIN(F3)*180/PI() -> 0
G4: =180-G3 -> 180 | J4: M= | K4: =IF($F14=TRUE,1.95,1.95+(9.81*$C3*($E3/1000)*K9)) -> 1.95 | L4: 1.95 | M4: 1.95 | N4: 1.95 | O4: 1.95 | P4: 1.95 | Q4: 1.95 | R4: 1.95 | S4: 1.95 | T4: 1.95 | U4: 1.95 | V4: 1.95 | W4: 1.95 | X4: 1.95 | Y4: 1.95 | Z4: 1.95 | AA4: 1.95 | AB4: 1.95 | AC4: 1.95 | AD4: 1.95 | AE4: 1.95 | AF4: 1.95 | AG4: 1.95 | AH4: 1.95 | AI4: 1.95 | AJ4: 1.95 | AK4: 1.95 | AL4: 1.95 | AM4: 1.95 | AN4: 1.95 | AO4: 1.95 | AP4: 1.95 | AQ4: =IF($F14=TRUE,1.95,1.95+(9.81*$C3*($E3/1000)*AQ9)) -> 1.95 | AR4: 1.95 | AS4: 1.95 | AT4: 1.95 | AU4: 1.95 | AV4: 1.95 | AW4: 1.95 | AX4: 1.95 | AY4: 1.95 | AZ4: 1.95 | BA4: 1.95 | BB4: 1.95 | BC4: 1.95 | BD4: 1.95 | BE4: 1.95 | BF4: 1.95 | BG4: 1.95 | BH4: 1.95 | BI4: 1.95 | BJ4: 1.95 | BK4: 1.95 | BL4: 1.95 | BM4: 1.95 | BN4: 1.95 | BO4: 1.95 | BP4: 1.95 | BQ4: 1.95 | BR4: 1.95 | BS4: 1.95 | BT4: 1.95 | BU4: 1.95 | BV4: 1.95
G5: =360+G3 -> 360
C6: Startwinkel | D6: =IF(AND(A3>=0,B3>=0),G3,IF(AND(A3>=0,B3<0),G4,IF(AND(A3<0,B3<0),G4,IF(AND(A3<0,B3>=0),G5,0)))) -> 0 | J6: beta= | K6: 3 | L6: =K6 -> 3 | M6: 3 | N6: 3 | O6: 3 | P6: 3 | Q6: 3 | R6: 3 | S6: 3 | T6: 3 | U6: 3 | V6: 3 | W6: 3 | X6: 3 | Y6: 3 | Z6: 3 | AA6: 3 | AB6: 3 | AC6: 3 | AD6: 3 | AE6: 3 | AF6: 3 | AG6: 3 | AH6: 3 | AI6: 3 | AJ6: 3 | AK6: 3 | AL6: 3 | AM6: 3 | AN6: 3 | AO6: 3 | AP6: 3 | AQ6: 3 | AR6: =AQ6 -> 3 | AS6: 3 | AT6: 3 | AU6: 3 | AV6: 3 | AW6: 3 | AX6: 3 | AY6: 3 | AZ6: 3 | BA6: 3 | BB6: 3 | BC6: 3 | BD6: 3 | BE6: 3 | BF6: 3 | BG6: 3 | BH6: 3 | BI6: 3 | BJ6: 3 | BK6: 3 | BL6: 3 | BM6: 3 | BN6: 3 | BO6: 3 | BP6: 3 | BQ6: 3 | BR6: 3 | BS6: 3 | BT6: 3 | BU6: 3 | BV6: 3
C7: sin Startpos | D7: =SIN((D6)*PI()/180) -> 0
C8: Schwenkw. | D8: =Eingabe1!M19 -> 180 | J8: Startwinkel | K8: =D6 -> 0 | L8: =IF($F16=TRUE,K8-K6,K8+K6) -> 3 | M8: 6 | N8: 9 | O8: 12 | P8: 15 | Q8: 18 | R8: 21 | S8: 24 | T8: 27 | U8: 30 | V8: 33 | W8: 36 | X8: 39 | Y8: 42 | Z8: 45 | AA8: 48 | AB8: 51 | AC8: 54 | AD8: 57 | AE8: 60 | AF8: 63 | AG8: 66 | AH8: 69 | AI8: 72 | AJ8: 75 | AK8: 78 | AL8: 81 | AM8: 84 | AN8: 87 | AO8: 90 | AP8: 93 | AQ8: 96 | AR8: =IF($F16=TRUE,AQ8-AQ6,AQ8+AQ6) -> 99 | AS8: 102 | AT8: 105 | AU8: 108 | AV8: 111 | AW8: 114 | AX8: 117 | AY8: 120 | AZ8: 123 | BA8: 126 | BB8: 129 | BC8: 132 | BD8: 135 | BE8: 138 | BF8: 141 | BG8: 144 | BH8: 147 | BI8: 150 | BJ8: 153 | BK8: 156 | BL8: 159 | BM8: 162 | BN8: 165 | BO8: 168 | BP8: 171 | BQ8: 174 | BR8: 177 | BS8: 180 | BT8: 183 | BU8: 186 | BV8: 189
C9: Endwinkel | D9: =IF(F16=TRUE,D6-D8,D6+D8) -> 180 | F9: Modulabhängige Zellen | J9: sin | K9: =IF($F16=TRUE,-SIN((K8)*PI()/180),SIN((K8)*PI()/180)) -> 0 | L9: 0.05233595624 | M9: 0.1045284633 | N9: 0.156434465 | O9: 0.2079116908 | P9: 0.2588190451 | Q9: 0.3090169944 | R9: 0.3583679495 | S9: 0.4067366431 | T9: 0.4539904997 | U9: 0.5 | V9: 0.544639035 | W9: 0.5877852523 | X9: 0.629320391 | Y9: 0.6691306064 | Z9: 0.7071067812 | AA9: 0.7431448255 | AB9: 0.7771459615 | AC9: 0.8090169944 | AD9: 0.8386705679 | AE9: 0.8660254038 | AF9: 0.8910065242 | AG9: 0.9135454576 | AH9: 0.9335804265 | AI9: 0.9510565163 | AJ9: 0.9659258263 | AK9: 0.9781476007 | AL9: 0.9876883406 | AM9: 0.9945218954 | AN9: 0.9986295348 | AO9: 1 | AP9: 0.9986295348 | AQ9: =IF($F16=TRUE,-SIN((AQ8)*PI()/180),SIN((AQ8)*PI()/180)) -> 0.9945218954 | AR9: 0.9876883406 | AS9: 0.9781476007 | AT9: 0.9659258263 | AU9: 0.9510565163 | AV9: 0.9335804265 | AW9: 0.9135454576 | AX9: 0.8910065242 | AY9: 0.8660254038 | AZ9: 0.8386705679 | BA9: 0.8090169944 | BB9: 0.7771459615 | BC9: 0.7431448255 | BD9: 0.7071067812 | BE9: 0.6691306064 | BF9: 0.629320391 | BG9: 0.5877852523 | BH9: 0.544639035 | BI9: 0.5 | BJ9: 0.4539904997 | BK9: 0.4067366431 | BL9: 0.3583679495 | BM9: 0.3090169944 | BN9: 0.2588190451 | BO9: 0.2079116908 | BP9: 0.156434465 | BQ9: 0.1045284633 | BR9: 0.05233595624 | BS9: 1.225148455e-16 | BT9: -0.05233595624 | BU9: -0.1045284633 | BV9: -0.156434465
C10: sin Endpos | D10: =SIN((D9)*PI()/180) -> 1.225148455e-16
F11: Werte aus Eingabeseite | K11: 1 | L11: 2 | M11: 3 | N11: 4 | O11: 5 | P11: 6 | Q11: 7 | R11: 8 | S11: 9 | T11: 10 | U11: 11 | V11: 12 | W11: 13 | X11: 14 | Y11: 15 | Z11: 16 | AA11: 17 | AB11: 18 | AC11: 19 | AD11: 20 | AE11: 21 | AF11: 22 | AG11: 23 | AH11: 24 | AI11: 25 | AJ11: 26 | AK11: 27 | AL11: 28 | AM11: 29 | AN11: 30 | AO11: 31 | AP11: 32 | AQ11: 33 | AR11: 34 | AS11: 35 | AT11: 36 | AU11: 37 | AV11: 38 | AW11: 39 | AX11: 40 | AY11: 41 | AZ11: 42 | BA11: 43 | BB11: 44 | BC11: 45 | BD11: 46 | BE11: 47 | BF11: 48 | BG11: 49 | BH11: 50 | BI11: 51 | BJ11: 52 | BK11: 53 | BL11: 54 | BM11: 55 | BN11: 56 | BO11: 57 | BP11: 58 | BQ11: 59 | BR11: 60 | BS11: 61 | BT11: 62 | BU11: 63 | BV11: 64
D12: =D8/K6 -> 60
D13: =ROUNDUP(D12,0) -> 60
F14: =IF(Eingabe1!C41=TRUE,FALSE,TRUE) -> TRUE | G14: Horizontaler Aufbau | J14: Summe M | K14: =K4 -> 1.95 | L14: =K14+L4 -> 3.9 | M14: 5.85 | N14: 7.8 | O14: 9.75 | P14: 11.7 | Q14: 13.65 | R14: 15.6 | S14: 17.55 | T14: 19.5 | U14: 21.45 | V14: 23.4 | W14: 25.35 | X14: 27.3 | Y14: 29.25 | Z14: 31.2 | AA14: 33.15 | AB14: 35.1 | AC14: 37.05 | AD14: 39 | AE14: 40.95 | AF14: 42.9 | AG14: 44.85 | AH14: 46.8 | AI14: 48.75 | AJ14: 50.7 | AK14: 52.65 | AL14: 54.6 | AM14: 56.55 | AN14: 58.5 | AO14: 60.45 | AP14: 62.4 | AQ14: 64.35 | AR14: =AQ14+AR4 -> 66.3 | AS14: 68.25 | AT14: 70.2 | AU14: 72.15 | AV14: 74.1 | AW14: 76.05 | AX14: 78 | AY14: 79.95 | AZ14: 81.9 | BA14: 83.85 | BB14: 85.8 | BC14: 87.75 | BD14: 89.7 | BE14: 91.65 | BF14: 93.6 | BG14: 95.55 | BH14: 97.5 | BI14: 99.45 | BJ14: 101.4 | BK14: 103.35 | BL14: 105.3 | BM14: 107.25 | BN14: 109.2 | BO14: 111.15 | BP14: 113.1 | BQ14: 115.05 | BR14: 117 | BS14: 118.95 | BT14: 120.9 | BU14: 122.85 | BV14: 124.8
J15: Mittelwert Mm | K15: =K14/K11 -> 1.95 | L15: 1.95 | M15: 1.95 | N15: 1.95 | O15: 1.95 | P15: 1.95 | Q15: 1.95 | R15: 1.95 | S15: 1.95 | T15: 1.95 | U15: 1.95 | V15: 1.95 | W15: 1.95 | X15: 1.95 | Y15: 1.95 | Z15: 1.95 | AA15: 1.95 | AB15: 1.95 | AC15: 1.95 | AD15: 1.95 | AE15: 1.95 | AF15: 1.95 | AG15: 1.95 | AH15: 1.95 | AI15: 1.95 | AJ15: 1.95 | AK15: 1.95 | AL15: 1.95 | AM15: 1.95 | AN15: 1.95 | AO15: 1.95 | AP15: 1.95 | AQ15: =AQ14/AQ11 -> 1.95 | AR15: 1.95 | AS15: 1.95 | AT15: 1.95 | AU15: 1.95 | AV15: 1.95 | AW15: 1.95 | AX15: 1.95 | AY15: 1.95 | AZ15: 1.95 | BA15: 1.95 | BB15: 1.95 | BC15: 1.95 | BD15: 1.95 | BE15: 1.95 | BF15: 1.95 | BG15: 1.95 | BH15: 1.95 | BI15: 1.95 | BJ15: 1.95 | BK15: 1.95 | BL15: 1.95 | BM15: 1.95 | BN15: 1.95 | BO15: 1.95 | BP15: 1.95 | BQ15: 1.95 | BR15: 1.95 | BS15: 1.95 | BT15: 1.95 | BU15: 1.95 | BV15: 1.95
A16: Mittelwert des Antriebsmoments über Schwenkbereich | F16: =IF(Eingabe1!C42=TRUE,TRUE,FALSE) -> FALSE | G16: Drehen im/gegen Uhrzeigersinn
C17: Mn= | D17: =MAX(D18:D26) -> 1.95 | O17: Gerundete Werte+Korrekturfaktoren | U17: Schwenkzeitkorrektur von J=0 bis J= | X17: 0.001
C18: Mn1-7 | D18: =IF(D13=0,0,IF(D13=1,K15,IF(D13=2,L15,IF(D13=3,M15,IF(D13=4,N15,IF(D13=5,O15,IF(D13=6,P15,IF(D13=7,Q15,0)))))))) -> 0 | K18: Schwenkzeit vor | N18: =E114 -> 0.09082232411 | O18: =ROUND(N18+U22+U26,2) -> 0.2 | P18: Zykluszeit | Q18: =O18+O19 -> 0.4 | R18: Zyklen/min | S18: =60/Q18 -> 150 | U18: Korrekturfaktor bei J=0 : | X18: 0.03
C19: Mn8-15 | D19: =IF(D13=8,R15,IF(D13=9,S15,IF(D13=10,T15,IF(D13=11,U15,IF(D13=12,V15,IF(D13=13,W15,IF(D13=14,X15,IF(D13=15,Y15,0)))))))) -> 0 | K19: Schwenkzeit zurück | N19: =N114 -> 0.09082232411 | O19: =ROUND(N19+U22+U26,2) -> 0.2 | U19: bis J= siehe oben ! (Gerade) : | X19: 0
C20: Mn16-23 | D20: =IF(D13=16,Z15,IF(D13=17,AA15,IF(D13=18,AB15,IF(D13=19,AC15,IF(D13=20,AD15,IF(D13=21,AE15,IF(D13=22,AF15,IF(D13=23,AG15,0)))))))) -> 0 | F20: M= | G20: =D17 -> 1.95 | U20: ( Faktor wird in diesem J-Bereich zur berechneten Zeit addiert ! )
C21: Mn24-31 | D21: =IF(D13=24,AH15,IF(D13=25,AI15,IF(D13=26,AJ15,IF(D13=27,AK15,IF(D13=28,AL15,IF(D13=29,AM15,IF(D13=30,AN15,IF(D13=31,AO15,0)))))))) -> 0 | F21: J= | G21: =Eingabe1!N8 -> 0 | K21: Mmin im Schwenkbereich vor | N21: =D30 -> 1.95 | O21: Mmin | P21: =MIN(N21:N22) -> 1.95 | R21: M-Mmin/M | S21: =(1.95-P21)/1.95 -> 0 | U21: =-(X18/X17)*(G21-X17) -> 0.03
C22: Mn32-39 | D22: =IF(D13=32,AP15,IF(D13=33,AQ15,IF(D13=34,AR15,IF(D13=35,AS15,IF(D13=36,AT15,IF(D13=37,AU15,IF(D13=38,AV15,IF(D13=39,AW15,0)))))))) -> 0 | F22: JE= | G22: 0.001 | K22: Mmin im Schwenkbereich zurück | N22: =D72 -> 1.95 | U22: =IF(G21>=X17,0,U21) -> 0.03
C23: Mn40-47 | D23: =IF(D13=40,AX15,IF(D13=41,AY15,IF(D13=42,AZ15,IF(D13=43,BA15,IF(D13=44,BB15,IF(D13=45,BC15,IF(D13=46,BD15,IF(D13=47,BE15,0)))))))) -> 0 | F23: k= | G23: 1 | H23: K-Wert (1.6) in Ts eingearbeitet !
C24: Mn48-55 | D24: =IF(D13=48,BF15,IF(D13=49,BG15,IF(D13=50,BH15,IF(D13=51,BI15,IF(D13=52,BJ15,IF(D13=53,BK15,IF(D13=54,BL15,IF(D13=55,BM15,0)))))))) -> 0 | F24: alpha= | G24: =G20/((G21+G22)*POWER(G23,2)) -> 1950 | K24: E ges vor | N24: =P37 -> 6.789935462 | O24: E ges max | P24: =MAX(N24:N25) -> 6.789935462 | R24: E zul/Hub | S24: ='Allgemeine Werte'!G18 -> 9 | U24: Schwenkzeitkorrektur gem. Schunkmessungen
C25: Mn56-63 | D25: =IF(D13=56,BN15,IF(D13=57,BO15,IF(D13=58,BP15,IF(D13=59,BQ15,IF(D13=60,BR15,IF(D13=61,BS15,IF(D13=62,BT15,IF(D13=63,BU15,0)))))))) -> 1.95 | F25: PI= | G25: =PI() -> 3.141592654 | K25: E ges zurück | N25: =P82 -> 6.789935462 | U25: (Zeit wird zu Schwenkzeiten (O18,O19) addiert)
C26: Mn64 | D26: =IF(D13=64,BV15,0) -> 0 | F26: beta= | G26: =D8 -> 180 | R26: E ges/E zul | S26: =P24/S24 -> 0.7544372735 | U26: =IF(G21<0.0045,0.08,U27) -> 0.08
F27: phi= | G27: =G25*G26/180 -> 3.141592654 | U27: =0.367/(V40-0.0045)*(G21-0.0045)*POWER((1/180*D8),2)+0.08 -> -0.2202762869
F28: Omega= | G28: =SQRT(2*G24*G27) -> 110.6897075 | L28: Antriebsmoment in Endposition | R28: Ezul/h | S28: ='Allgemeine Werte'!H18 -> 28800
A29: Minimale Antriebsmoment im Schwenkbereich | I29: Tsmax für Schwenkzeit vor: | L29: für Energieberechnung | O29: Energieberechnung
C30: M min.= | D30: =MAX(D31:D40) -> 1.95 | F30: Ts= | G30: =G28/G24*1.6 -> 0.09082232411 | I30: =MAX(G30,G44) -> 0.09082232411 | L30: M= | M30: =MAX(M31:M39) -> 1.95 | O30: M= | P30: =M30 -> 1.95 | R30: Zyklen/min | S30: =(S28/60)/P24 -> 70.69286633 | U30: Schwenkzeit nicht < | X30: neu in Version 02_18
C31: M1-6 | D31: =IF(D13=0,0,IF(D13=1,K4,IF(D13=2,MIN(K4:L4),IF(D13=3,MIN(K4:M4),IF(D13=4,MIN(K4:N4),IF(D13=5,MIN(K4:O4),IF(D13=6,MIN(K4:P4)," "))))))) ->  | L31: M1-7 | M31: =IF(D13=0,0,IF(D13=1,K4,IF(D13=2,L4,IF(D13=3,M4,IF(D13=4,N4,IF(D13=5,O4,IF(D13=6,P4,IF(D13=7,Q4,0)))))))) -> 0 | O31: r= | P31: 0.0235 | V31: 0.12
C32: M7-13 | D32: =IF(D13=7,MIN(K4:Q4),IF(D13=8,MIN(K4:R4),IF(D13=9,MIN(K4:S4),IF(D13=10,MIN(K4:T4),IF(D13=11,MIN(K4:U4),IF(D13=12,MIN(K4:V4),IF(D13=13,MIN(K4:W4)," "))))))) ->  | I32: Omega min. für Ber. E kin.: | L32: M8-15 | M32: =IF(D13=8,R4,IF(D13=9,S4,IF(D13=10,T4,IF(D13=11,U4,IF(D13=12,V4,IF(D13=13,W4,IF(D13=14,X4,IF(D13=15,Y4,0)))))))) -> 0 | O32: s= | P32: ='Allgemeine Werte'!L18 -> 0.008 | S32: =MIN(S18,S30,S37,S41) -> 37
C33: M14-20 | D33: =IF(D13=14,MIN(K4:X4),IF(D13=15,MIN(K4:Y4),IF(D13=16,MIN(K4:Z4),IF(D13=17,MIN(K4:AA4),IF(D13=18,MIN(K4:AB4),IF(D13=19,MIN(K4:AC4),IF(D13=20,MIN(K4:AD4)," "))))))) ->  | F33: Werte für Drehachse vertikal | I33: =MIN(G28,G42) -> 110.6897075 | L33: M16-23 | M33: =IF(D13=16,Z4,IF(D13=17,AA4,IF(D13=18,AB4,IF(D13=19,AC4,IF(D13=20,AD4,IF(D13=21,AE4,IF(D13=22,AF4,IF(D13=23,AG4,0)))))))) -> 0 | O33: E antrieb | P33: =P30*P32/P31 -> 0.6638297872 | R33: Zykl.min./min | S33: =ROUNDDOWN(S32,0) -> 37 | U33: =O18 -> 0.2 | V33: =IF(U33<V31,ROUND(V31,2),ROUND(U33,2)) -> 0.2
C34: M21-27 | D34: =IF(D13=21,MIN(K4:AE4),IF(D13=22,MIN(K4:AF4),IF(D13=23,MIN(K4:AG4),IF(D13=24,MIN(K4:AH4),IF(D13=25,MIN(K4:AI4),IF(D13=26,MIN(K4:AJ4),IF(D13=27,MIN(K4:AK4)," "))))))) ->  | F34: M= | G34: 1.95 | L34: M24-31 | M34: =IF(D13=24,AH4,IF(D13=25,AI4,IF(D13=26,AJ4,IF(D13=27,AK4,IF(D13=28,AL4,IF(D13=29,AM4,IF(D13=30,AN4,IF(D13=31,AO4,0)))))))) -> 0 | U34: =O19 -> 0.2 | V34: =IF(U34<V31,ROUND(V31,2),ROUND(U34,2)) -> 0.2
C35: M28-34 | D35: =IF(D13=28,MIN(K4:AL4),IF(D13=29,MIN(K4:AM4),IF(D13=30,MIN(K4:AN4),IF(D13=31,MIN(K4:AO4),IF(D13=32,MIN(K4:AP4),IF(D13=33,MIN(K4:AQ4),IF(D13=34,MIN(K4:AR4)," "))))))) ->  | F35: J= | G35: =G21 -> 0 | L35: M32-39 | M35: =IF(D13=32,AP4,IF(D13=33,AQ4,IF(D13=34,AR4,IF(D13=35,AS4,IF(D13=36,AT4,IF(D13=37,AU4,IF(D13=38,AV4,IF(D13=39,AW4,0)))))))) -> 0 | O35: E kin. | P35: =((G21+G22)*POWER(E98,2))/2 -> 6.126105675 | R35: Stoßd.-kolbenrückstellzeit
C36: M35-41 | D36: =IF(D13=35,MIN(K4:AS4),IF(D13=36,MIN(K4:AT4),IF(D13=37,MIN(K4:AU4),IF(D13=38,MIN(K4:AV4),IF(D13=39,MIN(K4:AW4),IF(D13=40,MIN(K4:AX4),IF(D13=41,MIN(K4:AY4)," "))))))) ->  | F36: JE= | G36: =G22 -> 0.001 | L36: M40-47 | M36: =IF(D13=40,AX4,IF(D13=41,AY4,IF(D13=42,AZ4,IF(D13=43,BA4,IF(D13=44,BB4,IF(D13=45,BC4,IF(D13=46,BD4,IF(D13=47,BE4,0)))))))) -> 0 | S36: ='Allgemeine Werte'!E18 -> 0.5
C37: M42-48 | D37: =IF(D13=42,MIN(K4:AZ4),IF(D13=43,MIN(K4:BA4),IF(D13=44,MIN(K4:BB4),IF(D13=45,MIN(K4:BC4),IF(D13=46,MIN(K4:BD4),IF(D13=47,MIN(K4:BE4),IF(D13=48,MIN(K4:BF4)," "))))))) ->  | F37: k= | G37: =G23 -> 1 | L37: M48-55 | M37: =IF(D13=48,BF4,IF(D13=49,BG4,IF(D13=50,BH4,IF(D13=51,BI4,IF(D13=52,BJ4,IF(D13=53,BK4,IF(D13=54,BL4,IF(D13=55,BM4,0)))))))) -> 0 | O37: E ges | P37: =P35+P33 -> 6.789935462 | R37: Max.Zyk/min | S37: =60/S36 -> 120
C38: M49-55 | D38: =IF(D13=49,MIN(K4:BG4),IF(D13=50,MIN(K4:BH4),IF(D13=51,MIN(K4:BI4),IF(D13=52,MIN(K4:BJ4),IF(D13=53,MIN(K4:BK4),IF(D13=54,MIN(K4:BL4),IF(D13=55,MIN(K4:BM4)," "))))))) ->  | F38: alpha= | G38: =G34/((G35+G36)*POWER(G37,2)) -> 1950 | L38: M56-63 | M38: =IF(D13=56,BN4,IF(D13=57,BO4,IF(D13=58,BP4,IF(D13=59,BQ4,IF(D13=60,BR4,IF(D13=61,BS4,IF(D13=62,BT4,IF(D13=63,BU4,0)))))))) -> 1.95
C39: M56-62 | D39: =IF(D13=56,MIN(K4:BN4),IF(D13=57,MIN(K4:BO4),IF(D13=58,MIN(K4:BP4),IF(D13=59,MIN(K4:BQ4),IF(D13=60,MIN(K4:BR4),IF(D13=61,MIN(K4:BS4),IF(D13=62,MIN(K4:BT4)," "))))))) -> 1.95 | F39: PI= | G39: =PI() -> 3.141592654 | L39: M64 | M39: =IF(D13=64,BV4,0) -> 0 | U39: Jmax-1= | V39: =Eingabe1!M40 -> 0.009
C40: M63-64 | D40: =IF(D13=63,MIN(K4:BU4),IF(D13=64,MIN(K4:BV4)," ")) ->  | F40: beta= | G40: =G26 -> 180 | R40: Angaben Stoßdämpferhersteller | U40: Jmax-2= | V40: =Eingabe1!M43 -> 0.0099999348
F41: phi= | G41: =G39*G40/180 -> 3.141592654 | R41: Max.Zyk/min | S41: =-(('Allgemeine Werte'!J18-'Allgemeine Werte'!I18)/V41)*(G21-V41)+'Allgemeine Werte'!I18 -> 37 | U41: Jmax= | V41: =IF(G21<V39,V39,V40) -> 0.009
F42: Omega= | G42: =SQRT(2*G38*G41) -> 110.6897075
F44: Ts= | G44: =G42/G38*1.6 -> 0.09082232411
A45: Zurückdrehen
C49: Startwinkel | D49: =D9 -> 180 | J49: M= | K49: =IF($F14=TRUE,1.95,1.95+(9.81*$C3*($E3/1000)*K54)) -> 1.95 | L49: 1.95 | M49: 1.95 | N49: 1.95 | O49: 1.95 | P49: 1.95 | Q49: 1.95 | R49: 1.95 | S49: 1.95 | T49: 1.95 | U49: 1.95 | V49: 1.95 | W49: 1.95 | X49: 1.95 | Y49: 1.95 | Z49: 1.95 | AA49: 1.95 | AB49: 1.95 | AC49: 1.95 | AD49: 1.95 | AE49: 1.95 | AF49: 1.95 | AG49: 1.95 | AH49: 1.95 | AI49: 1.95 | AJ49: 1.95 | AK49: 1.95 | AL49: 1.95 | AM49: 1.95 | AN49: 1.95 | AO49: 1.95 | AP49: 1.95 | AQ49: =IF($F14=TRUE,1.95,1.95+(9.81*$C3*($E3/1000)*AQ54)) -> 1.95 | AR49: 1.95 | AS49: 1.95 | AT49: 1.95 | AU49: 1.95 | AV49: 1.95 | AW49: 1.95 | AX49: 1.95 | AY49: 1.95 | AZ49: 1.95 | BA49: 1.95 | BB49: 1.95 | BC49: 1.95 | BD49: 1.95 | BE49: 1.95 | BF49: 1.95 | BG49: 1.95 | BH49: 1.95 | BI49: 1.95 | BJ49: 1.95 | BK49: 1.95 | BL49: 1.95 | BM49: 1.95 | BN49: 1.95 | BO49: 1.95 | BP49: 1.95 | BQ49: 1.95 | BR49: 1.95 | BS49: 1.95 | BT49: 1.95 | BU49: 1.95 | BV49: 1.95
C50: sin Startpos | D50: =SIN((D49)*PI()/180) -> 1.225148455e-16
C51: Schwenkw. | D51: =D8 -> 180 | J51: beta= | K51: =K6 -> 3 | L51: =K51 -> 3 | M51: 3 | N51: 3 | O51: 3 | P51: 3 | Q51: 3 | R51: 3 | S51: 3 | T51: 3 | U51: 3 | V51: 3 | W51: 3 | X51: 3 | Y51: 3 | Z51: 3 | AA51: 3 | AB51: 3 | AC51: 3 | AD51: 3 | AE51: 3 | AF51: 3 | AG51: 3 | AH51: 3 | AI51: 3 | AJ51: 3 | AK51: 3 | AL51: 3 | AM51: 3 | AN51: 3 | AO51: 3 | AP51: 3 | AQ51: 3 | AR51: =AQ51 -> 3 | AS51: 3 | AT51: 3 | AU51: 3 | AV51: 3 | AW51: 3 | AX51: 3 | AY51: 3 | AZ51: 3 | BA51: 3 | BB51: 3 | BC51: 3 | BD51: 3 | BE51: 3 | BF51: 3 | BG51: 3 | BH51: 3 | BI51: 3 | BJ51: 3 | BK51: 3 | BL51: 3 | BM51: 3 | BN51: 3 | BO51: 3 | BP51: 3 | BQ51: 3 | BR51: 3 | BS51: 3 | BT51: 3 | BU51: 3 | BV51: 3
C52: Endwinkel | D52: =IF(F16=TRUE,D49+D51,D49-D51) -> 0
C53: sin Endpos | D53: =SIN((D52)*PI()/180) -> 0 | J53: Startwinkel | K53: =D49 -> 180 | L53: =IF($F16=TRUE,K53+K51,K53-K51) -> 177 | M53: 174 | N53: 171 | O53: 168 | P53: 165 | Q53: 162 | R53: 159 | S53: 156 | T53: 153 | U53: 150 | V53: 147 | W53: 144 | X53: 141 | Y53: 138 | Z53: 135 | AA53: 132 | AB53: 129 | AC53: 126 | AD53: 123 | AE53: 120 | AF53: 117 | AG53: 114 | AH53: 111 | AI53: 108 | AJ53: 105 | AK53: 102 | AL53: 99 | AM53: 96 | AN53: 93 | AO53: 90 | AP53: 87 | AQ53: 84 | AR53: =IF($F16=TRUE,AQ53+AQ51,AQ53-AQ51) -> 81 | AS53: 78 | AT53: 75 | AU53: 72 | AV53: 69 | AW53: 66 | AX53: 63 | AY53: 60 | AZ53: 57 | BA53: 54 | BB53: 51 | BC53: 48 | BD53: 45 | BE53: 42 | BF53: 39 | BG53: 36 | BH53: 33 | BI53: 30 | BJ53: 27 | BK53: 24 | BL53: 21 | BM53: 18 | BN53: 15 | BO53: 12 | BP53: 9 | BQ53: 6 | BR53: 3 | BS53: 0 | BT53: -3 | BU53: -6 | BV53: -9
J54: sin | K54: =IF($F16=TRUE,SIN((K53)*PI()/180),-SIN((K53)*PI()/180)) -> -1.225148455e-16 | L54: -0.05233595624 | M54: -0.1045284633 | N54: -0.156434465 | O54: -0.2079116908 | P54: -0.2588190451 | Q54: -0.3090169944 | R54: -0.3583679495 | S54: -0.4067366431 | T54: -0.4539904997 | U54: -0.5 | V54: -0.544639035 | W54: -0.5877852523 | X54: -0.629320391 | Y54: -0.6691306064 | Z54: -0.7071067812 | AA54: -0.7431448255 | AB54: -0.7771459615 | AC54: -0.8090169944 | AD54: -0.8386705679 | AE54: -0.8660254038 | AF54: -0.8910065242 | AG54: -0.9135454576 | AH54: -0.9335804265 | AI54: -0.9510565163 | AJ54: -0.9659258263 | AK54: -0.9781476007 | AL54: -0.9876883406 | AM54: -0.9945218954 | AN54: -0.9986295348 | AO54: -1 | AP54: -0.9986295348 | AQ54: =IF($F16=TRUE,SIN((AQ53)*PI()/180),-SIN((AQ53)*PI()/180)) -> -0.9945218954 | AR54: -0.9876883406 | AS54: -0.9781476007 | AT54: -0.9659258263 | AU54: -0.9510565163 | AV54: -0.9335804265 | AW54: -0.9135454576 | AX54: -0.8910065242 | AY54: -0.8660254038 | AZ54: -0.8386705679 | BA54: -0.8090169944 | BB54: -0.7771459615 | BC54: -0.7431448255 | BD54: -0.7071067812 | BE54: -0.6691306064 | BF54: -0.629320391 | BG54: -0.5877852523 | BH54: -0.544639035 | BI54: -0.5 | BJ54: -0.4539904997 | BK54: -0.4067366431 | BL54: -0.3583679495 | BM54: -0.3090169944 | BN54: -0.2588190451 | BO54: -0.2079116908 | BP54: -0.156434465 | BQ54: -0.1045284633 | BR54: -0.05233595624 | BS54: 0 | BT54: 0.05233595624 | BU54: 0.1045284633 | BV54: 0.156434465
K56: 1 | L56: 2 | M56: 3 | N56: 4 | O56: 5 | P56: 6 | Q56: 7 | R56: 8 | S56: 9 | T56: 10 | U56: 11 | V56: 12 | W56: 13 | X56: 14 | Y56: 15 | Z56: 16 | AA56: 17 | AB56: 18 | AC56: 19 | AD56: 20 | AE56: 21 | AF56: 22 | AG56: 23 | AH56: 24 | AI56: 25 | AJ56: 26 | AK56: 27 | AL56: 28 | AM56: 29 | AN56: 30 | AO56: 31 | AP56: 32 | AQ56: 33 | AR56: 34 | AS56: 35 | AT56: 36 | AU56: 37 | AV56: 38 | AW56: 39 | AX56: 40 | AY56: 41 | AZ56: 42 | BA56: 43 | BB56: 44 | BC56: 45 | BD56: 46 | BE56: 47 | BF56: 48 | BG56: 49 | BH56: 50 | BI56: 51 | BJ56: 52 | BK56: 53 | BL56: 54 | BM56: 55 | BN56: 56 | BO56: 57 | BP56: 58 | BQ56: 59 | BR56: 60 | BS56: 61 | BT56: 62 | BU56: 63 | BV56: 64
A57: Mittelwert des Antriebsmoments über Schwenkbereich
C58: Mn= | D58: =MAX(D59:D67) -> 1.95 | F58: M= | G58: =D58 -> 1.95
C59: Mn1-7 | D59: =IF(D13=0,0,IF(D13=1,K63,IF(D13=2,L63,IF(D13=3,M63,IF(D13=4,N63,IF(D13=5,O63,IF(D13=6,P63,IF(D13=7,Q63,0)))))))) -> 0 | F59: J= | G59: =G21 -> 0
C60: Mn8-15 | D60: =IF(D13=8,R63,IF(D13=9,S63,IF(D13=10,T63,IF(D13=11,U63,IF(D13=12,V63,IF(D13=13,W63,IF(D13=14,X63,IF(D13=15,Y63,0)))))))) -> 0 | F60: JE= | G60: =G22 -> 0.001
C61: Mn16-23 | D61: =IF(D13=16,Z63,IF(D13=17,AA63,IF(D13=18,AB63,IF(D13=19,AC63,IF(D13=20,AD63,IF(D13=21,AE63,IF(D13=22,AF63,IF(D13=23,AG63,0)))))))) -> 0 | F61: k= | G61: =G23 -> 1
C62: Mn24-31 | D62: =IF(D13=24,AH63,IF(D13=25,AI63,IF(D13=26,AJ63,IF(D13=27,AK63,IF(D13=28,AL63,IF(D13=29,AM63,IF(D13=30,AN63,IF(D13=31,AO63,0)))))))) -> 0 | F62: alpha= | G62: =G58/((G59+G60)*POWER(G61,2)) -> 1950 | J62: Summe M | K62: =K49 -> 1.95 | L62: =K62+L49 -> 3.9 | M62: 5.85 | N62: 7.8 | O62: 9.75 | P62: 11.7 | Q62: 13.65 | R62: 15.6 | S62: 17.55 | T62: 19.5 | U62: 21.45 | V62: 23.4 | W62: 25.35 | X62: 27.3 | Y62: 29.25 | Z62: 31.2 | AA62: 33.15 | AB62: 35.1 | AC62: 37.05 | AD62: 39 | AE62: 40.95 | AF62: 42.9 | AG62: 44.85 | AH62: 46.8 | AI62: 48.75 | AJ62: 50.7 | AK62: 52.65 | AL62: 54.6 | AM62: 56.55 | AN62: 58.5 | AO62: 60.45 | AP62: 62.4 | AQ62: 64.35 | AR62: =AQ62+AR49 -> 66.3 | AS62: 68.25 | AT62: 70.2 | AU62: 72.15 | AV62: 74.1 | AW62: 76.05 | AX62: 78 | AY62: 79.95 | AZ62: 81.9 | BA62: 83.85 | BB62: 85.8 | BC62: 87.75 | BD62: 89.7 | BE62: 91.65 | BF62: 93.6 | BG62: 95.55 | BH62: 97.5 | BI62: 99.45 | BJ62: 101.4 | BK62: 103.35 | BL62: 105.3 | BM62: 107.25 | BN62: 109.2 | BO62: 111.15 | BP62: 113.1 | BQ62: 115.05 | BR62: 117 | BS62: 118.95 | BT62: 120.9 | BU62: 122.85 | BV62: 124.8
C63: Mn32-39 | D63: =IF(D13=32,AP63,IF(D13=33,AQ63,IF(D13=34,AR63,IF(D13=35,AS63,IF(D13=36,AT63,IF(D13=37,AU63,IF(D13=38,AV63,IF(D13=39,AW63,0)))))))) -> 0 | F63: PI= | G63: =PI() -> 3.141592654 | J63: Mittelwert Mm | K63: =K62/K56 -> 1.95 | L63: 1.95 | M63: 1.95 | N63: 1.95 | O63: 1.95 | P63: 1.95 | Q63: 1.95 | R63: 1.95 | S63: 1.95 | T63: 1.95 | U63: 1.95 | V63: 1.95 | W63: 1.95 | X63: 1.95 | Y63: 1.95 | Z63: 1.95 | AA63: 1.95 | AB63: 1.95 | AC63: 1.95 | AD63: 1.95 | AE63: 1.95 | AF63: 1.95 | AG63: 1.95 | AH63: 1.95 | AI63: 1.95 | AJ63: 1.95 | AK63: 1.95 | AL63: 1.95 | AM63: 1.95 | AN63: 1.95 | AO63: 1.95 | AP63: 1.95 | AQ63: =AQ62/AQ56 -> 1.95 | AR63: 1.95 | AS63: 1.95 | AT63: 1.95 | AU63: 1.95 | AV63: 1.95 | AW63: 1.95 | AX63: 1.95 | AY63: 1.95 | AZ63: 1.95 | BA63: 1.95 | BB63: 1.95 | BC63: 1.95 | BD63: 1.95 | BE63: 1.95 | BF63: 1.95 | BG63: 1.95 | BH63: 1.95 | BI63: 1.95 | BJ63: 1.95 | BK63: 1.95 | BL63: 1.95 | BM63: 1.95 | BN63: 1.95 | BO63: 1.95 | BP63: 1.95 | BQ63: 1.95 | BR63: 1.95 | BS63: 1.95 | BT63: 1.95 | BU63: 1.95 | BV63: 1.95
C64: Mn40-47 | D64: =IF(D13=40,AX63,IF(D13=41,AY63,IF(D13=42,AZ63,IF(D13=43,BA63,IF(D13=44,BB63,IF(D13=45,BC63,IF(D13=46,BD63,IF(D13=47,BE63,0)))))))) -> 0 | F64: beta= | G64: =D51 -> 180
C65: Mn48-55 | D65: =IF(D13=48,BF63,IF(D13=49,BG63,IF(D13=50,BH63,IF(D13=51,BI63,IF(D13=52,BJ63,IF(D13=53,BK63,IF(D13=54,BL63,IF(D13=55,BM63,0)))))))) -> 0 | F65: phi= | G65: =G63*G64/180 -> 3.141592654
C66: Mn56-63 | D66: =IF(D13=56,BN63,IF(D13=57,BO63,IF(D13=58,BP63,IF(D13=59,BQ63,IF(D13=60,BR63,IF(D13=61,BS63,IF(D13=62,BT63,IF(D13=63,BU63,0)))))))) -> 1.95 | F66: Omega= | G66: =SQRT(2*G62*G65) -> 110.6897075
C67: M64 | D67: =IF(D13=64,BV63,0) -> 0 | I67: Tsmax für Schwenkzeit vor:
F68: Ts= | G68: =G66/G62*1.6 -> 0.09082232411 | I68: =MAX(G68,G82) -> 0.09082232411
I70: Omega min. für Ber. E kin.:
A71: Minimale Antriebsmoment im Schwenkbereich | F71: Werte für Drehachse vertikal | I71: =MIN(G66,G80) -> 110.6897075
C72: M min.= | D72: =MAX(D73:D82) -> 1.95 | F72: M= | G72: 1.95
C73: M1-6 | D73: =IF(D13=0,0,IF(D13=1,K49,IF(D13=2,MIN(K49:L49),IF(D13=3,MIN(K49:M49),IF(D13=4,MIN(K49:N49),IF(D13=5,MIN(K49:O49),IF(D13=6,MIN(K49:P49)," "))))))) ->  | F73: J= | G73: =G59 -> 0 | L73: Antriebsmoment in Endposition
C74: M7-13 | D74: =IF(D13=7,MIN(K49:Q49),IF(D13=8,MIN(K49:R49),IF(D13=9,MIN(K49:S49),IF(D13=10,MIN(K49:T49),IF(D13=11,MIN(K49:U49),IF(D13=12,MIN(K49:V49),IF(D13=13,MIN(K49:W49)," "))))))) ->  | F74: JE= | G74: =G60 -> 0.001 | L74: für Energieberechnung | O74: Energieberechnung
C75: M14-20 | D75: =IF(D13=14,MIN(K49:X49),IF(D13=15,MIN(K49:Y49),IF(D13=16,MIN(K49:Z49),IF(D13=17,MIN(K49:AA49),IF(D13=18,MIN(K49:AB49),IF(D13=19,MIN(K49:AC49),IF(D13=20,MIN(K49:AD49)," "))))))) ->  | F75: k= | G75: =G61 -> 1 | L75: M= | M75: =MAX(M76:M84) -> 1.95 | O75: M= | P75: =M75 -> 1.95
C76: M21-27 | D76: =IF(D13=21,MIN(K49:AE49),IF(D13=22,MIN(K49:AF49),IF(D13=23,MIN(K49:AG49),IF(D13=24,MIN(K49:AH49),IF(D13=25,MIN(K49:AI49),IF(D13=26,MIN(K49:AJ49),IF(D13=27,MIN(K49:AK49)," "))))))) ->  | F76: alpha= | G76: =G72/((G73+G74)*POWER(G75,2)) -> 1950 | L76: M1-7 | M76: =IF(D13=0,0,IF(D13=1,K49,IF(D13=2,L49,IF(D13=3,M49,IF(D13=4,N49,IF(D13=5,O49,IF(D13=6,P49,IF(D13=7,Q49,0)))))))) -> 0 | O76: r= | P76: 0.0235
C77: M28-34 | D77: =IF(D13=28,MIN(K49:AL49),IF(D13=29,MIN(K49:AM49),IF(D13=30,MIN(K49:AN49),IF(D13=31,MIN(K49:AO49),IF(D13=32,MIN(K49:AP49),IF(D13=33,MIN(K49:AQ49),IF(D13=34,MIN(K49:AR49)," "))))))) ->  | F77: PI= | G77: =PI() -> 3.141592654 | L77: M8-15 | M77: =IF(D13=8,R49,IF(D13=9,S49,IF(D13=10,T49,IF(D13=11,U49,IF(D13=12,V49,IF(D13=13,W49,IF(D13=14,X49,IF(D13=15,Y49,0)))))))) -> 0 | O77: s= | P77: ='Allgemeine Werte'!L18 -> 0.008
C78: M35-41 | D78: =IF(D13=35,MIN(K49:AS49),IF(D13=36,MIN(K49:AT49),IF(D13=37,MIN(K49:AU49),IF(D13=38,MIN(K49:AV49),IF(D13=39,MIN(K49:AW49),IF(D13=40,MIN(K49:AX49),IF(D13=41,MIN(K49:AY49)," "))))))) ->  | F78: beta= | G78: =G64 -> 180 | L78: M16-23 | M78: =IF(D13=16,Z49,IF(D13=17,AA49,IF(D13=18,AB49,IF(D13=19,AC49,IF(D13=20,AD49,IF(D13=21,AE49,IF(D13=22,AF49,IF(D13=23,AG49,0)))))))) -> 0 | O78: E antrieb | P78: =P75*P77/P76 -> 0.6638297872
C79: M42-48 | D79: =IF(D13=42,MIN(K49:AZ49),IF(D13=43,MIN(K49:BA49),IF(D13=44,MIN(K49:BB49),IF(D13=45,MIN(K49:BC49),IF(D13=46,MIN(K49:BD49),IF(D13=47,MIN(K49:BE49),IF(D13=48,MIN(K49:BF49)," "))))))) ->  | F79: phi= | G79: =G77*G78/180 -> 3.141592654 | L79: M24-31 | M79: =IF(D13=24,AH49,IF(D13=25,AI49,IF(D13=26,AJ49,IF(D13=27,AK49,IF(D13=28,AL49,IF(D13=29,AM49,IF(D13=30,AN49,IF(D13=31,AO49,0)))))))) -> 0
C80: M49-55 | D80: =IF(D13=49,MIN(K49:BG49),IF(D13=50,MIN(K49:BH49),IF(D13=51,MIN(K49:BI49),IF(D13=52,MIN(K49:BJ49),IF(D13=53,MIN(K49:BK49),IF(D13=54,MIN(K49:BL49),IF(D13=55,MIN(K49:BM49)," "))))))) ->  | F80: Omega= | G80: =SQRT(2*G76*G79) -> 110.6897075 | L80: M32-39 | M80: =IF(D13=32,AP49,IF(D13=33,AQ49,IF(D13=34,AR49,IF(D13=35,AS49,IF(D13=36,AT49,IF(D13=37,AU49,IF(D13=38,AV49,IF(D13=39,AW49,0)))))))) -> 0 | O80: E kin. | P80: =((G59+G60)*POWER(N98,2))/2 -> 6.126105675
C81: M56-62 | D81: =IF(D13=56,MIN(K49:BN49),IF(D13=57,MIN(K49:BO49),IF(D13=58,MIN(K49:BP49),IF(D13=59,MIN(K49:BQ49),IF(D13=60,MIN(K49:BR49),IF(D13=61,MIN(K49:BS49),IF(D13=62,MIN(K49:BT49)," "))))))) -> 1.95 | L81: M40-47 | M81: =IF(D13=40,AX49,IF(D13=41,AY49,IF(D13=42,AZ49,IF(D13=43,BA49,IF(D13=44,BB49,IF(D13=45,BC49,IF(D13=46,BD49,IF(D13=47,BE49,0)))))))) -> 0
C82: M63-64 | D82: =IF(D13=63,MIN(K49:BU49),IF(D13=64,MIN(K49:BV49)," ")) ->  | F82: Ts= | G82: =G80/G76*1.6 -> 0.09082232411 | L82: M48-55 | M82: =IF(D13=48,BF49,IF(D13=49,BG49,IF(D13=50,BH49,IF(D13=51,BI49,IF(D13=52,BJ49,IF(D13=53,BK49,IF(D13=54,BL49,IF(D13=55,BM49,0)))))))) -> 0 | O82: E ges | P82: =P80+P78 -> 6.789935462
L83: M56-63 | M83: =IF(D13=56,BN49,IF(D13=57,BO49,IF(D13=58,BP49,IF(D13=59,BQ49,IF(D13=60,BR49,IF(D13=61,BS49,IF(D13=62,BT49,IF(D13=63,BU49,0)))))))) -> 1.95
L84: M64 | M84: =IF(D13=64,BV49,0) -> 0
A90: Überprüfung der mechanischen Belastung
A92: Drehachse Vertikal | J92: Drehachse Horizontal
D93: Berechnung der dyn. Kraft | M93: Berechnung der dyn. Kraft
A94: Statische Belastung | D94: verursacht durch Masse m | G94: Dynamische Belastung | J94: Statische Belastung | M94: verursacht durch Masse m | P94: Dynamische Belastung
D95: ( Auch Drehen vor ) | M95: ( Zurückdrehen )
A96: Xs | B96: =A3/1000 -> 0 | D96: Omega | E96: =I33 -> 110.6897075 | G96: Z bis OK-Dr. | H96: 0.0135 | M96: Omega | N96: =I71 -> 110.6897075 | P96: Z bis OK-Dr. | Q96: =H96 -> 0.0135
A97: Ys | B97: =B3/1000 -> 0 | D97: Prozent | E97: =Eingabe1!O30 -> 1 | G97: Z | H97: =ABS(I97) -> 0.0135 | I97: =H96+B98 -> 0.0135 | M97: Prozent | N97: =E97 -> 1 | P97: Z | Q97: =H97 -> 0.0135
A98: Zs | B98: =Eingabe1!N12/1000 -> 0 | D98: Omega red. | E98: =E96*E97 -> 110.6897075 | G98: M2=Fdyn*Z | H98: =E109*H97 -> 0 | M98: Omega red. | N98: =N96*N97 -> 110.6897075 | P98: M2=Fdyn*Z | Q98: =Q109*Q97 -> 0
A99: R | B99: =SQRT(POWER(B96,2)+POWER(B97,2)) -> 0
A100: m | B100: =C3 -> 0 | D100: R | E100: =B99 -> 0 | G100: r | H100: 0.0235 | M100: R | N100: =B99 -> 0 | P100: r | Q100: =H100 -> 0.0235
A101: F | B101: =B100*9.81 -> 0 | D101: Omega | E101: =E98 -> 110.6897075 | J101: F | K101: =B101 -> 0 | M101: Omega | N101: =N98 -> 110.6897075
A102: M1=F*R | B102: =B101*B99 -> 0 | D102: v | E102: =E100*E101 -> 0 | G102: M3=Fdyn*(R-r) | H102: =E109*(B99-H100) -> 0 | J102: M1=F*Z | K102: =K101*H97 -> 0 | M102: v | N102: =N100*N101 -> 0 | P102: M3=Fdyn*(R-r) | Q102: =Q109*(B99-Q100) -> 0
D103: PI | E103: =PI() -> 3.141592654 | M103: PI | N103: =PI() -> 3.141592654
A104: M max | B104: 12 | D104: Aufprallwink. | E104: ='Allgemeine Werte'!P18 -> 12.8 | M104: Aufprallwink. | N104: =E104 -> 12.8
A105: F ax max | B105: 1200 | D105: s (Dämpfweg) | E105: =TAN(E104*E103/180)*E100 -> 0 | M105: s (Dämpfweg) | N105: =TAN(N104*N103/180)*N100 -> 0
A106: F rad max | B106: 970 | D106: a | E106: =IF(E100=0,0,POWER(E102,2)/(2*E105)) -> 0 | M106: a | N106: =IF(N100=0,0,POWER(N102,2)/(2*N105)) -> 0
A107: M rad max | B107: =H100*B106 -> 22.795
D108: m | E108: =B100 -> 0 | M108: m | N108: =B100 -> 0
D109: Fdyn | E109: =E108*E106 -> 0 | M109: Fdyn | N109: =N108*N106 -> 0 | P109: F dyn max | Q109: =MAX(E109,N109) -> 0
A110: Belastung durch M antr. | J110: Belastung durch M antr.
A111: M antr. | B111: 1.95
D112: phi | E112: =G27 -> 3.141592654 | J112: M antr. Ende vor | K112: =M30 -> 1.95 | M112: phi | N112: =G65 -> 3.141592654
D113: a | E113: =POWER(E98,2)/(2*E112) -> 1950 | J113: M antr. Ende rück | K113: =M75 -> 1.95 | M113: a | N113: =POWER(N98,2)/(2*N112) -> 1950
D114: t | E114: =E101/E113*1.6 -> 0.09082232411 | J114: M antr. Ende max | K114: =MAX(K112,K113) -> 1.95 | M114: t | N114: =N101/N113*1.6 -> 0.09082232411
A116: Belastungsgleichung: F/Faxmax + M1/Mmax + M2/Mmax = | J116: Belastungsgleichung: M1/Mmax + M2/Mmax =
A117: ( Axiallager stat + dyn. ) | D117: =B101/B105+B102/B104+H98/B104 -> 0 | J117: ( Axiallager stat + dyn. ) | M117: =K102/B104+Q98/B104 -> 0
A119: Belastungsgleichung: F/Faxmax + M1/Mmax = | J119: Belastungsgleichung: M1/Mmax + M2/Mmax =
A120: ( Axiallager stat ) | D120: =B101/B105+B102/B104 -> 0 | J120: ( Axiallager stat ) | M120: =K102/B104 -> 0
A122: Belastungsgleichung: M3/Mradmax + M antr./Mradmax = | J122: Belastungsgleichung: F/Fradmax + M3/Mradmax + M antr/Mradmax =
A123: ( Radiallager stat + dyn. ) | D123: =H102/B107+B111/B107 -> 0.08554507567 | J123: ( Radiallager stat + dyn ) | M123: =K101/B106+Q102/B107+K114/B107 -> 0.08554507567
A125: Belastungsgleichung: M antr./Mradmax = | J125: Belastungsgleichung: F/Fradmax + M antr./Mradmax =
A126: ( Radiallager stat ) | D126: =B111/B107 -> 0.08554507567 | J126: ( Radiallager stat ) | M126: =K101/B106+K114/B107 -> 0.08554507567
A128: Lagerbelastung Drehachse vertikal : | D128: =MAX(D117,D120,D123,D126) -> 0.08554507567 | E128: Lagerbelastung: | G128: =IF(F14=TRUE,D128,M128) -> 0.08554507567 | J128: Lagerbelastung Drehachse horizontal : | M128: =MAX(M117,M120,M123,M126) -> 0.08554507567

Sheet BerRM200
A1: Drehen vor
A2: x | B2: y | C2: m | D2: x2*y2 | E2: R= | F2: sin | G2: grad
A3: =Eingabe1!N10 -> 0 | B3: =Eingabe1!N11 -> 0 | C3: =Eingabe1!N9 -> 0 | D3: =POWER(A3,2)+POWER(B3,2) -> 0 | E3: =SQRT(D3) -> 0 | F3: =IF(E3=0,0,A3/E3) -> 0 | G3: =ASIN(F3)*180/PI() -> 0
G4: =180-G3 -> 180 | J4: M= | K4: =IF($F14=TRUE,4,4+(9.81*$C3*($E3/1000)*K9)) -> 4 | L4: 4 | M4: 4 | N4: 4 | O4: 4 | P4: 4 | Q4: 4 | R4: 4 | S4: 4 | T4: 4 | U4: 4 | V4: 4 | W4: 4 | X4: 4 | Y4: 4 | Z4: 4 | AA4: 4 | AB4: 4 | AC4: 4 | AD4: 4 | AE4: 4 | AF4: 4 | AG4: 4 | AH4: 4 | AI4: 4 | AJ4: 4 | AK4: 4 | AL4: 4 | AM4: 4 | AN4: 4 | AO4: 4 | AP4: 4 | AQ4: =IF($F14=TRUE,4,4+(9.81*$C3*($E3/1000)*AQ9)) -> 4 | AR4: 4 | AS4: 4 | AT4: 4 | AU4: 4 | AV4: 4 | AW4: 4 | AX4: 4 | AY4: 4 | AZ4: 4 | BA4: 4 | BB4: 4 | BC4: 4 | BD4: 4 | BE4: 4 | BF4: 4 | BG4: 4 | BH4: 4 | BI4: 4 | BJ4: 4 | BK4: 4 | BL4: 4 | BM4: 4 | BN4: 4 | BO4: 4 | BP4: 4 | BQ4: 4 | BR4: 4 | BS4: 4 | BT4: 4 | BU4: 4 | BV4: 4
G5: =360+G3 -> 360
C6: Startwinkel | D6: =IF(AND(A3>=0,B3>=0),G3,IF(AND(A3>=0,B3<0),G4,IF(AND(A3<0,B3<0),G4,IF(AND(A3<0,B3>=0),G5,0)))) -> 0 | J6: beta= | K6: 3 | L6: =K6 -> 3 | M6: 3 | N6: 3 | O6: 3 | P6: 3 | Q6: 3 | R6: 3 | S6: 3 | T6: 3 | U6: 3 | V6: 3 | W6: 3 | X6: 3 | Y6: 3 | Z6: 3 | AA6: 3 | AB6: 3 | AC6: 3 | AD6: 3 | AE6: 3 | AF6: 3 | AG6: 3 | AH6: 3 | AI6: 3 | AJ6: 3 | AK6: 3 | AL6: 3 | AM6: 3 | AN6: 3 | AO6: 3 | AP6: 3 | AQ6: 3 | AR6: =AQ6 -> 3 | AS6: 3 | AT6: 3 | AU6: 3 | AV6: 3 | AW6: 3 | AX6: 3 | AY6: 3 | AZ6: 3 | BA6: 3 | BB6: 3 | BC6: 3 | BD6: 3 | BE6: 3 | BF6: 3 | BG6: 3 | BH6: 3 | BI6: 3 | BJ6: 3 | BK6: 3 | BL6: 3 | BM6: 3 | BN6: 3 | BO6: 3 | BP6: 3 | BQ6: 3 | BR6: 3 | BS6: 3 | BT6: 3 | BU6: 3 | BV6: 3
C7: sin Startpos | D7: =SIN((D6)*PI()/180) -> 0
C8: Schwenkw. | D8: =Eingabe1!M19 -> 180 | J8: Startwinkel | K8: =D6 -> 0 | L8: =IF($F16=TRUE,K8-K6,K8+K6) -> 3 | M8: 6 | N8: 9 | O8: 12 | P8: 15 | Q8: 18 | R8: 21 | S8: 24 | T8: 27 | U8: 30 | V8: 33 | W8: 36 | X8: 39 | Y8: 42 | Z8: 45 | AA8: 48 | AB8: 51 | AC8: 54 | AD8: 57 | AE8: 60 | AF8: 63 | AG8: 66 | AH8: 69 | AI8: 72 | AJ8: 75 | AK8: 78 | AL8: 81 | AM8: 84 | AN8: 87 | AO8: 90 | AP8: 93 | AQ8: 96 | AR8: =IF($F16=TRUE,AQ8-AQ6,AQ8+AQ6) -> 99 | AS8: 102 | AT8: 105 | AU8: 108 | AV8: 111 | AW8: 114 | AX8: 117 | AY8: 120 | AZ8: 123 | BA8: 126 | BB8: 129 | BC8: 132 | BD8: 135 | BE8: 138 | BF8: 141 | BG8: 144 | BH8: 147 | BI8: 150 | BJ8: 153 | BK8: 156 | BL8: 159 | BM8: 162 | BN8: 165 | BO8: 168 | BP8: 171 | BQ8: 174 | BR8: 177 | BS8: 180 | BT8: 183 | BU8: 186 | BV8: 189
C9: Endwinkel | D9: =IF(F16=TRUE,D6-D8,D6+D8) -> 180 | F9: Modulabhängige Zellen | J9: sin | K9: =IF($F16=TRUE,-SIN((K8)*PI()/180),SIN((K8)*PI()/180)) -> 0 | L9: 0.05233595624 | M9: 0.1045284633 | N9: 0.156434465 | O9: 0.2079116908 | P9: 0.2588190451 | Q9: 0.3090169944 | R9: 0.3583679495 | S9: 0.4067366431 | T9: 0.4539904997 | U9: 0.5 | V9: 0.544639035 | W9: 0.5877852523 | X9: 0.629320391 | Y9: 0.6691306064 | Z9: 0.7071067812 | AA9: 0.7431448255 | AB9: 0.7771459615 | AC9: 0.8090169944 | AD9: 0.8386705679 | AE9: 0.8660254038 | AF9: 0.8910065242 | AG9: 0.9135454576 | AH9: 0.9335804265 | AI9: 0.9510565163 | AJ9: 0.9659258263 | AK9: 0.9781476007 | AL9: 0.9876883406 | AM9: 0.9945218954 | AN9: 0.9986295348 | AO9: 1 | AP9: 0.9986295348 | AQ9: =IF($F16=TRUE,-SIN((AQ8)*PI()/180),SIN((AQ8)*PI()/180)) -> 0.9945218954 | AR9: 0.9876883406 | AS9: 0.9781476007 | AT9: 0.9659258263 | AU9: 0.9510565163 | AV9: 0.9335804265 | AW9: 0.9135454576 | AX9: 0.8910065242 | AY9: 0.8660254038 | AZ9: 0.8386705679 | BA9: 0.8090169944 | BB9: 0.7771459615 | BC9: 0.7431448255 | BD9: 0.7071067812 | BE9: 0.6691306064 | BF9: 0.629320391 | BG9: 0.5877852523 | BH9: 0.544639035 | BI9: 0.5 | BJ9: 0.4539904997 | BK9: 0.4067366431 | BL9: 0.3583679495 | BM9: 0.3090169944 | BN9: 0.2588190451 | BO9: 0.2079116908 | BP9: 0.156434465 | BQ9: 0.1045284633 | BR9: 0.05233595624 | BS9: 1.225148455e-16 | BT9: -0.05233595624 | BU9: -0.1045284633 | BV9: -0.156434465
C10: sin Endpos | D10: =SIN((D9)*PI()/180) -> 1.225148455e-16
F11: Werte aus Eingabeseite | K11: 1 | L11: 2 | M11: 3 | N11: 4 | O11: 5 | P11: 6 | Q11: 7 | R11: 8 | S11: 9 | T11: 10 | U11: 11 | V11: 12 | W11: 13 | X11: 14 | Y11: 15 | Z11: 16 | AA11: 17 | AB11: 18 | AC11: 19 | AD11: 20 | AE11: 21 | AF11: 22 | AG11: 23 | AH11: 24 | AI11: 25 | AJ11: 26 | AK11: 27 | AL11: 28 | AM11: 29 | AN11: 30 | AO11: 31 | AP11: 32 | AQ11: 33 | AR11: 34 | AS11: 35 | AT11: 36 | AU11: 37 | AV11: 38 | AW11: 39 | AX11: 40 | AY11: 41 | AZ11: 42 | BA11: 43 | BB11: 44 | BC11: 45 | BD11: 46 | BE11: 47 | BF11: 48 | BG11: 49 | BH11: 50 | BI11: 51 | BJ11: 52 | BK11: 53 | BL11: 54 | BM11: 55 | BN11: 56 | BO11: 57 | BP11: 58 | BQ11: 59 | BR11: 60 | BS11: 61 | BT11: 62 | BU11: 63 | BV11: 64
D12: =D8/K6 -> 60
D13: =ROUNDUP(D12,0) -> 60
F14: =IF(Eingabe1!C41=TRUE,FALSE,TRUE) -> TRUE | G14: Horizontaler Aufbau | J14: Summe M | K14: =K4 -> 4 | L14: =K14+L4 -> 8 | M14: 12 | N14: 16 | O14: 20 | P14: 24 | Q14: 28 | R14: 32 | S14: 36 | T14: 40 | U14: 44 | V14: 48 | W14: 52 | X14: 56 | Y14: 60 | Z14: 64 | AA14: 68 | AB14: 72 | AC14: 76 | AD14: 80 | AE14: 84 | AF14: 88 | AG14: 92 | AH14: 96 | AI14: 100 | AJ14: 104 | AK14: 108 | AL14: 112 | AM14: 116 | AN14: 120 | AO14: 124 | AP14: 128 | AQ14: 132 | AR14: =AQ14+AR4 -> 136 | AS14: 140 | AT14: 144 | AU14: 148 | AV14: 152 | AW14: 156 | AX14: 160 | AY14: 164 | AZ14: 168 | BA14: 172 | BB14: 176 | BC14: 180 | BD14: 184 | BE14: 188 | BF14: 192 | BG14: 196 | BH14: 200 | BI14: 204 | BJ14: 208 | BK14: 212 | BL14: 216 | BM14: 220 | BN14: 224 | BO14: 228 | BP14: 232 | BQ14: 236 | BR14: 240 | BS14: 244 | BT14: 248 | BU14: 252 | BV14: 256
J15: Mittelwert Mm | K15: =K14/K11 -> 4 | L15: 4 | M15: 4 | N15: 4 | O15: 4 | P15: 4 | Q15: 4 | R15: 4 | S15: 4 | T15: 4 | U15: 4 | V15: 4 | W15: 4 | X15: 4 | Y15: 4 | Z15: 4 | AA15: 4 | AB15: 4 | AC15: 4 | AD15: 4 | AE15: 4 | AF15: 4 | AG15: 4 | AH15: 4 | AI15: 4 | AJ15: 4 | AK15: 4 | AL15: 4 | AM15: 4 | AN15: 4 | AO15: 4 | AP15: 4 | AQ15: =AQ14/AQ11 -> 4 | AR15: 4 | AS15: 4 | AT15: 4 | AU15: 4 | AV15: 4 | AW15: 4 | AX15: 4 | AY15: 4 | AZ15: 4 | BA15: 4 | BB15: 4 | BC15: 4 | BD15: 4 | BE15: 4 | BF15: 4 | BG15: 4 | BH15: 4 | BI15: 4 | BJ15: 4 | BK15: 4 | BL15: 4 | BM15: 4 | BN15: 4 | BO15: 4 | BP15: 4 | BQ15: 4 | BR15: 4 | BS15: 4 | BT15: 4 | BU15: 4 | BV15: 4
A16: Mittelwert des Antriebsmoments über Schwenkbereich | F16: =IF(Eingabe1!C42=TRUE,TRUE,FALSE) -> FALSE | G16: Drehen im/gegen Uhrzeigersinn
C17: Mn= | D17: =MAX(D18:D26) -> 4 | O17: Gerundete Werte+Korrekturfaktor | U17: Schwenkzeitkorrektur von J=0 bis J= | X17: 0.01
C18: Mn1-7 | D18: =IF(D13=0,0,IF(D13=1,K15,IF(D13=2,L15,IF(D13=3,M15,IF(D13=4,N15,IF(D13=5,O15,IF(D13=6,P15,IF(D13=7,Q15,0)))))))) -> 0 | K18: Schwenkzeit vor | N18: =E114 -> 0.1784817904 | O18: =ROUND(N18+U22,2) -> 0.21 | P18: Zykluszeit | Q18: =O18+O19 -> 0.42 | R18: Zyklen/min | S18: =60/Q18 -> 142.8571429 | U18: Korrekturfaktor bei J=0 : | X18: 0.03
C19: Mn8-15 | D19: =IF(D13=8,R15,IF(D13=9,S15,IF(D13=10,T15,IF(D13=11,U15,IF(D13=12,V15,IF(D13=13,W15,IF(D13=14,X15,IF(D13=15,Y15,0)))))))) -> 0 | K19: Schwenkzeit zurück | N19: =N114 -> 0.1784817904 | O19: =ROUND(N19+U22,2) -> 0.21 | U19: bis J= siehe oben ! (Gerade) : | X19: 0
C20: Mn16-23 | D20: =IF(D13=16,Z15,IF(D13=17,AA15,IF(D13=18,AB15,IF(D13=19,AC15,IF(D13=20,AD15,IF(D13=21,AE15,IF(D13=22,AF15,IF(D13=23,AG15,0)))))))) -> 0 | F20: M= | G20: =D17 -> 4 | U20: ( Faktor wird in diesem J-Bereich zur berechneten Zeit addiert ! )
C21: Mn24-31 | D21: =IF(D13=24,AH15,IF(D13=25,AI15,IF(D13=26,AJ15,IF(D13=27,AK15,IF(D13=28,AL15,IF(D13=29,AM15,IF(D13=30,AN15,IF(D13=31,AO15,0)))))))) -> 0 | F21: J= | G21: =Eingabe1!N8 -> 0 | K21: Mmin im Schwenkbereich vor | N21: =D30 -> 4 | O21: Mmin | P21: =MIN(N21:N22) -> 4 | R21: M-Mmin/M | S21: =(4-P21)/4 -> 0 | U21: =-(X18/X17)*(G21-X17) -> 0.03
C22: Mn32-39 | D22: =IF(D13=32,AP15,IF(D13=33,AQ15,IF(D13=34,AR15,IF(D13=35,AS15,IF(D13=36,AT15,IF(D13=37,AU15,IF(D13=38,AV15,IF(D13=39,AW15,0)))))))) -> 0 | F22: JE= | G22: 0.003 | K22: Mmin im Schwenkbereich zurück | N22: =D72 -> 4 | U22: =IF(G21>=X17,0,U21) -> 0.03
C23: Mn40-47 | D23: =IF(D13=40,AX15,IF(D13=41,AY15,IF(D13=42,AZ15,IF(D13=43,BA15,IF(D13=44,BB15,IF(D13=45,BC15,IF(D13=46,BD15,IF(D13=47,BE15,0)))))))) -> 0 | F23: k= | G23: 1 | H23: K-Wert (V37) in Ts eingearbeitet !
C24: Mn48-55 | D24: =IF(D13=48,BF15,IF(D13=49,BG15,IF(D13=50,BH15,IF(D13=51,BI15,IF(D13=52,BJ15,IF(D13=53,BK15,IF(D13=54,BL15,IF(D13=55,BM15,0)))))))) -> 0 | F24: alpha= | G24: =G20/((G21+G22)*POWER(G23,2)) -> 1333.333333 | K24: E ges vor | N24: =P37 -> 14.03303728 | O24: E ges max | P24: =MAX(N24:N25) -> 14.03303728 | R24: E zul/Hub | S24: ='Allgemeine Werte'!G20 -> 17 | U24: Schwenkzeitkorrektur gem. Schunkmessungen
C25: Mn56-63 | D25: =IF(D13=56,BN15,IF(D13=57,BO15,IF(D13=58,BP15,IF(D13=59,BQ15,IF(D13=60,BR15,IF(D13=61,BS15,IF(D13=62,BT15,IF(D13=63,BU15,0)))))))) -> 4 | F25: PI= | G25: =PI() -> 3.141592654 | K25: E ges zurück | N25: =P82 -> 14.03303728 | U25: K-Wert von 1,6 auf 2,6 bzw. 2,05 (abhängig von J) erhöht
C26: Mn64 | D26: =IF(D13=64,BV15,0) -> 0 | F26: beta= | G26: =D8 -> 180 | R26: E ges/E zul | S26: =P24/S24 -> 0.8254727812
F27: phi= | G27: =G25*G26/180 -> 3.141592654
F28: Omega= | G28: =SQRT(2*G24*G27) -> 91.52912329 | L28: Antriebsmoment in Endposition | R28: Ezul/h | S28: ='Allgemeine Werte'!H20 -> 34000
A29: Minimale Antriebsmoment im Schwenkbereich | I29: Tsmax für Schwenkzeit vor: | L29: für Energieberechnung | O29: Energieberechnung
C30: M min.= | D30: =MAX(D31:D40) -> 4 | F30: Ts= | G30: =G28/G24*V37 -> 0.1784817904 | I30: =MAX(G30,G44) -> 0.1784817904 | L30: M= | M30: =MAX(M31:M39) -> 4 | O30: M= | P30: =M30 -> 4 | R30: Zyklen/min | S30: =(S28/60)/P24 -> 40.3808994 | U30: Schwenkzeit nicht < | X30: neu in Version 02_18
C31: M1-6 | D31: =IF(D13=0,0,IF(D13=1,K4,IF(D13=2,MIN(K4:L4),IF(D13=3,MIN(K4:M4),IF(D13=4,MIN(K4:N4),IF(D13=5,MIN(K4:O4),IF(D13=6,MIN(K4:P4)," "))))))) ->  | L31: M1-7 | M31: =IF(D13=0,0,IF(D13=1,K4,IF(D13=2,L4,IF(D13=3,M4,IF(D13=4,N4,IF(D13=5,O4,IF(D13=6,P4,IF(D13=7,Q4,0)))))))) -> 0 | O31: r= | P31: 0.03 | V31: 0.14
C32: M7-13 | D32: =IF(D13=7,MIN(K4:Q4),IF(D13=8,MIN(K4:R4),IF(D13=9,MIN(K4:S4),IF(D13=10,MIN(K4:T4),IF(D13=11,MIN(K4:U4),IF(D13=12,MIN(K4:V4),IF(D13=13,MIN(K4:W4)," "))))))) ->  | I32: Omega min. für Ber. E kin.: | L32: M8-15 | M32: =IF(D13=8,R4,IF(D13=9,S4,IF(D13=10,T4,IF(D13=11,U4,IF(D13=12,V4,IF(D13=13,W4,IF(D13=14,X4,IF(D13=15,Y4,0)))))))) -> 0 | O32: s= | P32: ='Allgemeine Werte'!L20 -> 0.011 | S32: =MIN(S18,S30,S37,S41) -> 37
C33: M14-20 | D33: =IF(D13=14,MIN(K4:X4),IF(D13=15,MIN(K4:Y4),IF(D13=16,MIN(K4:Z4),IF(D13=17,MIN(K4:AA4),IF(D13=18,MIN(K4:AB4),IF(D13=19,MIN(K4:AC4),IF(D13=20,MIN(K4:AD4)," "))))))) ->  | F33: Werte für Drehachse vertikal | I33: =MIN(G28,G42) -> 91.52912329 | L33: M16-23 | M33: =IF(D13=16,Z4,IF(D13=17,AA4,IF(D13=18,AB4,IF(D13=19,AC4,IF(D13=20,AD4,IF(D13=21,AE4,IF(D13=22,AF4,IF(D13=23,AG4,0)))))))) -> 0 | O33: E antrieb | P33: =P30*P32/P31 -> 1.466666667 | R33: Zykl.min./min | S33: =ROUNDDOWN(S32,0) -> 37 | U33: =O18 -> 0.21 | V33: =IF(U33<V31,ROUND(V31,2),ROUND(U33,2)) -> 0.21
C34: M21-27 | D34: =IF(D13=21,MIN(K4:AE4),IF(D13=22,MIN(K4:AF4),IF(D13=23,MIN(K4:AG4),IF(D13=24,MIN(K4:AH4),IF(D13=25,MIN(K4:AI4),IF(D13=26,MIN(K4:AJ4),IF(D13=27,MIN(K4:AK4)," "))))))) ->  | F34: M= | G34: 4 | L34: M24-31 | M34: =IF(D13=24,AH4,IF(D13=25,AI4,IF(D13=26,AJ4,IF(D13=27,AK4,IF(D13=28,AL4,IF(D13=29,AM4,IF(D13=30,AN4,IF(D13=31,AO4,0)))))))) -> 0 | U34: =O19 -> 0.21 | V34: =IF(U34<V31,ROUND(V31,2),ROUND(U34,2)) -> 0.21
C35: M28-34 | D35: =IF(D13=28,MIN(K4:AL4),IF(D13=29,MIN(K4:AM4),IF(D13=30,MIN(K4:AN4),IF(D13=31,MIN(K4:AO4),IF(D13=32,MIN(K4:AP4),IF(D13=33,MIN(K4:AQ4),IF(D13=34,MIN(K4:AR4)," "))))))) ->  | F35: J= | G35: =G21 -> 0 | L35: M32-39 | M35: =IF(D13=32,AP4,IF(D13=33,AQ4,IF(D13=34,AR4,IF(D13=35,AS4,IF(D13=36,AT4,IF(D13=37,AU4,IF(D13=38,AV4,IF(D13=39,AW4,0)))))))) -> 0 | O35: E kin. | P35: =((G21+G22)*POWER(E98,2))/2 -> 12.56637061 | R35: Stoßd.-kolbenrückstellzeit
C36: M35-41 | D36: =IF(D13=35,MIN(K4:AS4),IF(D13=36,MIN(K4:AT4),IF(D13=37,MIN(K4:AU4),IF(D13=38,MIN(K4:AV4),IF(D13=39,MIN(K4:AW4),IF(D13=40,MIN(K4:AX4),IF(D13=41,MIN(K4:AY4)," "))))))) ->  | F36: JE= | G36: =G22 -> 0.003 | L36: M40-47 | M36: =IF(D13=40,AX4,IF(D13=41,AY4,IF(D13=42,AZ4,IF(D13=43,BA4,IF(D13=44,BB4,IF(D13=45,BC4,IF(D13=46,BD4,IF(D13=47,BE4,0)))))))) -> 0 | S36: ='Allgemeine Werte'!E20 -> 0.5
C37: M42-48 | D37: =IF(D13=42,MIN(K4:AZ4),IF(D13=43,MIN(K4:BA4),IF(D13=44,MIN(K4:BB4),IF(D13=45,MIN(K4:BC4),IF(D13=46,MIN(K4:BD4),IF(D13=47,MIN(K4:BE4),IF(D13=48,MIN(K4:BF4)," "))))))) ->  | F37: k= | G37: =G23 -> 1 | L37: M48-55 | M37: =IF(D13=48,BF4,IF(D13=49,BG4,IF(D13=50,BH4,IF(D13=51,BI4,IF(D13=52,BJ4,IF(D13=53,BK4,IF(D13=54,BL4,IF(D13=55,BM4,0)))))))) -> 0 | O37: E ges | P37: =P35+P33 -> 14.03303728 | R37: Max.Zyk/min | S37: =60/S36 -> 120 | U37: K-Wert | V37: =IF(G21<V39,2.6,2.05) -> 2.6
C38: M49-55 | D38: =IF(D13=49,MIN(K4:BG4),IF(D13=50,MIN(K4:BH4),IF(D13=51,MIN(K4:BI4),IF(D13=52,MIN(K4:BJ4),IF(D13=53,MIN(K4:BK4),IF(D13=54,MIN(K4:BL4),IF(D13=55,MIN(K4:BM4)," "))))))) ->  | F38: alpha= | G38: =G34/((G35+G36)*POWER(G37,2)) -> 1333.333333 | L38: M56-63 | M38: =IF(D13=56,BN4,IF(D13=57,BO4,IF(D13=58,BP4,IF(D13=59,BQ4,IF(D13=60,BR4,IF(D13=61,BS4,IF(D13=62,BT4,IF(D13=63,BU4,0)))))))) -> 4 | U38: (war 1,6)
C39: M56-62 | D39: =IF(D13=56,MIN(K4:BN4),IF(D13=57,MIN(K4:BO4),IF(D13=58,MIN(K4:BP4),IF(D13=59,MIN(K4:BQ4),IF(D13=60,MIN(K4:BR4),IF(D13=61,MIN(K4:BS4),IF(D13=62,MIN(K4:BT4)," "))))))) -> 4 | F39: PI= | G39: =PI() -> 3.141592654 | L39: M64 | M39: =IF(D13=64,BV4,0) -> 0 | U39: Jmax-1= | V39: =Eingabe1!O40 -> 0.06000031111
C40: M63-64 | D40: =IF(D13=63,MIN(K4:BU4),IF(D13=64,MIN(K4:BV4)," ")) ->  | F40: beta= | G40: =G26 -> 180 | R40: Angaben Stoßdämpferhersteller | U40: Jmax-2= | V40: =Eingabe1!O43 -> 0.1399979155
F41: phi= | G41: =G39*G40/180 -> 3.141592654 | R41: Max.Zyk/min | S41: =-(('Allgemeine Werte'!J20-'Allgemeine Werte'!I20)/V41)*(G21-V41)+'Allgemeine Werte'!I20 -> 37 | U41: Jmax= | V41: =IF(G21<V39,V39,V40) -> 0.06000031111
F42: Omega= | G42: =SQRT(2*G38*G41) -> 91.52912329
F44: Ts= | G44: =G42/G38*V37 -> 0.1784817904
A45: Zurückdrehen
C49: Startwinkel | D49: =D9 -> 180 | J49: M= | K49: =IF($F14=TRUE,4,4+(9.81*$C3*($E3/1000)*K54)) -> 4 | L49: 4 | M49: 4 | N49: 4 | O49: 4 | P49: 4 | Q49: 4 | R49: 4 | S49: 4 | T49: 4 | U49: 4 | V49: 4 | W49: 4 | X49: 4 | Y49: 4 | Z49: 4 | AA49: 4 | AB49: 4 | AC49: 4 | AD49: 4 | AE49: 4 | AF49: 4 | AG49: 4 | AH49: 4 | AI49: 4 | AJ49: 4 | AK49: 4 | AL49: 4 | AM49: 4 | AN49: 4 | AO49: 4 | AP49: 4 | AQ49: =IF($F14=TRUE,4,4+(9.81*$C3*($E3/1000)*AQ54)) -> 4 | AR49: 4 | AS49: 4 | AT49: 4 | AU49: 4 | AV49: 4 | AW49: 4 | AX49: 4 | AY49: 4 | AZ49: 4 | BA49: 4 | BB49: 4 | BC49: 4 | BD49: 4 | BE49: 4 | BF49: 4 | BG49: 4 | BH49: 4 | BI49: 4 | BJ49: 4 | BK49: 4 | BL49: 4 | BM49: 4 | BN49: 4 | BO49: 4 | BP49: 4 | BQ49: 4 | BR49: 4 | BS49: 4 | BT49: 4 | BU49: 4 | BV49: 4
C50: sin Startpos | D50: =SIN((D49)*PI()/180) -> 1.225148455e-16
C51: Schwenkw. | D51: =D8 -> 180 | J51: beta= | K51: =K6 -> 3 | L51: =K51 -> 3 | M51: 3 | N51: 3 | O51: 3 | P51: 3 | Q51: 3 | R51: 3 | S51: 3 | T51: 3 | U51: 3 | V51: 3 | W51: 3 | X51: 3 | Y51: 3 | Z51: 3 | AA51: 3 | AB51: 3 | AC51: 3 | AD51: 3 | AE51: 3 | AF51: 3 | AG51: 3 | AH51: 3 | AI51: 3 | AJ51: 3 | AK51: 3 | AL51: 3 | AM51: 3 | AN51: 3 | AO51: 3 | AP51: 3 | AQ51: 3 | AR51: =AQ51 -> 3 | AS51: 3 | AT51: 3 | AU51: 3 | AV51: 3 | AW51: 3 | AX51: 3 | AY51: 3 | AZ51: 3 | BA51: 3 | BB51: 3 | BC51: 3 | BD51: 3 | BE51: 3 | BF51: 3 | BG51: 3 | BH51: 3 | BI51: 3 | BJ51: 3 | BK51: 3 | BL51: 3 | BM51: 3 | BN51: 3 | BO51: 3 | BP51: 3 | BQ51: 3 | BR51: 3 | BS51: 3 | BT51: 3 | BU51: 3 | BV51: 3
C52: Endwinkel | D52: =IF(F16=TRUE,D49+D51,D49-D51) -> 0
C53: sin Endpos | D53: =SIN((D52)*PI()/180) -> 0 | J53: Startwinkel | K53: =D49 -> 180 | L53: =IF($F16=TRUE,K53+K51,K53-K51) -> 177 | M53: 174 | N53: 171 | O53: 168 | P53: 165 | Q53: 162 | R53: 159 | S53: 156 | T53: 153 | U53: 150 | V53: 147 | W53: 144 | X53: 141 | Y53: 138 | Z53: 135 | AA53: 132 | AB53: 129 | AC53: 126 | AD53: 123 | AE53: 120 | AF53: 117 | AG53: 114 | AH53: 111 | AI53: 108 | AJ53: 105 | AK53: 102 | AL53: 99 | AM53: 96 | AN53: 93 | AO53: 90 | AP53: 87 | AQ53: 84 | AR53: =IF($F16=TRUE,AQ53+AQ51,AQ53-AQ51) -> 81 | AS53: 78 | AT53: 75 | AU53: 72 | AV53: 69 | AW53: 66 | AX53: 63 | AY53: 60 | AZ53: 57 | BA53: 54 | BB53: 51 | BC53: 48 | BD53: 45 | BE53: 42 | BF53: 39 | BG53: 36 | BH53: 33 | BI53: 30 | BJ53: 27 | BK53: 24 | BL53: 21 | BM53: 18 | BN53: 15 | BO53: 12 | BP53: 9 | BQ53: 6 | BR53: 3 | BS53: 0 | BT53: -3 | BU53: -6 | BV53: -9
J54: sin | K54: =IF($F16=TRUE,SIN((K53)*PI()/180),-SIN((K53)*PI()/180)) -> -1.225148455e-16 | L54: -0.05233595624 | M54: -0.1045284633 | N54: -0.156434465 | O54: -0.2079116908 | P54: -0.2588190451 | Q54: -0.3090169944 | R54: -0.3583679495 | S54: -0.4067366431 | T54: -0.4539904997 | U54: -0.5 | V54: -0.544639035 | W54: -0.5877852523 | X54: -0.629320391 | Y54: -0.6691306064 | Z54: -0.7071067812 | AA54: -0.7431448255 | AB54: -0.7771459615 | AC54: -0.8090169944 | AD54: -0.8386705679 | AE54: -0.8660254038 | AF54: -0.8910065242 | AG54: -0.9135454576 | AH54: -0.9335804265 | AI54: -0.9510565163 | AJ54: -0.9659258263 | AK54: -0.9781476007 | AL54: -0.9876883406 | AM54: -0.9945218954 | AN54: -0.9986295348 | AO54: -1 | AP54: -0.9986295348 | AQ54: =IF($F16=TRUE,SIN((AQ53)*PI()/180),-SIN((AQ53)*PI()/180)) -> -0.9945218954 | AR54: -0.9876883406 | AS54: -0.9781476007 | AT54: -0.9659258263 | AU54: -0.9510565163 | AV54: -0.9335804265 | AW54: -0.9135454576 | AX54: -0.8910065242 | AY54: -0.8660254038 | AZ54: -0.8386705679 | BA54: -0.8090169944 | BB54: -0.7771459615 | BC54: -0.7431448255 | BD54: -0.7071067812 | BE54: -0.6691306064 | BF54: -0.629320391 | BG54: -0.5877852523 | BH54: -0.544639035 | BI54: -0.5 | BJ54: -0.4539904997 | BK54: -0.4067366431 | BL54: -0.3583679495 | BM54: -0.3090169944 | BN54: -0.2588190451 | BO54: -0.2079116908 | BP54: -0.156434465 | BQ54: -0.1045284633 | BR54: -0.05233595624 | BS54: 0 | BT54: 0.05233595624 | BU54: 0.1045284633 | BV54: 0.156434465
K56: 1 | L56: 2 | M56: 3 | N56: 4 | O56: 5 | P56: 6 | Q56: 7 | R56: 8 | S56: 9 | T56: 10 | U56: 11 | V56: 12 | W56: 13 | X56: 14 | Y56: 15 | Z56: 16 | AA56: 17 | AB56: 18 | AC56: 19 | AD56: 20 | AE56: 21 | AF56: 22 | AG56: 23 | AH56: 24 | AI56: 25 | AJ56: 26 | AK56: 27 | AL56: 28 | AM56: 29 | AN56: 30 | AO56: 31 | AP56: 32 | AQ56: 33 | AR56: 34 | AS56: 35 | AT56: 36 | AU56: 37 | AV56: 38 | AW56: 39 | AX56: 40 | AY56: 41 | AZ56: 42 | BA56: 43 | BB56: 44 | BC56: 45 | BD56: 46 | BE56: 47 | BF56: 48 | BG56: 49 | BH56: 50 | BI56: 51 | BJ56: 52 | BK56: 53 | BL56: 54 | BM56: 55 | BN56: 56 | BO56: 57 | BP56: 58 | BQ56: 59 | BR56: 60 | BS56: 61 | BT56: 62 | BU56: 63 | BV56: 64
A57: Mittelwert des Antriebsmoments über Schwenkbereich
C58: Mn= | D58: =MAX(D59:D67) -> 4 | F58: M= | G58: =D58 -> 4
C59: Mn1-7 | D59: =IF(D13=0,0,IF(D13=1,K63,IF(D13=2,L63,IF(D13=3,M63,IF(D13=4,N63,IF(D13=5,O63,IF(D13=6,P63,IF(D13=7,Q63,0)))))))) -> 0 | F59: J= | G59: =G21 -> 0
C60: Mn8-15 | D60: =IF(D13=8,R63,IF(D13=9,S63,IF(D13=10,T63,IF(D13=11,U63,IF(D13=12,V63,IF(D13=13,W63,IF(D13=14,X63,IF(D13=15,Y63,0)))))))) -> 0 | F60: JE= | G60: =G22 -> 0.003
C61: Mn16-23 | D61: =IF(D13=16,Z63,IF(D13=17,AA63,IF(D13=18,AB63,IF(D13=19,AC63,IF(D13=20,AD63,IF(D13=21,AE63,IF(D13=22,AF63,IF(D13=23,AG63,0)))))))) -> 0 | F61: k= | G61: =G23 -> 1
C62: Mn24-31 | D62: =IF(D13=24,AH63,IF(D13=25,AI63,IF(D13=26,AJ63,IF(D13=27,AK63,IF(D13=28,AL63,IF(D13=29,AM63,IF(D13=30,AN63,IF(D13=31,AO63,0)))))))) -> 0 | F62: alpha= | G62: =G58/((G59+G60)*POWER(G61,2)) -> 1333.333333 | J62: Summe M | K62: =K49 -> 4 | L62: =K62+L49 -> 8 | M62: 12 | N62: 16 | O62: 20 | P62: 24 | Q62: 28 | R62: 32 | S62: 36 | T62: 40 | U62: 44 | V62: 48 | W62: 52 | X62: 56 | Y62: 60 | Z62: 64 | AA62: 68 | AB62: 72 | AC62: 76 | AD62: 80 | AE62: 84 | AF62: 88 | AG62: 92 | AH62: 96 | AI62: 100 | AJ62: 104 | AK62: 108 | AL62: 112 | AM62: 116 | AN62: 120 | AO62: 124 | AP62: 128 | AQ62: 132 | AR62: =AQ62+AR49 -> 136 | AS62: 140 | AT62: 144 | AU62: 148 | AV62: 152 | AW62: 156 | AX62: 160 | AY62: 164 | AZ62: 168 | BA62: 172 | BB62: 176 | BC62: 180 | BD62: 184 | BE62: 188 | BF62: 192 | BG62: 196 | BH62: 200 | BI62: 204 | BJ62: 208 | BK62: 212 | BL62: 216 | BM62: 220 | BN62: 224 | BO62: 228 | BP62: 232 | BQ62: 236 | BR62: 240 | BS62: 244 | BT62: 248 | BU62: 252 | BV62: 256
C63: Mn32-39 | D63: =IF(D13=32,AP63,IF(D13=33,AQ63,IF(D13=34,AR63,IF(D13=35,AS63,IF(D13=36,AT63,IF(D13=37,AU63,IF(D13=38,AV63,IF(D13=39,AW63,0)))))))) -> 0 | F63: PI= | G63: =PI() -> 3.141592654 | J63: Mittelwert Mm | K63: =K62/K56 -> 4 | L63: 4 | M63: 4 | N63: 4 | O63: 4 | P63: 4 | Q63: 4 | R63: 4 | S63: 4 | T63: 4 | U63: 4 | V63: 4 | W63: 4 | X63: 4 | Y63: 4 | Z63: 4 | AA63: 4 | AB63: 4 | AC63: 4 | AD63: 4 | AE63: 4 | AF63: 4 | AG63: 4 | AH63: 4 | AI63: 4 | AJ63: 4 | AK63: 4 | AL63: 4 | AM63: 4 | AN63: 4 | AO63: 4 | AP63: 4 | AQ63: =AQ62/AQ56 -> 4 | AR63: 4 | AS63: 4 | AT63: 4 | AU63: 4 | AV63: 4 | AW63: 4 | AX63: 4 | AY63: 4 | AZ63: 4 | BA63: 4 | BB63: 4 | BC63: 4 | BD63: 4 | BE63: 4 | BF63: 4 | BG63: 4 | BH63: 4 | BI63: 4 | BJ63: 4 | BK63: 4 | BL63: 4 | BM63: 4 | BN63: 4 | BO63: 4 | BP63: 4 | BQ63: 4 | BR63: 4 | BS63: 4 | BT63: 4 | BU63: 4 | BV63: 4
C64: Mn40-47 | D64: =IF(D13=40,AX63,IF(D13=41,AY63,IF(D13=42,AZ63,IF(D13=43,BA63,IF(D13=44,BB63,IF(D13=45,BC63,IF(D13=46,BD63,IF(D13=47,BE63,0)))))))) -> 0 | F64: beta= | G64: =D51 -> 180
C65: Mn48-55 | D65: =IF(D13=48,BF63,IF(D13=49,BG63,IF(D13=50,BH63,IF(D13=51,BI63,IF(D13=52,BJ63,IF(D13=53,BK63,IF(D13=54,BL63,IF(D13=55,BM63,0)))))))) -> 0 | F65: phi= | G65: =G63*G64/180 -> 3.141592654
C66: Mn56-63 | D66: =IF(D13=56,BN63,IF(D13=57,BO63,IF(D13=58,BP63,IF(D13=59,BQ63,IF(D13=60,BR63,IF(D13=61,BS63,IF(D13=62,BT63,IF(D13=63,BU63,0)))))))) -> 4 | F66: Omega= | G66: =SQRT(2*G62*G65) -> 91.52912329
C67: M64 | D67: =IF(D13=64,BV63,0) -> 0 | I67: Tsmax für Schwenkzeit vor:
F68: Ts= | G68: =G66/G62*V37 -> 0.1784817904 | I68: =MAX(G68,G82) -> 0.1784817904
I70: Omega min. für Ber. E kin.:
A71: Minimale Antriebsmoment im Schwenkbereich | F71: Werte für Drehachse vertikal | I71: =MIN(G66,G80) -> 91.52912329
C72: M min.= | D72: =MAX(D73:D82) -> 4 | F72: M= | G72: 4
C73: M1-6 | D73: =IF(D13=0,0,IF(D13=1,K49,IF(D13=2,MIN(K49:L49),IF(D13=3,MIN(K49:M49),IF(D13=4,MIN(K49:N49),IF(D13=5,MIN(K49:O49),IF(D13=6,MIN(K49:P49)," "))))))) ->  | F73: J= | G73: =G59 -> 0 | L73: Antriebsmoment in Endposition
C74: M7-13 | D74: =IF(D13=7,MIN(K49:Q49),IF(D13=8,MIN(K49:R49),IF(D13=9,MIN(K49:S49),IF(D13=10,MIN(K49:T49),IF(D13=11,MIN(K49:U49),IF(D13=12,MIN(K49:V49),IF(D13=13,MIN(K49:W49)," "))))))) ->  | F74: JE= | G74: =G60 -> 0.003 | L74: für Energieberechnung | O74: Energieberechnung
C75: M14-20 | D75: =IF(D13=14,MIN(K49:X49),IF(D13=15,MIN(K49:Y49),IF(D13=16,MIN(K49:Z49),IF(D13=17,MIN(K49:AA49),IF(D13=18,MIN(K49:AB49),IF(D13=19,MIN(K49:AC49),IF(D13=20,MIN(K49:AD49)," "))))))) ->  | F75: k= | G75: =G61 -> 1 | L75: M= | M75: =MAX(M76:M84) -> 4 | O75: M= | P75: =M75 -> 4
C76: M21-27 | D76: =IF(D13=21,MIN(K49:AE49),IF(D13=22,MIN(K49:AF49),IF(D13=23,MIN(K49:AG49),IF(D13=24,MIN(K49:AH49),IF(D13=25,MIN(K49:AI49),IF(D13=26,MIN(K49:AJ49),IF(D13=27,MIN(K49:AK49)," "))))))) ->  | F76: alpha= | G76: =G72/((G73+G74)*POWER(G75,2)) -> 1333.333333 | L76: M1-7 | M76: =IF(D13=0,0,IF(D13=1,K49,IF(D13=2,L49,IF(D13=3,M49,IF(D13=4,N49,IF(D13=5,O49,IF(D13=6,P49,IF(D13=7,Q49,0)))))))) -> 0 | O76: r= | P76: 0.03
C77: M28-34 | D77: =IF(D13=28,MIN(K49:AL49),IF(D13=29,MIN(K49:AM49),IF(D13=30,MIN(K49:AN49),IF(D13=31,MIN(K49:AO49),IF(D13=32,MIN(K49:AP49),IF(D13=33,MIN(K49:AQ49),IF(D13=34,MIN(K49:AR49)," "))))))) ->  | F77: PI= | G77: =PI() -> 3.141592654 | L77: M8-15 | M77: =IF(D13=8,R49,IF(D13=9,S49,IF(D13=10,T49,IF(D13=11,U49,IF(D13=12,V49,IF(D13=13,W49,IF(D13=14,X49,IF(D13=15,Y49,0)))))))) -> 0 | O77: s= | P77: ='Allgemeine Werte'!L20 -> 0.011
C78: M35-41 | D78: =IF(D13=35,MIN(K49:AS49),IF(D13=36,MIN(K49:AT49),IF(D13=37,MIN(K49:AU49),IF(D13=38,MIN(K49:AV49),IF(D13=39,MIN(K49:AW49),IF(D13=40,MIN(K49:AX49),IF(D13=41,MIN(K49:AY49)," "))))))) ->  | F78: beta= | G78: =G64 -> 180 | L78: M16-23 | M78: =IF(D13=16,Z49,IF(D13=17,AA49,IF(D13=18,AB49,IF(D13=19,AC49,IF(D13=20,AD49,IF(D13=21,AE49,IF(D13=22,AF49,IF(D13=23,AG49,0)))))))) -> 0 | O78: E antrieb | P78: =P75*P77/P76 -> 1.466666667
C79: M42-48 | D79: =IF(D13=42,MIN(K49:AZ49),IF(D13=43,MIN(K49:BA49),IF(D13=44,MIN(K49:BB49),IF(D13=45,MIN(K49:BC49),IF(D13=46,MIN(K49:BD49),IF(D13=47,MIN(K49:BE49),IF(D13=48,MIN(K49:BF49)," "))))))) ->  | F79: phi= | G79: =G77*G78/180 -> 3.141592654 | L79: M24-31 | M79: =IF(D13=24,AH49,IF(D13=25,AI49,IF(D13=26,AJ49,IF(D13=27,AK49,IF(D13=28,AL49,IF(D13=29,AM49,IF(D13=30,AN49,IF(D13=31,AO49,0)))))))) -> 0
C80: M49-55 | D80: =IF(D13=49,MIN(K49:BG49),IF(D13=50,MIN(K49:BH49),IF(D13=51,MIN(K49:BI49),IF(D13=52,MIN(K49:BJ49),IF(D13=53,MIN(K49:BK49),IF(D13=54,MIN(K49:BL49),IF(D13=55,MIN(K49:BM49)," "))))))) ->  | F80: Omega= | G80: =SQRT(2*G76*G79) -> 91.52912329 | L80: M32-39 | M80: =IF(D13=32,AP49,IF(D13=33,AQ49,IF(D13=34,AR49,IF(D13=35,AS49,IF(D13=36,AT49,IF(D13=37,AU49,IF(D13=38,AV49,IF(D13=39,AW49,0)))))))) -> 0 | O80: E kin. | P80: =((G59+G60)*POWER(N98,2))/2 -> 12.56637061
C81: M56-62 | D81: =IF(D13=56,MIN(K49:BN49),IF(D13=57,MIN(K49:BO49),IF(D13=58,MIN(K49:BP49),IF(D13=59,MIN(K49:BQ49),IF(D13=60,MIN(K49:BR49),IF(D13=61,MIN(K49:BS49),IF(D13=62,MIN(K49:BT49)," "))))))) -> 4 | L81: M40-47 | M81: =IF(D13=40,AX49,IF(D13=41,AY49,IF(D13=42,AZ49,IF(D13=43,BA49,IF(D13=44,BB49,IF(D13=45,BC49,IF(D13=46,BD49,IF(D13=47,BE49,0)))))))) -> 0
C82: M63-64 | D82: =IF(D13=63,MIN(K49:BU49),IF(D13=64,MIN(K49:BV49)," ")) ->  | F82: Ts= | G82: =G80/G76*V37 -> 0.1784817904 | L82: M48-55 | M82: =IF(D13=48,BF49,IF(D13=49,BG49,IF(D13=50,BH49,IF(D13=51,BI49,IF(D13=52,BJ49,IF(D13=53,BK49,IF(D13=54,BL49,IF(D13=55,BM49,0)))))))) -> 0 | O82: E ges | P82: =P80+P78 -> 14.03303728
L83: M56-63 | M83: =IF(D13=56,BN49,IF(D13=57,BO49,IF(D13=58,BP49,IF(D13=59,BQ49,IF(D13=60,BR49,IF(D13=61,BS49,IF(D13=62,BT49,IF(D13=63,BU49,0)))))))) -> 4
L84: M64 | M84: =IF(D13=64,BV49,0) -> 0
A90: Überprüfung der mechanischen Belastung
A92: Drehachse Vertikal | J92: Drehachse Horizontal
D93: Berechnung der dyn. Kraft | M93: Berechnung der dyn. Kraft
A94: Statische Belastung | D94: verursacht durch Masse m | G94: Dynamische Belastung | J94: Statische Belastung | M94: verursacht durch Masse m | P94: Dynamische Belastung
D95: ( Auch Drehen vor ) | M95: ( Zurückdrehen )
A96: Xs | B96: =A3/1000 -> 0 | D96: Omega | E96: =I33 -> 91.52912329 | G96: Z bis OK-Dr. | H96: 0.0165 | M96: Omega | N96: =I71 -> 91.52912329 | P96: Z bis OK-Dr. | Q96: =H96 -> 0.0165
A97: Ys | B97: =B3/1000 -> 0 | D97: Prozent | E97: =Eingabe1!O30 -> 1 | G97: Z | H97: =ABS(I97) -> 0.0165 | I97: =H96+B98 -> 0.0165 | M97: Prozent | N97: =E97 -> 1 | P97: Z | Q97: =H97 -> 0.0165
A98: Zs | B98: =Eingabe1!N12/1000 -> 0 | D98: Omega red. | E98: =E96*E97 -> 91.52912329 | G98: M2=Fdyn*Z | H98: =E109*H97 -> 0 | M98: Omega red. | N98: =N96*N97 -> 91.52912329 | P98: M2=Fdyn*Z | Q98: =Q109*Q97 -> 0
A99: R | B99: =SQRT(POWER(B96,2)+POWER(B97,2)) -> 0
A100: m | B100: =C3 -> 0 | D100: R | E100: =B99 -> 0 | G100: r | H100: 0.03 | M100: R | N100: =B99 -> 0 | P100: r | Q100: =H100 -> 0.03
A101: F | B101: =B100*9.81 -> 0 | D101: Omega | E101: =E98 -> 91.52912329 | J101: F | K101: =B101 -> 0 | M101: Omega | N101: =N98 -> 91.52912329
A102: M1=F*R | B102: =B101*B99 -> 0 | D102: v | E102: =E100*E101 -> 0 | G102: M3=Fdyn*(R-r) | H102: =E109*(B99-H100) -> 0 | J102: M1=F*Z | K102: =K101*H97 -> 0 | M102: v | N102: =N100*N101 -> 0 | P102: M3=Fdyn*(R-r) | Q102: =Q109*(B99-Q100) -> 0
D103: PI | E103: =PI() -> 3.141592654 | M103: PI | N103: =PI() -> 3.141592654
A104: M max | B104: 18 | D104: Aufprallwink. | E104: ='Allgemeine Werte'!P20 -> 13.8 | M104: Aufprallwink. | N104: =E104 -> 13.8
A105: F ax max | B105: 1800 | D105: s (Dämpfweg) | E105: =TAN(E104*E103/180)*E100 -> 0 | M105: s (Dämpfweg) | N105: =TAN(N104*N103/180)*N100 -> 0
A106: F rad max | B106: 1190 | D106: a | E106: =IF(E100=0,0,POWER(E102,2)/(2*E105)) -> 0 | M106: a | N106: =IF(N100=0,0,POWER(N102,2)/(2*N105)) -> 0
A107: M rad max | B107: =H100*B106 -> 35.7
D108: m | E108: =B100 -> 0 | M108: m | N108: =B100 -> 0
D109: Fdyn | E109: =E108*E106 -> 0 | M109: Fdyn | N109: =N108*N106 -> 0 | P109: F dyn max | Q109: =MAX(E109,N109) -> 0
A110: Belastung durch M antr. | J110: Belastung durch M antr.
A111: M antr. | B111: 4
D112: phi | E112: =G27 -> 3.141592654 | J112: M antr. Ende vor | K112: =M30 -> 4 | M112: phi | N112: =G65 -> 3.141592654
D113: a | E113: =POWER(E98,2)/(2*E112) -> 1333.333333 | J113: M antr. Ende rück | K113: =M75 -> 4 | M113: a | N113: =POWER(N98,2)/(2*N112) -> 1333.333333
D114: t | E114: =E101/E113*V37 -> 0.1784817904 | J114: M antr. Ende max | K114: =MAX(K112,K113) -> 4 | M114: t | N114: =N101/N113*V37 -> 0.1784817904
A116: Belastungsgleichung: F/Faxmax + M1/Mmax + M2/Mmax = | J116: Belastungsgleichung: M1/Mmax + M2/Mmax =
A117: ( Axiallager stat + dyn. ) | D117: =B101/B105+B102/B104+H98/B104 -> 0 | J117: ( Axiallager stat + dyn. ) | M117: =K102/B104+Q98/B104 -> 0
A119: Belastungsgleichung: F/Faxmax + M1/Mmax = | J119: Belastungsgleichung: M1/Mmax + M2/Mmax =
A120: ( Axiallager stat ) | D120: =B101/B105+B102/B104 -> 0 | J120: ( Axiallager stat ) | M120: =K102/B104 -> 0
A122: Belastungsgleichung: M3/Mradmax + M antr./Mradmax = | J122: Belastungsgleichung: F/Fradmax + M3/Mradmax + M antr/Mradmax =
A123: ( Radiallager stat + dyn. ) | D123: =H102/B107+B111/B107 -> 0.1120448179 | J123: ( Radiallager stat + dyn ) | M123: =K101/B106+Q102/B107+K114/B107 -> 0.1120448179
A125: Belastungsgleichung: M antr./Mradmax = | J125: Belastungsgleichung: F/Fradmax + M antr./Mradmax =
A126: ( Radiallager stat ) | D126: =B111/B107 -> 0.1120448179 | J126: ( Radiallager stat ) | M126: =K101/B106+K114/B107 -> 0.1120448179
A128: Lagerbelastung Drehachse vertikal : | D128: =MAX(D117,D120,D123,D126) -> 0.1120448179 | E128: Lagerbelastung: | G128: =IF(F14=TRUE,D128,M128) -> 0.1120448179 | J128: Lagerbelastung Drehachse horizontal : | M128: =MAX(M117,M120,M123,M126) -> 0.1120448179

Sheet BerRM310
A1: Drehen vor
A2: x | B2: y | C2: m | D2: x2*y2 | E2: R= | F2: sin | G2: grad
A3: =Eingabe1!N10 -> 0 | B3: =Eingabe1!N11 -> 0 | C3: =Eingabe1!N9 -> 0 | D3: =POWER(A3,2)+POWER(B3,2) -> 0 | E3: =SQRT(D3) -> 0 | F3: =IF(E3=0,0,A3/E3) -> 0 | G3: =ASIN(F3)*180/PI() -> 0
G4: =180-G3 -> 180 | J4: M= | K4: =IF($F14=TRUE,22,22+(9.81*$C3*($E3/1000)*K9)) -> 22 | L4: 22 | M4: 22 | N4: 22 | O4: 22 | P4: 22 | Q4: 22 | R4: 22 | S4: 22 | T4: 22 | U4: 22 | V4: 22 | W4: 22 | X4: 22 | Y4: 22 | Z4: 22 | AA4: 22 | AB4: 22 | AC4: 22 | AD4: 22 | AE4: 22 | AF4: 22 | AG4: 22 | AH4: 22 | AI4: 22 | AJ4: 22 | AK4: 22 | AL4: 22 | AM4: 22 | AN4: 22 | AO4: 22 | AP4: 22 | AQ4: =IF($F14=TRUE,22,22+(9.81*$C3*($E3/1000)*AQ9)) -> 22 | AR4: 22 | AS4: 22 | AT4: 22 | AU4: 22 | AV4: 22 | AW4: 22 | AX4: 22 | AY4: 22 | AZ4: 22 | BA4: 22 | BB4: 22 | BC4: 22 | BD4: 22 | BE4: 22 | BF4: 22 | BG4: 22 | BH4: 22 | BI4: 22 | BJ4: 22 | BK4: 22 | BL4: 22 | BM4: 22 | BN4: 22 | BO4: 22 | BP4: 22 | BQ4: 22 | BR4: 22 | BS4: 22 | BT4: 22 | BU4: 22 | BV4: 22
G5: =360+G3 -> 360
C6: Startwinkel | D6: =IF(AND(A3>=0,B3>=0),G3,IF(AND(A3>=0,B3<0),G4,IF(AND(A3<0,B3<0),G4,IF(AND(A3<0,B3>=0),G5,0)))) -> 0 | J6: beta= | K6: 3 | L6: =K6 -> 3 | M6: 3 | N6: 3 | O6: 3 | P6: 3 | Q6: 3 | R6: 3 | S6: 3 | T6: 3 | U6: 3 | V6: 3 | W6: 3 | X6: 3 | Y6: 3 | Z6: 3 | AA6: 3 | AB6: 3 | AC6: 3 | AD6: 3 | AE6: 3 | AF6: 3 | AG6: 3 | AH6: 3 | AI6: 3 | AJ6: 3 | AK6: 3 | AL6: 3 | AM6: 3 | AN6: 3 | AO6: 3 | AP6: 3 | AQ6: 3 | AR6: =AQ6 -> 3 | AS6: 3 | AT6: 3 | AU6: 3 | AV6: 3 | AW6: 3 | AX6: 3 | AY6: 3 | AZ6: 3 | BA6: 3 | BB6: 3 | BC6: 3 | BD6: 3 | BE6: 3 | BF6: 3 | BG6: 3 | BH6: 3 | BI6: 3 | BJ6: 3 | BK6: 3 | BL6: 3 | BM6: 3 | BN6: 3 | BO6: 3 | BP6: 3 | BQ6: 3 | BR6: 3 | BS6: 3 | BT6: 3 | BU6: 3 | BV6: 3
C7: sin Startpos | D7: =SIN((D6)*PI()/180) -> 0
C8: Schwenkw. | D8: =Eingabe1!M19 -> 180 | J8: Startwinkel | K8: =D6 -> 0 | L8: =IF($F16=TRUE,K8-K6,K8+K6) -> 3 | M8: 6 | N8: 9 | O8: 12 | P8: 15 | Q8: 18 | R8: 21 | S8: 24 | T8: 27 | U8: 30 | V8: 33 | W8: 36 | X8: 39 | Y8: 42 | Z8: 45 | AA8: 48 | AB8: 51 | AC8: 54 | AD8: 57 | AE8: 60 | AF8: 63 | AG8: 66 | AH8: 69 | AI8: 72 | AJ8: 75 | AK8: 78 | AL8: 81 | AM8: 84 | AN8: 87 | AO8: 90 | AP8: 93 | AQ8: 96 | AR8: =IF($F16=TRUE,AQ8-AQ6,AQ8+AQ6) -> 99 | AS8: 102 | AT8: 105 | AU8: 108 | AV8: 111 | AW8: 114 | AX8: 117 | AY8: 120 | AZ8: 123 | BA8: 126 | BB8: 129 | BC8: 132 | BD8: 135 | BE8: 138 | BF8: 141 | BG8: 144 | BH8: 147 | BI8: 150 | BJ8: 153 | BK8: 156 | BL8: 159 | BM8: 162 | BN8: 165 | BO8: 168 | BP8: 171 | BQ8: 174 | BR8: 177 | BS8: 180 | BT8: 183 | BU8: 186 | BV8: 189
C9: Endwinkel | D9: =IF(F16=TRUE,D6-D8,D6+D8) -> 180 | F9: Modulabhängige Zellen | J9: sin | K9: =IF($F16=TRUE,-SIN((K8)*PI()/180),SIN((K8)*PI()/180)) -> 0 | L9: 0.05233595624 | M9: 0.1045284633 | N9: 0.156434465 | O9: 0.2079116908 | P9: 0.2588190451 | Q9: 0.3090169944 | R9: 0.3583679495 | S9: 0.4067366431 | T9: 0.4539904997 | U9: 0.5 | V9: 0.544639035 | W9: 0.5877852523 | X9: 0.629320391 | Y9: 0.6691306064 | Z9: 0.7071067812 | AA9: 0.7431448255 | AB9: 0.7771459615 | AC9: 0.8090169944 | AD9: 0.8386705679 | AE9: 0.8660254038 | AF9: 0.8910065242 | AG9: 0.9135454576 | AH9: 0.9335804265 | AI9: 0.9510565163 | AJ9: 0.9659258263 | AK9: 0.9781476007 | AL9: 0.9876883406 | AM9: 0.9945218954 | AN9: 0.9986295348 | AO9: 1 | AP9: 0.9986295348 | AQ9: =IF($F16=TRUE,-SIN((AQ8)*PI()/180),SIN((AQ8)*PI()/180)) -> 0.9945218954 | AR9: 0.9876883406 | AS9: 0.9781476007 | AT9: 0.9659258263 | AU9: 0.9510565163 | AV9: 0.9335804265 | AW9: 0.9135454576 | AX9: 0.8910065242 | AY9: 0.8660254038 | AZ9: 0.8386705679 | BA9: 0.8090169944 | BB9: 0.7771459615 | BC9: 0.7431448255 | BD9: 0.7071067812 | BE9: 0.6691306064 | BF9: 0.629320391 | BG9: 0.5877852523 | BH9: 0.544639035 | BI9: 0.5 | BJ9: 0.4539904997 | BK9: 0.4067366431 | BL9: 0.3583679495 | BM9: 0.3090169944 | BN9: 0.2588190451 | BO9: 0.2079116908 | BP9: 0.156434465 | BQ9: 0.1045284633 | BR9: 0.05233595624 | BS9: 1.225148455e-16 | BT9: -0.05233595624 | BU9: -0.1045284633 | BV9: -0.156434465
C10: sin Endpos | D10: =SIN((D9)*PI()/180) -> 1.225148455e-16
F11: Werte aus Eingabeseite | K11: 1 | L11: 2 | M11: 3 | N11: 4 | O11: 5 | P11: 6 | Q11: 7 | R11: 8 | S11: 9 | T11: 10 | U11: 11 | V11: 12 | W11: 13 | X11: 14 | Y11: 15 | Z11: 16 | AA11: 17 | AB11: 18 | AC11: 19 | AD11: 20 | AE11: 21 | AF11: 22 | AG11: 23 | AH11: 24 | AI11: 25 | AJ11: 26 | AK11: 27 | AL11: 28 | AM11: 29 | AN11: 30 | AO11: 31 | AP11: 32 | AQ11: 33 | AR11: 34 | AS11: 35 | AT11: 36 | AU11: 37 | AV11: 38 | AW11: 39 | AX11: 40 | AY11: 41 | AZ11: 42 | BA11: 43 | BB11: 44 | BC11: 45 | BD11: 46 | BE11: 47 | BF11: 48 | BG11: 49 | BH11: 50 | BI11: 51 | BJ11: 52 | BK11: 53 | BL11: 54 | BM11: 55 | BN11: 56 | BO11: 57 | BP11: 58 | BQ11: 59 | BR11: 60 | BS11: 61 | BT11: 62 | BU11: 63 | BV11: 64
D12: =D8/K6 -> 60
D13: =ROUNDUP(D12,0) -> 60
F14: =IF(Eingabe1!C41=TRUE,FALSE,TRUE) -> TRUE | G14: Horizontaler Aufbau | J14: Summe M | K14: =K4 -> 22 | L14: =K14+L4 -> 44 | M14: 66 | N14: 88 | O14: 110 | P14: 132 | Q14: 154 | R14: 176 | S14: 198 | T14: 220 | U14: 242 | V14: 264 | W14: 286 | X14: 308 | Y14: 330 | Z14: 352 | AA14: 374 | AB14: 396 | AC14: 418 | AD14: 440 | AE14: 462 | AF14: 484 | AG14: 506 | AH14: 528 | AI14: 550 | AJ14: 572 | AK14: 594 | AL14: 616 | AM14: 638 | AN14: 660 | AO14: 682 | AP14: 704 | AQ14: 726 | AR14: =AQ14+AR4 -> 748 | AS14: 770 | AT14: 792 | AU14: 814 | AV14: 836 | AW14: 858 | AX14: 880 | AY14: 902 | AZ14: 924 | BA14: 946 | BB14: 968 | BC14: 990 | BD14: 1012 | BE14: 1034 | BF14: 1056 | BG14: 1078 | BH14: 1100 | BI14: 1122 | BJ14: 1144 | BK14: 1166 | BL14: 1188 | BM14: 1210 | BN14: 1232 | BO14: 1254 | BP14: 1276 | BQ14: 1298 | BR14: 1320 | BS14: 1342 | BT14: 1364 | BU14: 1386 | BV14: 1408
J15: Mittelwert Mm | K15: =K14/K11 -> 22 | L15: 22 | M15: 22 | N15: 22 | O15: 22 | P15: 22 | Q15: 22 | R15: 22 | S15: 22 | T15: 22 | U15: 22 | V15: 22 | W15: 22 | X15: 22 | Y15: 22 | Z15: 22 | AA15: 22 | AB15: 22 | AC15: 22 | AD15: 22 | AE15: 22 | AF15: 22 | AG15: 22 | AH15: 22 | AI15: 22 | AJ15: 22 | AK15: 22 | AL15: 22 | AM15: 22 | AN15: 22 | AO15: 22 | AP15: 22 | AQ15: =AQ14/AQ11 -> 22 | AR15: 22 | AS15: 22 | AT15: 22 | AU15: 22 | AV15: 22 | AW15: 22 | AX15: 22 | AY15: 22 | AZ15: 22 | BA15: 22 | BB15: 22 | BC15: 22 | BD15: 22 | BE15: 22 | BF15: 22 | BG15: 22 | BH15: 22 | BI15: 22 | BJ15: 22 | BK15: 22 | BL15: 22 | BM15: 22 | BN15: 22 | BO15: 22 | BP15: 22 | BQ15: 22 | BR15: 22 | BS15: 22 | BT15: 22 | BU15: 22 | BV15: 22
A16: Mittelwert des Antriebsmoments über Schwenkbereich | F16: =IF(Eingabe1!C42=TRUE,TRUE,FALSE) -> FALSE | G16: Drehen im/gegen Uhrzeigersinn
C17: Mn= | D17: =MAX(D18:D26) -> 22 | O17: Gerundete Werte+Korrekturfaktoren | U17: Schwenkzeitkorrektur von J=0 bis J= | X17: 0.15
C18: Mn1-7 | D18: =IF(D13=0,0,IF(D13=1,K15,IF(D13=2,L15,IF(D13=3,M15,IF(D13=4,N15,IF(D13=5,O15,IF(D13=6,P15,IF(D13=7,Q15,0)))))))) -> 0 | K18: Schwenkzeit vor | N18: =E114 -> 0.1476385967 | O18: =ROUND(N18+U22+U26,2) -> 0.26 | P18: Zykluszeit | Q18: =O18+O19 -> 0.52 | R18: Zyklen/min | S18: =60/Q18 -> 115.3846154 | U18: Korrekturfaktor bei J=0 : | X18: 0.05
C19: Mn8-15 | D19: =IF(D13=8,R15,IF(D13=9,S15,IF(D13=10,T15,IF(D13=11,U15,IF(D13=12,V15,IF(D13=13,W15,IF(D13=14,X15,IF(D13=15,Y15,0)))))))) -> 0 | K19: Schwenkzeit zurück | N19: =N114 -> 0.1476385967 | O19: =ROUND(N19+U22+U26,2) -> 0.26 | U19: bis J= siehe oben ! (Gerade) : | X19: 0
C20: Mn16-23 | D20: =IF(D13=16,Z15,IF(D13=17,AA15,IF(D13=18,AB15,IF(D13=19,AC15,IF(D13=20,AD15,IF(D13=21,AE15,IF(D13=22,AF15,IF(D13=23,AG15,0)))))))) -> 0 | F20: M= | G20: =D17 -> 22 | U20: ( Faktor wird in diesem J-Bereich zur berechneten Zeit addiert ! )
C21: Mn24-31 | D21: =IF(D13=24,AH15,IF(D13=25,AI15,IF(D13=26,AJ15,IF(D13=27,AK15,IF(D13=28,AL15,IF(D13=29,AM15,IF(D13=30,AN15,IF(D13=31,AO15,0)))))))) -> 0 | F21: J= | G21: =Eingabe1!N8 -> 0 | K21: Mmin im Schwenkbereich vor | N21: =D30 -> 22 | O21: Mmin | P21: =MIN(N21:N22) -> 22 | R21: M-Mmin/M | S21: =(22-P21)/22 -> 0 | U21: =-(X18/X17)*(G21-X17) -> 0.05
C22: Mn32-39 | D22: =IF(D13=32,AP15,IF(D13=33,AQ15,IF(D13=34,AR15,IF(D13=35,AS15,IF(D13=36,AT15,IF(D13=37,AU15,IF(D13=38,AV15,IF(D13=39,AW15,0)))))))) -> 0 | F22: JE= | G22: 0.03 | K22: Mmin im Schwenkbereich zurück | N22: =D72 -> 22 | U22: =IF(G21>=X17,0,U21) -> 0.05
C23: Mn40-47 | D23: =IF(D13=40,AX15,IF(D13=41,AY15,IF(D13=42,AZ15,IF(D13=43,BA15,IF(D13=44,BB15,IF(D13=45,BC15,IF(D13=46,BD15,IF(D13=47,BE15,0)))))))) -> 0 | F23: k= | G23: 1.1 | H23: K-Wert (V37) in Ts eingearbeitet !
C24: Mn48-55 | D24: =IF(D13=48,BF15,IF(D13=49,BG15,IF(D13=50,BH15,IF(D13=51,BI15,IF(D13=52,BJ15,IF(D13=53,BK15,IF(D13=54,BL15,IF(D13=55,BM15,0)))))))) -> 0 | F24: alpha= | G24: =G20/((G21+G22)*POWER(G23,2)) -> 606.0606061 | K24: E ges vor | N24: =P37 -> 65.31594486 | O24: E ges max | P24: =MAX(N24:N25) -> 65.31594486 | R24: E zul/Hub | S24: ='Allgemeine Werte'!G22 -> 75 | U24: Schwenkzeitkorrektur gem. Schunkmessungen
C25: Mn56-63 | D25: =IF(D13=56,BN15,IF(D13=57,BO15,IF(D13=58,BP15,IF(D13=59,BQ15,IF(D13=60,BR15,IF(D13=61,BS15,IF(D13=62,BT15,IF(D13=63,BU15,0)))))))) -> 22 | F25: PI= | G25: =PI() -> 3.141592654 | K25: E ges zurück | N25: =P82 -> 65.31594486 | U25: (Zeit wird zu Schwenkzeiten (O18,O19) addiert)
C26: Mn64 | D26: =IF(D13=64,BV15,0) -> 0 | F26: beta= | G26: =D8 -> 180 | R26: E ges/E zul | S26: =P24/S24 -> 0.8708792648 | U26: =IF(G21<V39,U27,0) -> 0.06 | V26: K-Wert von 1,45 auf 2,00 (bei J>0,95) erhöht
F27: phi= | G27: =G25*G26/180 -> 3.141592654 | U27: =IF(G21<0.3,0.06,U28) -> 0.06
F28: Omega= | G28: =SQRT(2*G24*G27) -> 61.70892233 | L28: Antriebsmoment in Endposition | R28: Ezul/h | S28: ='Allgemeine Werte'!H22 -> 68000 | U28: =0.39/(V39-0.3)*(G21-0.3)*(1/180*D8)+0.06 -> -0.12
A29: Minimale Antriebsmoment im Schwenkbereich | I29: Tsmax für Schwenkzeit vor: | L29: für Energieberechnung | O29: Energieberechnung
C30: M min.= | D30: =MAX(D31:D40) -> 22 | F30: Ts= | G30: =G28/G24*V37 -> 0.1476385967 | I30: =MAX(G30,G44) -> 0.1476385967 | L30: M= | M30: =MAX(M31:M39) -> 22 | O30: M= | P30: =M30 -> 22 | R30: Zyklen/min | S30: =(S28/60)/P24 -> 17.35155689 | U30: Schwenkzeit nicht < | X30: neu in Version 02_18
C31: M1-6 | D31: =IF(D13=0,0,IF(D13=1,K4,IF(D13=2,MIN(K4:L4),IF(D13=3,MIN(K4:M4),IF(D13=4,MIN(K4:N4),IF(D13=5,MIN(K4:O4),IF(D13=6,MIN(K4:P4)," "))))))) ->  | L31: M1-7 | M31: =IF(D13=0,0,IF(D13=1,K4,IF(D13=2,L4,IF(D13=3,M4,IF(D13=4,N4,IF(D13=5,O4,IF(D13=6,P4,IF(D13=7,Q4,0)))))))) -> 0 | O31: r= | P31: 0.051 | V31: 0.16
C32: M7-13 | D32: =IF(D13=7,MIN(K4:Q4),IF(D13=8,MIN(K4:R4),IF(D13=9,MIN(K4:S4),IF(D13=10,MIN(K4:T4),IF(D13=11,MIN(K4:U4),IF(D13=12,MIN(K4:V4),IF(D13=13,MIN(K4:W4)," "))))))) ->  | I32: Omega min. für Ber. E kin.: | L32: M8-15 | M32: =IF(D13=8,R4,IF(D13=9,S4,IF(D13=10,T4,IF(D13=11,U4,IF(D13=12,V4,IF(D13=13,W4,IF(D13=14,X4,IF(D13=15,Y4,0)))))))) -> 0 | O32: s= | P32: ='Allgemeine Werte'!L22 -> 0.019 | S32: =MIN(S18,S30,S37,S41) -> 17.35155689
C33: M14-20 | D33: =IF(D13=14,MIN(K4:X4),IF(D13=15,MIN(K4:Y4),IF(D13=16,MIN(K4:Z4),IF(D13=17,MIN(K4:AA4),IF(D13=18,MIN(K4:AB4),IF(D13=19,MIN(K4:AC4),IF(D13=20,MIN(K4:AD4)," "))))))) ->  | F33: Werte für Drehachse vertikal | I33: =MIN(G28,G42) -> 61.70892233 | L33: M16-23 | M33: =IF(D13=16,Z4,IF(D13=17,AA4,IF(D13=18,AB4,IF(D13=19,AC4,IF(D13=20,AD4,IF(D13=21,AE4,IF(D13=22,AF4,IF(D13=23,AG4,0)))))))) -> 0 | O33: E antrieb | P33: =P30*P32/P31 -> 8.196078431 | R33: Zykl.min./min | S33: =ROUNDDOWN(S32,0) -> 17 | U33: =O18 -> 0.26 | V33: =IF(U33<V31,ROUND(V31,2),ROUND(U33,2)) -> 0.26
C34: M21-27 | D34: =IF(D13=21,MIN(K4:AE4),IF(D13=22,MIN(K4:AF4),IF(D13=23,MIN(K4:AG4),IF(D13=24,MIN(K4:AH4),IF(D13=25,MIN(K4:AI4),IF(D13=26,MIN(K4:AJ4),IF(D13=27,MIN(K4:AK4)," "))))))) ->  | F34: M= | G34: 22 | L34: M24-31 | M34: =IF(D13=24,AH4,IF(D13=25,AI4,IF(D13=26,AJ4,IF(D13=27,AK4,IF(D13=28,AL4,IF(D13=29,AM4,IF(D13=30,AN4,IF(D13=31,AO4,0)))))))) -> 0 | U34: =O19 -> 0.26 | V34: =IF(U34<V31,ROUND(V31,2),ROUND(U34,2)) -> 0.26
C35: M28-34 | D35: =IF(D13=28,MIN(K4:AL4),IF(D13=29,MIN(K4:AM4),IF(D13=30,MIN(K4:AN4),IF(D13=31,MIN(K4:AO4),IF(D13=32,MIN(K4:AP4),IF(D13=33,MIN(K4:AQ4),IF(D13=34,MIN(K4:AR4)," "))))))) ->  | F35: J= | G35: =G21 -> 0 | L35: M32-39 | M35: =IF(D13=32,AP4,IF(D13=33,AQ4,IF(D13=34,AR4,IF(D13=35,AS4,IF(D13=36,AT4,IF(D13=37,AU4,IF(D13=38,AV4,IF(D13=39,AW4,0)))))))) -> 0 | O35: E kin. | P35: =((G21+G22)*POWER(E98,2))/2 -> 57.11986643 | R35: Stoßd.-kolbenrückstellzeit
C36: M35-41 | D36: =IF(D13=35,MIN(K4:AS4),IF(D13=36,MIN(K4:AT4),IF(D13=37,MIN(K4:AU4),IF(D13=38,MIN(K4:AV4),IF(D13=39,MIN(K4:AW4),IF(D13=40,MIN(K4:AX4),IF(D13=41,MIN(K4:AY4)," "))))))) ->  | F36: JE= | G36: =G22 -> 0.03 | L36: M40-47 | M36: =IF(D13=40,AX4,IF(D13=41,AY4,IF(D13=42,AZ4,IF(D13=43,BA4,IF(D13=44,BB4,IF(D13=45,BC4,IF(D13=46,BD4,IF(D13=47,BE4,0)))))))) -> 0 | S36: ='Allgemeine Werte'!E22 -> 0.6
C37: M42-48 | D37: =IF(D13=42,MIN(K4:AZ4),IF(D13=43,MIN(K4:BA4),IF(D13=44,MIN(K4:BB4),IF(D13=45,MIN(K4:BC4),IF(D13=46,MIN(K4:BD4),IF(D13=47,MIN(K4:BE4),IF(D13=48,MIN(K4:BF4)," "))))))) ->  | F37: k= | G37: =G23 -> 1.1 | L37: M48-55 | M37: =IF(D13=48,BF4,IF(D13=49,BG4,IF(D13=50,BH4,IF(D13=51,BI4,IF(D13=52,BJ4,IF(D13=53,BK4,IF(D13=54,BL4,IF(D13=55,BM4,0)))))))) -> 0 | O37: E ges | P37: =P35+P33 -> 65.31594486 | R37: Max.Zyk/min | S37: =60/S36 -> 100 | U37: K-Wert | V37: =IF(G21<V39,1.45,2) -> 1.45
C38: M49-55 | D38: =IF(D13=49,MIN(K4:BG4),IF(D13=50,MIN(K4:BH4),IF(D13=51,MIN(K4:BI4),IF(D13=52,MIN(K4:BJ4),IF(D13=53,MIN(K4:BK4),IF(D13=54,MIN(K4:BL4),IF(D13=55,MIN(K4:BM4)," "))))))) ->  | F38: alpha= | G38: =G34/((G35+G36)*POWER(G37,2)) -> 606.0606061 | L38: M56-63 | M38: =IF(D13=56,BN4,IF(D13=57,BO4,IF(D13=58,BP4,IF(D13=59,BQ4,IF(D13=60,BR4,IF(D13=61,BS4,IF(D13=62,BT4,IF(D13=63,BU4,0)))))))) -> 22 | U38: (war 1,6, geändert auf 1,45)
C39: M56-62 | D39: =IF(D13=56,MIN(K4:BN4),IF(D13=57,MIN(K4:BO4),IF(D13=58,MIN(K4:BP4),IF(D13=59,MIN(K4:BQ4),IF(D13=60,MIN(K4:BR4),IF(D13=61,MIN(K4:BS4),IF(D13=62,MIN(K4:BT4)," "))))))) -> 22 | F39: PI= | G39: =PI() -> 3.141592654 | L39: M64 | M39: =IF(D13=64,BV4,0) -> 0 | U39: Jmax-1= | V39: =Eingabe1!Q40 -> 0.95
C40: M63-64 | D40: =IF(D13=63,MIN(K4:BU4),IF(D13=64,MIN(K4:BV4)," ")) ->  | F40: beta= | G40: =G26 -> 180 | R40: Angaben Stoßdämpferhersteller | U40: Jmax-2= | V40: =Eingabe1!Q43 -> 2.800000004
F41: phi= | G41: =G39*G40/180 -> 3.141592654 | R41: Max.Zyk/min | S41: =-(('Allgemeine Werte'!J22-'Allgemeine Werte'!I22)/V41)*(G21-V41)+'Allgemeine Werte'!I22 -> 30 | U41: Jmax= | V41: =IF(G21<V39,V39,V40) -> 0.95
F42: Omega= | G42: =SQRT(2*G38*G41) -> 61.70892233
F44: Ts= | G44: =G42/G38*V37 -> 0.1476385967
A45: Zurückdrehen
C49: Startwinkel | D49: =D9 -> 180 | J49: M= | K49: =IF($F14=TRUE,22,22+(9.81*$C3*($E3/1000)*K54)) -> 22 | L49: 22 | M49: 22 | N49: 22 | O49: 22 | P49: 22 | Q49: 22 | R49: 22 | S49: 22 | T49: 22 | U49: 22 | V49: 22 | W49: 22 | X49: 22 | Y49: 22 | Z49: 22 | AA49: 22 | AB49: 22 | AC49: 22 | AD49: 22 | AE49: 22 | AF49: 22 | AG49: 22 | AH49: 22 | AI49: 22 | AJ49: 22 | AK49: 22 | AL49: 22 | AM49: 22 | AN49: 22 | AO49: 22 | AP49: 22 | AQ49: =IF($F14=TRUE,22,22+(9.81*$C3*($E3/1000)*AQ54)) -> 22 | AR49: 22 | AS49: 22 | AT49: 22 | AU49: 22 | AV49: 22 | AW49: 22 | AX49: 22 | AY49: 22 | AZ49: 22 | BA49: 22 | BB49: 22 | BC49: 22 | BD49: 22 | BE49: 22 | BF49: 22 | BG49: 22 | BH49: 22 | BI49: 22 | BJ49: 22 | BK49: 22 | BL49: 22 | BM49: 22 | BN49: 22 | BO49: 22 | BP49: 22 | BQ49: 22 | BR49: 22 | BS49: 22 | BT49: 22 | BU49: 22 | BV49: 22
C50: sin Startpos | D50: =SIN((D49)*PI()/180) -> 1.225148455e-16
C51: Schwenkw. | D51: =D8 -> 180 | J51: beta= | K51: =K6 -> 3 | L51: =K51 -> 3 | M51: 3 | N51: 3 | O51: 3 | P51: 3 | Q51: 3 | R51: 3 | S51: 3 | T51: 3 | U51: 3 | V51: 3 | W51: 3 | X51: 3 | Y51: 3 | Z51: 3 | AA51: 3 | AB51: 3 | AC51: 3 | AD51: 3 | AE51: 3 | AF51: 3 | AG51: 3 | AH51: 3 | AI51: 3 | AJ51: 3 | AK51: 3 | AL51: 3 | AM51: 3 | AN51: 3 | AO51: 3 | AP51: 3 | AQ51: 3 | AR51: =AQ51 -> 3 | AS51: 3 | AT51: 3 | AU51: 3 | AV51: 3 | AW51: 3 | AX51: 3 | AY51: 3 | AZ51: 3 | BA51: 3 | BB51: 3 | BC51: 3 | BD51: 3 | BE51: 3 | BF51: 3 | BG51: 3 | BH51: 3 | BI51: 3 | BJ51: 3 | BK51: 3 | BL51: 3 | BM51: 3 | BN51: 3 | BO51: 3 | BP51: 3 | BQ51: 3 | BR51: 3 | BS51: 3 | BT51: 3 | BU51: 3 | BV51: 3
C52: Endwinkel | D52: =IF(F16=TRUE,D49+D51,D49-D51) -> 0
C53: sin Endpos | D53: =SIN((D52)*PI()/180) -> 0 | J53: Startwinkel | K53: =D49 -> 180 | L53: =IF($F16=TRUE,K53+K51,K53-K51) -> 177 | M53: 174 | N53: 171 | O53: 168 | P53: 165 | Q53: 162 | R53: 159 | S53: 156 | T53: 153 | U53: 150 | V53: 147 | W53: 144 | X53: 141 | Y53: 138 | Z53: 135 | AA53: 132 | AB53: 129 | AC53: 126 | AD53: 123 | AE53: 120 | AF53: 117 | AG53: 114 | AH53: 111 | AI53: 108 | AJ53: 105 | AK53: 102 | AL53: 99 | AM53: 96 | AN53: 93 | AO53: 90 | AP53: 87 | AQ53: 84 | AR53: =IF($F16=TRUE,AQ53+AQ51,AQ53-AQ51) -> 81 | AS53: 78 | AT53: 75 | AU53: 72 | AV53: 69 | AW53: 66 | AX53: 63 | AY53: 60 | AZ53: 57 | BA53: 54 | BB53: 51 | BC53: 48 | BD53: 45 | BE53: 42 | BF53: 39 | BG53: 36 | BH53: 33 | BI53: 30 | BJ53: 27 | BK53: 24 | BL53: 21 | BM53: 18 | BN53: 15 | BO53: 12 | BP53: 9 | BQ53: 6 | BR53: 3 | BS53: 0 | BT53: -3 | BU53: -6 | BV53: -9
J54: sin | K54: =IF($F16=TRUE,SIN((K53)*PI()/180),-SIN((K53)*PI()/180)) -> -1.225148455e-16 | L54: -0.05233595624 | M54: -0.1045284633 | N54: -0.156434465 | O54: -0.2079116908 | P54: -0.2588190451 | Q54: -0.3090169944 | R54: -0.3583679495 | S54: -0.4067366431 | T54: -0.4539904997 | U54: -0.5 | V54: -0.544639035 | W54: -0.5877852523 | X54: -0.629320391 | Y54: -0.6691306064 | Z54: -0.7071067812 | AA54: -0.7431448255 | AB54: -0.7771459615 | AC54: -0.8090169944 | AD54: -0.8386705679 | AE54: -0.8660254038 | AF54: -0.8910065242 | AG54: -0.9135454576 | AH54: -0.9335804265 | AI54: -0.9510565163 | AJ54: -0.9659258263 | AK54: -0.9781476007 | AL54: -0.9876883406 | AM54: -0.9945218954 | AN54: -0.9986295348 | AO54: -1 | AP54: -0.9986295348 | AQ54: =IF($F16=TRUE,SIN((AQ53)*PI()/180),-SIN((AQ53)*PI()/180)) -> -0.9945218954 | AR54: -0.9876883406 | AS54: -0.9781476007 | AT54: -0.9659258263 | AU54: -0.9510565163 | AV54: -0.9335804265 | AW54: -0.9135454576 | AX54: -0.8910065242 | AY54: -0.8660254038 | AZ54: -0.8386705679 | BA54: -0.8090169944 | BB54: -0.7771459615 | BC54: -0.7431448255 | BD54: -0.7071067812 | BE54: -0.6691306064 | BF54: -0.629320391 | BG54: -0.5877852523 | BH54: -0.544639035 | BI54: -0.5 | BJ54: -0.4539904997 | BK54: -0.4067366431 | BL54: -0.3583679495 | BM54: -0.3090169944 | BN54: -0.2588190451 | BO54: -0.2079116908 | BP54: -0.156434465 | BQ54: -0.1045284633 | BR54: -0.05233595624 | BS54: 0 | BT54: 0.05233595624 | BU54: 0.1045284633 | BV54: 0.156434465
K56: 1 | L56: 2 | M56: 3 | N56: 4 | O56: 5 | P56: 6 | Q56: 7 | R56: 8 | S56: 9 | T56: 10 | U56: 11 | V56: 12 | W56: 13 | X56: 14 | Y56: 15 | Z56: 16 | AA56: 17 | AB56: 18 | AC56: 19 | AD56: 20 | AE56: 21 | AF56: 22 | AG56: 23 | AH56: 24 | AI56: 25 | AJ56: 26 | AK56: 27 | AL56: 28 | AM56: 29 | AN56: 30 | AO56: 31 | AP56: 32 | AQ56: 33 | AR56: 34 | AS56: 35 | AT56: 36 | AU56: 37 | AV56: 38 | AW56: 39 | AX56: 40 | AY56: 41 | AZ56: 42 | BA56: 43 | BB56: 44 | BC56: 45 | BD56: 46 | BE56: 47 | BF56: 48 | BG56: 49 | BH56: 50 | BI56: 51 | BJ56: 52 | BK56: 53 | BL56: 54 | BM56: 55 | BN56: 56 | BO56: 57 | BP56: 58 | BQ56: 59 | BR56: 60 | BS56: 61 | BT56: 62 | BU56: 63 | BV56: 64
A57: Mittelwert des Antriebsmoments über Schwenkbereich
C58: Mn= | D58: =MAX(D59:D67) -> 22 | F58: M= | G58: =D58 -> 22
C59: Mn1-7 | D59: =IF(D13=0,0,IF(D13=1,K63,IF(D13=2,L63,IF(D13=3,M63,IF(D13=4,N63,IF(D13=5,O63,IF(D13=6,P63,IF(D13=7,Q63,0)))))))) -> 0 | F59: J= | G59: =G21 -> 0
C60: Mn8-15 | D60: =IF(D13=8,R63,IF(D13=9,S63,IF(D13=10,T63,IF(D13=11,U63,IF(D13=12,V63,IF(D13=13,W63,IF(D13=14,X63,IF(D13=15,Y63,0)))))))) -> 0 | F60: JE= | G60: =G22 -> 0.03
C61: Mn16-23 | D61: =IF(D13=16,Z63,IF(D13=17,AA63,IF(D13=18,AB63,IF(D13=19,AC63,IF(D13=20,AD63,IF(D13=21,AE63,IF(D13=22,AF63,IF(D13=23,AG63,0)))))))) -> 0 | F61: k= | G61: =G23 -> 1.1
C62: Mn24-31 | D62: =IF(D13=24,AH63,IF(D13=25,AI63,IF(D13=26,AJ63,IF(D13=27,AK63,IF(D13=28,AL63,IF(D13=29,AM63,IF(D13=30,AN63,IF(D13=31,AO63,0)))))))) -> 0 | F62: alpha= | G62: =G58/((G59+G60)*POWER(G61,2)) -> 606.0606061 | J62: Summe M | K62: =K49 -> 22 | L62: =K62+L49 -> 44 | M62: 66 | N62: 88 | O62: 110 | P62: 132 | Q62: 154 | R62: 176 | S62: 198 | T62: 220 | U62: 242 | V62: 264 | W62: 286 | X62: 308 | Y62: 330 | Z62: 352 | AA62: 374 | AB62: 396 | AC62: 418 | AD62: 440 | AE62: 462 | AF62: 484 | AG62: 506 | AH62: 528 | AI62: 550 | AJ62: 572 | AK62: 594 | AL62: 616 | AM62: 638 | AN62: 660 | AO62: 682 | AP62: 704 | AQ62: 726 | AR62: =AQ62+AR49 -> 748 | AS62: 770 | AT62: 792 | AU62: 814 | AV62: 836 | AW62: 858 | AX62: 880 | AY62: 902 | AZ62: 924 | BA62: 946 | BB62: 968 | BC62: 990 | BD62: 1012 | BE62: 1034 | BF62: 1056 | BG62: 1078 | BH62: 1100 | BI62: 1122 | BJ62: 1144 | BK62: 1166 | BL62: 1188 | BM62: 1210 | BN62: 1232 | BO62: 1254 | BP62: 1276 | BQ62: 1298 | BR62: 1320 | BS62: 1342 | BT62: 1364 | BU62: 1386 | BV62: 1408
C63: Mn32-39 | D63: =IF(D13=32,AP63,IF(D13=33,AQ63,IF(D13=34,AR63,IF(D13=35,AS63,IF(D13=36,AT63,IF(D13=37,AU63,IF(D13=38,AV63,IF(D13=39,AW63,0)))))))) -> 0 | F63: PI= | G63: =PI() -> 3.141592654 | J63: Mittelwert Mm | K63: =K62/K56 -> 22 | L63: 22 | M63: 22 | N63: 22 | O63: 22 | P63: 22 | Q63: 22 | R63: 22 | S63: 22 | T63: 22 | U63: 22 | V63: 22 | W63: 22 | X63: 22 | Y63: 22 | Z63: 22 | AA63: 22 | AB63: 22 | AC63: 22 | AD63: 22 | AE63: 22 | AF63: 22 | AG63: 22 | AH63: 22 | AI63: 22 | AJ63: 22 | AK63: 22 | AL63: 22 | AM63: 22 | AN63: 22 | AO63: 22 | AP63: 22 | AQ63: =AQ62/AQ56 -> 22 | AR63: 22 | AS63: 22 | AT63: 22 | AU63: 22 | AV63: 22 | AW63: 22 | AX63: 22 | AY63: 22 | AZ63: 22 | BA63: 22 | BB63: 22 | BC63: 22 | BD63: 22 | BE63: 22 | BF63: 22 | BG63: 22 | BH63: 22 | BI63: 22 | BJ63: 22 | BK63: 22 | BL63: 22 | BM63: 22 | BN63: 22 | BO63: 22 | BP63: 22 | BQ63: 22 | BR63: 22 | BS63: 22 | BT63: 22 | BU63: 22 | BV63: 22
C64: Mn40-47 | D64: =IF(D13=40,AX63,IF(D13=41,AY63,IF(D13=42,AZ63,IF(D13=43,BA63,IF(D13=44,BB63,IF(D13=45,BC63,IF(D13=46,BD63,IF(D13=47,BE63,0)))))))) -> 0 | F64: beta= | G64: =D51 -> 180
C65: Mn48-55 | D65: =IF(D13=48,BF63,IF(D13=49,BG63,IF(D13=50,BH63,IF(D13=51,BI63,IF(D13=52,BJ63,IF(D13=53,BK63,IF(D13=54,BL63,IF(D13=55,BM63,0)))))))) -> 0 | F65: phi= | G65: =G63*G64/180 -> 3.141592654
C66: Mn56-63 | D66: =IF(D13=56,BN63,IF(D13=57,BO63,IF(D13=58,BP63,IF(D13=59,BQ63,IF(D13=60,BR63,IF(D13=61,BS63,IF(D13=62,BT63,IF(D13=63,BU63,0)))))))) -> 22 | F66: Omega= | G66: =SQRT(2*G62*G65) -> 61.70892233
C67: M64 | D67: =IF(D13=64,BV63,0) -> 0 | I67: Tsmax für Schwenkzeit vor:
F68: Ts= | G68: =G66/G62*V37 -> 0.1476385967 | I68: =MAX(G68,G82) -> 0.1476385967
I70: Omega min. für Ber. E kin.:
A71: Minimale Antriebsmoment im Schwenkbereich | F71: Werte für Drehachse vertikal | I71: =MIN(G66,G80) -> 61.70892233
C72: M min.= | D72: =MAX(D73:D82) -> 22 | F72: M= | G72: 22
C73: M1-6 | D73: =IF(D13=0,0,IF(D13=1,K49,IF(D13=2,MIN(K49:L49),IF(D13=3,MIN(K49:M49),IF(D13=4,MIN(K49:N49),IF(D13=5,MIN(K49:O49),IF(D13=6,MIN(K49:P49)," "))))))) ->  | F73: J= | G73: =G59 -> 0 | L73: Antriebsmoment in Endposition
C74: M7-13 | D74: =IF(D13=7,MIN(K49:Q49),IF(D13=8,MIN(K49:R49),IF(D13=9,MIN(K49:S49),IF(D13=10,MIN(K49:T49),IF(D13=11,MIN(K49:U49),IF(D13=12,MIN(K49:V49),IF(D13=13,MIN(K49:W49)," "))))))) ->  | F74: JE= | G74: =G60 -> 0.03 | L74: für Energieberechnung | O74: Energieberechnung
C75: M14-20 | D75: =IF(D13=14,MIN(K49:X49),IF(D13=15,MIN(K49:Y49),IF(D13=16,MIN(K49:Z49),IF(D13=17,MIN(K49:AA49),IF(D13=18,MIN(K49:AB49),IF(D13=19,MIN(K49:AC49),IF(D13=20,MIN(K49:AD49)," "))))))) ->  | F75: k= | G75: =G61 -> 1.1 | L75: M= | M75: =MAX(M76:M84) -> 22 | O75: M= | P75: =M75 -> 22
C76: M21-27 | D76: =IF(D13=21,MIN(K49:AE49),IF(D13=22,MIN(K49:AF49),IF(D13=23,MIN(K49:AG49),IF(D13=24,MIN(K49:AH49),IF(D13=25,MIN(K49:AI49),IF(D13=26,MIN(K49:AJ49),IF(D13=27,MIN(K49:AK49)," "))))))) ->  | F76: alpha= | G76: =G72/((G73+G74)*POWER(G75,2)) -> 606.0606061 | L76: M1-7 | M76: =IF(D13=0,0,IF(D13=1,K49,IF(D13=2,L49,IF(D13=3,M49,IF(D13=4,N49,IF(D13=5,O49,IF(D13=6,P49,IF(D13=7,Q49,0)))))))) -> 0 | O76: r= | P76: 0.051
C77: M28-34 | D77: =IF(D13=28,MIN(K49:AL49),IF(D13=29,MIN(K49:AM49),IF(D13=30,MIN(K49:AN49),IF(D13=31,MIN(K49:AO49),IF(D13=32,MIN(K49:AP49),IF(D13=33,MIN(K49:AQ49),IF(D13=34,MIN(K49:AR49)," "))))))) ->  | F77: PI= | G77: =PI() -> 3.141592654 | L77: M8-15 | M77: =IF(D13=8,R49,IF(D13=9,S49,IF(D13=10,T49,IF(D13=11,U49,IF(D13=12,V49,IF(D13=13,W49,IF(D13=14,X49,IF(D13=15,Y49,0)))))))) -> 0 | O77: s= | P77: ='Allgemeine Werte'!L22 -> 0.019
C78: M35-41 | D78: =IF(D13=35,MIN(K49:AS49),IF(D13=36,MIN(K49:AT49),IF(D13=37,MIN(K49:AU49),IF(D13=38,MIN(K49:AV49),IF(D13=39,MIN(K49:AW49),IF(D13=40,MIN(K49:AX49),IF(D13=41,MIN(K49:AY49)," "))))))) ->  | F78: beta= | G78: =G64 -> 180 | L78: M16-23 | M78: =IF(D13=16,Z49,IF(D13=17,AA49,IF(D13=18,AB49,IF(D13=19,AC49,IF(D13=20,AD49,IF(D13=21,AE49,IF(D13=22,AF49,IF(D13=23,AG49,0)))))))) -> 0 | O78: E antrieb | P78: =P75*P77/P76 -> 8.196078431
C79: M42-48 | D79: =IF(D13=42,MIN(K49:AZ49),IF(D13=43,MIN(K49:BA49),IF(D13=44,MIN(K49:BB49),IF(D13=45,MIN(K49:BC49),IF(D13=46,MIN(K49:BD49),IF(D13=47,MIN(K49:BE49),IF(D13=48,MIN(K49:BF49)," "))))))) ->  | F79: phi= | G79: =G77*G78/180 -> 3.141592654 | L79: M24-31 | M79: =IF(D13=24,AH49,IF(D13=25,AI49,IF(D13=26,AJ49,IF(D13=27,AK49,IF(D13=28,AL49,IF(D13=29,AM49,IF(D13=30,AN49,IF(D13=31,AO49,0)))))))) -> 0
C80: M49-55 | D80: =IF(D13=49,MIN(K49:BG49),IF(D13=50,MIN(K49:BH49),IF(D13=51,MIN(K49:BI49),IF(D13=52,MIN(K49:BJ49),IF(D13=53,MIN(K49:BK49),IF(D13=54,MIN(K49:BL49),IF(D13=55,MIN(K49:BM49)," "))))))) ->  | F80: Omega= | G80: =SQRT(2*G76*G79) -> 61.70892233 | L80: M32-39 | M80: =IF(D13=32,AP49,IF(D13=33,AQ49,IF(D13=34,AR49,IF(D13=35,AS49,IF(D13=36,AT49,IF(D13=37,AU49,IF(D13=38,AV49,IF(D13=39,AW49,0)))))))) -> 0 | O80: E kin. | P80: =((G59+G60)*POWER(N98,2))/2 -> 57.11986643
C81: M56-62 | D81: =IF(D13=56,MIN(K49:BN49),IF(D13=57,MIN(K49:BO49),IF(D13=58,MIN(K49:BP49),IF(D13=59,MIN(K49:BQ49),IF(D13=60,MIN(K49:BR49),IF(D13=61,MIN(K49:BS49),IF(D13=62,MIN(K49:BT49)," "))))))) -> 22 | L81: M40-47 | M81: =IF(D13=40,AX49,IF(D13=41,AY49,IF(D13=42,AZ49,IF(D13=43,BA49,IF(D13=44,BB49,IF(D13=45,BC49,IF(D13=46,BD49,IF(D13=47,BE49,0)))))))) -> 0
C82: M63-64 | D82: =IF(D13=63,MIN(K49:BU49),IF(D13=64,MIN(K49:BV49)," ")) ->  | F82: Ts= | G82: =G80/G76*V37 -> 0.1476385967 | L82: M48-55 | M82: =IF(D13=48,BF49,IF(D13=49,BG49,IF(D13=50,BH49,IF(D13=51,BI49,IF(D13=52,BJ49,IF(D13=53,BK49,IF(D13=54,BL49,IF(D13=55,BM49,0)))))))) -> 0 | O82: E ges | P82: =P80+P78 -> 65.31594486
L83: M56-63 | M83: =IF(D13=56,BN49,IF(D13=57,BO49,IF(D13=58,BP49,IF(D13=59,BQ49,IF(D13=60,BR49,IF(D13=61,BS49,IF(D13=62,BT49,IF(D13=63,BU49,0)))))))) -> 22
L84: M64 | M84: =IF(D13=64,BV49,0) -> 0
A90: Überprüfung der mechanischen Belastung
A92: Drehachse Vertikal | J92: Drehachse Horizontal
D93: Berechnung der dyn. Kraft | M93: Berechnung der dyn. Kraft
A94: Statische Belastung | D94: verursacht durch Masse m | G94: Dynamische Belastung | J94: Statische Belastung | M94: verursacht durch Masse m | P94: Dynamische Belastung
D95: ( Auch Drehen vor ) | M95: ( Zurückdrehen )
A96: Xs | B96: =A3/1000 -> 0 | D96: Omega | E96: =I33 -> 61.70892233 | G96: Z bis OK-Dr. | H96: 0.1435 | M96: Omega | N96: =I71 -> 61.70892233 | P96: Z bis OK-Dr. | Q96: =H96 -> 0.1435
A97: Ys | B97: =B3/1000 -> 0 | D97: Prozent | E97: =Eingabe1!O30 -> 1 | G97: Z | H97: =ABS(I97) -> 0.1435 | I97: =H96+B98 -> 0.1435 | M97: Prozent | N97: =E97 -> 1 | P97: Z | Q97: =H97 -> 0.1435
A98: Zs | B98: =Eingabe1!N12/1000 -> 0 | D98: Omega red. | E98: =E96*E97 -> 61.70892233 | G98: M2=Fdyn*Z | H98: =E109*H97 -> 0 | M98: Omega red. | N98: =N96*N97 -> 61.70892233 | P98: M2=Fdyn*Z | Q98: =Q109*Q97 -> 0
A99: R | B99: =SQRT(POWER(B96,2)+POWER(B97,2)) -> 0
A100: m | B100: =C3 -> 0 | D100: R | E100: =B99 -> 0 | G100: r | H100: 0.051 | M100: R | N100: =B99 -> 0 | P100: r | Q100: =H100 -> 0.051
A101: F | B101: =B100*9.81 -> 0 | D101: Omega | E101: =E98 -> 61.70892233 | J101: F | K101: =B101 -> 0 | M101: Omega | N101: =N98 -> 61.70892233
A102: M1=F*R | B102: =B101*B99 -> 0 | D102: v | E102: =E100*E101 -> 0 | G102: M3=Fdyn*(R-r) | H102: =E109*(B99-H100) -> 0 | J102: M1=F*Z | K102: =K101*H97 -> 0 | M102: v | N102: =N100*N101 -> 0 | P102: M3=Fdyn*(R-r) | Q102: =Q109*(B99-Q100) -> 0
D103: PI | E103: =PI() -> 3.141592654 | M103: PI | N103: =PI() -> 3.141592654
A104: M max | B104: 380 | D104: Aufprallwink. | E104: ='Allgemeine Werte'!P22 -> 14.7 | M104: Aufprallwink. | N104: =E104 -> 14.7
A105: F ax max | B105: 2600 | D105: s (Dämpfweg) | E105: =TAN(E104*E103/180)*E100 -> 0 | M105: s (Dämpfweg) | N105: =TAN(N104*N103/180)*N100 -> 0
A106: F rad max | B106: 11750 | D106: a | E106: =IF(E100=0,0,POWER(E102,2)/(2*E105)) -> 0 | M106: a | N106: =IF(N100=0,0,POWER(N102,2)/(2*N105)) -> 0
A107: M rad max | B107: =H100*B106 -> 599.25
D108: m | E108: =B100 -> 0 | M108: m | N108: =B100 -> 0
D109: Fdyn | E109: =E108*E106 -> 0 | M109: Fdyn | N109: =N108*N106 -> 0 | P109: F dyn max | Q109: =MAX(E109,N109) -> 0
A110: Belastung durch M antr. | J110: Belastung durch M antr.
A111: M antr. | B111: 22
D112: phi | E112: =G27 -> 3.141592654 | J112: M antr. Ende vor | K112: =M30 -> 22 | M112: phi | N112: =G65 -> 3.141592654
D113: a | E113: =POWER(E98,2)/(2*E112) -> 606.0606061 | J113: M antr. Ende rück | K113: =M75 -> 22 | M113: a | N113: =POWER(N98,2)/(2*N112) -> 606.0606061
D114: t | E114: =E101/E113*V37 -> 0.1476385967 | J114: M antr. Ende max | K114: =MAX(K112,K113) -> 22 | M114: t | N114: =N101/N113*V37 -> 0.1476385967
A117: Belastungsgleichung: F/Faxmax + M1/Mmax + M2/Mmax + M3/Mradmax + M antr./Mradmax = | J117: Belastungsgleichung: F/Fradmax + M1/Mmax + M2/Mmax + M3/Mradmax + M antr/Mradmax =
A118: ( stat + dyn. ) | J118: ( stat + dyn )
D119: =B101/B105+B102/B104+H98/B104+H102/B107+B111/B107 -> 0.03671255736 | M119: =K101/B106+K102/B104+Q98/B104+Q102/B107+K114/B107 -> 0.03671255736
A121: Belastungsgleichung: F/Faxmax + M1/Mmax + M antr./Mradmax = | J121: Belastungsgleichung: F/Fradmax + M1/Mmax + M antr./Mradmax =
A122: ( stat ) | J122: ( stat )
D123: =B101/B105+B102/B104+B111/B107 -> 0.03671255736 | M123: =K101/B106+K102/B104+K114/B107 -> 0.03671255736
A125: Lagerbelastung Drehachse vertikal : | D125: =MAX(D119,D123) -> 0.03671255736 | J125: Lagerbelastung Drehachse horizontal : | M125: =MAX(M119,M123) -> 0.03671255736
E128: Lagerbelastung: | G128: =IF(F14=TRUE,D125,M125) -> 0.03671255736

Sheet BerRM400
A1: Drehen vor
A2: x | B2: y | C2: m | D2: x2*y2 | E2: R= | F2: sin | G2: grad
A3: =Eingabe1!N10 -> 0 | B3: =Eingabe1!N11 -> 0 | C3: =Eingabe1!N9 -> 0 | D3: =POWER(A3,2)+POWER(B3,2) -> 0 | E3: =SQRT(D3) -> 0 | F3: =IF(E3=0,0,A3/E3) -> 0 | G3: =ASIN(F3)*180/PI() -> 0
G4: =180-G3 -> 180 | J4: M= | K4: =IF($F14=TRUE,36,36+(9.81*$C3*($E3/1000)*K9)) -> 36 | L4: 36 | M4: 36 | N4: 36 | O4: 36 | P4: 36 | Q4: 36 | R4: 36 | S4: 36 | T4: 36 | U4: 36 | V4: 36 | W4: 36 | X4: 36 | Y4: 36 | Z4: 36 | AA4: 36 | AB4: 36 | AC4: 36 | AD4: 36 | AE4: 36 | AF4: 36 | AG4: 36 | AH4: 36 | AI4: 36 | AJ4: 36 | AK4: 36 | AL4: 36 | AM4: 36 | AN4: 36 | AO4: 36 | AP4: 36 | AQ4: =IF($F14=TRUE,36,36+(9.81*$C3*($E3/1000)*AQ9)) -> 36 | AR4: 36 | AS4: 36 | AT4: 36 | AU4: 36 | AV4: 36 | AW4: 36 | AX4: 36 | AY4: 36 | AZ4: 36 | BA4: 36 | BB4: 36 | BC4: 36 | BD4: 36 | BE4: 36 | BF4: 36 | BG4: 36 | BH4: 36 | BI4: 36 | BJ4: 36 | BK4: 36 | BL4: 36 | BM4: 36 | BN4: 36 | BO4: 36 | BP4: 36 | BQ4: 36 | BR4: 36 | BS4: 36 | BT4: 36 | BU4: 36 | BV4: 36
G5: =360+G3 -> 360
C6: Startwinkel | D6: =IF(AND(A3>=0,B3>=0),G3,IF(AND(A3>=0,B3<0),G4,IF(AND(A3<0,B3<0),G4,IF(AND(A3<0,B3>=0),G5,0)))) -> 0 | J6: beta= | K6: 3 | L6: =K6 -> 3 | M6: 3 | N6: 3 | O6: 3 | P6: 3 | Q6: 3 | R6: 3 | S6: 3 | T6: 3 | U6: 3 | V6: 3 | W6: 3 | X6: 3 | Y6: 3 | Z6: 3 | AA6: 3 | AB6: 3 | AC6: 3 | AD6: 3 | AE6: 3 | AF6: 3 | AG6: 3 | AH6: 3 | AI6: 3 | AJ6: 3 | AK6: 3 | AL6: 3 | AM6: 3 | AN6: 3 | AO6: 3 | AP6: 3 | AQ6: 3 | AR6: =AQ6 -> 3 | AS6: 3 | AT6: 3 | AU6: 3 | AV6: 3 | AW6: 3 | AX6: 3 | AY6: 3 | AZ6: 3 | BA6: 3 | BB6: 3 | BC6: 3 | BD6: 3 | BE6: 3 | BF6: 3 | BG6: 3 | BH6: 3 | BI6: 3 | BJ6: 3 | BK6: 3 | BL6: 3 | BM6: 3 | BN6: 3 | BO6: 3 | BP6: 3 | BQ6: 3 | BR6: 3 | BS6: 3 | BT6: 3 | BU6: 3 | BV6: 3
C7: sin Startpos | D7: =SIN((D6)*PI()/180) -> 0
C8: Schwenkw. | D8: =Eingabe1!M19 -> 180 | J8: Startwinkel | K8: =D6 -> 0 | L8: =IF($F16=TRUE,K8-K6,K8+K6) -> 3 | M8: 6 | N8: 9 | O8: 12 | P8: 15 | Q8: 18 | R8: 21 | S8: 24 | T8: 27 | U8: 30 | V8: 33 | W8: 36 | X8: 39 | Y8: 42 | Z8: 45 | AA8: 48 | AB8: 51 | AC8: 54 | AD8: 57 | AE8: 60 | AF8: 63 | AG8: 66 | AH8: 69 | AI8: 72 | AJ8: 75 | AK8: 78 | AL8: 81 | AM8: 84 | AN8: 87 | AO8: 90 | AP8: 93 | AQ8: 96 | AR8: =IF($F16=TRUE,AQ8-AQ6,AQ8+AQ6) -> 99 | AS8: 102 | AT8: 105 | AU8: 108 | AV8: 111 | AW8: 114 | AX8: 117 | AY8: 120 | AZ8: 123 | BA8: 126 | BB8: 129 | BC8: 132 | BD8: 135 | BE8: 138 | BF8: 141 | BG8: 144 | BH8: 147 | BI8: 150 | BJ8: 153 | BK8: 156 | BL8: 159 | BM8: 162 | BN8: 165 | BO8: 168 | BP8: 171 | BQ8: 174 | BR8: 177 | BS8: 180 | BT8: 183 | BU8: 186 | BV8: 189
C9: Endwinkel | D9: =IF(F16=TRUE,D6-D8,D6+D8) -> 180 | F9: Modulabhängige Zellen | J9: sin | K9: =IF($F16=TRUE,-SIN((K8)*PI()/180),SIN((K8)*PI()/180)) -> 0 | L9: 0.05233595624 | M9: 0.1045284633 | N9: 0.156434465 | O9: 0.2079116908 | P9: 0.2588190451 | Q9: 0.3090169944 | R9: 0.3583679495 | S9: 0.4067366431 | T9: 0.4539904997 | U9: 0.5 | V9: 0.544639035 | W9: 0.5877852523 | X9: 0.629320391 | Y9: 0.6691306064 | Z9: 0.7071067812 | AA9: 0.7431448255 | AB9: 0.7771459615 | AC9: 0.8090169944 | AD9: 0.8386705679 | AE9: 0.8660254038 | AF9: 0.8910065242 | AG9: 0.9135454576 | AH9: 0.9335804265 | AI9: 0.9510565163 | AJ9: 0.9659258263 | AK9: 0.9781476007 | AL9: 0.9876883406 | AM9: 0.9945218954 | AN9: 0.9986295348 | AO9: 1 | AP9: 0.9986295348 | AQ9: =IF($F16=TRUE,-SIN((AQ8)*PI()/180),SIN((AQ8)*PI()/180)) -> 0.9945218954 | AR9: 0.9876883406 | AS9: 0.9781476007 | AT9: 0.9659258263 | AU9: 0.9510565163 | AV9: 0.9335804265 | AW9: 0.9135454576 | AX9: 0.8910065242 | AY9: 0.8660254038 | AZ9: 0.8386705679 | BA9: 0.8090169944 | BB9: 0.7771459615 | BC9: 0.7431448255 | BD9: 0.7071067812 | BE9: 0.6691306064 | BF9: 0.629320391 | BG9: 0.5877852523 | BH9: 0.544639035 | BI9: 0.5 | BJ9: 0.4539904997 | BK9: 0.4067366431 | BL9: 0.3583679495 | BM9: 0.3090169944 | BN9: 0.2588190451 | BO9: 0.2079116908 | BP9: 0.156434465 | BQ9: 0.1045284633 | BR9: 0.05233595624 | BS9: 1.225148455e-16 | BT9: -0.05233595624 | BU9: -0.1045284633 | BV9: -0.156434465
C10: sin Endpos | D10: =SIN((D9)*PI()/180) -> 1.225148455e-16
F11: Werte aus Eingabeseite | K11: 1 | L11: 2 | M11: 3 | N11: 4 | O11: 5 | P11: 6 | Q11: 7 | R11: 8 | S11: 9 | T11: 10 | U11: 11 | V11: 12 | W11: 13 | X11: 14 | Y11: 15 | Z11: 16 | AA11: 17 | AB11: 18 | AC11: 19 | AD11: 20 | AE11: 21 | AF11: 22 | AG11: 23 | AH11: 24 | AI11: 25 | AJ11: 26 | AK11: 27 | AL11: 28 | AM11: 29 | AN11: 30 | AO11: 31 | AP11: 32 | AQ11: 33 | AR11: 34 | AS11: 35 | AT11: 36 | AU11: 37 | AV11: 38 | AW11: 39 | AX11: 40 | AY11: 41 | AZ11: 42 | BA11: 43 | BB11: 44 | BC11: 45 | BD11: 46 | BE11: 47 | BF11: 48 | BG11: 49 | BH11: 50 | BI11: 51 | BJ11: 52 | BK11: 53 | BL11: 54 | BM11: 55 | BN11: 56 | BO11: 57 | BP11: 58 | BQ11: 59 | BR11: 60 | BS11: 61 | BT11: 62 | BU11: 63 | BV11: 64
D12: =D8/K6 -> 60
D13: =ROUNDUP(D12,0) -> 60
F14: =IF(Eingabe1!C41=TRUE,FALSE,TRUE) -> TRUE | G14: Horizontaler Aufbau | J14: Summe M | K14: =K4 -> 36 | L14: =K14+L4 -> 72 | M14: 108 | N14: 144 | O14: 180 | P14: 216 | Q14: 252 | R14: 288 | S14: 324 | T14: 360 | U14: 396 | V14: 432 | W14: 468 | X14: 504 | Y14: 540 | Z14: 576 | AA14: 612 | AB14: 648 | AC14: 684 | AD14: 720 | AE14: 756 | AF14: 792 | AG14: 828 | AH14: 864 | AI14: 900 | AJ14: 936 | AK14: 972 | AL14: 1008 | AM14: 1044 | AN14: 1080 | AO14: 1116 | AP14: 1152 | AQ14: 1188 | AR14: =AQ14+AR4 -> 1224 | AS14: 1260 | AT14: 1296 | AU14: 1332 | AV14: 1368 | AW14: 1404 | AX14: 1440 | AY14: 1476 | AZ14: 1512 | BA14: 1548 | BB14: 1584 | BC14: 1620 | BD14: 1656 | BE14: 1692 | BF14: 1728 | BG14: 1764 | BH14: 1800 | BI14: 1836 | BJ14: 1872 | BK14: 1908 | BL14: 1944 | BM14: 1980 | BN14: 2016 | BO14: 2052 | BP14: 2088 | BQ14: 2124 | BR14: 2160 | BS14: 2196 | BT14: 2232 | BU14: 2268 | BV14: 2304
J15: Mittelwert Mm | K15: =K14/K11 -> 36 | L15: 36 | M15: 36 | N15: 36 | O15: 36 | P15: 36 | Q15: 36 | R15: 36 | S15: 36 | T15: 36 | U15: 36 | V15: 36 | W15: 36 | X15: 36 | Y15: 36 | Z15: 36 | AA15: 36 | AB15: 36 | AC15: 36 | AD15: 36 | AE15: 36 | AF15: 36 | AG15: 36 | AH15: 36 | AI15: 36 | AJ15: 36 | AK15: 36 | AL15: 36 | AM15: 36 | AN15: 36 | AO15: 36 | AP15: 36 | AQ15: =AQ14/AQ11 -> 36 | AR15: 36 | AS15: 36 | AT15: 36 | AU15: 36 | AV15: 36 | AW15: 36 | AX15: 36 | AY15: 36 | AZ15: 36 | BA15: 36 | BB15: 36 | BC15: 36 | BD15: 36 | BE15: 36 | BF15: 36 | BG15: 36 | BH15: 36 | BI15: 36 | BJ15: 36 | BK15: 36 | BL15: 36 | BM15: 36 | BN15: 36 | BO15: 36 | BP15: 36 | BQ15: 36 | BR15: 36 | BS15: 36 | BT15: 36 | BU15: 36 | BV15: 36
A16: Mittelwert des Antriebsmoments über Schwenkbereich | F16: =IF(Eingabe1!C42=TRUE,TRUE,FALSE) -> FALSE | G16: Drehen im/gegen Uhrzeigersinn
C17: Mn= | D17: =MAX(D18:D26) -> 36 | O17: Gerundete Werte
C18: Mn1-7 | D18: =IF(D13=0,0,IF(D13=1,K15,IF(D13=2,L15,IF(D13=3,M15,IF(D13=4,N15,IF(D13=5,O15,IF(D13=6,P15,IF(D13=7,Q15,0)))))))) -> 0 | K18: Schwenkzeit vor | N18: =E114 -> 0.1654290261 | O18: =ROUND(N18,3) -> 0.165 | P18: Zykluszeit | Q18: =N18+N19 -> 0.3308580522 | R18: Zyklen/min | S18: =60/Q18 -> 181.3466519
C19: Mn8-15 | D19: =IF(D13=8,R15,IF(D13=9,S15,IF(D13=10,T15,IF(D13=11,U15,IF(D13=12,V15,IF(D13=13,W15,IF(D13=14,X15,IF(D13=15,Y15,0)))))))) -> 0 | K19: Schwenkzeit zurück | N19: =N114 -> 0.1654290261 | O19: =ROUND(N19,3) -> 0.165
C20: Mn16-23 | D20: =IF(D13=16,Z15,IF(D13=17,AA15,IF(D13=18,AB15,IF(D13=19,AC15,IF(D13=20,AD15,IF(D13=21,AE15,IF(D13=22,AF15,IF(D13=23,AG15,0)))))))) -> 0 | F20: M= | G20: =D17 -> 36
C21: Mn24-31 | D21: =IF(D13=24,AH15,IF(D13=25,AI15,IF(D13=26,AJ15,IF(D13=27,AK15,IF(D13=28,AL15,IF(D13=29,AM15,IF(D13=30,AN15,IF(D13=31,AO15,0)))))))) -> 0 | F21: J= | G21: =Eingabe1!N8 -> 0 | K21: Mmin im Schwenkbereich vor | N21: =D30 -> 36 | O21: Mmin | P21: =MIN(N21:N22) -> 36 | R21: M-Mmin/M | S21: =(36-P21)/36 -> 0
C22: Mn32-39 | D22: =IF(D13=32,AP15,IF(D13=33,AQ15,IF(D13=34,AR15,IF(D13=35,AS15,IF(D13=36,AT15,IF(D13=37,AU15,IF(D13=38,AV15,IF(D13=39,AW15,0)))))))) -> 0 | F22: JE= | G22: 0.08 | K22: Mmin im Schwenkbereich zurück | N22: =D72 -> 36
C23: Mn40-47 | D23: =IF(D13=40,AX15,IF(D13=41,AY15,IF(D13=42,AZ15,IF(D13=43,BA15,IF(D13=44,BB15,IF(D13=45,BC15,IF(D13=46,BD15,IF(D13=47,BE15,0)))))))) -> 0 | F23: k= | G23: 1.4
C24: Mn48-55 | D24: =IF(D13=48,BF15,IF(D13=49,BG15,IF(D13=50,BH15,IF(D13=51,BI15,IF(D13=52,BJ15,IF(D13=53,BK15,IF(D13=54,BL15,IF(D13=55,BM15,0)))))))) -> 0 | F24: alpha= | G24: =G20/((G21+G22)*POWER(G23,2)) -> 229.5918367 | K24: E ges vor | N24: =P37 -> 71.81472221 | O24: E ges max | P24: =MAX(N24:N25) -> 71.81472221 | R24: E zul/Hub | S24: ='Allgemeine Werte'!G24 -> 75
C25: Mn56-63 | D25: =IF(D13=56,BN15,IF(D13=57,BO15,IF(D13=58,BP15,IF(D13=59,BQ15,IF(D13=60,BR15,IF(D13=61,BS15,IF(D13=62,BT15,IF(D13=63,BU15,0)))))))) -> 36 | F25: PI= | G25: =PI() -> 3.141592654 | K25: E ges zurück | N25: =P82 -> 71.81472221
C26: Mn64 | D26: =IF(D13=64,BV15,0) -> 0 | F26: beta= | G26: =D8 -> 180 | R26: E ges/E zul | S26: =P24/S24 -> 0.9575296295
F27: phi= | G27: =G25*G26/180 -> 3.141592654
F28: Omega= | G28: =SQRT(2*G24*G27) -> 37.98115395 | L28: Antriebsmoment in Endposition | R28: Ezul/h | S28: ='Allgemeine Werte'!H24 -> 68000
A29: Minimale Antriebsmoment im Schwenkbereich | I29: Tsmax für Schwenkzeit vor: | L29: für Energieberechnung | O29: Energieberechnung
C30: M min.= | D30: =MAX(D31:D40) -> 36 | F30: Ts= | G30: =G28/G24 -> 0.1654290261 | I30: =MAX(G30,G44) -> 0.1654290261 | L30: M= | M30: =MAX(M31:M39) -> 36 | O30: M= | P30: =M30 -> 36 | R30: Zyklen/min | S30: =(S28/60)/P24 -> 15.78135093
C31: M1-6 | D31: =IF(D13=0,0,IF(D13=1,K4,IF(D13=2,MIN(K4:L4),IF(D13=3,MIN(K4:M4),IF(D13=4,MIN(K4:N4),IF(D13=5,MIN(K4:O4),IF(D13=6,MIN(K4:P4)," "))))))) ->  | L31: M1-7 | M31: =IF(D13=0,0,IF(D13=1,K4,IF(D13=2,L4,IF(D13=3,M4,IF(D13=4,N4,IF(D13=5,O4,IF(D13=6,P4,IF(D13=7,Q4,0)))))))) -> 0 | O31: r= | P31: 0.0625
C32: M7-13 | D32: =IF(D13=7,MIN(K4:Q4),IF(D13=8,MIN(K4:R4),IF(D13=9,MIN(K4:S4),IF(D13=10,MIN(K4:T4),IF(D13=11,MIN(K4:U4),IF(D13=12,MIN(K4:V4),IF(D13=13,MIN(K4:W4)," "))))))) ->  | I32: Omega min. für Ber. E kin.: | L32: M8-15 | M32: =IF(D13=8,R4,IF(D13=9,S4,IF(D13=10,T4,IF(D13=11,U4,IF(D13=12,V4,IF(D13=13,W4,IF(D13=14,X4,IF(D13=15,Y4,0)))))))) -> 0 | O32: s= | P32: ='Allgemeine Werte'!L24 -> 0.0245 | S32: =MIN(S18,S30,S37) -> 15.78135093
C33: M14-20 | D33: =IF(D13=14,MIN(K4:X4),IF(D13=15,MIN(K4:Y4),IF(D13=16,MIN(K4:Z4),IF(D13=17,MIN(K4:AA4),IF(D13=18,MIN(K4:AB4),IF(D13=19,MIN(K4:AC4),IF(D13=20,MIN(K4:AD4)," "))))))) ->  | F33: Werte für Drehachse vertikal | I33: =MIN(G28,G42) -> 37.98115395 | L33: M16-23 | M33: =IF(D13=16,Z4,IF(D13=17,AA4,IF(D13=18,AB4,IF(D13=19,AC4,IF(D13=20,AD4,IF(D13=21,AE4,IF(D13=22,AF4,IF(D13=23,AG4,0)))))))) -> 0 | O33: E antrieb | P33: =P30*P32/P31 -> 14.112 | R33: Zykl.min./min | S33: =ROUNDDOWN(S32,0) -> 15
C34: M21-27 | D34: =IF(D13=21,MIN(K4:AE4),IF(D13=22,MIN(K4:AF4),IF(D13=23,MIN(K4:AG4),IF(D13=24,MIN(K4:AH4),IF(D13=25,MIN(K4:AI4),IF(D13=26,MIN(K4:AJ4),IF(D13=27,MIN(K4:AK4)," "))))))) ->  | F34: M= | G34: 36 | L34: M24-31 | M34: =IF(D13=24,AH4,IF(D13=25,AI4,IF(D13=26,AJ4,IF(D13=27,AK4,IF(D13=28,AL4,IF(D13=29,AM4,IF(D13=30,AN4,IF(D13=31,AO4,0)))))))) -> 0
C35: M28-34 | D35: =IF(D13=28,MIN(K4:AL4),IF(D13=29,MIN(K4:AM4),IF(D13=30,MIN(K4:AN4),IF(D13=31,MIN(K4:AO4),IF(D13=32,MIN(K4:AP4),IF(D13=33,MIN(K4:AQ4),IF(D13=34,MIN(K4:AR4)," "))))))) ->  | F35: J= | G35: =G21 -> 0 | L35: M32-39 | M35: =IF(D13=32,AP4,IF(D13=33,AQ4,IF(D13=34,AR4,IF(D13=35,AS4,IF(D13=36,AT4,IF(D13=37,AU4,IF(D13=38,AV4,IF(D13=39,AW4,0)))))))) -> 0 | O35: E kin. | P35: =((G21+G22)*POWER(E98,2))/2 -> 57.70272221 | R35: Stoßd.-kolbenrückstellzeit
C36: M35-41 | D36: =IF(D13=35,MIN(K4:AS4),IF(D13=36,MIN(K4:AT4),IF(D13=37,MIN(K4:AU4),IF(D13=38,MIN(K4:AV4),IF(D13=39,MIN(K4:AW4),IF(D13=40,MIN(K4:AX4),IF(D13=41,MIN(K4:AY4)," "))))))) ->  | F36: JE= | G36: =G22 -> 0.08 | L36: M40-47 | M36: =IF(D13=40,AX4,IF(D13=41,AY4,IF(D13=42,AZ4,IF(D13=43,BA4,IF(D13=44,BB4,IF(D13=45,BC4,IF(D13=46,BD4,IF(D13=47,BE4,0)))))))) -> 0 | S36: ='Allgemeine Werte'!E24 -> 0.6
C37: M42-48 | D37: =IF(D13=42,MIN(K4:AZ4),IF(D13=43,MIN(K4:BA4),IF(D13=44,MIN(K4:BB4),IF(D13=45,MIN(K4:BC4),IF(D13=46,MIN(K4:BD4),IF(D13=47,MIN(K4:BE4),IF(D13=48,MIN(K4:BF4)," "))))))) ->  | F37: k= | G37: =G23 -> 1.4 | L37: M48-55 | M37: =IF(D13=48,BF4,IF(D13=49,BG4,IF(D13=50,BH4,IF(D13=51,BI4,IF(D13=52,BJ4,IF(D13=53,BK4,IF(D13=54,BL4,IF(D13=55,BM4,0)))))))) -> 0 | O37: E ges | P37: =P35+P33 -> 71.81472221 | R37: Max.Zyk/min | S37: =60/S36 -> 100
C38: M49-55 | D38: =IF(D13=49,MIN(K4:BG4),IF(D13=50,MIN(K4:BH4),IF(D13=51,MIN(K4:BI4),IF(D13=52,MIN(K4:BJ4),IF(D13=53,MIN(K4:BK4),IF(D13=54,MIN(K4:BL4),IF(D13=55,MIN(K4:BM4)," "))))))) ->  | F38: alpha= | G38: =G34/((G35+G36)*POWER(G37,2)) -> 229.5918367 | L38: M56-63 | M38: =IF(D13=56,BN4,IF(D13=57,BO4,IF(D13=58,BP4,IF(D13=59,BQ4,IF(D13=60,BR4,IF(D13=61,BS4,IF(D13=62,BT4,IF(D13=63,BU4,0)))))))) -> 36
C39: M56-62 | D39: =IF(D13=56,MIN(K4:BN4),IF(D13=57,MIN(K4:BO4),IF(D13=58,MIN(K4:BP4),IF(D13=59,MIN(K4:BQ4),IF(D13=60,MIN(K4:BR4),IF(D13=61,MIN(K4:BS4),IF(D13=62,MIN(K4:BT4)," "))))))) -> 36 | F39: PI= | G39: =PI() -> 3.141592654 | L39: M64 | M39: =IF(D13=64,BV4,0) -> 0
C40: M63-64 | D40: =IF(D13=63,MIN(K4:BU4),IF(D13=64,MIN(K4:BV4)," ")) ->  | F40: beta= | G40: =G26 -> 180
F41: phi= | G41: =G39*G40/180 -> 3.141592654
F42: Omega= | G42: =SQRT(2*G38*G41) -> 37.98115395
F44: Ts= | G44: =G42/G38 -> 0.1654290261
A45: Zurückdrehen
C49: Startwinkel | D49: =D9 -> 180 | J49: M= | K49: =IF($F14=TRUE,36,36+(9.81*$C3*($E3/1000)*K54)) -> 36 | L49: 36 | M49: 36 | N49: 36 | O49: 36 | P49: 36 | Q49: 36 | R49: 36 | S49: 36 | T49: 36 | U49: 36 | V49: 36 | W49: 36 | X49: 36 | Y49: 36 | Z49: 36 | AA49: 36 | AB49: 36 | AC49: 36 | AD49: 36 | AE49: 36 | AF49: 36 | AG49: 36 | AH49: 36 | AI49: 36 | AJ49: 36 | AK49: 36 | AL49: 36 | AM49: 36 | AN49: 36 | AO49: 36 | AP49: 36 | AQ49: =IF($F14=TRUE,36,36+(9.81*$C3*($E3/1000)*AQ54)) -> 36 | AR49: 36 | AS49: 36 | AT49: 36 | AU49: 36 | AV49: 36 | AW49: 36 | AX49: 36 | AY49: 36 | AZ49: 36 | BA49: 36 | BB49: 36 | BC49: 36 | BD49: 36 | BE49: 36 | BF49: 36 | BG49: 36 | BH49: 36 | BI49: 36 | BJ49: 36 | BK49: 36 | BL49: 36 | BM49: 36 | BN49: 36 | BO49: 36 | BP49: 36 | BQ49: 36 | BR49: 36 | BS49: 36 | BT49: 36 | BU49: 36 | BV49: 36
C50: sin Startpos | D50: =SIN((D49)*PI()/180) -> 1.225148455e-16
C51: Schwenkw. | D51: =D8 -> 180 | J51: beta= | K51: =K6 -> 3 | L51: =K51 -> 3 | M51: 3 | N51: 3 | O51: 3 | P51: 3 | Q51: 3 | R51: 3 | S51: 3 | T51: 3 | U51: 3 | V51: 3 | W51: 3 | X51: 3 | Y51: 3 | Z51: 3 | AA51: 3 | AB51: 3 | AC51: 3 | AD51: 3 | AE51: 3 | AF51: 3 | AG51: 3 | AH51: 3 | AI51: 3 | AJ51: 3 | AK51: 3 | AL51: 3 | AM51: 3 | AN51: 3 | AO51: 3 | AP51: 3 | AQ51: 3 | AR51: =AQ51 -> 3 | AS51: 3 | AT51: 3 | AU51: 3 | AV51: 3 | AW51: 3 | AX51: 3 | AY51: 3 | AZ51: 3 | BA51: 3 | BB51: 3 | BC51: 3 | BD51: 3 | BE51: 3 | BF51: 3 | BG51: 3 | BH51: 3 | BI51: 3 | BJ51: 3 | BK51: 3 | BL51: 3 | BM51: 3 | BN51: 3 | BO51: 3 | BP51: 3 | BQ51: 3 | BR51: 3 | BS51: 3 | BT51: 3 | BU51: 3 | BV51: 3
C52: Endwinkel | D52: =IF(F16=TRUE,D49+D51,D49-D51) -> 0
C53: sin Endpos | D53: =SIN((D52)*PI()/180) -> 0 | J53: Startwinkel | K53: =D49 -> 180 | L53: =IF($F16=TRUE,K53+K51,K53-K51) -> 177 | M53: 174 | N53: 171 | O53: 168 | P53: 165 | Q53: 162 | R53: 159 | S53: 156 | T53: 153 | U53: 150 | V53: 147 | W53: 144 | X53: 141 | Y53: 138 | Z53: 135 | AA53: 132 | AB53: 129 | AC53: 126 | AD53: 123 | AE53: 120 | AF53: 117 | AG53: 114 | AH53: 111 | AI53: 108 | AJ53: 105 | AK53: 102 | AL53: 99 | AM53: 96 | AN53: 93 | AO53: 90 | AP53: 87 | AQ53: 84 | AR53: =IF($F16=TRUE,AQ53+AQ51,AQ53-AQ51) -> 81 | AS53: 78 | AT53: 75 | AU53: 72 | AV53: 69 | AW53: 66 | AX53: 63 | AY53: 60 | AZ53: 57 | BA53: 54 | BB53: 51 | BC53: 48 | BD53: 45 | BE53: 42 | BF53: 39 | BG53: 36 | BH53: 33 | BI53: 30 | BJ53: 27 | BK53: 24 | BL53: 21 | BM53: 18 | BN53: 15 | BO53: 12 | BP53: 9 | BQ53: 6 | BR53: 3 | BS53: 0 | BT53: -3 | BU53: -6 | BV53: -9
J54: sin | K54: =IF($F16=TRUE,SIN((K53)*PI()/180),-SIN((K53)*PI()/180)) -> -1.225148455e-16 | L54: -0.05233595624 | M54: -0.1045284633 | N54: -0.156434465 | O54: -0.2079116908 | P54: -0.2588190451 | Q54: -0.3090169944 | R54: -0.3583679495 | S54: -0.4067366431 | T54: -0.4539904997 | U54: -0.5 | V54: -0.544639035 | W54: -0.5877852523 | X54: -0.629320391 | Y54: -0.6691306064 | Z54: -0.7071067812 | AA54: -0.7431448255 | AB54: -0.7771459615 | AC54: -0.8090169944 | AD54: -0.8386705679 | AE54: -0.8660254038 | AF54: -0.8910065242 | AG54: -0.9135454576 | AH54: -0.9335804265 | AI54: -0.9510565163 | AJ54: -0.9659258263 | AK54: -0.9781476007 | AL54: -0.9876883406 | AM54: -0.9945218954 | AN54: -0.9986295348 | AO54: -1 | AP54: -0.9986295348 | AQ54: =IF($F16=TRUE,SIN((AQ53)*PI()/180),-SIN((AQ53)*PI()/180)) -> -0.9945218954 | AR54: -0.9876883406 | AS54: -0.9781476007 | AT54: -0.9659258263 | AU54: -0.9510565163 | AV54: -0.9335804265 | AW54: -0.9135454576 | AX54: -0.8910065242 | AY54: -0.8660254038 | AZ54: -0.8386705679 | BA54: -0.8090169944 | BB54: -0.7771459615 | BC54: -0.7431448255 | BD54: -0.7071067812 | BE54: -0.6691306064 | BF54: -0.629320391 | BG54: -0.5877852523 | BH54: -0.544639035 | BI54: -0.5 | BJ54: -0.4539904997 | BK54: -0.4067366431 | BL54: -0.3583679495 | BM54: -0.3090169944 | BN54: -0.2588190451 | BO54: -0.2079116908 | BP54: -0.156434465 | BQ54: -0.1045284633 | BR54: -0.05233595624 | BS54: 0 | BT54: 0.05233595624 | BU54: 0.1045284633 | BV54: 0.156434465
K56: 1 | L56: 2 | M56: 3 | N56: 4 | O56: 5 | P56: 6 | Q56: 7 | R56: 8 | S56: 9 | T56: 10 | U56: 11 | V56: 12 | W56: 13 | X56: 14 | Y56: 15 | Z56: 16 | AA56: 17 | AB56: 18 | AC56: 19 | AD56: 20 | AE56: 21 | AF56: 22 | AG56: 23 | AH56: 24 | AI56: 25 | AJ56: 26 | AK56: 27 | AL56: 28 | AM56: 29 | AN56: 30 | AO56: 31 | AP56: 32 | AQ56: 33 | AR56: 34 | AS56: 35 | AT56: 36 | AU56: 37 | AV56: 38 | AW56: 39 | AX56: 40 | AY56: 41 | AZ56: 42 | BA56: 43 | BB56: 44 | BC56: 45 | BD56: 46 | BE56: 47 | BF56: 48 | BG56: 49 | BH56: 50 | BI56: 51 | BJ56: 52 | BK56: 53 | BL56: 54 | BM56: 55 | BN56: 56 | BO56: 57 | BP56: 58 | BQ56: 59 | BR56: 60 | BS56: 61 | BT56: 62 | BU56: 63 | BV56: 64
A57: Mittelwert des Antriebsmoments über Schwenkbereich
C58: Mn= | D58: =MAX(D59:D67) -> 36 | F58: M= | G58: =D58 -> 36
C59: Mn1-7 | D59: =IF(D13=0,0,IF(D13=1,K63,IF(D13=2,L63,IF(D13=3,M63,IF(D13=4,N63,IF(D13=5,O63,IF(D13=6,P63,IF(D13=7,Q63,0)))))))) -> 0 | F59: J= | G59: =G21 -> 0
C60: Mn8-15 | D60: =IF(D13=8,R63,IF(D13=9,S63,IF(D13=10,T63,IF(D13=11,U63,IF(D13=12,V63,IF(D13=13,W63,IF(D13=14,X63,IF(D13=15,Y63,0)))))))) -> 0 | F60: JE= | G60: =G22 -> 0.08
C61: Mn16-23 | D61: =IF(D13=16,Z63,IF(D13=17,AA63,IF(D13=18,AB63,IF(D13=19,AC63,IF(D13=20,AD63,IF(D13=21,AE63,IF(D13=22,AF63,IF(D13=23,AG63,0)))))))) -> 0 | F61: k= | G61: =G23 -> 1.4
C62: Mn24-31 | D62: =IF(D13=24,AH63,IF(D13=25,AI63,IF(D13=26,AJ63,IF(D13=27,AK63,IF(D13=28,AL63,IF(D13=29,AM63,IF(D13=30,AN63,IF(D13=31,AO63,0)))))))) -> 0 | F62: alpha= | G62: =G58/((G59+G60)*POWER(G61,2)) -> 229.5918367 | J62: Summe M | K62: =K49 -> 36 | L62: =K62+L49 -> 72 | M62: 108 | N62: 144 | O62: 180 | P62: 216 | Q62: 252 | R62: 288 | S62: 324 | T62: 360 | U62: 396 | V62: 432 | W62: 468 | X62: 504 | Y62: 540 | Z62: 576 | AA62: 612 | AB62: 648 | AC62: 684 | AD62: 720 | AE62: 756 | AF62: 792 | AG62: 828 | AH62: 864 | AI62: 900 | AJ62: 936 | AK62: 972 | AL62: 1008 | AM62: 1044 | AN62: 1080 | AO62: 1116 | AP62: 1152 | AQ62: 1188 | AR62: =AQ62+AR49 -> 1224 | AS62: 1260 | AT62: 1296 | AU62: 1332 | AV62: 1368 | AW62: 1404 | AX62: 1440 | AY62: 1476 | AZ62: 1512 | BA62: 1548 | BB62: 1584 | BC62: 1620 | BD62: 1656 | BE62: 1692 | BF62: 1728 | BG62: 1764 | BH62: 1800 | BI62: 1836 | BJ62: 1872 | BK62: 1908 | BL62: 1944 | BM62: 1980 | BN62: 2016 | BO62: 2052 | BP62: 2088 | BQ62: 2124 | BR62: 2160 | BS62: 2196 | BT62: 2232 | BU62: 2268 | BV62: 2304
C63: Mn32-39 | D63: =IF(D13=32,AP63,IF(D13=33,AQ63,IF(D13=34,AR63,IF(D13=35,AS63,IF(D13=36,AT63,IF(D13=37,AU63,IF(D13=38,AV63,IF(D13=39,AW63,0)))))))) -> 0 | F63: PI= | G63: =PI() -> 3.141592654 | J63: Mittelwert Mm | K63: =K62/K56 -> 36 | L63: 36 | M63: 36 | N63: 36 | O63: 36 | P63: 36 | Q63: 36 | R63: 36 | S63: 36 | T63: 36 | U63: 36 | V63: 36 | W63: 36 | X63: 36 | Y63: 36 | Z63: 36 | AA63: 36 | AB63: 36 | AC63: 36 | AD63: 36 | AE63: 36 | AF63: 36 | AG63: 36 | AH63: 36 | AI63: 36 | AJ63: 36 | AK63: 36 | AL63: 36 | AM63: 36 | AN63: 36 | AO63: 36 | AP63: 36 | AQ63: =AQ62/AQ56 -> 36 | AR63: 36 | AS63: 36 | AT63: 36 | AU63: 36 | AV63: 36 | AW63: 36 | AX63: 36 | AY63: 36 | AZ63: 36 | BA63: 36 | BB63: 36 | BC63: 36 | BD63: 36 | BE63: 36 | BF63: 36 | BG63: 36 | BH63: 36 | BI63: 36 | BJ63: 36 | BK63: 36 | BL63: 36 | BM63: 36 | BN63: 36 | BO63: 36 | BP63: 36 | BQ63: 36 | BR63: 36 | BS63: 36 | BT63: 36 | BU63: 36 | BV63: 36
C64: Mn40-47 | D64: =IF(D13=40,AX63,IF(D13=41,AY63,IF(D13=42,AZ63,IF(D13=43,BA63,IF(D13=44,BB63,IF(D13=45,BC63,IF(D13=46,BD63,IF(D13=47,BE63,0)))))))) -> 0 | F64: beta= | G64: =D51 -> 180
C65: Mn48-55 | D65: =IF(D13=48,BF63,IF(D13=49,BG63,IF(D13=50,BH63,IF(D13=51,BI63,IF(D13=52,BJ63,IF(D13=53,BK63,IF(D13=54,BL63,IF(D13=55,BM63,0)))))))) -> 0 | F65: phi= | G65: =G63*G64/180 -> 3.141592654
C66: Mn56-63 | D66: =IF(D13=56,BN63,IF(D13=57,BO63,IF(D13=58,BP63,IF(D13=59,BQ63,IF(D13=60,BR63,IF(D13=61,BS63,IF(D13=62,BT63,IF(D13=63,BU63,0)))))))) -> 36 | F66: Omega= | G66: =SQRT(2*G62*G65) -> 37.98115395
C67: M64 | D67: =IF(D13=64,BV63,0) -> 0 | I67: Tsmax für Schwenkzeit vor:
F68: Ts= | G68: =G66/G62 -> 0.1654290261 | I68: =MAX(G68,G82) -> 0.1654290261
I70: Omega min. für Ber. E kin.:
A71: Minimale Antriebsmoment im Schwenkbereich | F71: Werte für Drehachse vertikal | I71: =MIN(G66,G80) -> 37.98115395
C72: M min.= | D72: =MAX(D73:D82) -> 36 | F72: M= | G72: 36
C73: M1-6 | D73: =IF(D13=0,0,IF(D13=1,K49,IF(D13=2,MIN(K49:L49),IF(D13=3,MIN(K49:M49),IF(D13=4,MIN(K49:N49),IF(D13=5,MIN(K49:O49),IF(D13=6,MIN(K49:P49)," "))))))) ->  | F73: J= | G73: =G59 -> 0 | L73: Antriebsmoment in Endposition
C74: M7-13 | D74: =IF(D13=7,MIN(K49:Q49),IF(D13=8,MIN(K49:R49),IF(D13=9,MIN(K49:S49),IF(D13=10,MIN(K49:T49),IF(D13=11,MIN(K49:U49),IF(D13=12,MIN(K49:V49),IF(D13=13,MIN(K49:W49)," "))))))) ->  | F74: JE= | G74: =G60 -> 0.08 | L74: für Energieberechnung | O74: Energieberechnung
C75: M14-20 | D75: =IF(D13=14,MIN(K49:X49),IF(D13=15,MIN(K49:Y49),IF(D13=16,MIN(K49:Z49),IF(D13=17,MIN(K49:AA49),IF(D13=18,MIN(K49:AB49),IF(D13=19,MIN(K49:AC49),IF(D13=20,MIN(K49:AD49)," "))))))) ->  | F75: k= | G75: =G61 -> 1.4 | L75: M= | M75: =MAX(M76:M84) -> 36 | O75: M= | P75: =M75 -> 36
C76: M21-27 | D76: =IF(D13=21,MIN(K49:AE49),IF(D13=22,MIN(K49:AF49),IF(D13=23,MIN(K49:AG49),IF(D13=24,MIN(K49:AH49),IF(D13=25,MIN(K49:AI49),IF(D13=26,MIN(K49:AJ49),IF(D13=27,MIN(K49:AK49)," "))))))) ->  | F76: alpha= | G76: =G72/((G73+G74)*POWER(G75,2)) -> 229.5918367 | L76: M1-7 | M76: =IF(D13=0,0,IF(D13=1,K49,IF(D13=2,L49,IF(D13=3,M49,IF(D13=4,N49,IF(D13=5,O49,IF(D13=6,P49,IF(D13=7,Q49,0)))))))) -> 0 | O76: r= | P76: 0.0625
C77: M28-34 | D77: =IF(D13=28,MIN(K49:AL49),IF(D13=29,MIN(K49:AM49),IF(D13=30,MIN(K49:AN49),IF(D13=31,MIN(K49:AO49),IF(D13=32,MIN(K49:AP49),IF(D13=33,MIN(K49:AQ49),IF(D13=34,MIN(K49:AR49)," "))))))) ->  | F77: PI= | G77: =PI() -> 3.141592654 | L77: M8-15 | M77: =IF(D13=8,R49,IF(D13=9,S49,IF(D13=10,T49,IF(D13=11,U49,IF(D13=12,V49,IF(D13=13,W49,IF(D13=14,X49,IF(D13=15,Y49,0)))))))) -> 0 | O77: s= | P77: ='Allgemeine Werte'!L24 -> 0.0245
C78: M35-41 | D78: =IF(D13=35,MIN(K49:AS49),IF(D13=36,MIN(K49:AT49),IF(D13=37,MIN(K49:AU49),IF(D13=38,MIN(K49:AV49),IF(D13=39,MIN(K49:AW49),IF(D13=40,MIN(K49:AX49),IF(D13=41,MIN(K49:AY49)," "))))))) ->  | F78: beta= | G78: =G64 -> 180 | L78: M16-23 | M78: =IF(D13=16,Z49,IF(D13=17,AA49,IF(D13=18,AB49,IF(D13=19,AC49,IF(D13=20,AD49,IF(D13=21,AE49,IF(D13=22,AF49,IF(D13=23,AG49,0)))))))) -> 0 | O78: E antrieb | P78: =P75*P77/P76 -> 14.112
C79: M42-48 | D79: =IF(D13=42,MIN(K49:AZ49),IF(D13=43,MIN(K49:BA49),IF(D13=44,MIN(K49:BB49),IF(D13=45,MIN(K49:BC49),IF(D13=46,MIN(K49:BD49),IF(D13=47,MIN(K49:BE49),IF(D13=48,MIN(K49:BF49)," "))))))) ->  | F79: phi= | G79: =G77*G78/180 -> 3.141592654 | L79: M24-31 | M79: =IF(D13=24,AH49,IF(D13=25,AI49,IF(D13=26,AJ49,IF(D13=27,AK49,IF(D13=28,AL49,IF(D13=29,AM49,IF(D13=30,AN49,IF(D13=31,AO49,0)))))))) -> 0
C80: M49-55 | D80: =IF(D13=49,MIN(K49:BG49),IF(D13=50,MIN(K49:BH49),IF(D13=51,MIN(K49:BI49),IF(D13=52,MIN(K49:BJ49),IF(D13=53,MIN(K49:BK49),IF(D13=54,MIN(K49:BL49),IF(D13=55,MIN(K49:BM49)," "))))))) ->  | F80: Omega= | G80: =SQRT(2*G76*G79) -> 37.98115395 | L80: M32-39 | M80: =IF(D13=32,AP49,IF(D13=33,AQ49,IF(D13=34,AR49,IF(D13=35,AS49,IF(D13=36,AT49,IF(D13=37,AU49,IF(D13=38,AV49,IF(D13=39,AW49,0)))))))) -> 0 | O80: E kin. | P80: =((G59+G60)*POWER(N98,2))/2 -> 57.70272221
C81: M56-62 | D81: =IF(D13=56,MIN(K49:BN49),IF(D13=57,MIN(K49:BO49),IF(D13=58,MIN(K49:BP49),IF(D13=59,MIN(K49:BQ49),IF(D13=60,MIN(K49:BR49),IF(D13=61,MIN(K49:BS49),IF(D13=62,MIN(K49:BT49)," "))))))) -> 36 | L81: M40-47 | M81: =IF(D13=40,AX49,IF(D13=41,AY49,IF(D13=42,AZ49,IF(D13=43,BA49,IF(D13=44,BB49,IF(D13=45,BC49,IF(D13=46,BD49,IF(D13=47,BE49,0)))))))) -> 0
C82: M63-64 | D82: =IF(D13=63,MIN(K49:BU49),IF(D13=64,MIN(K49:BV49)," ")) ->  | F82: Ts= | G82: =G80/G76 -> 0.1654290261 | L82: M48-55 | M82: =IF(D13=48,BF49,IF(D13=49,BG49,IF(D13=50,BH49,IF(D13=51,BI49,IF(D13=52,BJ49,IF(D13=53,BK49,IF(D13=54,BL49,IF(D13=55,BM49,0)))))))) -> 0 | O82: E ges | P82: =P80+P78 -> 71.81472221
L83: M56-63 | M83: =IF(D13=56,BN49,IF(D13=57,BO49,IF(D13=58,BP49,IF(D13=59,BQ49,IF(D13=60,BR49,IF(D13=61,BS49,IF(D13=62,BT49,IF(D13=63,BU49,0)))))))) -> 36
L84: M64 | M84: =IF(D13=64,BV49,0) -> 0
A90: Überprüfung der mechanischen Belastung
A92: Drehachse Vertikal | J92: Drehachse Horizontal
D93: Berechnung der dyn. Kraft | M93: Berechnung der dyn. Kraft
A94: Statische Belastung | D94: verursacht durch Masse m | G94: Dynamische Belastung | J94: Statische Belastung | M94: verursacht durch Masse m | P94: Dynamische Belastung
D95: ( Auch Drehen vor ) | M95: ( Zurückdrehen )
A96: Xs | B96: =A3/1000 -> 0 | D96: Omega | E96: =I33 -> 37.98115395 | G96: Z bis OK-Dr. | H96: 0.034 | M96: Omega | N96: =I71 -> 37.98115395 | P96: Z bis OK-Dr. | Q96: =H96 -> 0.034
A97: Ys | B97: =B3/1000 -> 0 | D97: Prozent | E97: =Eingabe1!O30 -> 1 | G97: Z | H97: =ABS(I97) -> 0.034 | I97: =H96+B98 -> 0.034 | M97: Prozent | N97: =E97 -> 1 | P97: Z | Q97: =H97 -> 0.034
A98: Zs | B98: =Eingabe1!N12/1000 -> 0 | D98: Omega red. | E98: =E96*E97 -> 37.98115395 | G98: M2=Fdyn*Z | H98: =E109*H97 -> 0 | M98: Omega red. | N98: =N96*N97 -> 37.98115395 | P98: M2=Fdyn*Z | Q98: =Q109*Q97 -> 0
A99: R | B99: =SQRT(POWER(B96,2)+POWER(B97,2)) -> 0
A100: m | B100: =C3 -> 0 | D100: R | E100: =B99 -> 0 | G100: r | H100: 0.0625 | M100: R | N100: =B99 -> 0 | P100: r | Q100: =H100 -> 0.0625
A101: F | B101: =B100*9.81 -> 0 | D101: Omega | E101: =E98 -> 37.98115395 | J101: F | K101: =B101 -> 0 | M101: Omega | N101: =N98 -> 37.98115395
